Workbook

Sheet All Data %
A1: Reading | B1: Mode | C1: DEPTH (ft) | D1: Ambient Pressure | E1: Live Time 1 | F1: Live Time 2 | G1: Live Time Total | H1: LOD Sigma | I1: Mg | J1: Mg +/- | K1: Al | L1: Al +/- | M1: Si | N1: Si +/- | O1: P | P1: P +/- | Q1: S | R1: S +/- | S1: Cl | T1: Cl +/- | U1: K | V1: K +/- | W1: Ca | X1: Ca +/- | Y1: Ti | Z1: Ti +/- | AA1: V | AB1: V +/- | AC1: Cr | AD1: Cr +/- | AE1: Mn | AF1: Mn +/- | AG1: Fe | AH1: Fe +/- | AI1: Co | AJ1: Co +/- | AK1: Ni | AL1: Ni +/- | AM1: Cu | AN1: Cu +/- | AO1: Zn | AP1: Zn +/- | AQ1: As | AR1: As +/- | AS1: Zr | AT1: Zr +/- | AU1: Mo | AV1: Mo +/- | AW1: Ag | AX1: Ag +/- | AY1: Cd | AZ1: Cd +/- | BA1: Sn | BB1: Sn +/- | BC1: Sb | BD1: Sb +/- | BE1: W | BF1: W +/- | BG1: Pb | BH1: Pb +/- | BI1: Bi | BJ1: Bi +/- | BK1: Hf | BL1: Hf +/- | BM1: LE | BN1: LE +/-
G2: AVG: | H2: =AVERAGE(H4:H943) -> 3 | I2: =AVERAGE(I4:I943) -> 0.007476038339 | K2: 2.547696486 | M2: 34.3356017 | O2: 0.2509447284 | Q2: 2.31581033 | S2: 0.1343162939 | U2: 1.743196379 | W2: 2.037244728 | Y2: 0.1750801064 | AA2: 0.0232056383 | AC2: 0.01210138298 | AE2: 0.02385234043 | AG2: 0.8136785106 | AI2: 0.001179468085 | AK2: 0.001659148936 | AM2: 0.000625106383 | AO2: 0.000650212766 | AQ2: 5.127659574e-05 | AS2: 0.02769723404 | AU2: 0 | AW2: 0 | AY2: 0.02663287234 | BA2: 0.009947765957 | BC2: 0.01287542553 | BE2: 0.000465 | BG2: 0.0021 | BI2: 0.001057446809 | BK2: 0.0007358510638 | BM2: 55.540405
G3: MAX: | I3: =MAX(I4:I943) -> 1.97 | K3: =MAX(K4:K943) -> 10.43 | M3: 45.33 | O3: 6.4765 | Q3: 11.4379 | S3: 3.5317 | U3: 13.34 | W3: 21.08 | Y3: 2.4942 | AA3: 0.1257 | AC3: 0.0674 | AE3: 0.3065 | AG3: 18.23 | AI3: 0.0517 | AK3: 0.019 | AM3: 0.0442 | AO3: 0.0419 | AQ3: 0.0363 | AS3: 0.2147 | AU3: 0 | AW3: 0 | AY3: 0.032 | BA3: 0.0127 | BC3: 0.0161 | BE3: 0.0034 | BG3: 0.3454 | BI3: 0.0062 | BK3: 0.0112 | BM3: 98.1707
A4: #37 | B4: Mining Plus | C4: 3772.05 | D4: 990 | E4: 53.53 | F4: 51.43 | G4: 104.96 | H4: 3 | I4: 0 | J4: 0.66 | K4: 1.6 | L4: 0.06 | M4: 33.77 | N4: 0.1 | O4: 0.6222 | P4: 0.0108 | Q4: 3.0842 | R4: 0.0148 | S4: 0 | T4: 0.0012 | U4: 0 | V4: 0.13 | W4: 2.4578 | X4: 0.0109 | Y4: 0.065 | Z4: 0.0068 | AA4: 0.019 | AB4: 0.0034 | AC4: 0.0144 | AD4: 0.0028 | AE4: 0.0182 | AF4: 0.0018 | AG4: 1.3237 | AH4: 0.0087 | AI4: 0 | AJ4: 0.0044 | AK4: 0 | AL4: 0.0021 | AM4: 0 | AN4: 0.0031 | AO4: 0 | AP4: 0.0018 | AQ4: 0 | AR4: 0.0016 | AS4: 0.0044 | AT4: 0.0001 | AU4: 0 | AV4: 0.0045 | AW4: 0 | AX4: 0 | AY4: 0.0261 | AZ4: 0.0008 | BA4: 0.0101 | BB4: 0.0003 | BC4: 0.0128 | BD4: 0.0003 | BE4: 0 | BF4: 0.0069 | BG4: 0.0015 | BH4: 0.0002 | BI4: 0 | BJ4: 0.0053 | BK4: 0 | BL4: 0.0076 | BM4: 56.97 | BN4: 0.12
A5: #38 | B5: Mining Plus | C5: =C4+0.2 -> 3772.25 | D5: 990 | E5: 54.01 | F5: 47.57 | G5: 101.58 | H5: 3 | I5: 0 | J5: 0.61 | K5: 4.88 | L5: 0.08 | M5: 19.81 | N5: 0.08 | O5: 0.1772 | P5: 0.0072 | Q5: 6.1316 | R5: 0.023 | S5: 0 | T5: 0.0012 | U5: 6.3191 | V5: 0.0437 | W5: 5.0689 | X5: 0.0191 | Y5: 0.2991 | Z5: 0.011 | AA5: 0.0364 | AB5: 0.0044 | AC5: 0.018 | AD5: 0.0032 | AE5: 0.0357 | AF5: 0.0024 | AG5: 3.4162 | AH5: 0.0162 | AI5: 0.0083 | AJ5: 0.0016 | AK5: 0 | AL5: 0.0027 | AM5: 0 | AN5: 0.0034 | AO5: 0 | AP5: 0.0024 | AQ5: 0 | AR5: 0.0019 | AS5: 0.0276 | AT5: 0.0003 | AU5: 0 | AV5: 0.0049 | AW5: 0 | AX5: 0 | AY5: 0.0248 | AZ5: 0.0009 | BA5: 0.0103 | BB5: 0.0003 | BC5: 0.0128 | BD5: 0.0003 | BE5: 0.0023 | BF5: 0.0004 | BG5: 0.0023 | BH5: 0.0002 | BI5: 0.0028 | BJ5: 0.0002 | BK5: 0.0036 | BL5: 0.0006 | BM5: 53.71 | BN5: 0.14
A6: #39 | B6: Mining Plus | C6: 3772.45 | D6: 990 | E6: 53.43 | F6: 51.86 | G6: 105.29 | H6: 3 | I6: 0 | J6: 0.59 | K6: 2.37 | L6: 0.07 | M6: 34.74 | N6: 0.11 | O6: 0.9341 | P6: 0.0128 | Q6: 0.4716 | R6: 0.0064 | S6: 0 | T6: 0.0012 | U6: 0 | V6: 0.11 | W6: 1.1718 | X6: 0.0077 | Y6: 0.4175 | Z6: 0.0122 | AA6: 0.039 | AB6: 0.0047 | AC6: 0.0099 | AD6: 0.0028 | AE6: 0.0163 | AF6: 0.0018 | AG6: 0.7842 | AH6: 0.0065 | AI6: 0 | AJ6: 0.0033 | AK6: 0.002 | AL6: 0.0004 | AM6: 0.0033 | AN6: 0.0006 | AO6: 0 | AP6: 0.0018 | AQ6: 0 | AR6: 0.002 | AS6: 0.0063 | AT6: 0.0001 | AU6: 0 | AV6: 0.0045 | AW6: 0 | AX6: 0 | AY6: 0.0263 | AZ6: 0.0008 | BA6: 0.0101 | BB6: 0.0003 | BC6: 0.0132 | BD6: 0.0003 | BE6: 0 | BF6: 0.007 | BG6: 0.0034 | BH6: 0.0002 | BI6: 0 | BJ6: 0.0052 | BK6: 0 | BL6: 0.0082 | BM6: 58.98 | BN6: 0.12
A7: #40 | B7: Mining Plus | C7: 3772.65 | D7: 990 | E7: 53.59 | F7: 49.59 | G7: 103.18 | H7: 3 | I7: 0 | J7: 0.63 | K7: 3.98 | L7: 0.08 | M7: 30.07 | N7: 0.1 | O7: 1.1622 | P7: 0.0138 | Q7: 2.2794 | R7: 0.0126 | S7: 0 | T7: 0.0014 | U7: 0 | V7: 0.14 | W7: 3.7327 | X7: 0.0147 | Y7: 0.3587 | Z7: 0.0115 | AA7: 0.04 | AB7: 0.0046 | AC7: 0.016 | AD7: 0.003 | AE7: 0.0383 | AF7: 0.0023 | AG7: 2.4656 | AH7: 0.0129 | AI7: 0 | AJ7: 0.0061 | AK7: 0.0054 | AL7: 0.0006 | AM7: 0 | AN7: 0.0033 | AO7: 0 | AP7: 0.002 | AQ7: 0 | AR7: 0.0021 | AS7: 0.0179 | AT7: 0.0002 | AU7: 0 | AV7: 0.0046 | AW7: 0 | AX7: 0 | AY7: 0.0281 | AZ7: 0.0009 | BA7: 0.0106 | BB7: 0.0003 | BC7: 0.0135 | BD7: 0.0003 | BE7: 0 | BF7: 0.0073 | BG7: 0.0037 | BH7: 0.0003 | BI7: 0.002 | BJ7: 0.0002 | BK7: 0 | BL7: 0.0085 | BM7: 55.77 | BN7: 0.13
A8: #41 | B8: Mining Plus | C8: 3772.85 | D8: 990 | E8: 53.29 | F8: 52.06 | G8: 105.35 | H8: 3 | I8: 0 | J8: 0.64 | K8: 0.4083 | L8: 0.047 | M8: 34.83 | N8: 0.1 | O8: 0.9587 | P8: 0.0123 | Q8: 2.8688 | R8: 0.0138 | S8: 0 | T8: 0.001 | U8: 0 | V8: 0.09 | W8: 2.5891 | X8: 0.0109 | Y8: 0.0646 | Z8: 0.0066 | AA8: 0.0158 | AB8: 0.0033 | AC8: 0.0141 | AD8: 0.0027 | AE8: 0.0198 | AF8: 0.0018 | AG8: 0.5925 | AH8: 0.0055 | AI8: 0 | AJ8: 0.0028 | AK8: 0.0021 | AL8: 0.0004 | AM8: 0 | AN8: 0.003 | AO8: 0 | AP8: 0.0018 | AQ8: 0 | AR8: 0.0014 | AS8: 0.0049 | AT8: 0.0001 | AU8: 0 | AV8: 0.0044 | AW8: 0 | AX8: 0 | AY8: 0.0249 | AZ8: 0.0008 | BA8: 0.0095 | BB8: 0.0003 | BC8: 0.0126 | BD8: 0.0003 | BE8: 0 | BF8: 0.0067 | BG8: 0.0006 | BH8: 0.0002 | BI8: 0.0012 | BJ8: 0.0001 | BK8: 0 | BL8: 0.0072 | BM8: 57.59 | BN8: 0.12
A9: #42 | B9: Mining Plus | C9: 3773.05 | D9: 990 | E9: 53.46 | F9: 49.99 | G9: 103.44 | H9: 3 | I9: 0 | J9: 0.63 | K9: 2.19 | L9: 0.06 | M9: 31.64 | N9: 0.1 | O9: 0.4018 | P9: 0.0093 | Q9: 4.8246 | R9: 0.0192 | S9: 0 | T9: 0.0011 | U9: 0.3839 | V9: 0.0364 | W9: 3.4765 | X9: 0.0135 | Y9: 0.1041 | Z9: 0.0075 | AA9: 0.0186 | AB9: 0.0034 | AC9: 0.0151 | AD9: 0.0028 | AE9: 0.0174 | AF9: 0.0018 | AG9: 1.3894 | AH9: 0.0088 | AI9: 0.0061 | AJ9: 0.001 | AK9: 0 | AL9: 0.0022 | AM9: 0 | AN9: 0.003 | AO9: 0 | AP9: 0.0019 | AQ9: 0 | AR9: 0.0015 | AS9: 0.0216 | AT9: 0.0002 | AU9: 0 | AV9: 0.0048 | AW9: 0 | AX9: 0 | AY9: 0.0256 | AZ9: 0.0008 | BA9: 0.0099 | BB9: 0.0003 | BC9: 0.0126 | BD9: 0.0003 | BE9: 0 | BF9: 0.007 | BG9: 0.0011 | BH9: 0.0002 | BI9: 0.0017 | BJ9: 0.0002 | BK9: 0 | BL9: 0.0081 | BM9: 55.46 | BN9: 0.13
A10: #43 | B10: Mining Plus | C10: 3773.25 | D10: 990 | E10: 53.63 | F10: 51.5 | G10: 105.13 | H10: 3 | I10: 0 | J10: 0.6 | K10: 3.29 | L10: 0.07 | M10: 34.87 | N10: 0.1 | O10: 0.4405 | P10: 0.0094 | Q10: 2.0329 | R10: 0.0115 | S10: 0 | T10: 0.0012 | U10: 3.0077 | V10: 0.0425 | W10: 1.2941 | X10: 0.0085 | Y10: 0.0872 | Z10: 0.0073 | AA10: 0.0233 | AB10: 0.0036 | AC10: 0.0102 | AD10: 0.0027 | AE10: 0.0112 | AF10: 0.0016 | AG10: 0.9282 | AH10: 0.0071 | AI10: 0 | AJ10: 0.0036 | AK10: 0.0016 | AL10: 0.0004 | AM10: 0 | AN10: 0.003 | AO10: 0 | AP10: 0.0018 | AQ10: 0 | AR10: 0.0017 | AS10: 0.0047 | AT10: 0.0001 | AU10: 0 | AV10: 0.0045 | AW10: 0 | AX10: 0 | AY10: 0.0266 | AZ10: 0.0008 | BA10: 0.0096 | BB10: 0.0003 | BC10: 0.0129 | BD10: 0.0003 | BE10: 0 | BF10: 0.007 | BG10: 0.0017 | BH10: 0.0002 | BI10: 0.0012 | BJ10: 0.0002 | BK10: 0 | BL10: 0.0078 | BM10: 53.95 | BN10: 0.13
A11: #44 | B11: Mining Plus | C11: 3773.45 | D11: 990 | E11: 53.37 | F11: 52.29 | G11: 105.66 | H11: 3 | I11: 0 | J11: 0.7 | K11: 0.3942 | L11: 0.0478 | M11: 32.9 | N11: 0.1 | O11: 0.7425 | P11: 0.0112 | Q11: 3.0106 | R11: 0.0143 | S11: 0 | T11: 0.0012 | U11: 0 | V11: 0.1 | W11: 2.5407 | X11: 0.0109 | Y11: 0.0887 | Z11: 0.0071 | AA11: 0.0193 | AB11: 0.0034 | AC11: 0.0134 | AD11: 0.0027 | AE11: 0.02 | AF11: 0.0018 | AG11: 0.5067 | AH11: 0.0051 | AI11: 0 | AJ11: 0.0027 | AK11: 0.0024 | AL11: 0.0004 | AM11: 0.0039 | AN11: 0.0006 | AO11: 0 | AP11: 0.0018 | AQ11: 0 | AR11: 0.0016 | AS11: 0.0036 | AT11: 0.0001 | AU11: 0 | AV11: 0.0045 | AW11: 0 | AX11: 0 | AY11: 0.026 | AZ11: 0.0008 | BA11: 0.0098 | BB11: 0.0003 | BC11: 0.0122 | BD11: 0.0003 | BE11: 0.002 | BF11: 0.0004 | BG11: 0.0019 | BH11: 0.0002 | BI11: 0 | BJ11: 0.005 | BK11: 0 | BL11: 0.0075 | BM11: 59.7 | BN11: 0.12
A12: #45 | B12: Mining Plus | C12: 3773.65 | D12: 990 | E12: 53.34 | F12: 51.4 | G12: 104.74 | H12: 3 | I12: 0 | J12: 0.64 | K12: 0.4811 | L12: 0.0477 | M12: 30.75 | N12: 0.09 | O12: 0.6175 | P12: 0.0103 | Q12: 4.7469 | R12: 0.0188 | S12: 0 | T12: 0.0011 | U12: 0 | V12: 0.09 | W12: 3.3531 | X12: 0.0129 | Y12: 0.0576 | Z12: 0.0063 | AA12: 0.0185 | AB12: 0.0033 | AC12: 0.0133 | AD12: 0.0027 | AE12: 0.0171 | AF12: 0.0017 | AG12: 0.552 | AH12: 0.0053 | AI12: 0 | AJ12: 0.0029 | AK12: 0.0018 | AL12: 0.0004 | AM12: 0.0033 | AN12: 0.0005 | AO12: 0 | AP12: 0.0018 | AQ12: 0 | AR12: 0.0014 | AS12: 0.0046 | AT12: 0.0001 | AU12: 0 | AV12: 0.0045 | AW12: 0 | AX12: 0 | AY12: 0.0261 | AZ12: 0.0008 | BA12: 0.0096 | BB12: 0.0003 | BC12: 0.0127 | BD12: 0.0003 | BE12: 0 | BF12: 0.0069 | BG12: 0.0009 | BH12: 0.0002 | BI12: 0 | BJ12: 0.0051 | BK12: 0 | BL12: 0.0072 | BM12: 59.33 | BN12: 0.12
A13: #46 | B13: Mining Plus | C13: 3773.85 | D13: 990 | E13: 53.38 | F13: 51.97 | G13: 105.35 | H13: 3 | I13: 0 | J13: 0.65 | K13: 0.5433 | L13: 0.0488 | M13: 32.59 | N13: 0.1 | O13: 0.8672 | P13: 0.0118 | Q13: 3.453 | R13: 0.0154 | S13: 0 | T13: 0.0011 | U13: 0 | V13: 0.1 | W13: 3.0038 | X13: 0.012 | Y13: 0.0584 | Z13: 0.0064 | AA13: 0.0196 | AB13: 0.0033 | AC13: 0.0098 | AD13: 0.0026 | AE13: 0.0165 | AF13: 0.0017 | AG13: 0.6398 | AH13: 0.0057 | AI13: 0 | AJ13: 0.0031 | AK13: 0.0019 | AL13: 0.0004 | AM13: 0 | AN13: 0.003 | AO13: 0 | AP13: 0.0017 | AQ13: 0 | AR13: 0.0013 | AS13: 0.0034 | AT13: 0.0001 | AU13: 0 | AV13: 0.0045 | AW13: 0 | AX13: 0 | AY13: 0.0258 | AZ13: 0.0008 | BA13: 0.0098 | BB13: 0.0003 | BC13: 0.012 | BD13: 0.0003 | BE13: 0 | BF13: 0.0068 | BG13: 0.0005 | BH13: 0.0002 | BI13: 0 | BJ13: 0.0051 | BK13: 0 | BL13: 0.007 | BM13: 58.74 | BN13: 0.12
A14: #47 | B14: Mining Plus | C14: 3774.65 | D14: 990 | E14: 53.33 | F14: 52.26 | G14: 105.59 | H14: 3 | I14: 0 | J14: 0.66 | K14: 0.0935 | L14: 0.0439 | M14: 31.82 | N14: 0.1 | O14: 0.6944 | P14: 0.0107 | Q14: 3.8849 | R14: 0.0165 | S14: 0 | T14: 0.0011 | U14: 0 | V14: 0.09 | W14: 2.7991 | X14: 0.0114 | Y14: 0.0746 | Z14: 0.0066 | AA14: 0.017 | AB14: 0.0033 | AC14: 0.0135 | AD14: 0.0026 | AE14: 0.0156 | AF14: 0.0016 | AG14: 0.3319 | AH14: 0.004 | AI14: 0 | AJ14: 0.0022 | AK14: 0.0024 | AL14: 0.0004 | AM14: 0 | AN14: 0.003 | AO14: 0 | AP14: 0.0017 | AQ14: 0 | AR14: 0.0013 | AS14: 0.0031 | AT14: 0.0001 | AU14: 0 | AV14: 0.0044 | AW14: 0 | AX14: 0 | AY14: 0.0253 | AZ14: 0.0008 | BA14: 0.01 | BB14: 0.0003 | BC14: 0.0128 | BD14: 0.0003 | BE14: 0 | BF14: 0.0068 | BG14: 0 | BH14: 0.005 | BI14: 0 | BJ14: 0.005 | BK14: 0 | BL14: 0.0074 | BM14: 60.2 | BN14: 0.11
A15: #48 | B15: Mining Plus | C15: =C14+0.2 -> 3774.85 | D15: 990 | E15: 53.09 | F15: 49.47 | G15: 102.56 | H15: 3 | I15: 0 | J15: 0.53 | K15: 0.615 | L15: 0.0469 | M15: 34.44 | N15: 0.1 | O15: 1.3431 | P15: 0.0137 | Q15: 1.5181 | R15: 0.0093 | S15: 0 | T15: 0.0009 | U15: 0 | V15: 0.08 | W15: 5.3278 | X15: 0.0173 | Y15: 0.0862 | Z15: 0.007 | AA15: 0.0253 | AB15: 0.0035 | AC15: 0.0101 | AD15: 0.0027 | AE15: 0.1783 | AF15: 0.004 | AG15: 1.8234 | AH15: 0.0101 | AI15: 0 | AJ15: 0.0049 | AK15: 0.0069 | AL15: 0.0006 | AM15: 0.0054 | AN15: 0.0006 | AO15: 0 | AP15: 0.0018 | AQ15: 0 | AR15: 0.0023 | AS15: 0.0035 | AT15: 0.0001 | AU15: 0 | AV15: 0.0043 | AW15: 0 | AX15: 0 | AY15: 0.0277 | AZ15: 0.0008 | BA15: 0.0098 | BB15: 0.0003 | BC15: 0.0136 | BD15: 0.0003 | BE15: 0 | BF15: 0.0068 | BG15: 0.0055 | BH15: 0.0003 | BI15: 0.0011 | BJ15: 0.0002 | BK15: 0 | BL15: 0.0077 | BM15: 54.56 | BN15: 0.12
A16: #49 | B16: Mining Plus | C16: 3775.05 | D16: 990 | E16: 53.46 | F16: 52.6 | G16: 106.06 | H16: 3 | I16: 0 | J16: 0.69 | K16: 0.2559 | L16: 0.0468 | M16: 34.41 | N16: 0.1 | O16: 0.8235 | P16: 0.0119 | Q16: 2.4457 | R16: 0.0128 | S16: 0 | T16: 0.0011 | U16: 0 | V16: 0.09 | W16: 2.368 | X16: 0.0106 | Y16: 0.0759 | Z16: 0.007 | AA16: 0.0211 | AB16: 0.0035 | AC16: 0.0094 | AD16: 0.0026 | AE16: 0.0198 | AF16: 0.0018 | AG16: 0.4966 | AH16: 0.0051 | AI16: 0 | AJ16: 0.0027 | AK16: 0.0107 | AL16: 0.0006 | AM16: 0 | AN16: 0.0032 | AO16: 0 | AP16: 0.0017 | AQ16: 0 | AR16: 0.0014 | AS16: 0.0047 | AT16: 0.0001 | AU16: 0 | AV16: 0.0045 | AW16: 0 | AX16: 0 | AY16: 0.0287 | AZ16: 0.0008 | BA16: 0.0107 | BB16: 0.0003 | BC16: 0.0128 | BD16: 0.0003 | BE16: 0 | BF16: 0.0066 | BG16: 0.0005 | BH16: 0.0002 | BI16: 0 | BJ16: 0.0052 | BK16: 0 | BL16: 0.0072 | BM16: 59.01 | BN16: 0.12
A17: #50 | B17: Mining Plus | C17: 3775.25 | D17: 990 | E17: 53.59 | F17: 51.63 | G17: 105.22 | H17: 3 | I17: 0 | J17: 0.71 | K17: 0.4957 | L17: 0.0483 | M17: 29.32 | N17: 0.09 | O17: 0.8397 | P17: 0.0116 | Q17: 4.3101 | R17: 0.018 | S17: 0 | T17: 0.0012 | U17: 0 | V17: 0.1 | W17: 3.6017 | X17: 0.0138 | Y17: 0.0564 | Z17: 0.0064 | AA17: 0.0129 | AB17: 0.0032 | AC17: 0.0145 | AD17: 0.0027 | AE17: 0.014 | AF17: 0.0017 | AG17: 0.5707 | AH17: 0.0055 | AI17: 0 | AJ17: 0.0029 | AK17: 0.0014 | AL17: 0.0004 | AM17: 0 | AN17: 0.003 | AO17: 0 | AP17: 0.0017 | AQ17: 0 | AR17: 0.0014 | AS17: 0.003 | AT17: 0.0001 | AU17: 0 | AV17: 0.0046 | AW17: 0 | AX17: 0 | AY17: 0.0258 | AZ17: 0.0008 | BA17: 0.0101 | BB17: 0.0003 | BC17: 0.0126 | BD17: 0.0003 | BE17: 0 | BF17: 0.007 | BG17: 0.0007 | BH17: 0.0002 | BI17: 0 | BJ17: 0.0052 | BK17: 0 | BL17: 0.0071 | BM17: 60.71 | BN17: 0.12
A18: #51 | B18: Mining Plus | C18: 3775.45 | D18: 990 | E18: 54.52 | F18: 52.65 | G18: 107.17 | H18: 3 | I18: 0 | J18: 0.82 | K18: 0.34 | L18: 0.05 | M18: 28.37 | N18: 0.1 | O18: 0.6547 | P18: 0.0113 | Q18: 3.9875 | R18: 0.0185 | S18: 0 | T18: 0.0013 | U18: 0 | V18: 0.11 | W18: 3.5141 | X18: 0.0147 | Y18: 0.0682 | Z18: 0.0071 | AA18: 0.0181 | AB18: 0.0035 | AC18: 0.0094 | AD18: 0.0027 | AE18: 0.018 | AF18: 0.0019 | AG18: 0.8069 | AH18: 0.007 | AI18: 0 | AJ18: 0.0037 | AK18: 0 | AL18: 0.0022 | AM18: 0 | AN18: 0.0033 | AO18: 0 | AP18: 0.0019 | AQ18: 0 | AR18: 0.0015 | AS18: 0.0041 | AT18: 0.0001 | AU18: 0 | AV18: 0.005 | AW18: 0 | AX18: 0 | AY18: 0.0223 | AZ18: 0.0009 | BA18: 0.0094 | BB18: 0.0003 | BC18: 0.012 | BD18: 0.0003 | BE18: 0 | BF18: 0.0074 | BG18: 0 | BH18: 0.0059 | BI18: 0 | BJ18: 0.0057 | BK18: 0 | BL18: 0.0076 | BM18: 62.17 | BN18: 0.13
A19: #52 | B19: Mining Plus | C19: 3775.65 | D19: 990 | E19: 53.33 | F19: 51.74 | G19: 105.07 | H19: 3 | I19: 0 | J19: 0.65 | K19: 1.3 | L19: 0.06 | M19: 33.51 | N19: 0.1 | O19: 0.5296 | P19: 0.0101 | Q19: 3.5681 | R19: 0.0159 | S19: 0 | T19: 0.0011 | U19: 0 | V19: 0.11 | W19: 2.7211 | X19: 0.0114 | Y19: 0.0925 | Z19: 0.0073 | AA19: 0.0136 | AB19: 0.0033 | AC19: 0.0176 | AD19: 0.0028 | AE19: 0.0143 | AF19: 0.0017 | AG19: 0.7163 | AH19: 0.0061 | AI19: 0 | AJ19: 0.0032 | AK19: 0.002 | AL19: 0.0004 | AM19: 0 | AN19: 0.0031 | AO19: 0 | AP19: 0.0018 | AQ19: 0 | AR19: 0.0014 | AS19: 0.0068 | AT19: 0.0001 | AU19: 0 | AV19: 0.0045 | AW19: 0 | AX19: 0 | AY19: 0.0281 | AZ19: 0.0008 | BA19: 0.0106 | BB19: 0.0003 | BC19: 0.0139 | BD19: 0.0003 | BE19: 0 | BF19: 0.0069 | BG19: 0.0005 | BH19: 0.0002 | BI19: 0.0012 | BJ19: 0.0002 | BK19: 0 | BL19: 0.0077 | BM19: 57.46 | BN19: 0.12
A20: #53 | B20: Mining Plus | C20: 3775.85 | D20: 990 | E20: 54.56 | F20: 46.96 | G20: 101.52 | H20: 3 | I20: 0 | J20: 0.64 | K20: 4.73 | L20: 0.08 | M20: 11.72 | N20: 0.06 | O20: 0 | P20: 0.0104 | Q20: 7.7633 | R20: 0.0289 | S20: 0 | T20: 0.0013 | U20: 6.4052 | V20: 0.0424 | W20: 8.0188 | X20: 0.0292 | Y20: 0.2906 | Z20: 0.0111 | AA20: 0.0363 | AB20: 0.0046 | AC20: 0.0245 | AD20: 0.0034 | AE20: 0.0454 | AF20: 0.0026 | AG20: 2.4536 | AH20: 0.0138 | AI20: 0.0071 | AJ20: 0.0014 | AK20: 0.0027 | AL20: 0.0005 | AM20: 0 | AN20: 0.0037 | AO20: 0.0028 | AP20: 0.0004 | AQ20: 0 | AR20: 0.0019 | AS20: 0.0183 | AT20: 0.0002 | AU20: 0 | AV20: 0.0051 | AW20: 0 | AX20: 0 | AY20: 0.0242 | AZ20: 0.0009 | BA20: 0.0097 | BB20: 0.0003 | BC20: 0.0117 | BD20: 0.0003 | BE20: 0.0023 | BF20: 0.0004 | BG20: 0.0021 | BH20: 0.0002 | BI20: 0.0021 | BJ20: 0.0002 | BK20: 0.0043 | BL20: 0.0006 | BM20: 58.43 | BN20: 0.14
A21: #54 | B21: Mining Plus | C21: 3776.05 | D21: 990 | E21: 53.18 | F21: 51.75 | G21: 104.94 | H21: 3 | I21: 0 | J21: 0.63 | K21: 0.2393 | L21: 0.0449 | M21: 33.63 | N21: 0.1 | O21: 1.2499 | P21: 0.0135 | Q21: 2.9824 | R21: 0.0139 | S21: 0 | T21: 0.001 | U21: 0 | V21: 0.09 | W21: 3.1662 | X21: 0.0122 | Y21: 0.0623 | Z21: 0.0065 | AA21: 0.0127 | AB21: 0.0032 | AC21: 0.0105 | AD21: 0.0026 | AE21: 0.0199 | AF21: 0.0018 | AG21: 0.5505 | AH21: 0.0052 | AI21: 0 | AJ21: 0.0028 | AK21: 0.0014 | AL21: 0.0004 | AM21: 0 | AN21: 0.003 | AO21: 0 | AP21: 0.0018 | AQ21: 0 | AR21: 0.0014 | AS21: 0.0031 | AT21: 0.0001 | AU21: 0 | AV21: 0.0044 | AW21: 0 | AX21: 0 | AY21: 0.0251 | AZ21: 0.0008 | BA21: 0.0096 | BB21: 0.0003 | BC21: 0.0124 | BD21: 0.0003 | BE21: 0 | BF21: 0.007 | BG21: 0.0008 | BH21: 0.0002 | BI21: 0 | BJ21: 0.005 | BK21: 0 | BL21: 0.0078 | BM21: 58.02 | BN21: 0.12
A22: #55 | B22: Mining Plus | C22: 3776.25 | D22: 990 | E22: 53.46 | F22: 52.33 | G22: 105.79 | H22: 3 | I22: 0 | J22: 0.64 | K22: 0.68 | L22: 0.05 | M22: 35.19 | N22: 0.1 | O22: 1.3146 | P22: 0.0145 | Q22: 2.17 | R22: 0.0121 | S22: 0 | T22: 0.0011 | U22: 0 | V22: 0.11 | W22: 2.7248 | X22: 0.0116 | Y22: 0.0715 | Z22: 0.007 | AA22: 0.0153 | AB22: 0.0034 | AC22: 0.015 | AD22: 0.0028 | AE22: 0.0222 | AF22: 0.0019 | AG22: 0.2287 | AH22: 0.0035 | AI22: 0 | AJ22: 0.0019 | AK22: 0.0019 | AL22: 0.0004 | AM22: 0 | AN22: 0.0032 | AO22: 0 | AP22: 0.0017 | AQ22: 0 | AR22: 0.0014 | AS22: 0.0076 | AT22: 0.0001 | AU22: 0 | AV22: 0.0047 | AW22: 0 | AX22: 0 | AY22: 0.0281 | AZ22: 0.0008 | BA22: 0.01 | BB22: 0.0003 | BC22: 0.0138 | BD22: 0.0003 | BE22: 0 | BF22: 0.0073 | BG22: 0.0006 | BH22: 0.0002 | BI22: 0.0011 | BJ22: 0.0002 | BK22: 0 | BL22: 0.0076 | BM22: 57.5 | BN22: 0.12
A23: #56 | B23: Mining Plus | C23: 3776.45 | D23: 990 | E23: 53.47 | F23: 51.94 | G23: 105.41 | H23: 3 | I23: 0 | J23: 0.62 | K23: 0 | L23: 0.08 | M23: 32.98 | N23: 0.1 | O23: 1.7105 | P23: 0.0156 | Q23: 2.9246 | R23: 0.0139 | S23: 0 | T23: 0.001 | U23: 0 | V23: 0.08 | W23: 3.8403 | X23: 0.0141 | Y23: 0.0427 | Z23: 0.0061 | AA23: 0.0203 | AB23: 0.0034 | AC23: 0.0155 | AD23: 0.0028 | AE23: 0.0265 | AF23: 0.002 | AG23: 0.2573 | AH23: 0.0037 | AI23: 0 | AJ23: 0.0021 | AK23: 0.0021 | AL23: 0.0004 | AM23: 0 | AN23: 0.0031 | AO23: 0 | AP23: 0.0017 | AQ23: 0 | AR23: 0.0015 | AS23: 0.0038 | AT23: 0.0001 | AU23: 0 | AV23: 0.0046 | AW23: 0 | AX23: 0 | AY23: 0.0258 | AZ23: 0.0008 | BA23: 0.0094 | BB23: 0.0003 | BC23: 0.0127 | BD23: 0.0003 | BE23: 0 | BF23: 0.0071 | BG23: 0.0009 | BH23: 0.0002 | BI23: 0.0014 | BJ23: 0.0002 | BK23: 0 | BL23: 0.0076 | BM23: 58.12 | BN23: 0.11
A24: #57 | B24: Mining Plus | C24: 3776.65 | D24: 990 | E24: 53.39 | F24: 50.52 | G24: 103.9 | H24: 3 | I24: 0 | J24: 0.57 | K24: 0 | L24: 0.07 | M24: 30.87 | N24: 0.09 | O24: 1.7514 | P24: 0.0153 | Q24: 4.627 | R24: 0.018 | S24: 0 | T24: 0.001 | U24: 0 | V24: 0.08 | W24: 5.3491 | X24: 0.0176 | Y24: 0.0593 | Z24: 0.0064 | AA24: 0.0168 | AB24: 0.0033 | AC24: 0.0126 | AD24: 0.0027 | AE24: 0.0276 | AF24: 0.002 | AG24: 0.3067 | AH24: 0.004 | AI24: 0 | AJ24: 0.0023 | AK24: 0.0026 | AL24: 0.0004 | AM24: 0 | AN24: 0.0032 | AO24: 0 | AP24: 0.0018 | AQ24: 0 | AR24: 0.0015 | AS24: 0.0054 | AT24: 0.0001 | AU24: 0 | AV24: 0.0046 | AW24: 0 | AX24: 0 | AY24: 0.0257 | AZ24: 0.0008 | BA24: 0.01 | BB24: 0.0003 | BC24: 0.012 | BD24: 0.0003 | BE24: 0 | BF24: 0.0072 | BG24: 0.0007 | BH24: 0.0002 | BI24: 0.0015 | BJ24: 0.0002 | BK24: 0 | BL24: 0.008 | BM24: 56.92 | BN24: 0.11
A25: #58 | B25: Mining Plus | C25: 3776.85 | D25: 989 | E25: 53.25 | F25: 51.87 | G25: 105.12 | H25: 3 | I25: 0 | J25: 0.55 | K25: 0.1174 | L25: 0.0437 | M25: 36.33 | N25: 0.1 | O25: 2.6637 | P25: 0.0193 | Q25: 1.1037 | R25: 0.0084 | S25: 0 | T25: 0.0008 | U25: 0 | V25: 0.08 | W25: 3.9175 | X25: 0.0142 | Y25: 0.0584 | Z25: 0.0065 | AA25: 0.0248 | AB25: 0.0036 | AC25: 0.0183 | AD25: 0.0029 | AE25: 0.0282 | AF25: 0.002 | AG25: 0.3456 | AH25: 0.0042 | AI25: 0 | AJ25: 0.0023 | AK25: 0.0026 | AL25: 0.0004 | AM25: 0 | AN25: 0.0032 | AO25: 0 | AP25: 0.0019 | AQ25: 0 | AR25: 0.0015 | AS25: 0.0055 | AT25: 0.0001 | AU25: 0 | AV25: 0.0045 | AW25: 0 | AX25: 0 | AY25: 0.0271 | AZ25: 0.0008 | BA25: 0.0105 | BB25: 0.0003 | BC25: 0.013 | BD25: 0.0003 | BE25: 0.0019 | BF25: 0.0004 | BG25: 0.0009 | BH25: 0.0002 | BI25: 0.0016 | BJ25: 0.0002 | BK25: 0 | BL25: 0.0079 | BM25: 55.33 | BN25: 0.12
A26: #59 | B26: Mining Plus | C26: 3777.05 | D26: 989 | E26: 53.28 | F26: 51.9 | G26: 105.18 | H26: 3 | I26: 0 | J26: 0.6 | K26: 0.75 | L26: 0.05 | M26: 36.34 | N26: 0.1 | O26: 1.5611 | P26: 0.0153 | Q26: 1.9748 | R26: 0.0113 | S26: 0 | T26: 0.001 | U26: 0 | V26: 0.1 | W26: 2.9813 | X26: 0.012 | Y26: 0.0717 | Z26: 0.0068 | AA26: 0.0197 | AB26: 0.0035 | AC26: 0.0169 | AD26: 0.0029 | AE26: 0.0233 | AF26: 0.0019 | AG26: 0.3883 | AH26: 0.0045 | AI26: 0 | AJ26: 0.0024 | AK26: 0.002 | AL26: 0.0004 | AM26: 0 | AN26: 0.0031 | AO26: 0 | AP26: 0.0018 | AQ26: 0 | AR26: 0.0014 | AS26: 0.0077 | AT26: 0.0001 | AU26: 0 | AV26: 0.0046 | AW26: 0 | AX26: 0 | AY26: 0.0277 | AZ26: 0.0008 | BA26: 0.0101 | BB26: 0.0003 | BC26: 0.0131 | BD26: 0.0003 | BE26: 0.0023 | BF26: 0.0004 | BG26: 0.0006 | BH26: 0.0002 | BI26: 0.0018 | BJ26: 0.0002 | BK26: 0 | BL26: 0.0076 | BM26: 55.8 | BN26: 0.12
A27: #60 | B27: Mining Plus | C27: 3777.25 | D27: 989 | E27: 53.4 | F27: 49.89 | G27: 103.29 | H27: 3 | I27: 0 | J27: 0.62 | K27: 0.2188 | L27: 0.0438 | M27: 27.02 | N27: 0.09 | O27: 1.6748 | P27: 0.0147 | Q27: 5.6765 | R27: 0.0209 | S27: 0 | T27: 0.001 | U27: 0 | V27: 0.08 | W27: 6.0926 | X27: 0.02 | Y27: 0.0779 | Z27: 0.0068 | AA27: 0.0193 | AB27: 0.0034 | AC27: 0.0198 | AD27: 0.0029 | AE27: 0.0337 | AF27: 0.0021 | AG27: 0.3937 | AH27: 0.0045 | AI27: 0.0029 | AJ27: 0.0006 | AK27: 0.0032 | AL27: 0.0004 | AM27: 0 | AN27: 0.0032 | AO27: 0 | AP27: 0.0019 | AQ27: 0 | AR27: 0.0016 | AS27: 0.0054 | AT27: 0.0001 | AU27: 0 | AV27: 0.0046 | AW27: 0 | AX27: 0 | AY27: 0.0261 | AZ27: 0.0008 | BA27: 0.0097 | BB27: 0.0003 | BC27: 0.0117 | BD27: 0.0003 | BE27: 0 | BF27: 0.007 | BG27: 0.0012 | BH27: 0.0002 | BI27: 0.0018 | BJ27: 0.0002 | BK27: 0 | BL27: 0.0078 | BM27: 58.71 | BN27: 0.12
A28: #61 | B28: Mining Plus | C28: 3777.45 | D28: 989 | E28: 53.29 | F28: 50.49 | G28: 103.79 | H28: 3 | I28: 0 | J28: 0.59 | K28: 0.1189 | L28: 0.0424 | M28: 27.34 | N28: 0.09 | O28: 1.3851 | P28: 0.0135 | Q28: 5.6927 | R28: 0.0209 | S28: 0 | T28: 0.0011 | U28: 0 | V28: 0.08 | W28: 5.2013 | X28: 0.0176 | Y28: 0.0611 | Z28: 0.0063 | AA28: 0.0169 | AB28: 0.0032 | AC28: 0.0147 | AD28: 0.0027 | AE28: 0.0247 | AF28: 0.0019 | AG28: 0.3359 | AH28: 0.0041 | AI28: 0 | AJ28: 0.0024 | AK28: 0.0027 | AL28: 0.0004 | AM28: 0 | AN28: 0.0032 | AO28: 0 | AP28: 0.0017 | AQ28: 0 | AR28: 0.0015 | AS28: 0.0045 | AT28: 0.0001 | AU28: 0 | AV28: 0.0045 | AW28: 0 | AX28: 0 | AY28: 0.0252 | AZ28: 0.0008 | BA28: 0.0098 | BB28: 0.0003 | BC28: 0.0123 | BD28: 0.0003 | BE28: 0 | BF28: 0.0067 | BG28: 0.0006 | BH28: 0.0002 | BI28: 0.002 | BJ28: 0.0002 | BK28: 0 | BL28: 0.0075 | BM28: 59.75 | BN28: 0.11
A29: #62 | B29: Mining Plus | C29: 3777.65 | D29: 989 | E29: 53.41 | F29: 51.61 | G29: 105.02 | H29: 3 | I29: 0 | J29: 0.59 | K29: 0.2467 | L29: 0.0459 | M29: 35.96 | N29: 0.1 | O29: 2.3283 | P29: 0.0183 | Q29: 1.7188 | R29: 0.0105 | S29: 0 | T29: 0.0009 | U29: 0 | V29: 0.08 | W29: 3.8825 | X29: 0.0143 | Y29: 0.059 | Z29: 0.0066 | AA29: 0.0251 | AB29: 0.0036 | AC29: 0.0176 | AD29: 0.0029 | AE29: 0.0372 | AF29: 0.0022 | AG29: 0.5826 | AH29: 0.0056 | AI29: 0 | AJ29: 0.003 | AK29: 0.0029 | AL29: 0.0004 | AM29: 0.0031 | AN29: 0.0006 | AO29: 0 | AP29: 0.0019 | AQ29: 0 | AR29: 0.0016 | AS29: 0.0059 | AT29: 0.0001 | AU29: 0 | AV29: 0.0046 | AW29: 0 | AX29: 0 | AY29: 0.0279 | AZ29: 0.0008 | BA29: 0.01 | BB29: 0.0003 | BC29: 0.013 | BD29: 0.0003 | BE29: 0.0025 | BF29: 0.0004 | BG29: 0.0013 | BH29: 0.0002 | BI29: 0.0019 | BJ29: 0.0002 | BK29: 0 | BL29: 0.0078 | BM29: 55.07 | BN29: 0.12
A30: #63 | B30: Mining Plus | C30: 3777.85 | D30: 989 | E30: 53.28 | F30: 51.82 | G30: 105.1 | H30: 3 | I30: 0 | J30: 0.59 | K30: 0.2569 | L30: 0.0451 | M30: 35.38 | N30: 0.1 | O30: 1.8391 | P30: 0.0162 | Q30: 2.1009 | R30: 0.0115 | S30: 0 | T30: 0.0009 | U30: 0 | V30: 0.09 | W30: 3.3366 | X30: 0.0127 | Y30: 0.0622 | Z30: 0.0066 | AA30: 0.0181 | AB30: 0.0034 | AC30: 0.0134 | AD30: 0.0027 | AE30: 0.0273 | AF30: 0.002 | AG30: 0.4898 | AH30: 0.005 | AI30: 0 | AJ30: 0.0027 | AK30: 0.0018 | AL30: 0.0004 | AM30: 0.003 | AN30: 0.0005 | AO30: 0 | AP30: 0.0018 | AQ30: 0 | AR30: 0.0015 | AS30: 0.0048 | AT30: 0.0001 | AU30: 0 | AV30: 0.0045 | AW30: 0 | AX30: 0 | AY30: 0.0256 | AZ30: 0.0008 | BA30: 0.0099 | BB30: 0.0003 | BC30: 0.0125 | BD30: 0.0003 | BE30: 0.002 | BF30: 0.0004 | BG30: 0.0008 | BH30: 0.0002 | BI30: 0.0017 | BJ30: 0.0002 | BK30: 0 | BL30: 0.0076 | BM30: 56.41 | BN30: 0.12
A31: #64 | B31: Mining Plus | C31: 3778.05 | D31: 989 | E31: 53.22 | F31: 51.89 | G31: 105.11 | H31: 3 | I31: 0 | J31: 0.56 | K31: 0.5316 | L31: 0.0487 | M31: 37.81 | N31: 0.1 | O31: 1.8147 | P31: 0.0164 | Q31: 1.1093 | R31: 0.0085 | S31: 0 | T31: 0.0009 | U31: 0 | V31: 0.09 | W31: 2.7295 | X31: 0.0113 | Y31: 0.0709 | Z31: 0.0068 | AA31: 0.0159 | AB31: 0.0034 | AC31: 0.0179 | AD31: 0.0029 | AE31: 0.0295 | AF31: 0.0021 | AG31: 0.6618 | AH31: 0.0059 | AI31: 0 | AJ31: 0.0031 | AK31: 0.0022 | AL31: 0.0004 | AM31: 0 | AN31: 0.0031 | AO31: 0 | AP31: 0.0018 | AQ31: 0 | AR31: 0.0016 | AS31: 0.0074 | AT31: 0.0001 | AU31: 0 | AV31: 0.0045 | AW31: 0 | AX31: 0 | AY31: 0.0262 | AZ31: 0.0008 | BA31: 0.0101 | BB31: 0.0003 | BC31: 0.0134 | BD31: 0.0003 | BE31: 0 | BF31: 0.007 | BG31: 0.0017 | BH31: 0.0002 | BI31: 0.0017 | BJ31: 0.0002 | BK31: 0 | BL31: 0.0078 | BM31: 55.15 | BN31: 0.12
A32: #65 | B32: Mining Plus | C32: 3778.25 | D32: 989 | E32: 53.6 | F32: 49.91 | G32: 103.51 | H32: 3 | I32: 0 | J32: 0.63 | K32: 1.95 | L32: 0.06 | M32: 30.72 | N32: 0.1 | O32: 0.6349 | P32: 0.0106 | Q32: 4.9247 | R32: 0.0195 | S32: 0 | T32: 0.0011 | U32: 0 | V32: 0.12 | W32: 3.7701 | X32: 0.0143 | Y32: 0.0886 | Z32: 0.0072 | AA32: 0.0184 | AB32: 0.0034 | AC32: 0.0127 | AD32: 0.0027 | AE32: 0.024 | AF32: 0.002 | AG32: 1.9592 | AH32: 0.0108 | AI32: 0 | AJ32: 0.0054 | AK32: 0.0016 | AL32: 0.0005 | AM32: 0 | AN32: 0.0032 | AO32: 0 | AP32: 0.0019 | AQ32: 0 | AR32: 0.0016 | AS32: 0.0094 | AT32: 0.0002 | AU32: 0 | AV32: 0.0046 | AW32: 0 | AX32: 0 | AY32: 0.0248 | AZ32: 0.0008 | BA32: 0.01 | BB32: 0.0003 | BC32: 0.0125 | BD32: 0.0003 | BE32: 0 | BF32: 0.0069 | BG32: 0.0013 | BH32: 0.0002 | BI32: 0.0019 | BJ32: 0.0002 | BK32: 0 | BL32: 0.0079 | BM32: 55.83 | BN32: 0.13
A33: #66 | B33: Mining Plus | C33: 3778.45 | D33: 989 | E33: 53.54 | F33: 50.62 | G33: 104.16 | H33: 3 | I33: 0 | J33: 0.64 | K33: 1.97 | L33: 0.06 | M33: 30.64 | N33: 0.1 | O33: 1.7797 | P33: 0.0159 | Q33: 2.3403 | R33: 0.0123 | S33: 0 | T33: 0.0012 | U33: 0 | V33: 0.11 | W33: 4.7786 | X33: 0.0169 | Y33: 0.1777 | Z33: 0.0088 | AA33: 0.0612 | AB33: 0.0046 | AC33: 0.0144 | AD33: 0.003 | AE33: 0.042 | AF33: 0.0023 | AG33: 0.9489 | AH33: 0.0072 | AI33: 0 | AJ33: 0.0037 | AK33: 0.0057 | AL33: 0.0005 | AM33: 0.005 | AN33: 0.0006 | AO33: 0 | AP33: 0.0019 | AQ33: 0 | AR33: 0.003 | AS33: 0.0067 | AT33: 0.0001 | AU33: 0 | AV33: 0.0045 | AW33: 0 | AX33: 0 | AY33: 0.0267 | AZ33: 0.0008 | BA33: 0.0101 | BB33: 0.0003 | BC33: 0.0128 | BD33: 0.0003 | BE33: 0 | BF33: 0.0073 | BG33: 0.0112 | BH33: 0.0003 | BI33: 0.0018 | BJ33: 0.0002 | BK33: 0 | BL33: 0.0086 | BM33: 57.17 | BN33: 0.12
A34: #67 | B34: Mining Plus | C34: 3778.65 | D34: 989 | E34: 53.22 | F34: 52.09 | G34: 105.3 | H34: 3 | I34: 0 | J34: 0.59 | K34: 1.74 | L34: 0.06 | M34: 38.38 | N34: 0.11 | O34: 0.5509 | P34: 0.0106 | Q34: 2.1685 | R34: 0.0121 | S34: 0 | T34: 0.0011 | U34: 0 | V34: 0.13 | W34: 1.7485 | X34: 0.0092 | Y34: 0.1044 | Z34: 0.0076 | AA34: 0.026 | AB34: 0.0038 | AC34: 0.0093 | AD34: 0.0027 | AE34: 0.0113 | AF34: 0.0016 | AG34: 0.232 | AH34: 0.0035 | AI34: 0 | AJ34: 0.0019 | AK34: 0.0029 | AL34: 0.0004 | AM34: 0 | AN34: 0.003 | AO34: 0 | AP34: 0.0017 | AQ34: 0 | AR34: 0.0014 | AS34: 0.0147 | AT34: 0.0002 | AU34: 0 | AV34: 0.0046 | AW34: 0 | AX34: 0 | AY34: 0.0278 | AZ34: 0.0008 | BA34: 0.0098 | BB34: 0.0003 | BC34: 0.0133 | BD34: 0.0003 | BE34: 0 | BF34: 0.0069 | BG34: 0.0008 | BH34: 0.0002 | BI34: 0 | BJ34: 0.0052 | BK34: 0 | BL34: 0.0072 | BM34: 54.96 | BN34: 0.12
A35: #68 | B35: Mining Plus | C35: 3778.85 | D35: 989 | E35: 53.31 | F35: 51.82 | G35: 105.13 | H35: 3 | I35: 0 | J35: 0.63 | K35: 1.02 | L35: 0.05 | M35: 37.03 | N35: 0.1 | O35: 0.9413 | P35: 0.0125 | Q35: 2.3345 | R35: 0.0124 | S35: 0 | T35: 0.001 | U35: 0 | V35: 0.11 | W35: 2.3562 | X35: 0.0105 | Y35: 0.0698 | Z35: 0.0068 | AA35: 0.0171 | AB35: 0.0034 | AC35: 0.008 | AD35: 0.0026 | AE35: 0.0174 | AF35: 0.0018 | AG35: 0.6204 | AH35: 0.0057 | AI35: 0 | AJ35: 0.003 | AK35: 0.002 | AL35: 0.0004 | AM35: 0.0028 | AN35: 0.0005 | AO35: 0 | AP35: 0.0018 | AQ35: 0 | AR35: 0.0015 | AS35: 0.0053 | AT35: 0.0001 | AU35: 0 | AV35: 0.0045 | AW35: 0 | AX35: 0 | AY35: 0.027 | AZ35: 0.0008 | BA35: 0.0104 | BB35: 0.0003 | BC35: 0.0128 | BD35: 0.0003 | BE35: 0 | BF35: 0.0068 | BG35: 0.0007 | BH35: 0.0002 | BI35: 0.0013 | BJ35: 0.0002 | BK35: 0 | BL35: 0.0075 | BM35: 55.53 | BN35: 0.12
A36: #69 | B36: Mining Plus | C36: 3779.05 | D36: 989 | E36: 53.44 | F36: 49.94 | G36: 103.38 | H36: 3 | I36: 0 | J36: 0.62 | K36: 0.7744 | L36: 0.05 | M36: 27.11 | N36: 0.09 | O36: 0.9967 | P36: 0.012 | Q36: 6.3117 | R36: 0.0228 | S36: 0 | T36: 0.0011 | U36: 0 | V36: 0.1 | W36: 5.4075 | X36: 0.0184 | Y36: 0.0849 | Z36: 0.0069 | AA36: 0.0174 | AB36: 0.0034 | AC36: 0.0191 | AD36: 0.0028 | AE36: 0.0248 | AF36: 0.0019 | AG36: 0.5561 | AH36: 0.0054 | AI36: 0.0034 | AJ36: 0.0007 | AK36: 0.0017 | AL36: 0.0004 | AM36: 0 | AN36: 0.0032 | AO36: 0 | AP36: 0.0019 | AQ36: 0 | AR36: 0.0015 | AS36: 0.0099 | AT36: 0.0002 | AU36: 0 | AV36: 0.0046 | AW36: 0 | AX36: 0 | AY36: 0.026 | AZ36: 0.0008 | BA36: 0.0095 | BB36: 0.0003 | BC36: 0.0129 | BD36: 0.0003 | BE36: 0.0024 | BF36: 0.0004 | BG36: 0.0008 | BH36: 0.0002 | BI36: 0.0014 | BJ36: 0.0002 | BK36: 0 | BL36: 0.0082 | BM36: 58.62 | BN36: 0.12
A37: #70 | B37: Mining Plus | C37: 3779.25 | D37: 989 | E37: 53.15 | F37: 51.89 | G37: 105.04 | H37: 3 | I37: 0 | J37: 0.62 | K37: 2.11 | L37: 0.06 | M37: 38.68 | N37: 0.11 | O37: 0.5424 | P37: 0.0106 | Q37: 1.9304 | R37: 0.0114 | S37: 0 | T37: 0.0011 | U37: 0 | V37: 0.13 | W37: 1.6596 | X37: 0.009 | Y37: 0.1834 | Z37: 0.009 | AA37: 0.0232 | AB37: 0.0039 | AC37: 0.0101 | AD37: 0.0027 | AE37: 0.0184 | AF37: 0.0018 | AG37: 0.4836 | AH37: 0.005 | AI37: 0 | AJ37: 0.0027 | AK37: 0.0018 | AL37: 0.0004 | AM37: 0 | AN37: 0.0032 | AO37: 0 | AP37: 0.0019 | AQ37: 0 | AR37: 0.0015 | AS37: 0.0417 | AT37: 0.0003 | AU37: 0 | AV37: 0.0049 | AW37: 0 | AX37: 0 | AY37: 0.0258 | AZ37: 0.0008 | BA37: 0.0098 | BB37: 0.0003 | BC37: 0.013 | BD37: 0.0003 | BE37: 0.002 | BF37: 0.0004 | BG37: 0.0005 | BH37: 0.0002 | BI37: 0.0014 | BJ37: 0.0002 | BK37: 0 | BL37: 0.008 | BM37: 54.26 | BN37: 0.12
A38: #71 | B38: Mining Plus | C38: 3779.45 | D38: 989 | E38: 53.34 | F38: 50.83 | G38: 104.17 | H38: 3 | I38: 0 | J38: 0.6 | K38: 0.5634 | L38: 0.0472 | M38: 33.13 | N38: 0.1 | O38: 1.2864 | P38: 0.0136 | Q38: 3.988 | R38: 0.0165 | S38: 0 | T38: 0.001 | U38: 0 | V38: 0.09 | W38: 4.0684 | X38: 0.0145 | Y38: 0.0602 | Z38: 0.0065 | AA38: 0.0146 | AB38: 0.0032 | AC38: 0.0161 | AD38: 0.0028 | AE38: 0.0261 | AF38: 0.0019 | AG38: 0.6629 | AH38: 0.0058 | AI38: 0 | AJ38: 0.0031 | AK38: 0.0021 | AL38: 0.0004 | AM38: 0 | AN38: 0.0031 | AO38: 0 | AP38: 0.0019 | AQ38: 0 | AR38: 0.0015 | AS38: 0.0041 | AT38: 0.0001 | AU38: 0 | AV38: 0.0045 | AW38: 0 | AX38: 0 | AY38: 0.0262 | AZ38: 0.0008 | BA38: 0.0096 | BB38: 0.0003 | BC38: 0.0126 | BD38: 0.0003 | BE38: 0 | BF38: 0.0069 | BG38: 0.0011 | BH38: 0.0002 | BI38: 0.0014 | BJ38: 0.0002 | BK38: 0 | BL38: 0.0077 | BM38: 56.13 | BN38: 0.12
A39: #72 | B39: Mining Plus | C39: 3779.65 | D39: 989 | E39: 54.42 | F39: 53.12 | G39: 107.55 | H39: 3 | I39: 0 | J39: 0.86 | K39: 0.85 | L39: 0.06 | M39: 30.07 | N39: 0.1 | O39: 0.4414 | P39: 0.0102 | Q39: 3.4694 | R39: 0.017 | S39: 0 | T39: 0.0014 | U39: 0 | V39: 0.14 | W39: 2.7462 | X39: 0.0125 | Y39: 0.052 | Z39: 0.0068 | AA39: 0.0176 | AB39: 0.0036 | AC39: 0.0085 | AD39: 0.0028 | AE39: 0.0153 | AF39: 0.0018 | AG39: 0.3766 | AH39: 0.0047 | AI39: 0 | AJ39: 0.0026 | AK39: 0.0013 | AL39: 0.0004 | AM39: 0 | AN39: 0.0033 | AO39: 0 | AP39: 0.0019 | AQ39: 0 | AR39: 0.0015 | AS39: 0.0053 | AT39: 0.0001 | AU39: 0 | AV39: 0.0049 | AW39: 0 | AX39: 0 | AY39: 0.0249 | AZ39: 0.0009 | BA39: 0.0095 | BB39: 0.0003 | BC39: 0.0123 | BD39: 0.0003 | BE39: 0 | BF39: 0.0075 | BG39: 0.0007 | BH39: 0.0002 | BI39: 0.0011 | BJ39: 0.0002 | BK39: 0 | BL39: 0.008 | BM39: 61.9 | BN39: 0.13
A40: #73 | B40: Mining Plus | C40: 3779.85 | D40: 989 | E40: 55.27 | F40: 48.37 | G40: 103.64 | H40: 3 | I40: 0 | J40: 0.7 | K40: 0.49 | L40: 0.06 | M40: 17.38 | N40: 0.08 | O40: 3.2707 | P40: 0.0223 | Q40: 6.1161 | R40: 0.026 | S40: 0 | T40: 0.0012 | U40: 0 | V40: 0.09 | W40: 12.2309 | X40: 0.0445 | Y40: 0.0927 | Z40: 0.0085 | AA40: 0.0256 | AB40: 0.0042 | AC40: 0.0159 | AD40: 0.0034 | AE40: 0.075 | AF40: 0.0034 | AG40: 2.1908 | AH40: 0.0139 | AI40: 0.0098 | AJ40: 0.0015 | AK40: 0.005 | AL40: 0.0007 | AM40: 0 | AN40: 0.0043 | AO40: 0 | AP40: 0.0026 | AQ40: 0 | AR40: 0.0028 | AS40: 0.0131 | AT40: 0.0002 | AU40: 0 | AV40: 0.0056 | AW40: 0 | AX40: 0 | AY40: 0.022 | AZ40: 0.001 | BA40: 0.0092 | BB40: 0.0003 | BC40: 0.0114 | BD40: 0.0004 | BE40: 0.0025 | BF40: 0.0005 | BG40: 0.0051 | BH40: 0.0003 | BI40: 0.0021 | BJ40: 0.0002 | BK40: 0 | BL40: 0.0107 | BM40: 58.04 | BN40: 0.15
A41: #74 | B41: Mining Plus | C41: 3780.05 | D41: 989 | E41: 53.66 | F41: 51.69 | G41: 105.34 | H41: 3 | I41: 0 | J41: 0.61 | K41: 0.249 | L41: 0.0464 | M41: 34.36 | N41: 0.1 | O41: 2.3069 | P41: 0.0184 | Q41: 1.8762 | R41: 0.0111 | S41: 0 | T41: 0.001 | U41: 0 | V41: 0.09 | W41: 4.3653 | X41: 0.0158 | Y41: 0.0678 | Z41: 0.0069 | AA41: 0.0238 | AB41: 0.0037 | AC41: 0.0165 | AD41: 0.0029 | AE41: 0.0345 | AF41: 0.0022 | AG41: 0.4997 | AH41: 0.0053 | AI41: 0 | AJ41: 0.0028 | AK41: 0.0033 | AL41: 0.0004 | AM41: 0.0038 | AN41: 0.0006 | AO41: 0 | AP41: 0.0019 | AQ41: 0 | AR41: 0.0018 | AS41: 0.0065 | AT41: 0.0001 | AU41: 0 | AV41: 0.0047 | AW41: 0 | AX41: 0 | AY41: 0.0283 | AZ41: 0.0008 | BA41: 0.0099 | BB41: 0.0003 | BC41: 0.0128 | BD41: 0.0003 | BE41: 0.0023 | BF41: 0.0004 | BG41: 0.0018 | BH41: 0.0002 | BI41: 0.0014 | BJ41: 0.0002 | BK41: 0 | BL41: 0.0078 | BM41: 56.13 | BN41: 0.12
A42: #75 | B42: Mining Plus | C42: 3780.25 | D42: 989 | E42: 53.44 | F42: 50.63 | G42: 104.07 | H42: 3 | I42: 0 | J42: 0.66 | K42: 0.3096 | L42: 0.0459 | M42: 28.39 | N42: 0.09 | O42: 0.9339 | P42: 0.0118 | Q42: 5.5453 | R42: 0.0209 | S42: 0 | T42: 0.0011 | U42: 0 | V42: 0.09 | W42: 4.6677 | X42: 0.0165 | Y42: 0.0571 | Z42: 0.0064 | AA42: 0.0185 | AB42: 0.0033 | AC42: 0.0165 | AD42: 0.0028 | AE42: 0.0228 | AF42: 0.0019 | AG42: 0.7472 | AH42: 0.0063 | AI42: 0 | AJ42: 0.0034 | AK42: 0.0023 | AL42: 0.0004 | AM42: 0 | AN42: 0.0032 | AO42: 0 | AP42: 0.0018 | AQ42: 0 | AR42: 0.0016 | AS42: 0.0051 | AT42: 0.0001 | AU42: 0 | AV42: 0.0046 | AW42: 0 | AX42: 0 | AY42: 0.0266 | AZ42: 0.0008 | BA42: 0.0098 | BB42: 0.0003 | BC42: 0.0128 | BD42: 0.0003 | BE42: 0 | BF42: 0.0073 | BG42: 0.0012 | BH42: 0.0002 | BI42: 0.0012 | BJ42: 0.0001 | BK42: 0 | BL42: 0.0078 | BM42: 59.24 | BN42: 0.12
A43: #76 | B43: Mining Plus | C43: 3780.45 | D43: 989 | E43: 53.67 | F43: 49.24 | G43: 102.9 | H43: 3 | I43: 0 | J43: 0.58 | K43: 0.4409 | L43: 0.0469 | M43: 27.97 | N43: 0.09 | O43: 1.4504 | P43: 0.0141 | Q43: 5.8131 | R43: 0.0215 | S43: 0 | T43: 0.001 | U43: 0 | V43: 0.08 | W43: 6.7347 | X43: 0.022 | Y43: 0.0579 | Z43: 0.0066 | AA43: 0.0189 | AB43: 0.0034 | AC43: 0.0162 | AD43: 0.0028 | AE43: 0.0606 | AF43: 0.0027 | AG43: 1.1957 | AH43: 0.0083 | AI43: 0.0054 | AJ43: 0.0009 | AK43: 0.0041 | AL43: 0.0005 | AM43: 0 | AN43: 0.0032 | AO43: 0 | AP43: 0.0019 | AQ43: 0 | AR43: 0.0018 | AS43: 0.0071 | AT43: 0.0001 | AU43: 0 | AV43: 0.0047 | AW43: 0 | AX43: 0 | AY43: 0.0254 | AZ43: 0.0008 | BA43: 0.0097 | BB43: 0.0003 | BC43: 0.0125 | BD43: 0.0003 | BE43: 0.0025 | BF43: 0.0004 | BG43: 0.0017 | BH43: 0.0002 | BI43: 0.0015 | BJ43: 0.0002 | BK43: 0 | BL43: 0.0079 | BM43: 56.17 | BN43: 0.12
A44: #77 | B44: Mining Plus | C44: 3780.65 | D44: 989 | E44: 53.99 | F44: 46.7 | G44: 100.69 | H44: 3 | I44: 0 | J44: 0.51 | K44: 0.155 | L44: 0.045 | M44: 21.02 | N44: 0.08 | O44: 1.0528 | P44: 0.0122 | Q44: 4.5879 | R44: 0.0186 | S44: 0 | T44: 0.001 | U44: 0 | V44: 0.07 | W44: 10.978 | X44: 0.0356 | Y44: 0.0379 | Z44: 0.0063 | AA44: 0.0154 | AB44: 0.0032 | AC44: 0.0089 | AD44: 0.0027 | AE44: 0.2689 | AF44: 0.0051 | AG44: 2.3645 | AH44: 0.0128 | AI44: 0 | AJ44: 0.0062 | AK44: 0.0035 | AL44: 0.0005 | AM44: 0 | AN44: 0.0034 | AO44: 0 | AP44: 0.0019 | AQ44: 0 | AR44: 0.0015 | AS44: 0.0048 | AT44: 0.0001 | AU44: 0 | AV44: 0.0046 | AW44: 0 | AX44: 0 | AY44: 0.0251 | AZ44: 0.0009 | BA44: 0.01 | BB44: 0.0003 | BC44: 0.0123 | BD44: 0.0003 | BE44: 0.002 | BF44: 0.0004 | BG44: 0.0006 | BH44: 0.0002 | BI44: 0.0012 | BJ44: 0.0002 | BK44: 0 | BL44: 0.0078 | BM44: 59.45 | BN44: 0.13
A45: #78 | B45: Mining Plus | C45: 3780.85 | D45: 989 | E45: 54.33 | F45: 48.09 | G45: 102.42 | H45: 3 | I45: 0 | J45: 0.56 | K45: 0.1383 | L45: 0.0473 | M45: 23.5 | N45: 0.09 | O45: 0.7261 | P45: 0.0113 | Q45: 2.1117 | R45: 0.0116 | S45: 0 | T45: 0.001 | U45: 0 | V45: 0.08 | W45: 10.5035 | X45: 0.0355 | Y45: 0.0381 | Z45: 0.0066 | AA45: 0.0111 | AB45: 0.0032 | AC45: 0.0109 | AD45: 0.0029 | AE45: 0.2691 | AF45: 0.0053 | AG45: 2.3734 | AH45: 0.0133 | AI45: 0 | AJ45: 0.0064 | AK45: 0.002 | AL45: 0.0005 | AM45: 0 | AN45: 0.0033 | AO45: 0 | AP45: 0.0019 | AQ45: 0 | AR45: 0.0015 | AS45: 0.0029 | AT45: 0.0001 | AU45: 0 | AV45: 0.0048 | AW45: 0 | AX45: 0 | AY45: 0.0265 | AZ45: 0.0009 | BA45: 0.0105 | BB45: 0.0003 | BC45: 0.0133 | BD45: 0.0004 | BE45: 0 | BF45: 0.0075 | BG45: 0.0007 | BH45: 0.0002 | BI45: 0 | BJ45: 0.0055 | BK45: 0 | BL45: 0.0079 | BM45: 60.27 | BN45: 0.13
A46: #79 | B46: Mining Plus | C46: 3781.05 | D46: 989 | E46: 52.8 | F46: 49.88 | G46: 102.68 | H46: 3 | I46: 0 | J46: 0.56 | K46: 3.94 | L46: 0.07 | M46: 25.91 | N46: 0.09 | O46: 0.4613 | P46: 0.0088 | Q46: 0.7026 | R46: 0.0065 | S46: 0.0517 | T46: 0.0007 | U46: 0 | V46: 0.11 | W46: 2.4282 | X46: 0.0104 | Y46: 1.6938 | Z46: 0.0209 | AA46: 0.1257 | AB46: 0.0072 | AC46: 0.0095 | AD46: 0.0031 | AE46: 0.0506 | AF46: 0.0023 | AG46: 1.0062 | AH46: 0.0072 | AI46: 0 | AJ46: 0.0033 | AK46: 0.008 | AL46: 0.0005 | AM46: 0.0038 | AN46: 0.0006 | AO46: 0 | AP46: 0.0019 | AQ46: 0 | AR46: 0.0017 | AS46: 0.0045 | AT46: 0.0001 | AU46: 0 | AV46: 0.0041 | AW46: 0 | AX46: 0 | AY46: 0.0265 | AZ46: 0.0008 | BA46: 0.0099 | BB46: 0.0003 | BC46: 0.0133 | BD46: 0.0003 | BE46: 0 | BF46: 0.0065 | BG46: 0.003 | BH46: 0.0002 | BI46: 0 | BJ46: 0.0048 | BK46: 0 | BL46: 0.0072 | BM46: 63.55 | BN46: 0.12
A47: #80 | B47: Mining Plus | C47: 3781.25 | D47: 988 | E47: 53.84 | F47: 48.3 | G47: 102.14 | H47: 3 | I47: 0 | J47: 0.65 | K47: 3.57 | L47: 0.07 | M47: 22.04 | N47: 0.08 | O47: 0.3932 | P47: 0.0089 | Q47: 6.7583 | R47: 0.0249 | S47: 0 | T47: 0.0013 | U47: 2.3549 | V47: 0.0377 | W47: 5.4779 | X47: 0.0198 | Y47: 0.2709 | Z47: 0.0103 | AA47: 0.03 | AB47: 0.0042 | AC47: 0.0203 | AD47: 0.0031 | AE47: 0.0585 | AF47: 0.0027 | AG47: 2.1878 | AH47: 0.012 | AI47: 0 | AJ47: 0.006 | AK47: 0.0034 | AL47: 0.0005 | AM47: 0 | AN47: 0.0034 | AO47: 0.0028 | AP47: 0.0004 | AQ47: 0 | AR47: 0.002 | AS47: 0.0269 | AT47: 0.0003 | AU47: 0 | AV47: 0.0049 | AW47: 0 | AX47: 0 | AY47: 0.025 | AZ47: 0.0009 | BA47: 0.0092 | BB47: 0.0003 | BC47: 0.0123 | BD47: 0.0003 | BE47: 0.0022 | BF47: 0.0004 | BG47: 0.0031 | BH47: 0.0002 | BI47: 0.0023 | BJ47: 0.0002 | BK47: 0 | BL47: 0.0086 | BM47: 56.74 | BN47: 0.13
A48: #81 | B48: Mining Plus | C48: 3781.45 | D48: 988 | E48: 53.69 | F48: 49.04 | G48: 102.73 | H48: 3 | I48: 0 | J48: 0.63 | K48: 9.78 | L48: 0.1 | M48: 22.83 | N48: 0.08 | O48: 0.1416 | P48: 0.0061 | Q48: 0.9349 | R48: 0.0074 | S48: 0 | T48: 0.0013 | U48: 9.69 | V48: 0.05 | W48: 0.6649 | X48: 0.0082 | Y48: 0.5353 | Z48: 0.0137 | AA48: 0.0452 | AB48: 0.0051 | AC48: 0.0269 | AD48: 0.0035 | AE48: 0.0315 | AF48: 0.0023 | AG48: 3.8091 | AH48: 0.0173 | AI48: 0.0109 | AJ48: 0.0017 | AK48: 0.0033 | AL48: 0.0006 | AM48: 0 | AN48: 0.0034 | AO48: 0.0072 | AP48: 0.0005 | AQ48: 0 | AR48: 0.0018 | AS48: 0.0362 | AT48: 0.0003 | AU48: 0 | AV48: 0.0048 | AW48: 0 | AX48: 0 | AY48: 0.0281 | AZ48: 0.0009 | BA48: 0.0109 | BB48: 0.0003 | BC48: 0.0133 | BD48: 0.0004 | BE48: 0.0025 | BF48: 0.0005 | BG48: 0.0023 | BH48: 0.0002 | BI48: 0.0035 | BJ48: 0.0002 | BK48: 0.0043 | BL48: 0.0006 | BM48: 51.38 | BN48: 0.14
A49: #82 | B49: Mining Plus | C49: 3781.65 | D49: 988 | E49: 53.41 | F49: 51.12 | G49: 104.53 | H49: 3 | I49: 0 | J49: 0.62 | K49: 0.2908 | L49: 0.0446 | M49: 32.05 | N49: 0.09 | O49: 1.4278 | P49: 0.0142 | Q49: 3.9411 | R49: 0.0165 | S49: 0 | T49: 0.001 | U49: 0 | V49: 0.08 | W49: 4.3609 | X49: 0.0154 | Y49: 0.057 | Z49: 0.0064 | AA49: 0.0216 | AB49: 0.0034 | AC49: 0.013 | AD49: 0.0027 | AE49: 0.0306 | AF49: 0.002 | AG49: 0.4076 | AH49: 0.0046 | AI49: 0 | AJ49: 0.0026 | AK49: 0.0016 | AL49: 0.0004 | AM49: 0.0029 | AN49: 0.0005 | AO49: 0 | AP49: 0.0018 | AQ49: 0 | AR49: 0.0016 | AS49: 0.0041 | AT49: 0.0001 | AU49: 0 | AV49: 0.0046 | AW49: 0 | AX49: 0 | AY49: 0.0255 | AZ49: 0.0008 | BA49: 0.0095 | BB49: 0.0003 | BC49: 0.0123 | BD49: 0.0003 | BE49: 0 | BF49: 0.0069 | BG49: 0.0015 | BH49: 0.0002 | BI49: 0.0016 | BJ49: 0.0002 | BK49: 0 | BL49: 0.0074 | BM49: 57.34 | BN49: 0.12
A50: #83 | B50: Mining Plus | C50: 3781.85 | D50: 988 | E50: 53.22 | F50: 51.46 | G50: 104.68 | H50: 3 | I50: 0 | J50: 0.56 | K50: 0.7637 | L50: 0.0492 | M50: 34.91 | N50: 0.1 | O50: 1.4084 | P50: 0.0143 | Q50: 2.6814 | R50: 0.013 | S50: 0 | T50: 0.001 | U50: 0 | V50: 0.1 | W50: 3.3422 | X50: 0.0127 | Y50: 0.0568 | Z50: 0.0064 | AA50: 0.017 | AB50: 0.0033 | AC50: 0.0126 | AD50: 0.0027 | AE50: 0.0307 | AF50: 0.002 | AG50: 0.6463 | AH50: 0.0057 | AI50: 0 | AJ50: 0.003 | AK50: 0.0017 | AL50: 0.0004 | AM50: 0 | AN50: 0.0031 | AO50: 0 | AP50: 0.0018 | AQ50: 0 | AR50: 0.0017 | AS50: 0.0039 | AT50: 0.0001 | AU50: 0 | AV50: 0.0044 | AW50: 0 | AX50: 0 | AY50: 0.0266 | AZ50: 0.0008 | BA50: 0.0098 | BB50: 0.0003 | BC50: 0.0127 | BD50: 0.0003 | BE50: 0 | BF50: 0.007 | BG50: 0.0016 | BH50: 0.0002 | BI50: 0.0015 | BJ50: 0.0002 | BK50: 0 | BL50: 0.008 | BM50: 56.08 | BN50: 0.12
A51: #2 | B51: Mining Plus | C51: =3783.05 -> 3783.05 | D51: 996 | E51: 54.37 | F51: 47.08 | G51: 101.46 | H51: 3 | I51: 0 | J51: 0.58 | K51: 0.89 | L51: 0.06 | M51: 21.76 | N51: 0.08 | O51: 4.847 | P51: 0.0265 | Q51: 5.733 | R51: 0.0227 | S51: 0 | T51: 0.001 | U51: 0 | V51: 0.08 | W51: 11.9386 | X51: 0.0384 | Y51: 0.0946 | Z51: 0.0081 | AA51: 0.03 | AB51: 0.004 | AC51: 0.0203 | AD51: 0.0034 | AE51: 0.1244 | AF51: 0.0039 | AG51: 2.7701 | AH51: 0.0148 | AI51: 0.0089 | AJ51: 0.0015 | AK51: 0.0054 | AL51: 0.0007 | AM51: 0.0064 | AN51: 0.0007 | AO51: 0 | AP51: 0.0025 | AQ51: 0 | AR51: 0.003 | AS51: 0.0195 | AT51: 0.0002 | AU51: 0 | AV51: 0.0052 | AW51: 0 | AX51: 0 | AY51: 0.0255 | AZ51: 0.0009 | BA51: 0.0101 | BB51: 0.0003 | BC51: 0.0119 | BD51: 0.0003 | BE51: 0 | BF51: 0.0085 | BG51: 0.0072 | BH51: 0.0003 | BI51: 0.0025 | BJ51: 0.0002 | BK51: 0 | BL51: 0.0102 | BM51: 51.69 | BN51: 0.14
A52: #3 | B52: Mining Plus | C52: =C51+0.2 -> 3783.25 | D52: 996 | E52: 53.94 | F52: 48.85 | G52: 102.8 | H52: 3 | I52: 0 | J52: 0.51 | K52: 0.4123 | L52: 0.0499 | M52: 28.8 | N52: 0.09 | O52: 3.7488 | P52: 0.0228 | Q52: 4.2166 | R52: 0.0176 | S52: 0 | T52: 0.0009 | U52: 0 | V52: 0.07 | W52: 8.9281 | X52: 0.0276 | Y52: 0.0669 | Z52: 0.0069 | AA52: 0.0259 | AB52: 0.0037 | AC52: 0.0154 | AD52: 0.003 | AE52: 0.0714 | AF52: 0.0029 | AG52: 1.0754 | AH52: 0.008 | AI52: 0.0064 | AJ52: 0.0009 | AK52: 0.0033 | AL52: 0.0005 | AM52: 0.0033 | AN52: 0.0006 | AO52: 0 | AP52: 0.0021 | AQ52: 0 | AR52: 0.0023 | AS52: 0.0101 | AT52: 0.0002 | AU52: 0 | AV52: 0.0049 | AW52: 0 | AX52: 0 | AY52: 0.025 | AZ52: 0.0008 | BA52: 0.0093 | BB52: 0.0003 | BC52: 0.0125 | BD52: 0.0003 | BE52: 0.0023 | BF52: 0.0004 | BG52: 0.0033 | BH52: 0.0002 | BI52: 0.0019 | BJ52: 0.0002 | BK52: 0 | BL52: 0.009 | BM52: 52.56 | BN52: 0.13
A53: #4 | B53: Mining Plus | C53: 3783.45 | D53: 996 | E53: 54.29 | F53: 46.67 | G53: 100.96 | H53: 3 | I53: 0 | J53: 0.52 | K53: 0.4 | L53: 0.05 | M53: 22.55 | N53: 0.08 | O53: 5.1152 | P53: 0.0265 | Q53: 5.0641 | R53: 0.02 | S53: 0 | T53: 0.0009 | U53: 0 | V53: 0.07 | W53: 12.9717 | X53: 0.0394 | Y53: 0.0475 | Z53: 0.0067 | AA53: 0.0315 | AB53: 0.0038 | AC53: 0.0217 | AD53: 0.0033 | AE53: 0.1074 | AF53: 0.0036 | AG53: 1.422 | AH53: 0.0097 | AI53: 0 | AJ53: 0.0053 | AK53: 0.0037 | AL53: 0.0005 | AM53: 0.0055 | AN53: 0.0007 | AO53: 0 | AP53: 0.0022 | AQ53: 0 | AR53: 0.0026 | AS53: 0.0135 | AT53: 0.0002 | AU53: 0 | AV53: 0.0051 | AW53: 0 | AX53: 0 | AY53: 0.0246 | AZ53: 0.0009 | BA53: 0.0089 | BB53: 0.0003 | BC53: 0.0116 | BD53: 0.0003 | BE53: 0 | BF53: 0.0081 | BG53: 0.0047 | BH53: 0.0003 | BI53: 0.0024 | BJ53: 0.0002 | BK53: 0 | BL53: 0.0093 | BM53: 52.19 | BN53: 0.14
A54: #5 | B54: Mining Plus | C54: 3783.65 | D54: 996 | E54: 53.88 | F54: 48.85 | G54: 102.73 | H54: 3 | I54: 0 | J54: 0.51 | K54: 0.3509 | L54: 0.0485 | M54: 28.8 | N54: 0.09 | O54: 4.7565 | P54: 0.0258 | Q54: 2.6992 | R54: 0.0134 | S54: 0 | T54: 0.0009 | U54: 0 | V54: 0.07 | W54: 9.252 | X54: 0.0283 | Y54: 0.0592 | Z54: 0.0067 | AA54: 0.0261 | AB54: 0.0036 | AC54: 0.0208 | AD54: 0.0031 | AE54: 0.0887 | AF54: 0.0032 | AG54: 1.0134 | AH54: 0.0078 | AI54: 0 | AJ54: 0.0042 | AK54: 0.0041 | AL54: 0.0005 | AM54: 0.0041 | AN54: 0.0006 | AO54: 0 | AP54: 0.002 | AQ54: 0 | AR54: 0.0023 | AS54: 0.0107 | AT54: 0.0002 | AU54: 0 | AV54: 0.0049 | AW54: 0 | AX54: 0 | AY54: 0.0261 | AZ54: 0.0008 | BA54: 0.0094 | BB54: 0.0003 | BC54: 0.0121 | BD54: 0.0003 | BE54: 0 | BF54: 0.0079 | BG54: 0.0037 | BH54: 0.0002 | BI54: 0.0018 | BJ54: 0.0002 | BK54: 0 | BL54: 0.009 | BM54: 52.86 | BN54: 0.13
A55: #6 | B55: Mining Plus | C55: 3783.85 | D55: 996 | E55: 53.69 | F55: 49.83 | G55: 103.52 | H55: 3 | I55: 0 | J55: 0.51 | K55: 0.2662 | L55: 0.0472 | M55: 32.77 | N55: 0.1 | O55: 3.7437 | P55: 0.0229 | Q55: 3.0382 | R55: 0.0143 | S55: 0 | T55: 0.0009 | U55: 0 | V55: 0.07 | W55: 6.9971 | X55: 0.022 | Y55: 0.0563 | Z55: 0.0066 | AA55: 0.0337 | AB55: 0.0038 | AC55: 0.0202 | AD55: 0.0031 | AE55: 0.0809 | AF55: 0.003 | AG55: 0.7716 | AH55: 0.0066 | AI55: 0.0044 | AJ55: 0.0008 | AK55: 0.0048 | AL55: 0.0005 | AM55: 0.005 | AN55: 0.0006 | AO55: 0 | AP55: 0.002 | AQ55: 0 | AR55: 0.0024 | AS55: 0.01 | AT55: 0.0002 | AU55: 0 | AV55: 0.0048 | AW55: 0 | AX55: 0 | AY55: 0.0261 | AZ55: 0.0008 | BA55: 0.0097 | BB55: 0.0003 | BC55: 0.0124 | BD55: 0.0003 | BE55: 0.0024 | BF55: 0.0004 | BG55: 0.005 | BH55: 0.0003 | BI55: 0.0032 | BJ55: 0.0002 | BK55: 0 | BL55: 0.0088 | BM55: 52.14 | BN55: 0.13
A56: #7 | B56: Mining Plus | C56: 3784.05 | D56: 996 | E56: 53.83 | F56: 48.9 | G56: 102.72 | H56: 3 | I56: 0 | J56: 0.53 | K56: 0.1726 | L56: 0.0462 | M56: 29.88 | N56: 0.09 | O56: 2.8786 | P56: 0.0198 | Q56: 5.9248 | R56: 0.0219 | S56: 0 | T56: 0.0009 | U56: 0 | V56: 0.07 | W56: 7.958 | X56: 0.0248 | Y56: 0.0575 | Z56: 0.0067 | AA56: 0.0302 | AB56: 0.0037 | AC56: 0.0127 | AD56: 0.0029 | AE56: 0.0798 | AF56: 0.003 | AG56: 1.1555 | AH56: 0.0083 | AI56: 0.0063 | AJ56: 0.001 | AK56: 0.0038 | AL56: 0.0005 | AM56: 0.006 | AN56: 0.0006 | AO56: 0 | AP56: 0.0022 | AQ56: 0 | AR56: 0.0026 | AS56: 0.011 | AT56: 0.0002 | AU56: 0 | AV56: 0.0049 | AW56: 0 | AX56: 0 | AY56: 0.0254 | AZ56: 0.0008 | BA56: 0.0097 | BB56: 0.0003 | BC56: 0.0122 | BD56: 0.0003 | BE56: 0.0025 | BF56: 0.0004 | BG56: 0.0059 | BH56: 0.0003 | BI56: 0.0031 | BJ56: 0.0002 | BK56: 0 | BL56: 0.0088 | BM56: 51.77 | BN56: 0.13
A57: #8 | B57: Mining Plus | C57: 3784.25 | D57: 996 | E57: 53.82 | F57: 50.19 | G57: 104.01 | H57: 3 | I57: 0 | J57: 0.57 | K57: 0.2068 | L57: 0.0472 | M57: 32.87 | N57: 0.1 | O57: 2.4236 | P57: 0.0186 | Q57: 4.4562 | R57: 0.0183 | S57: 0 | T57: 0.001 | U57: 0 | V57: 0.08 | W57: 5.292 | X57: 0.018 | Y57: 0.0554 | Z57: 0.0066 | AA57: 0.0185 | AB57: 0.0033 | AC57: 0.0122 | AD57: 0.0028 | AE57: 0.0532 | AF57: 0.0025 | AG57: 1.4106 | AH57: 0.0091 | AI57: 0.0068 | AJ57: 0.001 | AK57: 0.0032 | AL57: 0.0005 | AM57: 0.0041 | AN57: 0.0006 | AO57: 0 | AP57: 0.0019 | AQ57: 0.002 | AR57: 0.0002 | AS57: 0.0066 | AT57: 0.0001 | AU57: 0 | AV57: 0.0047 | AW57: 0 | AX57: 0 | AY57: 0.0259 | AZ57: 0.0008 | BA57: 0.0095 | BB57: 0.0003 | BC57: 0.0121 | BD57: 0.0003 | BE57: 0.0023 | BF57: 0.0004 | BG57: 0.0024 | BH57: 0.0002 | BI57: 0 | BJ57: 0.0053 | BK57: 0 | BL57: 0.0084 | BM57: 53.13 | BN57: 0.13
A58: #9 | B58: Mining Plus | C58: 3784.45 | D58: 996 | E58: 53.15 | F58: 53.27 | G58: 106.42 | H58: 3 | I58: 0 | J58: 0.56 | K58: 0.1852 | L58: 0.0471 | M58: 40.37 | N58: 0.11 | O58: 0.9417 | P58: 0.0128 | Q58: 1.1211 | R58: 0.0087 | S58: 0 | T58: 0.0009 | U58: 0 | V58: 0.08 | W58: 1.3078 | X58: 0.0078 | Y58: 0.0433 | Z58: 0.0061 | AA58: 0.0132 | AB58: 0.0032 | AC58: 0.0105 | AD58: 0.0026 | AE58: 0.0198 | AF58: 0.0018 | AG58: 0.1721 | AH58: 0.003 | AI58: 0 | AJ58: 0.0017 | AK58: 0.0016 | AL58: 0.0004 | AM58: 0.0028 | AN58: 0.0005 | AO58: 0 | AP58: 0.0017 | AQ58: 0 | AR58: 0.0015 | AS58: 0.003 | AT58: 0.0001 | AU58: 0 | AV58: 0.0044 | AW58: 0 | AX58: 0 | AY58: 0.027 | AZ58: 0.0008 | BA58: 0.0099 | BB58: 0.0003 | BC58: 0.0127 | BD58: 0.0003 | BE58: 0 | BF58: 0.0069 | BG58: 0.0014 | BH58: 0.0002 | BI58: 0 | BJ58: 0.0048 | BK58: 0 | BL58: 0.0069 | BM58: 55.75 | BN58: 0.12
A59: #10 | B59: Mining Plus | C59: 3784.65 | D59: 996 | E59: 53.03 | F59: 51.6 | G59: 104.63 | H59: 3 | I59: 0 | J59: 0.57 | K59: 0.1355 | L59: 0.0441 | M59: 33.22 | N59: 0.09 | O59: 0.978 | P59: 0.0122 | Q59: 4.4737 | R59: 0.0177 | S59: 0 | T59: 0.0009 | U59: 0 | V59: 0.08 | W59: 3.5155 | X59: 0.013 | Y59: 0.0369 | Z59: 0.0057 | AA59: 0.0137 | AB59: 0.0031 | AC59: 0.0139 | AD59: 0.0026 | AE59: 0.0288 | AF59: 0.0019 | AG59: 0.159 | AH59: 0.0028 | AI59: 0.002 | AJ59: 0.0004 | AK59: 0.0023 | AL59: 0.0004 | AM59: 0 | AN59: 0.0031 | AO59: 0 | AP59: 0.0017 | AQ59: 0 | AR59: 0.0016 | AS59: 0.0033 | AT59: 0.0001 | AU59: 0 | AV59: 0.0044 | AW59: 0 | AX59: 0 | AY59: 0.026 | AZ59: 0.0008 | BA59: 0.01 | BB59: 0.0003 | BC59: 0.0127 | BD59: 0.0003 | BE59: 0 | BF59: 0.0068 | BG59: 0.0013 | BH59: 0.0002 | BI59: 0 | BJ59: 0.0051 | BK59: 0 | BL59: 0.0076 | BM59: 57.37 | BN59: 0.11
A60: #11 | B60: Mining Plus | C60: 3784.85 | D60: 996 | E60: 53.02 | F60: 50.84 | G60: 103.86 | H60: 3 | I60: 0 | J60: 0.58 | K60: 0.2027 | L60: 0.0443 | M60: 30.89 | N60: 0.09 | O60: 1.0607 | P60: 0.0124 | Q60: 5.5549 | R60: 0.0203 | S60: 0 | T60: 0.001 | U60: 0 | V60: 0.08 | W60: 4.3283 | X60: 0.015 | Y60: 0.0353 | Z60: 0.0056 | AA60: 0.0172 | AB60: 0.0031 | AC60: 0.0173 | AD60: 0.0027 | AE60: 0.0266 | AF60: 0.0019 | AG60: 0.1942 | AH60: 0.0031 | AI60: 0 | AJ60: 0.0019 | AK60: 0.0019 | AL60: 0.0004 | AM60: 0.0033 | AN60: 0.0005 | AO60: 0 | AP60: 0.0016 | AQ60: 0 | AR60: 0.0016 | AS60: 0.0041 | AT60: 0.0001 | AU60: 0 | AV60: 0.0044 | AW60: 0 | AX60: 0 | AY60: 0.0267 | AZ60: 0.0008 | BA60: 0.0097 | BB60: 0.0003 | BC60: 0.0123 | BD60: 0.0003 | BE60: 0 | BF60: 0.0069 | BG60: 0.0015 | BH60: 0.0002 | BI60: 0 | BJ60: 0.0051 | BK60: 0 | BL60: 0.0072 | BM60: 57.62 | BN60: 0.11
A61: #12 | B61: Mining Plus | C61: 3785.05 | D61: 996 | E61: 53.49 | F61: 50.53 | G61: 104.02 | H61: 3 | I61: 0 | J61: 0.61 | K61: 0.177 | L61: 0.0448 | M61: 28.09 | N61: 0.09 | O61: 1.2237 | P61: 0.0132 | Q61: 6.2105 | R61: 0.0226 | S61: 0 | T61: 0.0011 | U61: 0 | V61: 0.08 | W61: 5.4456 | X61: 0.0184 | Y61: 0.0396 | Z61: 0.0059 | AA61: 0.0211 | AB61: 0.0033 | AC61: 0.0106 | AD61: 0.0026 | AE61: 0.0356 | AF61: 0.0021 | AG61: 0.2529 | AH61: 0.0036 | AI61: 0 | AJ61: 0.0022 | AK61: 0.0022 | AL61: 0.0004 | AM61: 0 | AN61: 0.0032 | AO61: 0 | AP61: 0.0018 | AQ61: 0 | AR61: 0.0019 | AS61: 0.0049 | AT61: 0.0001 | AU61: 0 | AV61: 0.0046 | AW61: 0 | AX61: 0 | AY61: 0.0259 | AZ61: 0.0008 | BA61: 0.0091 | BB61: 0.0003 | BC61: 0.0124 | BD61: 0.0003 | BE61: 0 | BF61: 0.0071 | BG61: 0.0028 | BH61: 0.0002 | BI61: 0.001 | BJ61: 0.0001 | BK61: 0 | BL61: 0.0078 | BM61: 58.44 | BN61: 0.12
A62: #13 | B62: Mining Plus | C62: 3785.25 | D62: 996 | E62: 53.91 | F62: 49.7 | G62: 103.61 | H62: 3 | I62: 0 | J62: 0.62 | K62: 1.93 | L62: 0.06 | M62: 28.85 | N62: 0.09 | O62: 1.4572 | P62: 0.0147 | Q62: 5.8711 | R62: 0.0222 | S62: 0 | T62: 0.0012 | U62: 0 | V62: 0.1 | W62: 4.9141 | X62: 0.0174 | Y62: 0.1156 | Z62: 0.0076 | AA62: 0.0353 | AB62: 0.0039 | AC62: 0.015 | AD62: 0.0029 | AE62: 0.0479 | AF62: 0.0024 | AG62: 1.0035 | AH62: 0.0075 | AI62: 0 | AJ62: 0.0039 | AK62: 0.0038 | AL62: 0.0005 | AM62: 0.0031 | AN62: 0.0006 | AO62: 0 | AP62: 0.0019 | AQ62: 0 | AR62: 0.0024 | AS62: 0.007 | AT62: 0.0001 | AU62: 0 | AV62: 0.0047 | AW62: 0 | AX62: 0 | AY62: 0.0214 | AZ62: 0.0008 | BA62: 0.008 | BB62: 0.0003 | BC62: 0.01 | BD62: 0.0003 | BE62: 0 | BF62: 0.0074 | BG62: 0.0048 | BH62: 0.0003 | BI62: 0 | BJ62: 0.0056 | BK62: 0 | BL62: 0.0082 | BM62: 55.71 | BN62: 0.13
A63: #14 | B63: Mining Plus | C63: 3785.45 | D63: 996 | E63: 53.03 | F63: 52.26 | G63: 105.28 | H63: 3 | I63: 0 | J63: 0.6 | K63: 0.2334 | L63: 0.0445 | M63: 34.81 | N63: 0.1 | O63: 0.754 | P63: 0.0111 | Q63: 3.5094 | R63: 0.0152 | S63: 0 | T63: 0.0011 | U63: 0 | V63: 0.08 | W63: 2.3804 | X63: 0.0101 | Y63: 0.0319 | Z63: 0.0056 | AA63: 0.0147 | AB63: 0.0031 | AC63: 0.0102 | AD63: 0.0025 | AE63: 0.0145 | AF63: 0.0016 | AG63: 0.146 | AH63: 0.0027 | AI63: 0 | AJ63: 0.0016 | AK63: 0 | AL63: 0.0018 | AM63: 0 | AN63: 0.003 | AO63: 0 | AP63: 0.0017 | AQ63: 0 | AR63: 0.0014 | AS63: 0.0015 | AT63: 0.0001 | AU63: 0 | AV63: 0.0043 | AW63: 0 | AX63: 0 | AY63: 0.027 | AZ63: 0.0008 | BA63: 0.0094 | BB63: 0.0003 | BC63: 0.0123 | BD63: 0.0003 | BE63: 0 | BF63: 0.0066 | BG63: 0.0008 | BH63: 0.0002 | BI63: 0 | BJ63: 0.0043 | BK63: 0 | BL63: 0.0072 | BM63: 58.05 | BN63: 0.11
A64: #15 | B64: Mining Plus | C64: 3785.65 | D64: 996 | E64: 53.48 | F64: 50.37 | G64: 103.85 | H64: 3 | I64: 0 | J64: 0.62 | K64: 0.22 | L64: 0.045 | M64: 29.08 | N64: 0.09 | O64: 0.0555 | P64: 0.0068 | Q64: 5.1835 | R64: 0.0197 | S64: 0 | T64: 0.0012 | U64: 0 | V64: 0.08 | W64: 4.9233 | X64: 0.0169 | Y64: 0 | Z64: 0.0397 | AA64: 0.0132 | AB64: 0.0029 | AC64: 0 | AD64: 0.007 | AE64: 0.1189 | AF64: 0.0033 | AG64: 0.6899 | AH64: 0.006 | AI64: 0 | AJ64: 0.0031 | AK64: 0 | AL64: 0.0019 | AM64: 0 | AN64: 0.0029 | AO64: 0 | AP64: 0.0017 | AQ64: 0 | AR64: 0.0012 | AS64: 0.0013 | AT64: 0.0001 | AU64: 0 | AV64: 0.0044 | AW64: 0 | AX64: 0 | AY64: 0.0241 | AZ64: 0.0008 | BA64: 0.009 | BB64: 0.0003 | BC64: 0.0122 | BD64: 0.0003 | BE64: 0.0021 | BF64: 0.0004 | BG64: 0 | BH64: 0.0048 | BI64: 0 | BJ64: 0.0042 | BK64: 0 | BL64: 0.0068 | BM64: 59.66 | BN64: 0.12
A65: #16 | B65: Mining Plus | C65: 3785.85 | D65: 996 | E65: 53.28 | F65: 51.45 | G65: 104.73 | H65: 3 | I65: 0 | J65: 0.62 | K65: 0.1728 | L65: 0.0455 | M65: 33.52 | N65: 0.1 | O65: 0 | P65: 0.0088 | Q65: 3.3162 | R65: 0.0148 | S65: 0 | T65: 0.0013 | U65: 0 | V65: 0.08 | W65: 3.5806 | X65: 0.0133 | Y65: 0.0251 | Z65: 0.0054 | AA65: 0.0093 | AB65: 0.0029 | AC65: 0 | AD65: 0.0068 | AE65: 0.0935 | AF65: 0.003 | AG65: 0.5068 | AH65: 0.005 | AI65: 0 | AJ65: 0.0027 | AK65: 0.0015 | AL65: 0.0004 | AM65: 0 | AN65: 0.0028 | AO65: 0 | AP65: 0.0016 | AQ65: 0 | AR65: 0.0012 | AS65: 0.0014 | AT65: 0.0001 | AU65: 0 | AV65: 0.0044 | AW65: 0 | AX65: 0 | AY65: 0.0254 | AZ65: 0.0008 | BA65: 0.0099 | BB65: 0.0003 | BC65: 0.0129 | BD65: 0.0003 | BE65: 0 | BF65: 0.0068 | BG65: 0 | BH65: 0.0046 | BI65: 0 | BJ65: 0.0042 | BK65: 0 | BL65: 0.0073 | BM65: 58.72 | BN65: 0.12
A66: #17 | B66: Mining Plus | C66: 3786.05 | D66: 996 | E66: 52.86 | F66: 52.65 | G66: 105.51 | H66: 3 | I66: 0 | J66: 0.58 | K66: 0.1194 | L66: 0.0447 | M66: 40.53 | N66: 0.11 | O66: 0 | P66: 0.0062 | Q66: 1.6407 | R66: 0.0101 | S66: 0 | T66: 0.0009 | U66: 0 | V66: 0.08 | W66: 1.1016 | X66: 0.0071 | Y66: 0.0372 | Z66: 0.0057 | AA66: 0.0107 | AB66: 0.0029 | AC66: 0.0074 | AD66: 0.0024 | AE66: 0.0311 | AF66: 0.0019 | AG66: 0.2706 | AH66: 0.0036 | AI66: 0 | AJ66: 0.0019 | AK66: 0 | AL66: 0.0018 | AM66: 0 | AN66: 0.0029 | AO66: 0 | AP66: 0.0015 | AQ66: 0 | AR66: 0.0011 | AS66: 0.0005 | AT66: 0.0001 | AU66: 0 | AV66: 0.0042 | AW66: 0 | AX66: 0 | AY66: 0.0274 | AZ66: 0.0008 | BA66: 0.0099 | BB66: 0.0003 | BC66: 0.0129 | BD66: 0.0003 | BE66: 0 | BF66: 0.0063 | BG66: 0 | BH66: 0.0045 | BI66: 0 | BJ66: 0.0039 | BK66: 0 | BL66: 0.007 | BM66: 56.2 | BN66: 0.11
A67: #18 | B67: Mining Plus | C67: 3786.25 | D67: 996 | E67: 52.74 | F67: 52.84 | G67: 105.59 | H67: 3 | I67: 0 | J67: 0.57 | K67: 0 | L67: 0.08 | M67: 38.46 | N67: 0.1 | O67: 0 | P67: 0.0068 | Q67: 2.5552 | R67: 0.0126 | S67: 0 | T67: 0.001 | U67: 0 | V67: 0.08 | W67: 1.2222 | X67: 0.0073 | Y67: 0.0357 | Z67: 0.0056 | AA67: 0 | AB67: 0.0061 | AC67: 0.0125 | AD67: 0.0025 | AE67: 0.0202 | AF67: 0.0017 | AG67: 0.1404 | AH67: 0.0026 | AI67: 0 | AJ67: 0.0015 | AK67: 0.0011 | AL67: 0.0003 | AM67: 0.0024 | AN67: 0.0005 | AO67: 0 | AP67: 0.0016 | AQ67: 0 | AR67: 0.0012 | AS67: 0.0011 | AT67: 0.0001 | AU67: 0 | AV67: 0.0043 | AW67: 0 | AX67: 0 | AY67: 0.0281 | AZ67: 0.0008 | BA67: 0.0099 | BB67: 0.0003 | BC67: 0.0125 | BD67: 0.0003 | BE67: 0 | BF67: 0.006 | BG67: 0 | BH67: 0.0047 | BI67: 0 | BJ67: 0.0041 | BK67: 0 | BL67: 0.0066 | BM67: 57.5 | BN67: 0.11
A68: #19 | B68: Mining Plus | C68: 3786.45 | D68: 996 | E68: 52.89 | F68: 52.33 | G68: 105.22 | H68: 3 | I68: 0 | J68: 0.57 | K68: 0 | L68: 0.08 | M68: 36.82 | N68: 0.1 | O68: 0 | P68: 0.0077 | Q68: 2.8644 | R68: 0.0133 | S68: 0 | T68: 0.001 | U68: 0 | V68: 0.08 | W68: 2.0547 | X68: 0.0092 | Y68: 0.0633 | Z68: 0.0062 | AA68: 0.0174 | AB68: 0.0032 | AC68: 0 | AD68: 0.0065 | AE68: 0.0418 | AF68: 0.0021 | AG68: 0.2557 | AH68: 0.0035 | AI68: 0 | AJ68: 0.0019 | AK68: 0 | AL68: 0.0017 | AM68: 0 | AN68: 0.0028 | AO68: 0 | AP68: 0.0016 | AQ68: 0 | AR68: 0.0011 | AS68: 0.0014 | AT68: 0.0001 | AU68: 0 | AV68: 0.0043 | AW68: 0 | AX68: 0 | AY68: 0.0278 | AZ68: 0.0008 | BA68: 0.0103 | BB68: 0.0003 | BC68: 0.013 | BD68: 0.0003 | BE68: 0 | BF68: 0.0062 | BG68: 0 | BH68: 0.0046 | BI68: 0 | BJ68: 0.0041 | BK68: 0 | BL68: 0.0066 | BM68: 57.83 | BN68: 0.11
A69: #20 | B69: Mining Plus | C69: 3786.65 | D69: 996 | E69: 53.38 | F69: 49.81 | G69: 103.19 | H69: 3 | I69: 0 | J69: 0.57 | K69: 0 | L69: 0.07 | M69: 31.4 | N69: 0.09 | O69: 0 | P69: 0.0086 | Q69: 3.4797 | R69: 0.0149 | S69: 0 | T69: 0.001 | U69: 0 | V69: 0.07 | W69: 5.9256 | X69: 0.0191 | Y69: 0.0239 | Z69: 0.0054 | AA69: 0.0141 | AB69: 0.0029 | AC69: 0.0107 | AD69: 0.0026 | AE69: 0.1886 | AF69: 0.0041 | AG69: 1.1371 | AH69: 0.0077 | AI69: 0 | AJ69: 0.0039 | AK69: 0.0012 | AL69: 0.0004 | AM69: 0 | AN69: 0.0029 | AO69: 0 | AP69: 0.0016 | AQ69: 0 | AR69: 0.0012 | AS69: 0.0006 | AT69: 0.0001 | AU69: 0 | AV69: 0.0044 | AW69: 0 | AX69: 0 | AY69: 0.0274 | AZ69: 0.0008 | BA69: 0.0102 | BB69: 0.0003 | BC69: 0.0131 | BD69: 0.0003 | BE69: 0 | BF69: 0.0067 | BG69: 0 | BH69: 0.0046 | BI69: 0 | BJ69: 0.0041 | BK69: 0 | BL69: 0.007 | BM69: 57.76 | BN69: 0.11
A70: #21 | B70: Mining Plus | C70: 3786.85 | D70: 996 | E70: 53.78 | F70: 49.84 | G70: 103.62 | H70: 3 | I70: 0 | J70: 0.63 | K70: 0.2368 | L70: 0.0461 | M70: 29.56 | N70: 0.09 | O70: 0 | P70: 0.0093 | Q70: 3.7518 | R70: 0.0161 | S70: 0 | T70: 0.0011 | U70: 0 | V70: 0.08 | W70: 6.2336 | X70: 0.0207 | Y70: 0 | Z70: 0.0371 | AA70: 0.0191 | AB70: 0.0031 | AC70: 0 | AD70: 0.0071 | AE70: 0.1845 | AF70: 0.0041 | AG70: 1.1616 | AH70: 0.008 | AI70: 0 | AJ70: 0.0042 | AK70: 0 | AL70: 0.0019 | AM70: 0 | AN70: 0.003 | AO70: 0 | AP70: 0.0017 | AQ70: 0 | AR70: 0.0012 | AS70: 0.0016 | AT70: 0.0001 | AU70: 0 | AV70: 0.0045 | AW70: 0 | AX70: 0 | AY70: 0.0256 | AZ70: 0.0008 | BA70: 0.0094 | BB70: 0.0003 | BC70: 0.0124 | BD70: 0.0003 | BE70: 0 | BF70: 0.0068 | BG70: 0 | BH70: 0.0047 | BI70: 0 | BJ70: 0.0044 | BK70: 0 | BL70: 0.007 | BM70: 58.81 | BN70: 0.12
A71: #22 | B71: Mining Plus | C71: 3787.05 | D71: 996 | E71: 54.14 | F71: 49.5 | G71: 103.63 | H71: 3 | I71: 0 | J71: 0.67 | K71: 0.1303 | L71: 0.0467 | M71: 26.87 | N71: 0.09 | O71: 0.021 | P71: 0.007 | Q71: 3.5017 | R71: 0.0158 | S71: 0 | T71: 0.0011 | U71: 0 | V71: 0.08 | W71: 7.6125 | X71: 0.0256 | Y71: 0.0335 | Z71: 0.006 | AA71: 0.0108 | AB71: 0.003 | AC71: 0 | AD71: 0.0078 | AE71: 0.2297 | AF71: 0.0047 | AG71: 1.492 | AH71: 0.0096 | AI71: 0 | AJ71: 0.0049 | AK71: 0 | AL71: 0.0021 | AM71: 0 | AN71: 0.0031 | AO71: 0 | AP71: 0.0017 | AQ71: 0 | AR71: 0.0013 | AS71: 0.0011 | AT71: 0.0001 | AU71: 0 | AV71: 0.0047 | AW71: 0 | AX71: 0 | AY71: 0.0256 | AZ71: 0.0009 | BA71: 0.0103 | BB71: 0.0003 | BC71: 0.0126 | BD71: 0.0003 | BE71: 0 | BF71: 0.0069 | BG71: 0 | BH71: 0.0052 | BI71: 0 | BJ71: 0.0045 | BK71: 0 | BL71: 0.0077 | BM71: 60.05 | BN71: 0.12
A72: #23 | B72: Mining Plus | C72: 3787.25 | D72: 996 | E72: 53.74 | F72: 49.38 | G72: 103.12 | H72: 3 | I72: 0 | J72: 0.59 | K72: 0.2316 | L72: 0.0456 | M72: 29.67 | N72: 0.09 | O72: 0.0358 | P72: 0.007 | Q72: 3.9504 | R72: 0.0165 | S72: 0 | T72: 0.0011 | U72: 0 | V72: 0.08 | W72: 6.799 | X72: 0.0221 | Y72: 0.0299 | Z72: 0.0057 | AA72: 0.0126 | AB72: 0.003 | AC72: 0.0085 | AD72: 0.0026 | AE72: 0.1827 | AF72: 0.0041 | AG72: 1.2281 | AH72: 0.0083 | AI72: 0 | AJ72: 0.0044 | AK72: 0 | AL72: 0.0021 | AM72: 0 | AN72: 0.003 | AO72: 0 | AP72: 0.0017 | AQ72: 0 | AR72: 0.0013 | AS72: 0.0025 | AT72: 0.0001 | AU72: 0 | AV72: 0.0046 | AW72: 0 | AX72: 0 | AY72: 0.0276 | AZ72: 0.0008 | BA72: 0.0097 | BB72: 0.0003 | BC72: 0.0128 | BD72: 0.0003 | BE72: 0 | BF72: 0.0072 | BG72: 0 | BH72: 0.0053 | BI72: 0 | BJ72: 0.0043 | BK72: 0 | BL72: 0.0076 | BM72: 57.8 | BN72: 0.12
A73: #24 | B73: Mining Plus | C73: 3787.45 | D73: 996 | E73: 53.41 | F73: 50.19 | G73: 103.6 | H73: 3 | I73: 0 | J73: 0.57 | K73: 0.1466 | L73: 0.0439 | M73: 32.8 | N73: 0.1 | O73: 0 | P73: 0.0083 | Q73: 2.7454 | R73: 0.013 | S73: 0 | T73: 0.0009 | U73: 0 | V73: 0.07 | W73: 5.5108 | X73: 0.0181 | Y73: 0.0307 | Z73: 0.0056 | AA73: 0.0129 | AB73: 0.003 | AC73: 0.0089 | AD73: 0.0025 | AE73: 0.1617 | AF73: 0.0038 | AG73: 1.0395 | AH73: 0.0074 | AI73: 0 | AJ73: 0.0038 | AK73: 0 | AL73: 0.002 | AM73: 0 | AN73: 0.003 | AO73: 0 | AP73: 0.0016 | AQ73: 0 | AR73: 0.0012 | AS73: 0.0014 | AT73: 0.0001 | AU73: 0 | AV73: 0.0044 | AW73: 0 | AX73: 0 | AY73: 0.0273 | AZ73: 0.0008 | BA73: 0.01 | BB73: 0.0003 | BC73: 0.0126 | BD73: 0.0003 | BE73: 0 | BF73: 0.0066 | BG73: 0 | BH73: 0.0048 | BI73: 0 | BJ73: 0.0043 | BK73: 0 | BL73: 0.0073 | BM73: 57.49 | BN73: 0.12
A74: #25 | B74: Mining Plus | C74: 3787.65 | D74: 996 | E74: 53.74 | F74: 49.17 | G74: 102.9 | H74: 3 | I74: 0 | J74: 0.53 | K74: 0.2027 | L74: 0.0463 | M74: 33.63 | N74: 0.1 | O74: 0 | P74: 0.0082 | Q74: 1.5183 | R74: 0.0095 | S74: 0 | T74: 0.0008 | U74: 0 | V74: 0.07 | W74: 7.3891 | X74: 0.0232 | Y74: 0.0332 | Z74: 0.0059 | AA74: 0.0091 | AB74: 0.0029 | AC74: 0 | AD74: 0.0071 | AE74: 0.2052 | AF74: 0.0044 | AG74: 1.4857 | AH74: 0.0093 | AI74: 0 | AJ74: 0.0047 | AK74: 0.0014 | AL74: 0.0004 | AM74: 0 | AN74: 0.003 | AO74: 0 | AP74: 0.0017 | AQ74: 0 | AR74: 0.0012 | AS74: 0.0012 | AT74: 0.0001 | AU74: 0 | AV74: 0.0045 | AW74: 0 | AX74: 0 | AY74: 0.027 | AZ74: 0.0009 | BA74: 0.0102 | BB74: 0.0003 | BC74: 0.0133 | BD74: 0.0003 | BE74: 0 | BF74: 0.0072 | BG74: 0 | BH74: 0.0048 | BI74: 0 | BJ74: 0.0044 | BK74: 0 | BL74: 0.0079 | BM74: 55.47 | BN74: 0.12
A75: #26 | B75: Mining Plus | C75: 3787.85 | D75: 996 | E75: 53.84 | F75: 49.33 | G75: 103.17 | H75: 3 | I75: 0 | J75: 0.55 | K75: 0.162 | L75: 0.0465 | M75: 32.83 | N75: 0.1 | O75: 0 | P75: 0.008 | Q75: 0.1211 | R75: 0.0039 | S75: 0 | T75: 0.0008 | U75: 0 | V75: 0.08 | W75: 7.7343 | X75: 0.0247 | Y75: 0.0235 | Z75: 0.0058 | AA75: 0.0088 | AB75: 0.0029 | AC75: 0.0093 | AD75: 0.0026 | AE75: 0.1751 | AF75: 0.0041 | AG75: 1.6587 | AH75: 0.01 | AI75: 0 | AJ75: 0.005 | AK75: 0 | AL75: 0.0021 | AM75: 0 | AN75: 0.0029 | AO75: 0 | AP75: 0.0017 | AQ75: 0 | AR75: 0.0013 | AS75: 0.001 | AT75: 0.0001 | AU75: 0 | AV75: 0.0045 | AW75: 0 | AX75: 0 | AY75: 0.0268 | AZ75: 0.0009 | BA75: 0.0101 | BB75: 0.0003 | BC75: 0.0131 | BD75: 0.0003 | BE75: 0 | BF75: 0.0066 | BG75: 0 | BH75: 0.0051 | BI75: 0 | BJ75: 0.0044 | BK75: 0 | BL75: 0.0074 | BM75: 57.22 | BN75: 0.12
A76: #27 | B76: Mining Plus | C76: 3788.05 | D76: 995 | E76: 53.51 | F76: 49.68 | G76: 103.19 | H76: 3 | I76: 0 | J76: 0.64 | K76: 0.1866 | L76: 0.0447 | M76: 28.57 | N76: 0.09 | O76: 0.0796 | P76: 0.0071 | Q76: 4.2112 | R76: 0.0172 | S76: 0.0523 | T76: 0.0008 | U76: 0 | V76: 0.08 | W76: 6.0515 | X76: 0.0201 | Y76: 0.0198 | Z76: 0.0053 | AA76: 0.0115 | AB76: 0.0029 | AC76: 0 | AD76: 0.0069 | AE76: 0.1523 | AF76: 0.0037 | AG76: 0.9734 | AH76: 0.0072 | AI76: 0 | AJ76: 0.0038 | AK76: 0 | AL76: 0.0021 | AM76: 0 | AN76: 0.003 | AO76: 0 | AP76: 0.0016 | AQ76: 0 | AR76: 0.0013 | AS76: 0.0018 | AT76: 0.0001 | AU76: 0 | AV76: 0.0045 | AW76: 0 | AX76: 0 | AY76: 0.0262 | AZ76: 0.0008 | BA76: 0.0099 | BB76: 0.0003 | BC76: 0.013 | BD76: 0.0003 | BE76: 0 | BF76: 0.0068 | BG76: 0 | BH76: 0.005 | BI76: 0 | BJ76: 0.0047 | BK76: 0 | BL76: 0.0073 | BM76: 59.64 | BN76: 0.12
A77: #28 | B77: Mining Plus | C77: 3788.25 | D77: 995 | E77: 53.29 | F77: 50.93 | G77: 104.22 | H77: 3 | I77: 0 | J77: 0.59 | K77: 0 | L77: 0.08 | M77: 32.34 | N77: 0.1 | O77: 0 | P77: 0.0084 | Q77: 3.7048 | R77: 0.0157 | S77: 0 | T77: 0.0013 | U77: 0 | V77: 0.08 | W77: 4.1829 | X77: 0.0147 | Y77: 0.0348 | Z77: 0.0056 | AA77: 0.0112 | AB77: 0.0029 | AC77: 0 | AD77: 0.0069 | AE77: 0.0955 | AF77: 0.003 | AG77: 0.5722 | AH77: 0.0053 | AI77: 0 | AJ77: 0.0029 | AK77: 0.0014 | AL77: 0.0004 | AM77: 0 | AN77: 0.0031 | AO77: 0 | AP77: 0.0016 | AQ77: 0 | AR77: 0.0012 | AS77: 0.0009 | AT77: 0.0001 | AU77: 0 | AV77: 0.0044 | AW77: 0 | AX77: 0 | AY77: 0.0278 | AZ77: 0.0008 | BA77: 0.0097 | BB77: 0.0003 | BC77: 0.0128 | BD77: 0.0003 | BE77: 0 | BF77: 0.0066 | BG77: 0 | BH77: 0.0048 | BI77: 0 | BJ77: 0.0043 | BK77: 0 | BL77: 0.0073 | BM77: 59.01 | BN77: 0.11
A78: #29 | B78: Mining Plus | C78: 3788.45 | D78: 995 | E78: 52.84 | F78: 51.39 | G78: 104.23 | H78: 3 | I78: 0 | J78: 0.59 | K78: 0.2023 | L78: 0.0429 | M78: 31.25 | N78: 0.09 | O78: 0 | P78: 0.0088 | Q78: 4.9133 | R78: 0.0185 | S78: 0 | T78: 0.0011 | U78: 0 | V78: 0.08 | W78: 3.3072 | X78: 0.0122 | Y78: 0.0323 | Z78: 0.0053 | AA78: 0.0127 | AB78: 0.0029 | AC78: 0.0104 | AD78: 0.0024 | AE78: 0.0348 | AF78: 0.002 | AG78: 0.2295 | AH78: 0.0032 | AI78: 0 | AJ78: 0.0019 | AK78: 0 | AL78: 0.0017 | AM78: 0 | AN78: 0.0029 | AO78: 0 | AP78: 0.0015 | AQ78: 0 | AR78: 0.0012 | AS78: 0.003 | AT78: 0.0001 | AU78: 0 | AV78: 0.0043 | AW78: 0 | AX78: 0 | AY78: 0.0247 | AZ78: 0.0008 | BA78: 0.0093 | BB78: 0.0003 | BC78: 0.0126 | BD78: 0.0003 | BE78: 0 | BF78: 0.0064 | BG78: 0 | BH78: 0.0048 | BI78: 0 | BJ78: 0.0042 | BK78: 0 | BL78: 0.0068 | BM78: 59.96 | BN78: 0.11
A79: #30 | B79: Mining Plus | C79: 3788.65 | D79: 995 | E79: 53.38 | F79: 50.27 | G79: 103.65 | H79: 3 | I79: 0 | J79: 0.59 | K79: 0.1689 | L79: 0.0454 | M79: 29.94 | N79: 0.09 | O79: 0 | P79: 0.009 | Q79: 4.2356 | R79: 0.0172 | S79: 0.0195 | T79: 0.0007 | U79: 0 | V79: 0.08 | W79: 5.2423 | X79: 0.0177 | Y79: 0.0355 | Z79: 0.0057 | AA79: 0.0093 | AB79: 0.0029 | AC79: 0 | AD79: 0.0069 | AE79: 0.1244 | AF79: 0.0034 | AG79: 0.7952 | AH79: 0.0064 | AI79: 0 | AJ79: 0.0034 | AK79: 0 | AL79: 0.0019 | AM79: 0.0034 | AN79: 0.0005 | AO79: 0 | AP79: 0.0017 | AQ79: 0 | AR79: 0.0012 | AS79: 0.0017 | AT79: 0.0001 | AU79: 0 | AV79: 0.0044 | AW79: 0 | AX79: 0 | AY79: 0.0281 | AZ79: 0.0008 | BA79: 0.0104 | BB79: 0.0003 | BC79: 0.0127 | BD79: 0.0003 | BE79: 0 | BF79: 0.0068 | BG79: 0 | BH79: 0.0047 | BI79: 0 | BJ79: 0.0043 | BK79: 0 | BL79: 0.0068 | BM79: 59.37 | BN79: 0.12
A80: #31 | B80: Mining Plus | C80: 3788.85 | D80: 995 | E80: 53.7 | F80: 50.08 | G80: 103.78 | H80: 3 | I80: 0 | J80: 0.68 | K80: 0.3583 | L80: 0.048 | M80: 26.65 | N80: 0.09 | O80: 0 | P80: 0.01 | Q80: 4.5431 | R80: 0.0185 | S80: 0.0053 | T80: 0.0006 | U80: 0 | V80: 0.09 | W80: 5.7435 | X80: 0.0198 | Y80: 0.0383 | Z80: 0.0058 | AA80: 0.0108 | AB80: 0.0029 | AC80: 0.0077 | AD80: 0.0025 | AE80: 0.1443 | AF80: 0.0037 | AG80: 0.9239 | AH80: 0.0071 | AI80: 0 | AJ80: 0.0038 | AK80: 0 | AL80: 0.002 | AM80: 0 | AN80: 0.0031 | AO80: 0 | AP80: 0.0017 | AQ80: 0 | AR80: 0.0013 | AS80: 0.001 | AT80: 0.0001 | AU80: 0 | AV80: 0.0045 | AW80: 0 | AX80: 0 | AY80: 0.0258 | AZ80: 0.0008 | BA80: 0.0098 | BB80: 0.0003 | BC80: 0.0124 | BD80: 0.0003 | BE80: 0 | BF80: 0.0065 | BG80: 0 | BH80: 0.0051 | BI80: 0 | BJ80: 0.0044 | BK80: 0 | BL80: 0.0072 | BM80: 61.53 | BN80: 0.12
A81: #32 | B81: Mining Plus | C81: 3789.05 | D81: 995 | E81: 53.8 | F81: 49.83 | G81: 103.63 | H81: 3 | I81: 0 | J81: 0.6 | K81: 0.1513 | L81: 0.0466 | M81: 32.67 | N81: 0.1 | O81: 0 | P81: 0.0081 | Q81: 1.3867 | R81: 0.0091 | S81: 0 | T81: 0.0011 | U81: 0 | V81: 0.08 | W81: 6.6474 | X81: 0.0218 | Y81: 0.0231 | Z81: 0.0057 | AA81: 0.0088 | AB81: 0.0029 | AC81: 0 | AD81: 0.0071 | AE81: 0.2229 | AF81: 0.0046 | AG81: 1.4068 | AH81: 0.0091 | AI81: 0 | AJ81: 0.0046 | AK81: 0 | AL81: 0.0021 | AM81: 0 | AN81: 0.003 | AO81: 0 | AP81: 0.0016 | AQ81: 0 | AR81: 0.0013 | AS81: 0.0017 | AT81: 0.0001 | AU81: 0 | AV81: 0.0046 | AW81: 0 | AX81: 0 | AY81: 0.0267 | AZ81: 0.0009 | BA81: 0.0093 | BB81: 0.0003 | BC81: 0.0123 | BD81: 0.0003 | BE81: 0 | BF81: 0.007 | BG81: 0 | BH81: 0.0049 | BI81: 0 | BJ81: 0.0043 | BK81: 0 | BL81: 0.0078 | BM81: 57.44 | BN81: 0.12
A82: #33 | B82: Mining Plus | C82: 3789.25 | D82: 995 | E82: 53.49 | F82: 48.65 | G82: 102.13 | H82: 3 | I82: 0 | J82: 0.61 | K82: 0.1664 | L82: 0.0456 | M82: 27.06 | N82: 0.09 | O82: 0 | P82: 0.0097 | Q82: 4.8941 | R82: 0.0189 | S82: 0 | T82: 0.0012 | U82: 0 | V82: 0.08 | W82: 7.1345 | X82: 0.023 | Y82: 0.0349 | Z82: 0.0057 | AA82: 0.0124 | AB82: 0.0029 | AC82: 0.0094 | AD82: 0.0025 | AE82: 0.1743 | AF82: 0.004 | AG82: 1.1951 | AH82: 0.0081 | AI82: 0 | AJ82: 0.0042 | AK82: 0 | AL82: 0.0019 | AM82: 0 | AN82: 0.003 | AO82: 0 | AP82: 0.0017 | AQ82: 0 | AR82: 0.0013 | AS82: 0.0025 | AT82: 0.0001 | AU82: 0 | AV82: 0.0045 | AW82: 0 | AX82: 0 | AY82: 0.0264 | AZ82: 0.0008 | BA82: 0.0096 | BB82: 0.0003 | BC82: 0.0127 | BD82: 0.0003 | BE82: 0 | BF82: 0.007 | BG82: 0 | BH82: 0.0051 | BI82: 0 | BJ82: 0.0043 | BK82: 0 | BL82: 0.0074 | BM82: 59.26 | BN82: 0.12
A83: #34 | B83: Mining Plus | C83: 3789.45 | D83: 995 | E83: 53.72 | F83: 51.06 | G83: 104.79 | H83: 3 | I83: 0 | J83: 0.64 | K83: 0.1391 | L83: 0.0468 | M83: 31.94 | N83: 0.1 | O83: 0.0852 | P83: 0.0073 | Q83: 2.3289 | R83: 0.0123 | S83: 0 | T83: 0.0013 | U83: 0 | V83: 0.09 | W83: 5.0395 | X83: 0.0177 | Y83: 0.0334 | Z83: 0.006 | AA83: 0.0124 | AB83: 0.0031 | AC83: 0 | AD83: 0.0072 | AE83: 0.1483 | AF83: 0.0038 | AG83: 0.9231 | AH83: 0.0072 | AI83: 0 | AJ83: 0.0037 | AK83: 0 | AL83: 0.002 | AM83: 0 | AN83: 0.0031 | AO83: 0 | AP83: 0.0017 | AQ83: 0 | AR83: 0.0013 | AS83: 0.001 | AT83: 0.0001 | AU83: 0 | AV83: 0.0045 | AW83: 0 | AX83: 0 | AY83: 0.0278 | AZ83: 0.0008 | BA83: 0.0104 | BB83: 0.0003 | BC83: 0.0135 | BD83: 0.0003 | BE83: 0.002 | BF83: 0.0004 | BG83: 0 | BH83: 0.0051 | BI83: 0 | BJ83: 0.0044 | BK83: 0 | BL83: 0.0072 | BM83: 59.3 | BN83: 0.12
A84: #35 | B84: Mining Plus | C84: 3789.65 | D84: 995 | E84: 52.99 | F84: 52.83 | G84: 105.81 | H84: 3 | I84: 0 | J84: 0.6 | K84: 0.2162 | L84: 0.0453 | M84: 36.84 | N84: 0.1 | O84: 0 | P84: 0.0076 | Q84: 2.1286 | R84: 0.0115 | S84: 0 | T84: 0.0013 | U84: 0 | V84: 0.09 | W84: 1.6185 | X84: 0.0083 | Y84: 0.0299 | Z84: 0.0055 | AA84: 0.0119 | AB84: 0.003 | AC84: 0.0085 | AD84: 0.0024 | AE84: 0.03 | AF84: 0.0019 | AG84: 0.19 | AH84: 0.003 | AI84: 0 | AJ84: 0.0017 | AK84: 0 | AL84: 0.0017 | AM84: 0.0052 | AN84: 0.0005 | AO84: 0 | AP84: 0.0016 | AQ84: 0 | AR84: 0.0012 | AS84: 0.0009 | AT84: 0.0001 | AU84: 0 | AV84: 0.0043 | AW84: 0 | AX84: 0 | AY84: 0.0272 | AZ84: 0.0008 | BA84: 0.0103 | BB84: 0.0003 | BC84: 0.013 | BD84: 0.0003 | BE84: 0 | BF84: 0.0067 | BG84: 0 | BH84: 0.0046 | BI84: 0 | BJ84: 0.0044 | BK84: 0 | BL84: 0.0068 | BM84: 58.87 | BN84: 0.11
A85: #36 | B85: Mining Plus | C85: 3790.65 | D85: 995 | E85: 52.79 | F85: 53.21 | G85: 106.01 | H85: 3 | I85: 0 | J85: 0.57 | K85: 0.1628 | L85: 0.0451 | M85: 40.9 | N85: 0.11 | O85: 0 | P85: 0.0062 | Q85: 1.5384 | R85: 0.0099 | S85: 0 | T85: 0.0011 | U85: 0 | V85: 0.08 | W85: 0.4858 | X85: 0.0057 | Y85: 0.0246 | Z85: 0.0054 | AA85: 0.0135 | AB85: 0.003 | AC85: 0.0073 | AD85: 0.0024 | AE85: 0.0161 | AF85: 0.0016 | AG85: 0.108 | AH85: 0.0023 | AI85: 0 | AJ85: 0.0014 | AK85: 0 | AL85: 0.0017 | AM85: 0.0026 | AN85: 0.0005 | AO85: 0 | AP85: 0.0016 | AQ85: 0 | AR85: 0.0011 | AS85: 0.0006 | AT85: 0.0001 | AU85: 0 | AV85: 0.0042 | AW85: 0 | AX85: 0 | AY85: 0.0275 | AZ85: 0.0008 | BA85: 0.0102 | BB85: 0.0003 | BC85: 0.0132 | BD85: 0.0003 | BE85: 0 | BF85: 0.0065 | BG85: 0 | BH85: 0.0045 | BI85: 0 | BJ85: 0.004 | BK85: 0 | BL85: 0.0068 | BM85: 56.69 | BN85: 0.11
A86: #37 | B86: Mining Plus | C86: =C85+0.2 -> 3790.85 | D86: 995 | E86: 53.25 | F86: 50.17 | G86: 103.42 | H86: 3 | I86: 0 | J86: 0.6 | K86: 0.4733 | L86: 0.0459 | M86: 28.84 | N86: 0.09 | O86: 0 | P86: 0.0091 | Q86: 5.569 | R86: 0.0203 | S86: 0 | T86: 0.0011 | U86: 0 | V86: 0.08 | W86: 4.917 | X86: 0.0165 | Y86: 0.0305 | Z86: 0.0055 | AA86: 0.0105 | AB86: 0.0029 | AC86: 0.0097 | AD86: 0.0025 | AE86: 0.0885 | AF86: 0.0029 | AG86: 0.6003 | AH86: 0.0054 | AI86: 0 | AJ86: 0.0029 | AK86: 0 | AL86: 0.0019 | AM86: 0 | AN86: 0.0029 | AO86: 0 | AP86: 0.0016 | AQ86: 0 | AR86: 0.0024 | AS86: 0.0014 | AT86: 0.0001 | AU86: 0 | AV86: 0.0044 | AW86: 0 | AX86: 0 | AY86: 0.0252 | AZ86: 0.0008 | BA86: 0.009 | BB86: 0.0003 | BC86: 0.0124 | BD86: 0.0003 | BE86: 0 | BF86: 0.0067 | BG86: 0.0068 | BH86: 0.0003 | BI86: 0 | BJ86: 0.0046 | BK86: 0 | BL86: 0.0075 | BM86: 59.4 | BN86: 0.11
A87: #38 | B87: Mining Plus | C87: 3791.05 | D87: 995 | E87: 53.86 | F87: 44.57 | G87: 98.43 | H87: 3 | I87: 0 | J87: 0.61 | K87: 5.09 | L87: 0.08 | M87: 9.92 | N87: 0.05 | O87: 0.0434 | P87: 0.0062 | Q87: 9.9445 | R87: 0.0349 | S87: 0 | T87: 0.0013 | U87: 5.0159 | V87: 0.0393 | W87: 7.899 | X87: 0.0281 | Y87: 0.4646 | Z87: 0.0125 | AA87: 0.0306 | AB87: 0.0045 | AC87: 0.0282 | AD87: 0.0033 | AE87: 0.0258 | AF87: 0.0021 | AG87: 3.8415 | AH87: 0.0178 | AI87: 0.0118 | AJ87: 0.0016 | AK87: 0.0044 | AL87: 0.0006 | AM87: 0.0071 | AN87: 0.0007 | AO87: 0.0044 | AP87: 0.0004 | AQ87: 0 | AR87: 0.0024 | AS87: 0.0294 | AT87: 0.0003 | AU87: 0 | AV87: 0.0048 | AW87: 0 | AX87: 0 | AY87: 0.0251 | AZ87: 0.0009 | BA87: 0.0098 | BB87: 0.0003 | BC87: 0.0119 | BD87: 0.0003 | BE87: 0.0025 | BF87: 0.0004 | BG87: 0.0057 | BH87: 0.0003 | BI87: 0.0037 | BJ87: 0.0002 | BK87: 0.0046 | BL87: 0.0007 | BM87: 57.58 | BN87: 0.14
A88: #39 | B88: Mining Plus | C88: 3791.25 | D88: 995 | E88: 52.82 | F88: 53.24 | G88: 106.06 | H88: 3 | I88: 0 | J88: 0.57 | K88: 0.3292 | L88: 0.0454 | M88: 36.62 | N88: 0.1 | O88: 0.0264 | P88: 0.0061 | Q88: 2.8386 | R88: 0.0134 | S88: 0 | T88: 0.0011 | U88: 0 | V88: 0.09 | W88: 1.0399 | X88: 0.0068 | Y88: 0.0359 | Z88: 0.0056 | AA88: 0.0145 | AB88: 0.003 | AC88: 0.0097 | AD88: 0.0025 | AE88: 0.0071 | AF88: 0.0013 | AG88: 0.1307 | AH88: 0.0025 | AI88: 0 | AJ88: 0.0015 | AK88: 0 | AL88: 0.0017 | AM88: 0 | AN88: 0.0029 | AO88: 0 | AP88: 0.0016 | AQ88: 0 | AR88: 0.0012 | AS88: 0.0008 | AT88: 0.0001 | AU88: 0 | AV88: 0.0043 | AW88: 0 | AX88: 0 | AY88: 0.0269 | AZ88: 0.0008 | BA88: 0.0101 | BB88: 0.0003 | BC88: 0.0126 | BD88: 0.0003 | BE88: 0 | BF88: 0.0064 | BG88: 0 | BH88: 0.0048 | BI88: 0 | BJ88: 0.0039 | BK88: 0 | BL88: 0.0069 | BM88: 58.9 | BN88: 0.11
A89: #40 | B89: Mining Plus | C89: 3791.45 | D89: 995 | E89: 52.89 | F89: 53.35 | G89: 106.24 | H89: 3 | I89: 0 | J89: 0.59 | K89: 0.1982 | L89: 0.0451 | M89: 37.88 | N89: 0.1 | O89: 0 | P89: 0.0076 | Q89: 2.419 | R89: 0.0124 | S89: 0 | T89: 0.0013 | U89: 0 | V89: 0.09 | W89: 0.6979 | X89: 0.0061 | Y89: 0.0301 | Z89: 0.0055 | AA89: 0.0108 | AB89: 0.0029 | AC89: 0.0098 | AD89: 0.0025 | AE89: 0.0061 | AF89: 0.0013 | AG89: 0.082 | AH89: 0.002 | AI89: 0 | AJ89: 0.0013 | AK89: 0.0012 | AL89: 0.0003 | AM89: 0 | AN89: 0.0029 | AO89: 0 | AP89: 0.0016 | AQ89: 0 | AR89: 0.0012 | AS89: 0.0009 | AT89: 0.0001 | AU89: 0 | AV89: 0.0042 | AW89: 0 | AX89: 0 | AY89: 0.0254 | AZ89: 0.0008 | BA89: 0.0099 | BB89: 0.0003 | BC89: 0.013 | BD89: 0.0003 | BE89: 0 | BF89: 0.0065 | BG89: 0 | BH89: 0.0046 | BI89: 0 | BJ89: 0.0041 | BK89: 0 | BL89: 0.0069 | BM89: 58.61 | BN89: 0.11
A90: #41 | B90: Mining Plus | C90: 3791.65 | D90: 995 | E90: 52.91 | F90: 53.3 | G90: 106.21 | H90: 3 | I90: 0 | J90: 0.62 | K90: 0.2344 | L90: 0.0462 | M90: 37.72 | N90: 0.1 | O90: 0 | P90: 0.0079 | Q90: 2.2409 | R90: 0.0119 | S90: 0 | T90: 0.0011 | U90: 0 | V90: 0.09 | W90: 0.7117 | X90: 0.0061 | Y90: 0.0422 | Z90: 0.0058 | AA90: 0.0134 | AB90: 0.003 | AC90: 0 | AD90: 0.0064 | AE90: 0.0101 | AF90: 0.0014 | AG90: 0.0688 | AH90: 0.0019 | AI90: 0 | AJ90: 0.0012 | AK90: 0 | AL90: 0.0017 | AM90: 0 | AN90: 0.0028 | AO90: 0 | AP90: 0.0016 | AQ90: 0 | AR90: 0.0012 | AS90: 0.0007 | AT90: 0.0001 | AU90: 0 | AV90: 0.0043 | AW90: 0 | AX90: 0 | AY90: 0.0251 | AZ90: 0.0008 | BA90: 0.0101 | BB90: 0.0003 | BC90: 0.0126 | BD90: 0.0003 | BE90: 0 | BF90: 0.0064 | BG90: 0 | BH90: 0.0049 | BI90: 0 | BJ90: 0.0042 | BK90: 0 | BL90: 0.0067 | BM90: 58.91 | BN90: 0.11
A91: #42 | B91: Mining Plus | C91: 3791.85 | D91: 995 | E91: 52.91 | F91: 53.19 | G91: 106.1 | H91: 3 | I91: 0 | J91: 0.58 | K91: 0.366 | L91: 0.0464 | M91: 36.73 | N91: 0.1 | O91: 0 | P91: 0.0077 | Q91: 2.9144 | R91: 0.0138 | S91: 0 | T91: 0.0012 | U91: 0 | V91: 0.09 | W91: 1.0453 | X91: 0.0069 | Y91: 0.0268 | Z91: 0.0054 | AA91: 0.0125 | AB91: 0.003 | AC91: 0 | AD91: 0.0063 | AE91: 0.006 | AF91: 0.0013 | AG91: 0.0799 | AH91: 0.002 | AI91: 0 | AJ91: 0.0013 | AK91: 0.0012 | AL91: 0.0003 | AM91: 0.0025 | AN91: 0.0005 | AO91: 0 | AP91: 0.0016 | AQ91: 0 | AR91: 0.0011 | AS91: 0.0007 | AT91: 0.0001 | AU91: 0 | AV91: 0.0043 | AW91: 0 | AX91: 0 | AY91: 0.0263 | AZ91: 0.0008 | BA91: 0.0098 | BB91: 0.0003 | BC91: 0.0122 | BD91: 0.0003 | BE91: 0 | BF91: 0.0066 | BG91: 0 | BH91: 0.0045 | BI91: 0 | BJ91: 0.0041 | BK91: 0 | BL91: 0.0067 | BM91: 58.77 | BN91: 0.11
A92: #43 | B92: Mining Plus | C92: 3792.05 | D92: 995 | E92: 52.84 | F92: 53.43 | G92: 106.28 | H92: 3 | I92: 0 | J92: 0.57 | K92: 0.3899 | L92: 0.0473 | M92: 38.8 | N92: 0.11 | O92: 0.2101 | P92: 0.0078 | Q92: 1.8924 | R92: 0.011 | S92: 0 | T92: 0.0012 | U92: 0 | V92: 0.09 | W92: 0.8261 | X92: 0.0065 | Y92: 0.0299 | Z92: 0.0057 | AA92: 0.0148 | AB92: 0.0031 | AC92: 0 | AD92: 0.0063 | AE92: 0.0063 | AF92: 0.0014 | AG92: 0.1539 | AH92: 0.0028 | AI92: 0 | AJ92: 0.0016 | AK92: 0 | AL92: 0.0018 | AM92: 0.0038 | AN92: 0.0005 | AO92: 0 | AP92: 0.0015 | AQ92: 0 | AR92: 0.0016 | AS92: 0.0009 | AT92: 0.0001 | AU92: 0 | AV92: 0.0043 | AW92: 0 | AX92: 0 | AY92: 0.0272 | AZ92: 0.0008 | BA92: 0.0099 | BB92: 0.0003 | BC92: 0.0133 | BD92: 0.0003 | BE92: 0 | BF92: 0.0065 | BG92: 0.0018 | BH92: 0.0002 | BI92: 0 | BJ92: 0.0044 | BK92: 0 | BL92: 0.0069 | BM92: 57.62 | BN92: 0.11
A93: #44 | B93: Mining Plus | C93: =C92+0.2 -> 3792.25 | D93: 995 | E93: 53.47 | F93: 46.9 | G93: 100.37 | H93: 3 | I93: 0 | J93: 0.54 | K93: 5.02 | L93: 0.08 | M93: 22.42 | N93: 0.08 | O93: 1.448 | P93: 0.0139 | Q93: 6.2774 | R93: 0.0226 | S93: 0 | T93: 0.0013 | U93: 2.6332 | V93: 0.0405 | W93: 8.3754 | X93: 0.0266 | Y93: 0.2523 | Z93: 0.0101 | AA93: 0.0372 | AB93: 0.0043 | AC93: 0.0204 | AD93: 0.0032 | AE93: 0.0367 | AF93: 0.0023 | AG93: 1.5249 | AH93: 0.0096 | AI93: 0 | AJ93: 0.005 | AK93: 0.0101 | AL93: 0.0006 | AM93: 0.0054 | AN93: 0.0007 | AO93: 0 | AP93: 0.0023 | AQ93: 0 | AR93: 0.0028 | AS93: 0.065 | AT93: 0.0004 | AU93: 0 | AV93: 0.0056 | AW93: 0 | AX93: 0 | AY93: 0.0254 | AZ93: 0.0008 | BA93: 0.0095 | BB93: 0.0003 | BC93: 0.0123 | BD93: 0.0003 | BE93: 0.0027 | BF93: 0.0004 | BG93: 0.0076 | BH93: 0.0003 | BI93: 0.002 | BJ93: 0.0002 | BK93: 0 | BL93: 0.0101 | BM93: 51.82 | BN93: 0.13
A94: #45 | B94: Mining Plus | C94: 3792.45 | D94: 995 | E94: 54.03 | F94: 48.47 | G94: 102.49 | H94: 3 | I94: 0 | J94: 0.64 | K94: 9.07 | L94: 0.1 | M94: 18.78 | N94: 0.08 | O94: 0.1473 | P94: 0.0067 | Q94: 3.714 | R94: 0.0164 | S94: 0 | T94: 0.0014 | U94: 8.53 | V94: 0.05 | W94: 2.5258 | X94: 0.0127 | Y94: 0.5565 | Z94: 0.0139 | AA94: 0.0333 | AB94: 0.0049 | AC94: 0.0335 | AD94: 0.0036 | AE94: 0.0225 | AF94: 0.0022 | AG94: 3.4991 | AH94: 0.0167 | AI94: 0 | AJ94: 0.0075 | AK94: 0.005 | AL94: 0.0006 | AM94: 0 | AN94: 0.0036 | AO94: 0.0051 | AP94: 0.0004 | AQ94: 0 | AR94: 0.0018 | AS94: 0.0333 | AT94: 0.0003 | AU94: 0 | AV94: 0.005 | AW94: 0 | AX94: 0 | AY94: 0.027 | AZ94: 0.0009 | BA94: 0.0101 | BB94: 0.0003 | BC94: 0.0133 | BD94: 0.0003 | BE94: 0.0023 | BF94: 0.0004 | BG94: 0.0019 | BH94: 0.0002 | BI94: 0.0037 | BJ94: 0.0002 | BK94: 0.0048 | BL94: 0.0007 | BM94: 52.98 | BN94: 0.14
A95: #46 | B95: Mining Plus | C95: 3792.65 | D95: 995 | E95: 54.02 | F95: 49.94 | G95: 103.96 | H95: 3 | I95: 0 | J95: 0.64 | K95: 1.44 | L95: 0.06 | M95: 28.99 | N95: 0.09 | O95: 1.4819 | P95: 0.015 | Q95: 4.1703 | R95: 0.0177 | S95: 0 | T95: 0.0011 | U95: 0 | V95: 0.11 | W95: 6.3988 | X95: 0.0216 | Y95: 0.1005 | Z95: 0.0075 | AA95: 0.0149 | AB95: 0.0034 | AC95: 0.0083 | AD95: 0.0027 | AE95: 0.0654 | AF95: 0.0028 | AG95: 0.7787 | AH95: 0.0067 | AI95: 0 | AJ95: 0.0035 | AK95: 0.003 | AL95: 0.0004 | AM95: 0 | AN95: 0.0033 | AO95: 0 | AP95: 0.002 | AQ95: 0 | AR95: 0.0018 | AS95: 0.0189 | AT95: 0.0002 | AU95: 0 | AV95: 0.005 | AW95: 0 | AX95: 0 | AY95: 0.0259 | AZ95: 0.0008 | BA95: 0.0093 | BB95: 0.0003 | BC95: 0.0129 | BD95: 0.0003 | BE95: 0 | BF95: 0.0074 | BG95: 0.002 | BH95: 0.0002 | BI95: 0 | BJ95: 0.0054 | BK95: 0 | BL95: 0.0084 | BM95: 56.47 | BN95: 0.13
A96: #47 | B96: Mining Plus | C96: 3792.85 | D96: 995 | E96: 53.76 | F96: 50.13 | G96: 103.89 | H96: 3 | I96: 0 | J96: 0.65 | K96: 1.81 | L96: 0.06 | M96: 27.13 | N96: 0.09 | O96: 1.2282 | P96: 0.0135 | Q96: 5.063 | R96: 0.02 | S96: 0 | T96: 0.0012 | U96: 0 | V96: 0.11 | W96: 5.6008 | X96: 0.0193 | Y96: 0.0983 | Z96: 0.0073 | AA96: 0.0205 | AB96: 0.0035 | AC96: 0.0093 | AD96: 0.0026 | AE96: 0.0422 | AF96: 0.0023 | AG96: 0.7316 | AH96: 0.0063 | AI96: 0 | AJ96: 0.0034 | AK96: 0.0023 | AL96: 0.0004 | AM96: 0.0039 | AN96: 0.0006 | AO96: 0 | AP96: 0.002 | AQ96: 0 | AR96: 0.002 | AS96: 0.0073 | AT96: 0.0001 | AU96: 0 | AV96: 0.0047 | AW96: 0 | AX96: 0 | AY96: 0.0262 | AZ96: 0.0008 | BA96: 0.0099 | BB96: 0.0003 | BC96: 0.0123 | BD96: 0.0003 | BE96: 0 | BF96: 0.0072 | BG96: 0.003 | BH96: 0.0002 | BI96: 0 | BJ96: 0.0053 | BK96: 0 | BL96: 0.0081 | BM96: 58.19 | BN96: 0.12
A97: #48 | B97: Mining Plus | C97: 3793.05 | D97: 995 | E97: 53.72 | F97: 51.31 | G97: 105.03 | H97: 3 | I97: 0 | J97: 0.63 | K97: 1.15 | L97: 0.05 | M97: 31.91 | N97: 0.1 | O97: 1.5023 | P97: 0.0151 | Q97: 3.4896 | R97: 0.0158 | S97: 0 | T97: 0.001 | U97: 0 | V97: 0.1 | W97: 4.5065 | X97: 0.0163 | Y97: 0.1018 | Z97: 0.0075 | AA97: 0.0153 | AB97: 0.0034 | AC97: 0.0107 | AD97: 0.0027 | AE97: 0.0285 | AF97: 0.002 | AG97: 0.9752 | AH97: 0.0075 | AI97: 0 | AJ97: 0.0039 | AK97: 0.0026 | AL97: 0.0005 | AM97: 0 | AN97: 0.0033 | AO97: 0 | AP97: 0.0019 | AQ97: 0 | AR97: 0.0023 | AS97: 0.0069 | AT97: 0.0001 | AU97: 0 | AV97: 0.0047 | AW97: 0 | AX97: 0 | AY97: 0.029 | AZ97: 0.0008 | BA97: 0.011 | BB97: 0.0003 | BC97: 0.0134 | BD97: 0.0003 | BE97: 0 | BF97: 0.0073 | BG97: 0.0042 | BH97: 0.0002 | BI97: 0 | BJ97: 0.0054 | BK97: 0 | BL97: 0.0085 | BM97: 56.24 | BN97: 0.12
A98: #49 | B98: Mining Plus | C98: 3793.25 | D98: 995 | E98: 54.55 | F98: 49.41 | G98: 103.96 | H98: 3 | I98: 0 | J98: 0.8 | K98: 3.67 | L98: 0.08 | M98: 13.14 | N98: 0.07 | O98: 0.1674 | P98: 0.0075 | Q98: 6.6505 | R98: 0.0273 | S98: 0 | T98: 0.0015 | U98: 2.9192 | V98: 0.0354 | W98: 7.0335 | X98: 0.0274 | Y98: 0.2855 | Z98: 0.011 | AA98: 0.0308 | AB98: 0.0044 | AC98: 0.0199 | AD98: 0.0033 | AE98: 0.0786 | AF98: 0.0031 | AG98: 2.2124 | AH98: 0.0132 | AI98: 0.0087 | AJ98: 0.0013 | AK98: 0.0033 | AL98: 0.0006 | AM98: 0 | AN98: 0.0038 | AO98: 0 | AP98: 0.0025 | AQ98: 0 | AR98: 0.0018 | AS98: 0.0186 | AT98: 0.0002 | AU98: 0 | AV98: 0.0051 | AW98: 0 | AX98: 0 | AY98: 0.0237 | AZ98: 0.0009 | BA98: 0.0103 | BB98: 0.0003 | BC98: 0.0127 | BD98: 0.0003 | BE98: 0 | BF98: 0.008 | BG98: 0.0014 | BH98: 0.0002 | BI98: 0.0016 | BJ98: 0.0002 | BK98: 0.0039 | BL98: 0.0006 | BM98: 63.71 | BN98: 0.14
A99: #50 | B99: Mining Plus | C99: 3793.45 | D99: 995 | E99: 53.04 | F99: 52.8 | G99: 105.85 | H99: 3 | I99: 0 | J99: 0.59 | K99: 0.4636 | L99: 0.0474 | M99: 37.86 | N99: 0.1 | O99: 0.391 | P99: 0.0092 | Q99: 2.1138 | R99: 0.0115 | S99: 0 | T99: 0.001 | U99: 0 | V99: 0.09 | W99: 1.6383 | X99: 0.0084 | Y99: 0.0483 | Z99: 0.0061 | AA99: 0.0181 | AB99: 0.0032 | AC99: 0.0091 | AD99: 0.0025 | AE99: 0.0144 | AF99: 0.0016 | AG99: 0.2561 | AH99: 0.0035 | AI99: 0 | AJ99: 0.0019 | AK99: 0.0012 | AL99: 0.0004 | AM99: 0 | AN99: 0.0029 | AO99: 0 | AP99: 0.0016 | AQ99: 0 | AR99: 0.0014 | AS99: 0.0014 | AT99: 0.0001 | AU99: 0 | AV99: 0.0043 | AW99: 0 | AX99: 0 | AY99: 0.0263 | AZ99: 0.0008 | BA99: 0.0096 | BB99: 0.0003 | BC99: 0.0128 | BD99: 0.0003 | BE99: 0 | BF99: 0.0065 | BG99: 0.001 | BH99: 0.0002 | BI99: 0 | BJ99: 0.0044 | BK99: 0 | BL99: 0.0065 | BM99: 57.13 | BN99: 0.11
A100: #51 | B100: Mining Plus | C100: 3794.05 | D100: 995 | E100: 52.96 | F100: 52.44 | G100: 105.4 | H100: 3 | I100: 0 | J100: 0.58 | K100: 0.3539 | L100: 0.0469 | M100: 37.63 | N100: 0.1 | O100: 0.1804 | P100: 0.0077 | Q100: 3.2363 | R100: 0.0146 | S100: 0 | T100: 0.001 | U100: 0 | V100: 0.09 | W100: 1.554 | X100: 0.0082 | Y100: 0.0301 | Z100: 0.0056 | AA100: 0.0177 | AB100: 0.0032 | AC100: 0.0119 | AD100: 0.0026 | AE100: 0.0051 | AF100: 0.0013 | AG100: 0.121 | AH100: 0.0025 | AI100: 0 | AJ100: 0.0015 | AK100: 0 | AL100: 0.0018 | AM100: 0 | AN100: 0.0028 | AO100: 0 | AP100: 0.0015 | AQ100: 0 | AR100: 0.0013 | AS100: 0.0017 | AT100: 0.0001 | AU100: 0 | AV100: 0.0043 | AW100: 0 | AX100: 0 | AY100: 0.0274 | AZ100: 0.0008 | BA100: 0.0092 | BB100: 0.0003 | BC100: 0.0128 | BD100: 0.0003 | BE100: 0.0019 | BF100: 0.0003 | BG100: 0.0005 | BH100: 0.0002 | BI100: 0 | BJ100: 0.0044 | BK100: 0 | BL100: 0.0069 | BM100: 56.81 | BN100: 0.11
A101: #52 | B101: Mining Plus | C101: =C100+0.2 -> 3794.25 | D101: 995 | E101: 54 | F101: 47.77 | G101: 101.77 | H101: 3 | I101: 0 | J101: 0.65 | K101: 5.82 | L101: 0.08 | M101: 18.71 | N101: 0.07 | O101: 0.1137 | P101: 0.0069 | Q101: 6.6645 | R101: 0.0246 | S101: 0 | T101: 0.0013 | U101: 5.1391 | V101: 0.0429 | W101: 4.9934 | X101: 0.0188 | Y101: 0.4258 | Z101: 0.0122 | AA101: 0.0281 | AB101: 0.0044 | AC101: 0.0241 | AD101: 0.0032 | AE101: 0.0233 | AF101: 0.002 | AG101: 2.57 | AH101: 0.0134 | AI101: 0.0074 | AJ101: 0.0014 | AK101: 0.0031 | AL101: 0.0005 | AM101: 0 | AN101: 0.0035 | AO101: 0.0036 | AP101: 0.0004 | AQ101: 0 | AR101: 0.0019 | AS101: 0.0163 | AT101: 0.0002 | AU101: 0 | AV101: 0.0048 | AW101: 0 | AX101: 0 | AY101: 0.0253 | AZ101: 0.0009 | BA101: 0.0097 | BB101: 0.0003 | BC101: 0.012 | BD101: 0.0003 | BE101: 0.0021 | BF101: 0.0004 | BG101: 0.0022 | BH101: 0.0002 | BI101: 0.0034 | BJ101: 0.0002 | BK101: 0.0036 | BL101: 0.0006 | BM101: 55.4 | BN101: 0.14
A102: #53 | B102: Mining Plus | C102: 3794.45 | D102: 995 | E102: 53.12 | F102: 51.86 | G102: 104.98 | H102: 3 | I102: 0 | J102: 0.6 | K102: 0.5068 | L102: 0.0475 | M102: 32.96 | N102: 0.1 | O102: 0.259 | P102: 0.0082 | Q102: 4.7053 | R102: 0.0183 | S102: 0 | T102: 0.0011 | U102: 0 | V102: 0.09 | W102: 2.7443 | X102: 0.0111 | Y102: 0.0421 | Z102: 0.0058 | AA102: 0.0089 | AB102: 0.0029 | AC102: 0 | AD102: 0.0066 | AE102: 0.0077 | AF102: 0.0014 | AG102: 0.2782 | AH102: 0.0037 | AI102: 0 | AJ102: 0.002 | AK102: 0.0011 | AL102: 0.0003 | AM102: 0 | AN102: 0.003 | AO102: 0 | AP102: 0.0016 | AQ102: 0 | AR102: 0.0014 | AS102: 0.0015 | AT102: 0.0001 | AU102: 0 | AV102: 0.0044 | AW102: 0 | AX102: 0 | AY102: 0.0268 | AZ102: 0.0008 | BA102: 0.0101 | BB102: 0.0003 | BC102: 0.013 | BD102: 0.0003 | BE102: 0 | BF102: 0.0068 | BG102: 0.0007 | BH102: 0.0002 | BI102: 0 | BJ102: 0.0046 | BK102: 0 | BL102: 0.0072 | BM102: 58.43 | BN102: 0.11
A103: #54 | B103: Mining Plus | C103: 3794.65 | D103: 995 | E103: 53.06 | F103: 52.13 | G103: 105.18 | H103: 3 | I103: 0 | J103: 0.61 | K103: 0.7062 | L103: 0.0487 | M103: 35.71 | N103: 0.1 | O103: 0.3521 | P103: 0.0089 | Q103: 3.5382 | R103: 0.0154 | S103: 0 | T103: 0.001 | U103: 0 | V103: 0.09 | W103: 2.2844 | X103: 0.01 | Y103: 0.0384 | Z103: 0.0058 | AA103: 0.0123 | AB103: 0.003 | AC103: 0.0078 | AD103: 0.0025 | AE103: 0.015 | AF103: 0.0016 | AG103: 0.2516 | AH103: 0.0035 | AI103: 0 | AJ103: 0.002 | AK103: 0.0014 | AL103: 0.0004 | AM103: 0 | AN103: 0.0031 | AO103: 0 | AP103: 0.0017 | AQ103: 0 | AR103: 0.0014 | AS103: 0.0023 | AT103: 0.0001 | AU103: 0 | AV103: 0.0044 | AW103: 0 | AX103: 0 | AY103: 0.0267 | AZ103: 0.0008 | BA103: 0.0103 | BB103: 0.0003 | BC103: 0.0127 | BD103: 0.0003 | BE103: 0 | BF103: 0.0068 | BG103: 0.001 | BH103: 0.0002 | BI103: 0 | BJ103: 0.0045 | BK103: 0 | BL103: 0.0074 | BM103: 57.03 | BN103: 0.11
A104: #55 | B104: Mining Plus | C104: 3794.85 | D104: 995 | E104: 53.8 | F104: 47.68 | G104: 101.48 | H104: 3 | I104: 0 | J104: 0.6 | K104: 9.02 | L104: 0.1 | M104: 19.91 | N104: 0.08 | O104: 0 | P104: 0.0079 | Q104: 3.9527 | R104: 0.0167 | S104: 0 | T104: 0.0013 | U104: 9 | V104: 0.05 | W104: 2.4366 | X104: 0.0123 | Y104: 0.5954 | Z104: 0.0141 | AA104: 0.0447 | AB104: 0.0051 | AC104: 0.0242 | AD104: 0.0034 | AE104: 0.024 | AF104: 0.0022 | AG104: 4.0052 | AH104: 0.0179 | AI104: 0.0124 | AJ104: 0.0017 | AK104: 0.0059 | AL104: 0.0007 | AM104: 0 | AN104: 0.0035 | AO104: 0.008 | AP104: 0.0005 | AQ104: 0 | AR104: 0.0021 | AS104: 0.0323 | AT104: 0.0003 | AU104: 0 | AV104: 0.0048 | AW104: 0 | AX104: 0 | AY104: 0.0278 | AZ104: 0.0009 | BA104: 0.0105 | BB104: 0.0003 | BC104: 0.0132 | BD104: 0.0003 | BE104: 0.0026 | BF104: 0.0005 | BG104: 0.0035 | BH104: 0.0003 | BI104: 0.0035 | BJ104: 0.0002 | BK104: 0.006 | BL104: 0.0007 | BM104: 50.86 | BN104: 0.14
A105: #56 | B105: Mining Plus | C105: 3795.05 | D105: 995 | E105: 53.94 | F105: 48.69 | G105: 102.63 | H105: 3 | I105: 0 | J105: 0.58 | K105: 7.68 | L105: 0.09 | M105: 20.38 | N105: 0.08 | O105: 0.1004 | P105: 0.0064 | Q105: 4.1599 | R105: 0.0174 | S105: 0 | T105: 0.0013 | U105: 8.39 | V105: 0.05 | W105: 3.0762 | X105: 0.014 | Y105: 0.5317 | Z105: 0.0137 | AA105: 0.042 | AB105: 0.005 | AC105: 0.0217 | AD105: 0.0033 | AE105: 0.0222 | AF105: 0.0021 | AG105: 3.0213 | AH105: 0.015 | AI105: 0.0075 | AJ105: 0.0015 | AK105: 0.0054 | AL105: 0.0006 | AM105: 0 | AN105: 0.0036 | AO105: 0.0052 | AP105: 0.0004 | AQ105: 0 | AR105: 0.002 | AS105: 0.0342 | AT105: 0.0003 | AU105: 0 | AV105: 0.0049 | AW105: 0 | AX105: 0 | AY105: 0.028 | AZ105: 0.0009 | BA105: 0.0103 | BB105: 0.0003 | BC105: 0.0127 | BD105: 0.0003 | BE105: 0.0023 | BF105: 0.0004 | BG105: 0.0028 | BH105: 0.0002 | BI105: 0.0037 | BJ105: 0.0002 | BK105: 0.0048 | BL105: 0.0006 | BM105: 52.46 | BN105: 0.14
A106: #57 | B106: Mining Plus | C106: 3795.25 | D106: 995 | E106: 52.99 | F106: 51.05 | G106: 104.04 | H106: 3 | I106: 0 | J106: 0.54 | K106: 0.5741 | L106: 0.0466 | M106: 34.19 | N106: 0.09 | O106: 0.5558 | P106: 0.01 | Q106: 4.578 | R106: 0.0176 | S106: 0 | T106: 0.0009 | U106: 0 | V106: 0.08 | W106: 3.6005 | X106: 0.013 | Y106: 0.0423 | Z106: 0.0058 | AA106: 0.0152 | AB106: 0.0031 | AC106: 0.0102 | AD106: 0.0025 | AE106: 0.0297 | AF106: 0.0019 | AG106: 0.2768 | AH106: 0.0036 | AI106: 0 | AJ106: 0.0021 | AK106: 0.0025 | AL106: 0.0004 | AM106: 0 | AN106: 0.003 | AO106: 0 | AP106: 0.0016 | AQ106: 0 | AR106: 0.0015 | AS106: 0.003 | AT106: 0.0001 | AU106: 0 | AV106: 0.0043 | AW106: 0 | AX106: 0 | AY106: 0.0257 | AZ106: 0.0008 | BA106: 0.0102 | BB106: 0.0003 | BC106: 0.0124 | BD106: 0.0003 | BE106: 0 | BF106: 0.0069 | BG106: 0.001 | BH106: 0.0002 | BI106: 0 | BJ106: 0.0046 | BK106: 0 | BL106: 0.0073 | BM106: 56.07 | BN106: 0.11
A107: #58 | B107: Mining Plus | C107: 3795.45 | D107: 995 | E107: 52.95 | F107: 51.92 | G107: 104.86 | H107: 3 | I107: 0 | J107: 0.6 | K107: 0.7522 | L107: 0.0487 | M107: 36.23 | N107: 0.1 | O107: 0.3101 | P107: 0.0086 | Q107: 3.7301 | R107: 0.0158 | S107: 0 | T107: 0.001 | U107: 0 | V107: 0.09 | W107: 2.311 | X107: 0.01 | Y107: 0.0625 | Z107: 0.0063 | AA107: 0.0148 | AB107: 0.0032 | AC107: 0 | AD107: 0.0066 | AE107: 0.0137 | AF107: 0.0016 | AG107: 0.1614 | AH107: 0.0028 | AI107: 0 | AJ107: 0.0016 | AK107: 0.0021 | AL107: 0.0004 | AM107: 0 | AN107: 0.003 | AO107: 0 | AP107: 0.0016 | AQ107: 0 | AR107: 0.0015 | AS107: 0.0024 | AT107: 0.0001 | AU107: 0 | AV107: 0.0044 | AW107: 0 | AX107: 0 | AY107: 0.0276 | AZ107: 0.0008 | BA107: 0.01 | BB107: 0.0003 | BC107: 0.0127 | BD107: 0.0003 | BE107: 0 | BF107: 0.0068 | BG107: 0.0007 | BH107: 0.0002 | BI107: 0 | BJ107: 0.0045 | BK107: 0 | BL107: 0.0074 | BM107: 56.36 | BN107: 0.11
A108: #59 | B108: Mining Plus | C108: 3795.65 | D108: 995 | E108: 54.06 | F108: 47.31 | G108: 101.37 | H108: 3 | I108: 0 | J108: 0.56 | K108: 4.12 | L108: 0.08 | M108: 19.47 | N108: 0.07 | O108: 1.1331 | P108: 0.0123 | Q108: 6.5596 | R108: 0.0238 | S108: 0 | T108: 0.0012 | U108: 4.4758 | V108: 0.0399 | W108: 8.2728 | X108: 0.0274 | Y108: 0.3174 | Z108: 0.0112 | AA108: 0.036 | AB108: 0.0045 | AC108: 0.0205 | AD108: 0.0032 | AE108: 0.0673 | AF108: 0.0029 | AG108: 1.4619 | AH108: 0.0097 | AI108: 0 | AJ108: 0.0051 | AK108: 0.0051 | AL108: 0.0005 | AM108: 0 | AN108: 0.0037 | AO108: 0 | AP108: 0.0024 | AQ108: 0 | AR108: 0.0025 | AS108: 0.0358 | AT108: 0.0003 | AU108: 0 | AV108: 0.0053 | AW108: 0 | AX108: 0 | AY108: 0.0257 | AZ108: 0.0009 | BA108: 0.0094 | BB108: 0.0003 | BC108: 0.0122 | BD108: 0.0003 | BE108: 0 | BF108: 0.0078 | BG108: 0.0046 | BH108: 0.0003 | BI108: 0.0016 | BJ108: 0.0002 | BK108: 0 | BL108: 0.0095 | BM108: 53.97 | BN108: 0.14
A109: #60 | B109: Mining Plus | C109: 3795.85 | D109: 994 | E109: 53.79 | F109: 49.6 | G109: 103.38 | H109: 3 | I109: 0 | J109: 0.56 | K109: 3.19 | L109: 0.07 | M109: 27.73 | N109: 0.09 | O109: 0.9935 | P109: 0.0123 | Q109: 4.9087 | R109: 0.0193 | S109: 0 | T109: 0.0011 | U109: 3.2382 | V109: 0.0399 | W109: 5.3215 | X109: 0.0187 | Y109: 0.1541 | Z109: 0.0086 | AA109: 0.0252 | AB109: 0.0039 | AC109: 0.0203 | AD109: 0.0031 | AE109: 0.0345 | AF109: 0.0022 | AG109: 0.626 | AH109: 0.006 | AI109: 0 | AJ109: 0.0033 | AK109: 0.0037 | AL109: 0.0005 | AM109: 0 | AN109: 0.0035 | AO109: 0 | AP109: 0.002 | AQ109: 0 | AR109: 0.0019 | AS109: 0.0307 | AT109: 0.0003 | AU109: 0 | AV109: 0.0051 | AW109: 0 | AX109: 0 | AY109: 0.0268 | AZ109: 0.0008 | BA109: 0.0101 | BB109: 0.0003 | BC109: 0.0131 | BD109: 0.0003 | BE109: 0 | BF109: 0.0072 | BG109: 0.0023 | BH109: 0.0002 | BI109: 0.0012 | BJ109: 0.0002 | BK109: 0 | BL109: 0.0086 | BM109: 53.67 | BN109: 0.13
A110: #61 | B110: Mining Plus | C110: 3796.05 | D110: 994 | E110: 54.29 | F110: 47.03 | G110: 101.33 | H110: 3 | I110: 0 | J110: 0.54 | K110: 1.67 | L110: 0.06 | M110: 23.46 | N110: 0.08 | O110: 3.9625 | P110: 0.023 | Q110: 5.7509 | R110: 0.0218 | S110: 0 | T110: 0.001 | U110: 0 | V110: 0.1 | W110: 11.4964 | X110: 0.0353 | Y110: 0.0765 | Z110: 0.0072 | AA110: 0.0184 | AB110: 0.0035 | AC110: 0.0182 | AD110: 0.0031 | AE110: 0.0639 | AF110: 0.0028 | AG110: 0.9679 | AH110: 0.0078 | AI110: 0 | AJ110: 0.0044 | AK110: 0.0038 | AL110: 0.0005 | AM110: 0.0033 | AN110: 0.0006 | AO110: 0 | AP110: 0.0022 | AQ110: 0.0021 | AR110: 0.0002 | AS110: 0.0165 | AT110: 0.0002 | AU110: 0 | AV110: 0.0051 | AW110: 0 | AX110: 0 | AY110: 0.0242 | AZ110: 0.0009 | BA110: 0.0094 | BB110: 0.0003 | BC110: 0.0112 | BD110: 0.0003 | BE110: 0 | BF110: 0.0081 | BG110: 0.0052 | BH110: 0.0003 | BI110: 0 | BJ110: 0.006 | BK110: 0 | BL110: 0.0094 | BM110: 52.44 | BN110: 0.13
A111: #62 | B111: Mining Plus | C111: 3796.25 | D111: 994 | E111: 53.72 | F111: 49.28 | G111: 103 | H111: 3 | I111: 0 | J111: 0.58 | K111: 4.81 | L111: 0.08 | M111: 28.38 | N111: 0.09 | O111: 0.8998 | P111: 0.0116 | Q111: 3.1918 | R111: 0.0144 | S111: 0 | T111: 0.0011 | U111: 5.2308 | V111: 0.0442 | W111: 3.5338 | X111: 0.0143 | Y111: 0.3504 | Z111: 0.0114 | AA111: 0.0314 | AB111: 0.0044 | AC111: 0.0194 | AD111: 0.0031 | AE111: 0.023 | AF111: 0.002 | AG111: 1.6856 | AH111: 0.0101 | AI111: 0 | AJ111: 0.0051 | AK111: 0.004 | AL111: 0.0005 | AM111: 0 | AN111: 0.0033 | AO111: 0.0036 | AP111: 0.0004 | AQ111: 0 | AR111: 0.0018 | AS111: 0.0145 | AT111: 0.0002 | AU111: 0 | AV111: 0.0047 | AW111: 0 | AX111: 0 | AY111: 0.0283 | AZ111: 0.0009 | BA111: 0.0102 | BB111: 0.0003 | BC111: 0.0133 | BD111: 0.0003 | BE111: 0.0023 | BF111: 0.0004 | BG111: 0.0016 | BH111: 0.0002 | BI111: 0.0019 | BJ111: 0.0002 | BK111: 0.0028 | BL111: 0.0005 | BM111: 51.76 | BN111: 0.13
A112: #63 | B112: Mining Plus | C112: 3796.45 | D112: 994 | E112: 54.09 | F112: 49.87 | G112: 103.96 | H112: 3 | I112: 0 | J112: 0.51 | K112: 5.12 | L112: 0.08 | M112: 29.22 | N112: 0.09 | O112: 0.9011 | P112: 0.0116 | Q112: 2.0895 | R112: 0.0113 | S112: 0 | T112: 0.001 | U112: 8.7079 | V112: 0.0497 | W112: 3.2684 | X112: 0.0142 | Y112: 0.1554 | Z112: 0.0089 | AA112: 0.0316 | AB112: 0.0042 | AC112: 0.0094 | AD112: 0.0029 | AE112: 0.0205 | AF112: 0.002 | AG112: 1.1448 | AH112: 0.0084 | AI112: 0 | AJ112: 0.0043 | AK112: 0.003 | AL112: 0.0005 | AM112: 0 | AN112: 0.0034 | AO112: 0 | AP112: 0.0021 | AQ112: 0 | AR112: 0.002 | AS112: 0.0284 | AT112: 0.0003 | AU112: 0 | AV112: 0.0052 | AW112: 0 | AX112: 0 | AY112: 0.028 | AZ112: 0.0009 | BA112: 0.0106 | BB112: 0.0003 | BC112: 0.0128 | BD112: 0.0003 | BE112: 0 | BF112: 0.0079 | BG112: 0.0026 | BH112: 0.0002 | BI112: 0.0015 | BJ112: 0.0002 | BK112: 0 | BL112: 0.0088 | BM112: 49.25 | BN112: 0.13
A113: #64 | B113: Mining Plus | C113: 3796.65 | D113: 994 | E113: 54.49 | F113: 50.95 | G113: 105.44 | H113: 3 | I113: 0 | J113: 0.71 | K113: 6.74 | L113: 0.1 | M113: 22.68 | N113: 0.09 | O113: 0.4469 | P113: 0.0091 | Q113: 1.361 | R113: 0.0094 | S113: 0 | T113: 0.0013 | U113: 8.66 | V113: 0.05 | W113: 2.0071 | X113: 0.0118 | Y113: 0.3982 | Z113: 0.0129 | AA113: 0.0285 | AB113: 0.0048 | AC113: 0.0267 | AD113: 0.0036 | AE113: 0.0348 | AF113: 0.0025 | AG113: 2.3137 | AH113: 0.0134 | AI113: 0 | AJ113: 0.0063 | AK113: 0.0042 | AL113: 0.0006 | AM113: 0 | AN113: 0.0036 | AO113: 0.0045 | AP113: 0.0004 | AQ113: 0 | AR113: 0.002 | AS113: 0.0199 | AT113: 0.0002 | AU113: 0 | AV113: 0.0051 | AW113: 0 | AX113: 0 | AY113: 0.0272 | AZ113: 0.001 | BA113: 0.01 | BB113: 0.0003 | BC113: 0.0135 | BD113: 0.0004 | BE113: 0 | BF113: 0.008 | BG113: 0.0021 | BH113: 0.0002 | BI113: 0.003 | BJ113: 0.0002 | BK113: 0.0039 | BL113: 0.0006 | BM113: 55.21 | BN113: 0.15
A114: #65 | B114: Mining Plus | C114: 3796.85 | D114: 994 | E114: 54.34 | F114: 51.68 | G114: 106.02 | H114: 3 | I114: 0 | J114: 0.58 | K114: 5.13 | L114: 0.08 | M114: 30.4 | N114: 0.1 | O114: 0.1373 | P114: 0.0068 | Q114: 0.4585 | R114: 0.0059 | S114: 0 | T114: 0.0011 | U114: 9.27 | V114: 0.05 | W114: 1.0213 | X114: 0.0093 | Y114: 0.1774 | Z114: 0.0095 | AA114: 0.0253 | AB114: 0.0042 | AC114: 0.0134 | AD114: 0.0031 | AE114: 0.038 | AF114: 0.0024 | AG114: 0.8916 | AH114: 0.0075 | AI114: 0 | AJ114: 0.0038 | AK114: 0.0015 | AL114: 0.0004 | AM114: 0.0105 | AN114: 0.0008 | AO114: 0 | AP114: 0.0021 | AQ114: 0 | AR114: 0.0017 | AS114: 0.0194 | AT114: 0.0002 | AU114: 0 | AV114: 0.0051 | AW114: 0 | AX114: 0 | AY114: 0.0275 | AZ114: 0.0009 | BA114: 0.0103 | BB114: 0.0003 | BC114: 0.0129 | BD114: 0.0003 | BE114: 0 | BF114: 0.0075 | BG114: 0.0012 | BH114: 0.0002 | BI114: 0 | BJ114: 0.0055 | BK114: 0 | BL114: 0.0098 | BM114: 52.35 | BN114: 0.14
A115: #66 | B115: Mining Plus | C115: 3797.05 | D115: 994 | E115: 53.11 | F115: 53.5 | G115: 106.62 | H115: 3 | I115: 0 | J115: 0.65 | K115: 0.3587 | L115: 0.047 | M115: 39.18 | N115: 0.11 | O115: 0 | P115: 0.0074 | Q115: 1.9255 | R115: 0.0112 | S115: 0 | T115: 0.0012 | U115: 0 | V115: 0.09 | W115: 0.3479 | X115: 0.0054 | Y115: 0.0294 | Z115: 0.0057 | AA115: 0.0158 | AB115: 0.0032 | AC115: 0 | AD115: 0.0064 | AE115: 0.0072 | AF115: 0.0014 | AG115: 0.2273 | AH115: 0.0034 | AI115: 0 | AJ115: 0.0018 | AK115: 0 | AL115: 0.0017 | AM115: 0 | AN115: 0.003 | AO115: 0 | AP115: 0.0016 | AQ115: 0 | AR115: 0.0011 | AS115: 0.0012 | AT115: 0.0001 | AU115: 0 | AV115: 0.0043 | AW115: 0 | AX115: 0 | AY115: 0.0265 | AZ115: 0.0008 | BA115: 0.0097 | BB115: 0.0003 | BC115: 0.0125 | BD115: 0.0003 | BE115: 0.0018 | BF115: 0.0004 | BG115: 0 | BH115: 0.0044 | BI115: 0 | BJ115: 0.0043 | BK115: 0 | BL115: 0.0071 | BM115: 57.85 | BN115: 0.11
A116: #67 | B116: Mining Plus | C116: 3797.25 | D116: 994 | E116: 54.51 | F116: 50.84 | G116: 105.35 | H116: 3 | I116: 0 | J116: 0.79 | K116: 10.43 | L116: 0.11 | M116: 22.28 | N116: 0.09 | O116: 0 | P116: 0.0068 | Q116: 0.0491 | R116: 0.0039 | S116: 0 | T116: 0.0015 | U116: 9.29 | V116: 0.06 | W116: 0 | X116: 0.0273 | Y116: 0.5231 | Z116: 0.0143 | AA116: 0.0313 | AB116: 0.005 | AC116: 0.0302 | AD116: 0.0037 | AE116: 0.0255 | AF116: 0.0023 | AG116: 3.6175 | AH116: 0.018 | AI116: 0.0093 | AJ116: 0.0017 | AK116: 0.0047 | AL116: 0.0007 | AM116: 0 | AN116: 0.0038 | AO116: 0.0062 | AP116: 0.0005 | AQ116: 0 | AR116: 0.0017 | AS116: 0.0196 | AT116: 0.0002 | AU116: 0 | AV116: 0.0049 | AW116: 0 | AX116: 0 | AY116: 0.0264 | AZ116: 0.001 | BA116: 0.0107 | BB116: 0.0003 | BC116: 0.0144 | BD116: 0.0004 | BE116: 0.0025 | BF116: 0.0005 | BG116: 0.0008 | BH116: 0.0002 | BI116: 0.0032 | BJ116: 0.0002 | BK116: 0.0052 | BL116: 0.0007 | BM116: 53.62 | BN116: 0.15
A117: #68 | B117: Mining Plus | C117: 3797.45 | D117: 994 | E117: 54 | F117: 49.56 | G117: 103.56 | H117: 3 | I117: 0 | J117: 0.6 | K117: 8.88 | L117: 0.1 | M117: 24.68 | N117: 0.09 | O117: 0.1586 | P117: 0.0066 | Q117: 1.0812 | R117: 0.008 | S117: 0 | T117: 0.0012 | U117: 10.59 | V117: 0.06 | W117: 0.9289 | X117: 0.0092 | Y117: 0.4966 | Z117: 0.0135 | AA117: 0.0291 | AB117: 0.0048 | AC117: 0.0254 | AD117: 0.0034 | AE117: 0.0217 | AF117: 0.0021 | AG117: 2.5817 | AH117: 0.0136 | AI117: 0 | AJ117: 0.0063 | AK117: 0.0047 | AL117: 0.0006 | AM117: 0 | AN117: 0.0035 | AO117: 0.0058 | AP117: 0.0004 | AQ117: 0 | AR117: 0.0018 | AS117: 0.0234 | AT117: 0.0002 | AU117: 0 | AV117: 0.0049 | AW117: 0 | AX117: 0 | AY117: 0.0273 | AZ117: 0.0009 | BA117: 0.0102 | BB117: 0.0003 | BC117: 0.0123 | BD117: 0.0003 | BE117: 0 | BF117: 0.0079 | BG117: 0.0016 | BH117: 0.0002 | BI117: 0.0032 | BJ117: 0.0002 | BK117: 0.0048 | BL117: 0.0006 | BM117: 50.44 | BN117: 0.14
A118: #69 | B118: Mining Plus | C118: 3797.65 | D118: 994 | E118: 54.17 | F118: 46.29 | G118: 100.46 | H118: 3 | I118: 0 | J118: 0.56 | K118: 3.2 | L118: 0.07 | M118: 22.54 | N118: 0.08 | O118: 0.8622 | P118: 0.0116 | Q118: 2.3283 | R118: 0.0119 | S118: 0 | T118: 0.0009 | U118: 3.7986 | V118: 0.0366 | W118: 11.2582 | X118: 0.0358 | Y118: 0.1674 | Z118: 0.0092 | AA118: 0.0312 | AB118: 0.0042 | AC118: 0 | AD118: 0.0088 | AE118: 0.2347 | AF118: 0.005 | AG118: 2.4547 | AH118: 0.0134 | AI118: 0 | AJ118: 0.0064 | AK118: 0.0034 | AL118: 0.0006 | AM118: 0.004 | AN118: 0.0007 | AO118: 0 | AP118: 0.002 | AQ118: 0 | AR118: 0.0024 | AS118: 0.0275 | AT118: 0.0003 | AU118: 0 | AV118: 0.0051 | AW118: 0 | AX118: 0 | AY118: 0.0274 | AZ118: 0.0009 | BA118: 0.0102 | BB118: 0.0003 | BC118: 0.0134 | BD118: 0.0003 | BE118: 0 | BF118: 0.0076 | BG118: 0.0045 | BH118: 0.0003 | BI118: 0.0017 | BJ118: 0.0002 | BK118: 0 | BL118: 0.0091 | BM118: 53.04 | BN118: 0.14
A119: #70 | B119: Mining Plus | C119: 3797.85 | D119: 994 | E119: 54.44 | F119: 50.86 | G119: 105.3 | H119: 3 | I119: 0 | J119: 0.81 | K119: 9.94 | L119: 0.11 | M119: 20.76 | N119: 0.09 | O119: 0 | P119: 0.0076 | Q119: 0.1011 | R119: 0.004 | S119: 0 | T119: 0.0016 | U119: 8.79 | V119: 0.06 | W119: 0 | X119: 0.0288 | Y119: 0.5438 | Z119: 0.0142 | AA119: 0.0378 | AB119: 0.0051 | AC119: 0.0333 | AD119: 0.0037 | AE119: 0.0258 | AF119: 0.0023 | AG119: 3.8904 | AH119: 0.0189 | AI119: 0.0097 | AJ119: 0.0017 | AK119: 0.0055 | AL119: 0.0007 | AM119: 0 | AN119: 0.0038 | AO119: 0.0076 | AP119: 0.0005 | AQ119: 0 | AR119: 0.0018 | AS119: 0.0186 | AT119: 0.0002 | AU119: 0 | AV119: 0.0048 | AW119: 0 | AX119: 0 | AY119: 0.0274 | AZ119: 0.001 | BA119: 0.0108 | BB119: 0.0003 | BC119: 0.0134 | BD119: 0.0004 | BE119: 0 | BF119: 0.0078 | BG119: 0.0017 | BH119: 0.0002 | BI119: 0.0034 | BJ119: 0.0002 | BK119: 0.006 | BL119: 0.0007 | BM119: 55.77 | BN119: 0.15
A120: #71 | B120: Mining Plus | C120: 3798.05 | D120: 994 | E120: 53.84 | F120: 49.88 | G120: 103.71 | H120: 3 | I120: 0 | J120: 0.51 | K120: 7.58 | L120: 0.09 | M120: 29.47 | N120: 0.09 | O120: 0.0445 | P120: 0.0056 | Q120: 0.923 | R120: 0.0074 | S120: 0 | T120: 0.0011 | U120: 11.29 | V120: 0.06 | W120: 0.6023 | X120: 0.0087 | Y120: 0.4176 | Z120: 0.0126 | AA120: 0.0379 | AB120: 0.0048 | AC120: 0.0214 | AD120: 0.0033 | AE120: 0.0224 | AF120: 0.0021 | AG120: 1.6972 | AH120: 0.0103 | AI120: 0.0068 | AJ120: 0.0012 | AK120: 0.0029 | AL120: 0.0005 | AM120: 0 | AN120: 0.0034 | AO120: 0.0027 | AP120: 0.0004 | AQ120: 0 | AR120: 0.0017 | AS120: 0.0264 | AT120: 0.0003 | AU120: 0 | AV120: 0.005 | AW120: 0 | AX120: 0 | AY120: 0.0277 | AZ120: 0.0009 | BA120: 0.0107 | BB120: 0.0003 | BC120: 0.0135 | BD120: 0.0003 | BE120: 0 | BF120: 0.0077 | BG120: 0.0014 | BH120: 0.0002 | BI120: 0.0023 | BJ120: 0.0002 | BK120: 0.0044 | BL120: 0.0006 | BM120: 47.8 | BN120: 0.13
A121: #72 | B121: Mining Plus | C121: 3798.25 | D121: 995 | E121: 54.28 | F121: 48.06 | G121: 102.33 | H121: 3 | I121: 0 | J121: 0.56 | K121: 3.73 | L121: 0.08 | M121: 22.42 | N121: 0.08 | O121: 2.16 | P121: 0.0167 | Q121: 4.5477 | R121: 0.0184 | S121: 0 | T121: 0.0011 | U121: 5.3916 | V121: 0.0421 | W121: 8.1413 | X121: 0.027 | Y121: 0.1682 | Z121: 0.0092 | AA121: 0.0272 | AB121: 0.0041 | AC121: 0.0178 | AD121: 0.0032 | AE121: 0.0435 | AF121: 0.0025 | AG121: 1.0882 | AH121: 0.0083 | AI121: 0.0049 | AJ121: 0.001 | AK121: 0.0032 | AL121: 0.0005 | AM121: 0.0035 | AN121: 0.0006 | AO121: 0 | AP121: 0.0023 | AQ121: 0 | AR121: 0.0027 | AS121: 0.0194 | AT121: 0.0002 | AU121: 0 | AV121: 0.0052 | AW121: 0 | AX121: 0 | AY121: 0.0269 | AZ121: 0.0009 | BA121: 0.0101 | BB121: 0.0003 | BC121: 0.0126 | BD121: 0.0003 | BE121: 0.0026 | BF121: 0.0004 | BG121: 0.0058 | BH121: 0.0003 | BI121: 0.0016 | BJ121: 0.0002 | BK121: 0 | BL121: 0.009 | BM121: 52.17 | BN121: 0.14
A122: #73 | B122: Mining Plus | C122: 3798.45 | D122: 995 | E122: 53.73 | F122: 49.05 | G122: 102.78 | H122: 3 | I122: 0 | J122: 0.56 | K122: 0.89 | L122: 0.05 | M122: 29.12 | N122: 0.09 | O122: 1.0384 | P122: 0.0125 | Q122: 5.8997 | R122: 0.0215 | S122: 0 | T122: 0.001 | U122: 0 | V122: 0.09 | W122: 6.655 | X122: 0.0214 | Y122: 0.0422 | Z122: 0.0061 | AA122: 0.0146 | AB122: 0.0031 | AC122: 0.0135 | AD122: 0.0027 | AE122: 0.0601 | AF122: 0.0026 | AG122: 1.1385 | AH122: 0.0079 | AI122: 0.0066 | AJ122: 0.0009 | AK122: 0.0036 | AL122: 0.0005 | AM122: 0.0038 | AN122: 0.0006 | AO122: 0 | AP122: 0.0018 | AQ122: 0.0026 | AR122: 0.0002 | AS122: 0.0066 | AT122: 0.0001 | AU122: 0 | AV122: 0.0046 | AW122: 0 | AX122: 0 | AY122: 0.0256 | AZ122: 0.0008 | BA122: 0.0098 | BB122: 0.0003 | BC122: 0.0122 | BD122: 0.0003 | BE122: 0 | BF122: 0.0072 | BG122: 0.0052 | BH122: 0.0003 | BI122: 0 | BJ122: 0.0052 | BK122: 0 | BL122: 0.008 | BM122: 55.05 | BN122: 0.12
A123: #74 | B123: Mining Plus | C123: 3799.05 | D123: 995 | E123: 53.45 | F123: 48.78 | G123: 102.23 | H123: 3 | I123: 0 | J123: 0.58 | K123: 2.15 | L123: 0.06 | M123: 26.43 | N123: 0.09 | O123: 1.0043 | P123: 0.0123 | Q123: 5.9904 | R123: 0.0222 | S123: 0 | T123: 0.0011 | U123: 0.5763 | V123: 0.0344 | W123: 6.8506 | X123: 0.0225 | Y123: 0.1493 | Z123: 0.0083 | AA123: 0.0173 | AB123: 0.0036 | AC123: 0.0088 | AD123: 0.0027 | AE123: 0.0627 | AF123: 0.0027 | AG123: 0.6769 | AH123: 0.0061 | AI123: 0 | AJ123: 0.0033 | AK123: 0.0026 | AL123: 0.0004 | AM123: 0 | AN123: 0.0035 | AO123: 0 | AP123: 0.002 | AQ123: 0 | AR123: 0.0018 | AS123: 0.0555 | AT123: 0.0003 | AU123: 0 | AV123: 0.0054 | AW123: 0 | AX123: 0 | AY123: 0.0268 | AZ123: 0.0008 | BA123: 0.0097 | BB123: 0.0003 | BC123: 0.013 | BD123: 0.0003 | BE123: 0 | BF123: 0.0072 | BG123: 0.0018 | BH123: 0.0002 | BI123: 0 | BJ123: 0.0055 | BK123: 0 | BL123: 0.0085 | BM123: 55.97 | BN123: 0.13
A124: #75 | B124: Mining Plus | C124: 3799.25 | D124: 995 | E124: 53.73 | F124: 47.33 | G124: 101.07 | H124: 3 | I124: 0 | J124: 0.61 | K124: 6.33 | L124: 0.09 | M124: 17.58 | N124: 0.07 | O124: 0.1611 | P124: 0.0069 | Q124: 5.8768 | R124: 0.022 | S124: 0 | T124: 0.0013 | U124: 6.4521 | V124: 0.0441 | W124: 4.9057 | X124: 0.0185 | Y124: 0.6015 | Z124: 0.014 | AA124: 0.0496 | AB124: 0.0051 | AC124: 0.0296 | AD124: 0.0035 | AE124: 0.0288 | AF124: 0.0022 | AG124: 2.9244 | AH124: 0.0145 | AI124: 0 | AJ124: 0.0068 | AK124: 0.0049 | AL124: 0.0006 | AM124: 0 | AN124: 0.0035 | AO124: 0.0056 | AP124: 0.0004 | AQ124: 0 | AR124: 0.002 | AS124: 0.0352 | AT124: 0.0003 | AU124: 0 | AV124: 0.0049 | AW124: 0 | AX124: 0 | AY124: 0.0246 | AZ124: 0.0009 | BA124: 0.0099 | BB124: 0.0003 | BC124: 0.0126 | BD124: 0.0003 | BE124: 0.0024 | BF124: 0.0004 | BG124: 0.0027 | BH124: 0.0002 | BI124: 0.0035 | BJ124: 0.0002 | BK124: 0.0058 | BL124: 0.0006 | BM124: 54.95 | BN124: 0.14
A125: #2 | B125: Mining Plus | C125: 3800.05 | D125: 993 | E125: 53.77 | F125: 48.51 | G125: 102.27 | H125: 3 | I125: 0 | J125: 0.54 | K125: 0.5099 | L125: 0.0498 | M125: 29.28 | N125: 0.09 | O125: 1.914 | P125: 0.0163 | Q125: 4.7546 | R125: 0.0186 | S125: 0 | T125: 0.0009 | U125: 0 | V125: 0.08 | W125: 8.3491 | X125: 0.0256 | Y125: 0.0488 | Z125: 0.0063 | AA125: 0.0145 | AB125: 0.0032 | AC125: 0 | AD125: 0.0076 | AE125: 0.0895 | AF125: 0.0031 | AG125: 1.0341 | AH125: 0.0076 | AI125: 0.0055 | AJ125: 0.0009 | AK125: 0.0039 | AL125: 0.0005 | AM125: 0.0041 | AN125: 0.0006 | AO125: 0 | AP125: 0.0018 | AQ125: 0 | AR125: 0.0024 | AS125: 0.007 | AT125: 0.0001 | AU125: 0 | AV125: 0.0047 | AW125: 0 | AX125: 0 | AY125: 0.0248 | AZ125: 0.0008 | BA125: 0.009 | BB125: 0.0003 | BC125: 0.0123 | BD125: 0.0003 | BE125: 0 | BF125: 0.0074 | BG125: 0.005 | BH125: 0.0003 | BI125: 0.0012 | BJ125: 0.0002 | BK125: 0 | BL125: 0.0086 | BM125: 53.93 | BN125: 0.12
A126: #3 | B126: Mining Plus | C126: =C125+0.2 -> 3800.25 | D126: 993 | E126: 53.85 | F126: 48.48 | G126: 102.33 | H126: 3 | I126: 0 | J126: 0.6 | K126: 7.7 | L126: 0.09 | M126: 21.21 | N126: 0.08 | O126: 0.4082 | P126: 0.0086 | Q126: 3.882 | R126: 0.0164 | S126: 0 | T126: 0.0012 | U126: 7.888 | V126: 0.0489 | W126: 3.3573 | X126: 0.0144 | Y126: 0.4642 | Z126: 0.0128 | AA126: 0.0418 | AB126: 0.0048 | AC126: 0.0211 | AD126: 0.0032 | AE126: 0.0255 | AF126: 0.0021 | AG126: 2.5646 | AH126: 0.0133 | AI126: 0.0084 | AJ126: 0.0014 | AK126: 0.0037 | AL126: 0.0006 | AM126: 0 | AN126: 0.0034 | AO126: 0.006 | AP126: 0.0004 | AQ126: 0 | AR126: 0.0019 | AS126: 0.0173 | AT126: 0.0002 | AU126: 0 | AV126: 0.0047 | AW126: 0 | AX126: 0 | AY126: 0.0254 | AZ126: 0.0009 | BA126: 0.0097 | BB126: 0.0003 | BC126: 0.0122 | BD126: 0.0003 | BE126: 0.0024 | BF126: 0.0004 | BG126: 0.003 | BH126: 0.0002 | BI126: 0.0031 | BJ126: 0.0002 | BK126: 0.0055 | BL126: 0.0006 | BM126: 52.34 | BN126: 0.14
A127: #4 | B127: Mining Plus | C127: 3800.45 | D127: 993 | E127: 53.81 | F127: 48 | G127: 101.81 | H127: 3 | I127: 0 | J127: 0.55 | K127: 4.15 | L127: 0.08 | M127: 25.04 | N127: 0.08 | O127: 1.6089 | P127: 0.0147 | Q127: 4.9921 | R127: 0.0193 | S127: 0 | T127: 0.001 | U127: 4.174 | V127: 0.0412 | W127: 6.7689 | X127: 0.0225 | Y127: 0.2181 | Z127: 0.0097 | AA127: 0.0293 | AB127: 0.0041 | AC127: 0.0142 | AD127: 0.003 | AE127: 0.0555 | AF127: 0.0026 | AG127: 1.432 | AH127: 0.0093 | AI127: 0.0079 | AJ127: 0.0011 | AK127: 0.0037 | AL127: 0.0005 | AM127: 0 | AN127: 0.0037 | AO127: 0 | AP127: 0.0022 | AQ127: 0 | AR127: 0.0025 | AS127: 0.0189 | AT127: 0.0002 | AU127: 0 | AV127: 0.005 | AW127: 0 | AX127: 0 | AY127: 0.0266 | AZ127: 0.0009 | BA127: 0.0097 | BB127: 0.0003 | BC127: 0.0125 | BD127: 0.0003 | BE127: 0 | BF127: 0.0076 | BG127: 0.0051 | BH127: 0.0003 | BI127: 0.0022 | BJ127: 0.0002 | BK127: 0.003 | BL127: 0.0006 | BM127: 51.43 | BN127: 0.13
A128: #5 | B128: Mining Plus | C128: 3800.65 | D128: 993 | E128: 54.57 | F128: 43.43 | G128: 98 | H128: 3 | I128: 0 | J128: 0.49 | K128: 0.96 | L128: 0.06 | M128: 14.89 | N128: 0.06 | O128: 4.2471 | P128: 0.0236 | Q128: 6.4132 | R128: 0.0243 | S128: 0 | T128: 0.0009 | U128: 0 | V128: 0.07 | W128: 18.52 | X128: 0.06 | Y128: 0.0813 | Z128: 0.0078 | AA128: 0.023 | AB128: 0.0038 | AC128: 0.0151 | AD128: 0.0032 | AE128: 0.2379 | AF128: 0.0053 | AG128: 2.1702 | AH128: 0.013 | AI128: 0.0072 | AJ128: 0.0014 | AK128: 0.0075 | AL128: 0.0007 | AM128: 0.0067 | AN128: 0.0007 | AO128: 0 | AP128: 0.0024 | AQ128: 0 | AR128: 0.0033 | AS128: 0.0236 | AT128: 0.0003 | AU128: 0 | AV128: 0.0054 | AW128: 0 | AX128: 0 | AY128: 0.0243 | AZ128: 0.0009 | BA128: 0.0091 | BB128: 0.0003 | BC128: 0.0116 | BD128: 0.0003 | BE128: 0.0023 | BF128: 0.0004 | BG128: 0.0089 | BH128: 0.0004 | BI128: 0.0015 | BJ128: 0.0002 | BK128: 0 | BL128: 0.0102 | BM128: 52.34 | BN128: 0.14
A129: #6 | B129: Mining Plus | C129: 3800.85 | D129: 993 | E129: 54.42 | F129: 47.77 | G129: 102.18 | H129: 3 | I129: 0 | J129: 0.57 | K129: 4.25 | L129: 0.08 | M129: 23.83 | N129: 0.08 | O129: 1.9354 | P129: 0.0163 | Q129: 4.1414 | R129: 0.0174 | S129: 0 | T129: 0.0011 | U129: 5.0856 | V129: 0.0429 | W129: 7.53 | X129: 0.0253 | Y129: 0.2448 | Z129: 0.0104 | AA129: 0.0245 | AB129: 0.0042 | AC129: 0.0198 | AD129: 0.0032 | AE129: 0.0632 | AF129: 0.0029 | AG129: 1.8419 | AH129: 0.0112 | AI129: 0 | AJ129: 0.0057 | AK129: 0.0056 | AL129: 0.0006 | AM129: 0 | AN129: 0.0037 | AO129: 0 | AP129: 0.0023 | AQ129: 0 | AR129: 0.0021 | AS129: 0.0292 | AT129: 0.0003 | AU129: 0 | AV129: 0.0053 | AW129: 0 | AX129: 0 | AY129: 0.0203 | AZ129: 0.0009 | BA129: 0.0081 | BB129: 0.0003 | BC129: 0.0101 | BD129: 0.0003 | BE129: 0 | BF129: 0.0078 | BG129: 0.0032 | BH129: 0.0002 | BI129: 0.0018 | BJ129: 0.0002 | BK129: 0.0039 | BL129: 0.0006 | BM129: 50.95 | BN129: 0.14
A130: #7 | B130: Mining Plus | C130: 3801.05 | D130: 993 | E130: 53.54 | F130: 49.26 | G130: 102.8 | H130: 3 | I130: 0 | J130: 0.6 | K130: 2.36 | L130: 0.06 | M130: 29.29 | N130: 0.09 | O130: 1.2088 | P130: 0.0134 | Q130: 5.6785 | R130: 0.0212 | S130: 0 | T130: 0.0011 | U130: 0 | V130: 0.12 | W130: 5.4709 | X130: 0.0184 | Y130: 0.0891 | Z130: 0.0071 | AA130: 0.0203 | AB130: 0.0034 | AC130: 0.0158 | AD130: 0.0028 | AE130: 0.0268 | AF130: 0.002 | AG130: 0.9917 | AH130: 0.0073 | AI130: 0.0042 | AJ130: 0.0008 | AK130: 0.0022 | AL130: 0.0004 | AM130: 0.0034 | AN130: 0.0006 | AO130: 0 | AP130: 0.0018 | AQ130: 0 | AR130: 0.0021 | AS130: 0.0067 | AT130: 0.0001 | AU130: 0 | AV130: 0.0046 | AW130: 0 | AX130: 0 | AY130: 0.0273 | AZ130: 0.0008 | BA130: 0.0094 | BB130: 0.0003 | BC130: 0.013 | BD130: 0.0003 | BE130: 0 | BF130: 0.0071 | BG130: 0.0041 | BH130: 0.0002 | BI130: 0.0013 | BJ130: 0.0002 | BK130: 0 | BL130: 0.0082 | BM130: 54.77 | BN130: 0.12
A131: #8 | B131: Mining Plus | C131: 3801.25 | D131: 993 | E131: 53.92 | F131: 49.45 | G131: 103.37 | H131: 3 | I131: 0 | J131: 0.65 | K131: 8.67 | L131: 0.1 | M131: 22.23 | N131: 0.08 | O131: 0.3402 | P131: 0.0081 | Q131: 2.1795 | R131: 0.0117 | S131: 0 | T131: 0.0013 | U131: 8.37 | V131: 0.05 | W131: 1.9713 | X131: 0.0111 | Y131: 0.5145 | Z131: 0.0135 | AA131: 0.0437 | AB131: 0.005 | AC131: 0.0302 | AD131: 0.0035 | AE131: 0.0281 | AF131: 0.0022 | AG131: 2.8211 | AH131: 0.0144 | AI131: 0.0081 | AJ131: 0.0015 | AK131: 0.0046 | AL131: 0.0006 | AM131: 0 | AN131: 0.0036 | AO131: 0.0062 | AP131: 0.0005 | AQ131: 0 | AR131: 0.0019 | AS131: 0.0254 | AT131: 0.0003 | AU131: 0 | AV131: 0.0048 | AW131: 0 | AX131: 0 | AY131: 0.0272 | AZ131: 0.0009 | BA131: 0.0099 | BB131: 0.0003 | BC131: 0.013 | BD131: 0.0003 | BE131: 0.0029 | BF131: 0.0005 | BG131: 0.0028 | BH131: 0.0002 | BI131: 0.0036 | BJ131: 0.0002 | BK131: 0.0067 | BL131: 0.0007 | BM131: 52.69 | BN131: 0.14
A132: #9 | B132: Mining Plus | C132: 3801.45 | D132: 993 | E132: 54.67 | F132: 45.06 | G132: 99.73 | H132: 3 | I132: 0 | J132: 0.55 | K132: 0.93 | L132: 0.06 | M132: 20.15 | N132: 0.08 | O132: 2.2449 | P132: 0.0177 | Q132: 7.1291 | R132: 0.0267 | S132: 0 | T132: 0.001 | U132: 0 | V132: 0.08 | W132: 13.6008 | X132: 0.0438 | Y132: 0.049 | Z132: 0.0073 | AA132: 0.0217 | AB132: 0.0036 | AC132: 0.0112 | AD132: 0.0032 | AE132: 0.2411 | AF132: 0.0052 | AG132: 3.9791 | AH132: 0.0188 | AI132: 0.0092 | AJ132: 0.0018 | AK132: 0.0051 | AL132: 0.0007 | AM132: 0.0066 | AN132: 0.0008 | AO132: 0 | AP132: 0.0022 | AQ132: 0 | AR132: 0.0031 | AS132: 0.0145 | AT132: 0.0002 | AU132: 0 | AV132: 0.005 | AW132: 0 | AX132: 0 | AY132: 0.0214 | AZ132: 0.0009 | BA132: 0.0084 | BB132: 0.0003 | BC132: 0.0108 | BD132: 0.0003 | BE132: 0.0023 | BF132: 0.0005 | BG132: 0.0097 | BH132: 0.0004 | BI132: 0.0019 | BJ132: 0.0002 | BK132: 0 | BL132: 0.0099 | BM132: 51.55 | BN132: 0.15
A133: #10 | B133: Mining Plus | C133: 3801.65 | D133: 993 | E133: 53.57 | F133: 48.94 | G133: 102.51 | H133: 3 | I133: 0 | J133: 0.57 | K133: 0.5125 | L133: 0.0486 | M133: 29.65 | N133: 0.09 | O133: 3.3368 | P133: 0.021 | Q133: 3.2704 | R133: 0.0147 | S133: 0 | T133: 0.0011 | U133: 0 | V133: 0.08 | W133: 7.1312 | X133: 0.0226 | Y133: 0.0621 | Z133: 0.0066 | AA133: 0.0218 | AB133: 0.0034 | AC133: 0.0158 | AD133: 0.0029 | AE133: 0.0621 | AF133: 0.0027 | AG133: 1.3527 | AH133: 0.0088 | AI133: 0.006 | AJ133: 0.001 | AK133: 0.004 | AL133: 0.0005 | AM133: 0.0039 | AN133: 0.0006 | AO133: 0 | AP133: 0.0019 | AQ133: 0 | AR133: 0.0023 | AS133: 0.0082 | AT133: 0.0002 | AU133: 0 | AV133: 0.0047 | AW133: 0 | AX133: 0 | AY133: 0.0259 | AZ133: 0.0008 | BA133: 0.0091 | BB133: 0.0003 | BC133: 0.0124 | BD133: 0.0003 | BE133: 0 | BF133: 0.0073 | BG133: 0.0048 | BH133: 0.0003 | BI133: 0.0016 | BJ133: 0.0002 | BK133: 0 | BL133: 0.0084 | BM133: 54.51 | BN133: 0.12
A134: #11 | B134: Mining Plus | C134: 3801.85 | D134: 993 | E134: 53.75 | F134: 46.56 | G134: 100.31 | H134: 3 | I134: 1.84 | J134: 0.46 | K134: 0.2311 | L134: 0.0481 | M134: 29.26 | N134: 0.17 | O134: 0.4814 | P134: 0.0103 | Q134: 0.8078 | R134: 0.0078 | S134: 0 | T134: 0.0007 | U134: 0 | V134: 0.07 | W134: 11.16 | X134: 0.06 | Y134: 0.0209 | Z134: 0.006 | AA134: 0.0138 | AB134: 0.0031 | AC134: 0 | AD134: 0.0082 | AE134: 0.3062 | AF134: 0.0056 | AG134: 2.8161 | AH134: 0.0191 | AI134: 0 | AJ134: 0.0065 | AK134: 0 | AL134: 0.0024 | AM134: 0.0035 | AN134: 0.0006 | AO134: 0 | AP134: 0.0018 | AQ134: 0 | AR134: 0.0015 | AS134: 0.0018 | AT134: 0.0001 | AU134: 0 | AV134: 0.0044 | AW134: 0 | AX134: 0 | AY134: 0.0273 | AZ134: 0.0009 | BA134: 0.0101 | BB134: 0.0003 | BC134: 0.0132 | BD134: 0.0003 | BE134: 0 | BF134: 0.0068 | BG134: 0.001 | BH134: 0.0002 | BI134: 0 | BJ134: 0.0049 | BK134: 0 | BL134: 0.0068 | BM134: 53.01 | BN134: 0.28
A135: #4 | B135: Mining Plus | C135: 3802.05 | D135: 992 | E135: 53.62 | F135: 46.56 | G135: 100.17 | H135: 3 | I135: 1.02 | J135: 0.46 | K135: 0 | L135: 0.06 | M135: 28.97 | N135: 0.16 | O135: 0.4341 | P135: 0.01 | Q135: 1.6093 | R135: 0.0121 | S135: 0 | T135: 0.0008 | U135: 0 | V135: 0.06 | W135: 10.76 | X135: 0.06 | Y135: 0.0509 | Z135: 0.0066 | AA135: 0 | AB135: 0.0075 | AC135: 0.0149 | AD135: 0.0029 | AE135: 0.2778 | AF135: 0.0053 | AG135: 2.3889 | AH135: 0.0166 | AI135: 0 | AJ135: 0.006 | AK135: 0.002 | AL135: 0.0005 | AM135: 0.0039 | AN135: 0.0006 | AO135: 0 | AP135: 0.0018 | AQ135: 0 | AR135: 0.0015 | AS135: 0.0021 | AT135: 0.0001 | AU135: 0 | AV135: 0.0044 | AW135: 0 | AX135: 0 | AY135: 0.0238 | AZ135: 0.0009 | BA135: 0.0096 | BB135: 0.0003 | BC135: 0.0123 | BD135: 0.0003 | BE135: 0 | BF135: 0.0066 | BG135: 0.0014 | BH135: 0.0002 | BI135: 0 | BJ135: 0.0048 | BK135: 0 | BL135: 0.0075 | BM135: 54.42 | BN135: 0.28
A136: #5 | B136: Mining Plus | C136: =C135+0.2 -> 3802.25 | D136: 992 | E136: 53.58 | F136: 46.65 | G136: 100.24 | H136: 3 | I136: 1.29 | J136: 0.47 | K136: 0.1781 | L136: 0.047 | M136: 29.28 | N136: 0.17 | O136: 0.4849 | P136: 0.0103 | Q136: 1.1768 | R136: 0.0098 | S136: 0 | T136: 0.0008 | U136: 0 | V136: 0.07 | W136: 10.65 | X136: 0.06 | Y136: 0.0392 | Z136: 0.0064 | AA136: 0.0138 | AB136: 0.0031 | AC136: 0 | AD136: 0.0079 | AE136: 0.2491 | AF136: 0.005 | AG136: 2.3566 | AH136: 0.0165 | AI136: 0 | AJ136: 0.0059 | AK136: 0.0025 | AL136: 0.0005 | AM136: 0 | AN136: 0.0032 | AO136: 0 | AP136: 0.0018 | AQ136: 0 | AR136: 0.0016 | AS136: 0.0023 | AT136: 0.0001 | AU136: 0 | AV136: 0.0044 | AW136: 0 | AX136: 0 | AY136: 0.0254 | AZ136: 0.0009 | BA136: 0.0093 | BB136: 0.0003 | BC136: 0.0123 | BD136: 0.0003 | BE136: 0 | BF136: 0.0072 | BG136: 0.0012 | BH136: 0.0002 | BI136: 0 | BJ136: 0.0051 | BK136: 0 | BL136: 0.0077 | BM136: 54.22 | BN136: 0.28
A137: #6 | B137: Mining Plus | C137: 3802.45 | D137: 992 | E137: 53.53 | F137: 47.96 | G137: 101.48 | H137: 3 | I137: 0 | J137: 0.56 | K137: 2.24 | L137: 0.06 | M137: 25.67 | N137: 0.09 | O137: 0.6294 | P137: 0.0106 | Q137: 2.1536 | R137: 0.0114 | S137: 0 | T137: 0.0012 | U137: 0 | V137: 0.1 | W137: 8.4463 | X137: 0.0271 | Y137: 0.3717 | Z137: 0.0114 | AA137: 0.0261 | AB137: 0.0042 | AC137: 0.009 | AD137: 0.0027 | AE137: 0.2007 | AF137: 0.0044 | AG137: 1.8895 | AH137: 0.0107 | AI137: 0 | AJ137: 0.0053 | AK137: 0.0063 | AL137: 0.0006 | AM137: 0.0038 | AN137: 0.0006 | AO137: 0 | AP137: 0.0019 | AQ137: 0 | AR137: 0.0018 | AS137: 0.0031 | AT137: 0.0001 | AU137: 0 | AV137: 0.0044 | AW137: 0 | AX137: 0 | AY137: 0.0258 | AZ137: 0.0009 | BA137: 0.0092 | BB137: 0.0003 | BC137: 0.0123 | BD137: 0.0003 | BE137: 0.0021 | BF137: 0.0004 | BG137: 0.0032 | BH137: 0.0002 | BI137: 0 | BJ137: 0.0049 | BK137: 0 | BL137: 0.0073 | BM137: 58.3 | BN137: 0.13
A138: #7 | B138: Mining Plus | C138: 3802.65 | D138: 993 | E138: 53.09 | F138: 51.53 | G138: 104.62 | H138: 3 | I138: 0 | J138: 0.58 | K138: 0 | L138: 0.08 | M138: 39.7 | N138: 0.1 | O138: 0.9774 | P138: 0.0129 | Q138: 1.3974 | R138: 0.0094 | S138: 0 | T138: 0.0009 | U138: 0 | V138: 0.08 | W138: 2.9157 | X138: 0.0115 | Y138: 0.0503 | Z138: 0.0063 | AA138: 0.0177 | AB138: 0.0033 | AC138: 0.0198 | AD138: 0.0029 | AE138: 0.0494 | AF138: 0.0024 | AG138: 0.4833 | AH138: 0.0049 | AI138: 0 | AJ138: 0.0027 | AK138: 0.0024 | AL138: 0.0004 | AM138: 0 | AN138: 0.003 | AO138: 0 | AP138: 0.0017 | AQ138: 0 | AR138: 0.0016 | AS138: 0.0029 | AT138: 0.0001 | AU138: 0 | AV138: 0.0044 | AW138: 0 | AX138: 0 | AY138: 0.0262 | AZ138: 0.0008 | BA138: 0.0096 | BB138: 0.0003 | BC138: 0.0131 | BD138: 0.0003 | BE138: 0 | BF138: 0.007 | BG138: 0.0014 | BH138: 0.0002 | BI138: 0 | BJ138: 0.0051 | BK138: 0 | BL138: 0.0078 | BM138: 54.33 | BN138: 0.11
A139: #8 | B139: Mining Plus | C139: 3802.85 | D139: 993 | E139: 54.19 | F139: 49.09 | G139: 103.28 | H139: 3 | I139: 0 | J139: 0.6 | K139: 0.1245 | L139: 0.0484 | M139: 27.08 | N139: 0.09 | O139: 0.8586 | P139: 0.0123 | Q139: 1.9734 | R139: 0.0113 | S139: 0 | T139: 0.001 | U139: 0 | V139: 0.08 | W139: 9.0033 | X139: 0.0298 | Y139: 0.0396 | Z139: 0.0065 | AA139: 0.0132 | AB139: 0.0032 | AC139: 0.0098 | AD139: 0.0028 | AE139: 0.1791 | AF139: 0.0044 | AG139: 1.551 | AH139: 0.01 | AI139: 0 | AJ139: 0.0051 | AK139: 0.0028 | AL139: 0.0005 | AM139: 0 | AN139: 0.0034 | AO139: 0 | AP139: 0.0019 | AQ139: 0 | AR139: 0.0018 | AS139: 0.0028 | AT139: 0.0001 | AU139: 0 | AV139: 0.0047 | AW139: 0 | AX139: 0 | AY139: 0.0248 | AZ139: 0.0009 | BA139: 0.0093 | BB139: 0.0003 | BC139: 0.0119 | BD139: 0.0003 | BE139: 0 | BF139: 0.0074 | BG139: 0.002 | BH139: 0.0002 | BI139: 0 | BJ139: 0.0054 | BK139: 0 | BL139: 0.0084 | BM139: 59.12 | BN139: 0.13
A140: #9 | B140: Mining Plus | C140: 3803.05 | D140: 993 | E140: 53.6 | F140: 48.2 | G140: 101.79 | H140: 3 | I140: 0 | J140: 0.55 | K140: 0.2025 | L140: 0.0455 | M140: 28.33 | N140: 0.09 | O140: 0.5889 | P140: 0.0103 | Q140: 4.7574 | R140: 0.0184 | S140: 0 | T140: 0.001 | U140: 0 | V140: 0.07 | W140: 8.0617 | X140: 0.0249 | Y140: 0.0445 | Z140: 0.0062 | AA140: 0.0212 | AB140: 0.0033 | AC140: 0 | AD140: 0.0076 | AE140: 0.1424 | AF140: 0.0037 | AG140: 1.213 | AH140: 0.0081 | AI140: 0.0056 | AJ140: 0.0009 | AK140: 0.0038 | AL140: 0.0005 | AM140: 0 | AN140: 0.0033 | AO140: 0 | AP140: 0.0018 | AQ140: 0 | AR140: 0.0017 | AS140: 0.0026 | AT140: 0.0001 | AU140: 0 | AV140: 0.0044 | AW140: 0 | AX140: 0 | AY140: 0.0237 | AZ140: 0.0008 | BA140: 0.009 | BB140: 0.0003 | BC140: 0.0119 | BD140: 0.0003 | BE140: 0 | BF140: 0.0068 | BG140: 0.0019 | BH140: 0.0002 | BI140: 0 | BJ140: 0.0051 | BK140: 0 | BL140: 0.0078 | BM140: 56.58 | BN140: 0.12
A141: #10 | B141: Mining Plus | C141: 3803.25 | D141: 993 | E141: 53.23 | F141: 50.14 | G141: 103.37 | H141: 3 | I141: 0 | J141: 0.52 | K141: 0.2571 | L141: 0.0451 | M141: 33.72 | N141: 0.1 | O141: 2.2156 | P141: 0.0174 | Q141: 2.5216 | R141: 0.0125 | S141: 0 | T141: 0.0009 | U141: 0 | V141: 0.07 | W141: 5.8038 | X141: 0.0186 | Y141: 0.0496 | Z141: 0.0063 | AA141: 0.0209 | AB141: 0.0033 | AC141: 0.0117 | AD141: 0.0027 | AE141: 0.0917 | AF141: 0.0031 | AG141: 0.8555 | AH141: 0.0067 | AI141: 0 | AJ141: 0.0036 | AK141: 0.0028 | AL141: 0.0004 | AM141: 0.0033 | AN141: 0.0006 | AO141: 0 | AP141: 0.0019 | AQ141: 0 | AR141: 0.0021 | AS141: 0.0051 | AT141: 0.0001 | AU141: 0 | AV141: 0.0044 | AW141: 0 | AX141: 0 | AY141: 0.0266 | AZ141: 0.0008 | BA141: 0.0102 | BB141: 0.0003 | BC141: 0.0134 | BD141: 0.0003 | BE141: 0 | BF141: 0.0073 | BG141: 0.0044 | BH141: 0.0002 | BI141: 0 | BJ141: 0.0053 | BK141: 0 | BL141: 0.0079 | BM141: 54.39 | BN141: 0.12
A142: #11 | B142: Mining Plus | C142: 3803.45 | D142: 993 | E142: 53.28 | F142: 48.79 | G142: 102.07 | H142: 3 | I142: 0 | J142: 0.55 | K142: 0.5994 | L142: 0.0491 | M142: 29.13 | N142: 0.09 | O142: 0.5919 | P142: 0.0102 | Q142: 5.0654 | R142: 0.0191 | S142: 0 | T142: 0.001 | U142: 0 | V142: 0.09 | W142: 6.5175 | X142: 0.0207 | Y142: 0.062 | Z142: 0.0065 | AA142: 0.0205 | AB142: 0.0033 | AC142: 0.0105 | AD142: 0.0026 | AE142: 0.0747 | AF142: 0.0028 | AG142: 0.9921 | AH142: 0.0071 | AI142: 0 | AJ142: 0.0039 | AK142: 0.0044 | AL142: 0.0005 | AM142: 0.0038 | AN142: 0.0006 | AO142: 0 | AP142: 0.0019 | AQ142: 0 | AR142: 0.002 | AS142: 0.0046 | AT142: 0.0001 | AU142: 0 | AV142: 0.0044 | AW142: 0 | AX142: 0 | AY142: 0.0239 | AZ142: 0.0008 | BA142: 0.0095 | BB142: 0.0003 | BC142: 0.0125 | BD142: 0.0003 | BE142: 0 | BF142: 0.007 | BG142: 0.0033 | BH142: 0.0002 | BI142: 0.0011 | BJ142: 0.0002 | BK142: 0 | BL142: 0.0077 | BM142: 56.87 | BN142: 0.12
A143: #12 | B143: Mining Plus | C143: 3803.65 | D143: 993 | E143: 53.75 | F143: 48.45 | G143: 102.2 | H143: 3 | I143: 0 | J143: 0.65 | K143: 5.63 | L143: 0.08 | M143: 20.94 | N143: 0.08 | O143: 0.318 | P143: 0.0082 | Q143: 4.9598 | R143: 0.0201 | S143: 0 | T143: 0.0014 | U143: 4.8081 | V143: 0.0427 | W143: 3.6222 | X143: 0.015 | Y143: 0.8352 | Z143: 0.0164 | AA143: 0.0582 | AB143: 0.0057 | AC143: 0.0349 | AD143: 0.0037 | AE143: 0.0338 | AF143: 0.0024 | AG143: 3.2599 | AH143: 0.0157 | AI143: 0.0087 | AJ143: 0.0015 | AK143: 0.0065 | AL143: 0.0007 | AM143: 0 | AN143: 0.0036 | AO143: 0.0071 | AP143: 0.0005 | AQ143: 0 | AR143: 0.002 | AS143: 0.0335 | AT143: 0.0003 | AU143: 0 | AV143: 0.0048 | AW143: 0 | AX143: 0 | AY143: 0.0252 | AZ143: 0.0009 | BA143: 0.0099 | BB143: 0.0003 | BC143: 0.013 | BD143: 0.0003 | BE143: 0.0026 | BF143: 0.0005 | BG143: 0.0036 | BH143: 0.0003 | BI143: 0.0041 | BJ143: 0.0002 | BK143: 0.0061 | BL143: 0.0007 | BM143: 55.38 | BN143: 0.14
A144: #13 | B144: Mining Plus | C144: 3803.85 | D144: 993 | E144: 53.91 | F144: 46.66 | G144: 100.57 | H144: 3 | I144: 0 | J144: 0.57 | K144: 1.5 | L144: 0.06 | M144: 24.67 | N144: 0.08 | O144: 2.655 | P144: 0.0187 | Q144: 7.1284 | R144: 0.0251 | S144: 0 | T144: 0.0011 | U144: 0 | V144: 0.1 | W144: 9.7472 | X144: 0.0301 | Y144: 0.1319 | Z144: 0.0083 | AA144: 0.0209 | AB144: 0.0037 | AC144: 0.0157 | AD144: 0.003 | AE144: 0.0676 | AF144: 0.0029 | AG144: 1.4635 | AH144: 0.0094 | AI144: 0 | AJ144: 0.0051 | AK144: 0.0042 | AL144: 0.0005 | AM144: 0.0044 | AN144: 0.0006 | AO144: 0 | AP144: 0.0022 | AQ144: 0 | AR144: 0.0027 | AS144: 0.0173 | AT144: 0.0002 | AU144: 0 | AV144: 0.005 | AW144: 0 | AX144: 0 | AY144: 0.025 | AZ144: 0.0008 | BA144: 0.009 | BB144: 0.0003 | BC144: 0.0123 | BD144: 0.0003 | BE144: 0.002 | BF144: 0.0004 | BG144: 0.0072 | BH144: 0.0003 | BI144: 0.0014 | BJ144: 0.0002 | BK144: 0 | BL144: 0.0096 | BM144: 52.52 | BN144: 0.13
A145: #14 | B145: Mining Plus | C145: 3804.05 | D145: 993 | E145: 54.05 | F145: 40.96 | G145: 95.01 | H145: 3 | I145: 0 | J145: 0.47 | K145: 1.49 | L145: 0.06 | M145: 13.83 | N145: 0.06 | O145: 6.4765 | P145: 0.0289 | Q145: 7.3367 | R145: 0.0255 | S145: 0 | T145: 0.001 | U145: 0 | V145: 0.07 | W145: 20.95 | X145: 0.06 | Y145: 0.0964 | Z145: 0.0082 | AA145: 0.039 | AB145: 0.0043 | AC145: 0.0241 | AD145: 0.0035 | AE145: 0.1747 | AF145: 0.0046 | AG145: 1.8143 | AH145: 0.0114 | AI145: 0.0066 | AJ145: 0.0013 | AK145: 0.0115 | AL145: 0.0008 | AM145: 0.0099 | AN145: 0.0008 | AO145: 0 | AP145: 0.0027 | AQ145: 0 | AR145: 0.0039 | AS145: 0.0324 | AT145: 0.0003 | AU145: 0 | AV145: 0.0055 | AW145: 0 | AX145: 0 | AY145: 0.0251 | AZ145: 0.0009 | BA145: 0.0096 | BB145: 0.0003 | BC145: 0.0127 | BD145: 0.0003 | BE145: 0.0029 | BF145: 0.0005 | BG145: 0.0132 | BH145: 0.0004 | BI145: 0.0021 | BJ145: 0.0002 | BK145: 0 | BL145: 0.0114 | BM145: 47.64 | BN145: 0.14
A146: #15 | B146: Mining Plus | C146: 3804.25 | D146: 993 | E146: 54.54 | F146: 44.84 | G146: 99.38 | H146: 3 | I146: 0 | J146: 0.57 | K146: 2.13 | L146: 0.07 | M146: 13.99 | N146: 0.06 | O146: 3.9651 | P146: 0.0227 | Q146: 7.1502 | R146: 0.0269 | S146: 0 | T146: 0.0011 | U146: 1.5383 | V146: 0.033 | W146: 14.4602 | X146: 0.0474 | Y146: 0.2143 | Z146: 0.0103 | AA146: 0.0278 | AB146: 0.0043 | AC146: 0.0214 | AD146: 0.0034 | AE146: 0.0932 | AF146: 0.0035 | AG146: 1.8376 | AH146: 0.0116 | AI146: 0 | AJ146: 0.0063 | AK146: 0.0068 | AL146: 0.0006 | AM146: 0.0062 | AN146: 0.0007 | AO146: 0 | AP146: 0.0026 | AQ146: 0 | AR146: 0.0029 | AS146: 0.0294 | AT146: 0.0003 | AU146: 0 | AV146: 0.0055 | AW146: 0 | AX146: 0 | AY146: 0.0235 | AZ146: 0.0009 | BA146: 0.0086 | BB146: 0.0003 | BC146: 0.0119 | BD146: 0.0003 | BE146: 0 | BF146: 0.0085 | BG146: 0.0067 | BH146: 0.0003 | BI146: 0.0023 | BJ146: 0.0002 | BK146: 0 | BL146: 0.0111 | BM146: 54.48 | BN146: 0.14
A147: #16 | B147: Mining Plus | C147: 3804.85 | D147: 993 | E147: 54.07 | F147: 47.09 | G147: 101.16 | H147: 3 | I147: 0 | J147: 0.56 | K147: 3.41 | L147: 0.07 | M147: 20.59 | N147: 0.07 | O147: 1.5925 | P147: 0.0143 | Q147: 5.6171 | R147: 0.021 | S147: 0 | T147: 0.001 | U147: 4.8191 | V147: 0.0395 | W147: 8.8642 | X147: 0.0287 | Y147: 0.1706 | Z147: 0.0091 | AA147: 0.0335 | AB147: 0.0041 | AC147: 0.0112 | AD147: 0.0029 | AE147: 0.0705 | AF147: 0.0029 | AG147: 1.1891 | AH147: 0.0085 | AI147: 0 | AJ147: 0.0046 | AK147: 0.003 | AL147: 0.0005 | AM147: 0.0041 | AN147: 0.0006 | AO147: 0 | AP147: 0.0022 | AQ147: 0 | AR147: 0.002 | AS147: 0.0251 | AT147: 0.0002 | AU147: 0 | AV147: 0.0051 | AW147: 0 | AX147: 0 | AY147: 0.0243 | AZ147: 0.0009 | BA147: 0.0094 | BB147: 0.0003 | BC147: 0.0125 | BD147: 0.0003 | BE147: 0.0023 | BF147: 0.0004 | BG147: 0.0024 | BH147: 0.0002 | BI147: 0.0013 | BJ147: 0.0002 | BK147: 0 | BL147: 0.0092 | BM147: 53.55 | BN147: 0.13
A148: #17 | B148: Mining Plus | C148: =C147+0.2 -> 3805.05 | D148: 993 | E148: 54.4 | F148: 43.15 | G148: 97.55 | H148: 3 | I148: 0 | J148: 0.51 | K148: 1.81 | L148: 0.07 | M148: 15.22 | N148: 0.06 | O148: 6.084 | P148: 0.0289 | Q148: 4.0248 | R148: 0.0171 | S148: 0 | T148: 0.0009 | U148: 0.9354 | V148: 0.0315 | W148: 19.03 | X148: 0.06 | Y148: 0.1317 | Z148: 0.0089 | AA148: 0.0348 | AB148: 0.0043 | AC148: 0.0267 | AD148: 0.0036 | AE148: 0.2088 | AF148: 0.0051 | AG148: 1.3833 | AH148: 0.0099 | AI148: 0 | AJ148: 0.0056 | AK148: 0.0058 | AL148: 0.0006 | AM148: 0 | AN148: 0.0042 | AO148: 0 | AP148: 0.0027 | AQ148: 0 | AR148: 0.0025 | AS148: 0.033 | AT148: 0.0003 | AU148: 0 | AV148: 0.0056 | AW148: 0 | AX148: 0 | AY148: 0.0243 | AZ148: 0.0009 | BA148: 0.0088 | BB148: 0.0003 | BC148: 0.0121 | BD148: 0.0003 | BE148: 0.0031 | BF148: 0.0005 | BG148: 0.0041 | BH148: 0.0003 | BI148: 0 | BJ148: 0.0064 | BK148: 0 | BL148: 0.0106 | BM148: 51.02 | BN148: 0.14
A149: #18 | B149: Mining Plus | C149: 3805.25 | D149: 993 | E149: 54.46 | F149: 43.17 | G149: 97.63 | H149: 3 | I149: 0 | J149: 0.57 | K149: 1.58 | L149: 0.06 | M149: 11.92 | N149: 0.06 | O149: 3.7158 | P149: 0.0221 | Q149: 6.1064 | R149: 0.0241 | S149: 0 | T149: 0.001 | U149: 0 | V149: 0.09 | W149: 17.96 | X149: 0.06 | Y149: 0.1512 | Z149: 0.0093 | AA149: 0.0274 | AB149: 0.0042 | AC149: 0.0154 | AD149: 0.0033 | AE149: 0.2905 | AF149: 0.0059 | AG149: 2.1458 | AH149: 0.013 | AI149: 0 | AJ149: 0.0067 | AK149: 0.0101 | AL149: 0.0007 | AM149: 0 | AN149: 0.004 | AO149: 0 | AP149: 0.0025 | AQ149: 0 | AR149: 0.0027 | AS149: 0.0287 | AT149: 0.0003 | AU149: 0 | AV149: 0.0054 | AW149: 0 | AX149: 0 | AY149: 0.0255 | AZ149: 0.0009 | BA149: 0.0093 | BB149: 0.0003 | BC149: 0.012 | BD149: 0.0003 | BE149: 0.0028 | BF149: 0.0005 | BG149: 0.0052 | BH149: 0.0003 | BI149: 0.0016 | BJ149: 0.0002 | BK149: 0 | BL149: 0.0099 | BM149: 55.99 | BN149: 0.14
A150: #19 | B150: Mining Plus | C150: 3805.45 | D150: 993 | E150: 54.56 | F150: 43.44 | G150: 98 | H150: 3 | I150: 0 | J150: 0.56 | K150: 1.7 | L150: 0.07 | M150: 12.01 | N150: 0.06 | O150: 3.3195 | P150: 0.0208 | Q150: 6.946 | R150: 0.0268 | S150: 0 | T150: 0.001 | U150: 0.5407 | V150: 0.0302 | W150: 17.76 | X150: 0.06 | Y150: 0.1413 | Z150: 0.0093 | AA150: 0.0301 | AB150: 0.0043 | AC150: 0.0176 | AD150: 0.0034 | AE150: 0.2236 | AF150: 0.0053 | AG150: 2.0903 | AH150: 0.0129 | AI150: 0.0077 | AJ150: 0.0014 | AK150: 0.0138 | AL150: 0.0008 | AM150: 0.0057 | AN150: 0.0007 | AO150: 0 | AP150: 0.0027 | AQ150: 0 | AR150: 0.0032 | AS150: 0.0401 | AT150: 0.0003 | AU150: 0 | AV150: 0.0057 | AW150: 0 | AX150: 0 | AY150: 0.0279 | AZ150: 0.0009 | BA150: 0.0096 | BB150: 0.0003 | BC150: 0.0124 | BD150: 0.0004 | BE150: 0.0027 | BF150: 0.0005 | BG150: 0.0087 | BH150: 0.0004 | BI150: 0.0019 | BJ150: 0.0002 | BK150: 0 | BL150: 0.0106 | BM150: 55.08 | BN150: 0.15
A151: #20 | B151: Mining Plus | C151: 3805.65 | D151: 993 | E151: 54.43 | F151: 44.06 | G151: 98.5 | H151: 3 | I151: 0 | J151: 0.54 | K151: 1.93 | L151: 0.07 | M151: 16.9 | N151: 0.07 | O151: 3.5245 | P151: 0.0213 | Q151: 5.6096 | R151: 0.0217 | S151: 0 | T151: 0.001 | U151: 1.7244 | V151: 0.0327 | W151: 15.3336 | X151: 0.0481 | Y151: 0.1475 | Z151: 0.0092 | AA151: 0.0232 | AB151: 0.004 | AC151: 0.0122 | AD151: 0.0031 | AE151: 0.1989 | AF151: 0.0048 | AG151: 2.3184 | AH151: 0.0132 | AI151: 0 | AJ151: 0.0069 | AK151: 0.0079 | AL151: 0.0007 | AM151: 0.0046 | AN151: 0.0007 | AO151: 0 | AP151: 0.0024 | AQ151: 0 | AR151: 0.0028 | AS151: 0.0295 | AT151: 0.0003 | AU151: 0 | AV151: 0.0054 | AW151: 0 | AX151: 0 | AY151: 0.0241 | AZ151: 0.0009 | BA151: 0.009 | BB151: 0.0003 | BC151: 0.012 | BD151: 0.0003 | BE151: 0 | BF151: 0.0085 | BG151: 0.007 | BH151: 0.0003 | BI151: 0.0019 | BJ151: 0.0002 | BK151: 0 | BL151: 0.0105 | BM151: 52.18 | BN151: 0.14
A152: #21 | B152: Mining Plus | C152: 3805.85 | D152: 993 | E152: 54.37 | F152: 44.65 | G152: 99.01 | H152: 3 | I152: 0 | J152: 0.54 | K152: 0.55 | L152: 0.05 | M152: 18.18 | N152: 0.07 | O152: 4.3411 | P152: 0.0239 | Q152: 5.5828 | R152: 0.0216 | S152: 0 | T152: 0.0009 | U152: 0 | V152: 0.07 | W152: 15.9876 | X152: 0.0496 | Y152: 0.0772 | Z152: 0.0077 | AA152: 0.025 | AB152: 0.0038 | AC152: 0.022 | AD152: 0.0034 | AE152: 0.2001 | AF152: 0.0048 | AG152: 1.9835 | AH152: 0.012 | AI152: 0 | AJ152: 0.0063 | AK152: 0.0077 | AL152: 0.0007 | AM152: 0.0075 | AN152: 0.0007 | AO152: 0 | AP152: 0.0023 | AQ152: 0 | AR152: 0.0035 | AS152: 0.0182 | AT152: 0.0002 | AU152: 0 | AV152: 0.0052 | AW152: 0 | AX152: 0 | AY152: 0.0244 | AZ152: 0.0009 | BA152: 0.0093 | BB152: 0.0003 | BC152: 0.0122 | BD152: 0.0003 | BE152: 0 | BF152: 0.0085 | BG152: 0.0116 | BH152: 0.0004 | BI152: 0.0021 | BJ152: 0.0002 | BK152: 0 | BL152: 0.01 | BM152: 52.96 | BN152: 0.14
A153: #22 | B153: Mining Plus | C153: 3806.05 | D153: 993 | E153: 54.41 | F153: 46.66 | G153: 101.07 | H153: 3 | I153: 0 | J153: 0.53 | K153: 0.432 | L153: 0.0498 | M153: 24.3 | N153: 0.08 | O153: 5.4427 | P153: 0.0278 | Q153: 3.7525 | R153: 0.0165 | S153: 0 | T153: 0.0009 | U153: 0 | V153: 0.07 | W153: 12.7695 | X153: 0.039 | Y153: 0.0809 | Z153: 0.0077 | AA153: 0.0275 | AB153: 0.0039 | AC153: 0.0169 | AD153: 0.0032 | AE153: 0.1312 | AF153: 0.004 | AG153: 1.6841 | AH153: 0.0107 | AI153: 0 | AJ153: 0.0058 | AK153: 0.005 | AL153: 0.0006 | AM153: 0.0052 | AN153: 0.0007 | AO153: 0 | AP153: 0.0022 | AQ153: 0 | AR153: 0.003 | AS153: 0.0143 | AT153: 0.0002 | AU153: 0 | AV153: 0.0052 | AW153: 0 | AX153: 0 | AY153: 0.0242 | AZ153: 0.0009 | BA153: 0.009 | BB153: 0.0003 | BC153: 0.0114 | BD153: 0.0003 | BE153: 0.0022 | BF153: 0.0004 | BG153: 0.007 | BH153: 0.0003 | BI153: 0 | BJ153: 0.0063 | BK153: 0 | BL153: 0.0093 | BM153: 51.28 | BN153: 0.14
A154: #23 | B154: Mining Plus | C154: 3806.25 | D154: 993 | E154: 53.96 | F154: 47.74 | G154: 101.7 | H154: 3 | I154: 0 | J154: 0.49 | K154: 0.2884 | L154: 0.0471 | M154: 28.1 | N154: 0.09 | O154: 2.3142 | P154: 0.0178 | Q154: 1.8298 | R154: 0.0105 | S154: 0 | T154: 0.0008 | U154: 0 | V154: 0.07 | W154: 10.4558 | X154: 0.0321 | Y154: 0.047 | Z154: 0.0066 | AA154: 0.0184 | AB154: 0.0034 | AC154: 0 | AD154: 0.008 | AE154: 0.1696 | AF154: 0.0042 | AG154: 1.4073 | AH154: 0.0092 | AI154: 0 | AJ154: 0.0048 | AK154: 0.0042 | AL154: 0.0005 | AM154: 0.0036 | AN154: 0.0006 | AO154: 0 | AP154: 0.002 | AQ154: 0 | AR154: 0.0021 | AS154: 0.0055 | AT154: 0.0001 | AU154: 0 | AV154: 0.0047 | AW154: 0 | AX154: 0 | AY154: 0.0248 | AZ154: 0.0009 | BA154: 0.0093 | BB154: 0.0003 | BC154: 0.0125 | BD154: 0.0003 | BE154: 0 | BF154: 0.0076 | BG154: 0.0033 | BH154: 0.0002 | BI154: 0 | BJ154: 0.0056 | BK154: 0 | BL154: 0.0084 | BM154: 55.3 | BN154: 0.13
A155: #24 | B155: Mining Plus | C155: 3806.45 | D155: 993 | E155: 54.08 | F155: 48.92 | G155: 103 | H155: 3 | I155: 0 | J155: 0.58 | K155: 1 | L155: 0.05 | M155: 30.81 | N155: 0.09 | O155: 2.6516 | P155: 0.0194 | Q155: 4.4512 | R155: 0.0183 | S155: 0 | T155: 0.001 | U155: 0 | V155: 0.09 | W155: 7.0703 | X155: 0.0228 | Y155: 0.0731 | Z155: 0.0072 | AA155: 0.0194 | AB155: 0.0035 | AC155: 0.0127 | AD155: 0.0029 | AE155: 0.0546 | AF155: 0.0027 | AG155: 1.4793 | AH155: 0.0095 | AI155: 0 | AJ155: 0.005 | AK155: 0.0035 | AL155: 0.0005 | AM155: 0.003 | AN155: 0.0006 | AO155: 0 | AP155: 0.0019 | AQ155: 0 | AR155: 0.0023 | AS155: 0.0107 | AT155: 0.0002 | AU155: 0 | AV155: 0.0049 | AW155: 0 | AX155: 0 | AY155: 0.0244 | AZ155: 0.0009 | BA155: 0.0083 | BB155: 0.0003 | BC155: 0.0114 | BD155: 0.0003 | BE155: 0 | BF155: 0.0074 | BG155: 0.0042 | BH155: 0.0003 | BI155: 0.0013 | BJ155: 0.0002 | BK155: 0 | BL155: 0.0089 | BM155: 52.31 | BN155: 0.13
A156: #25 | B156: Mining Plus | C156: 3806.6 | D156: 993 | E156: 54.05 | F156: 44.31 | G156: 98.36 | H156: 3 | I156: 0 | J156: 0.48 | K156: 0.59 | L156: 0.05 | M156: 21.64 | N156: 0.08 | O156: 2.6794 | P156: 0.0185 | Q156: 4.6381 | R156: 0.0185 | S156: 0 | T156: 0.0009 | U156: 0 | V156: 0.08 | W156: 13.6181 | X156: 0.0415 | Y156: 0.0516 | Z156: 0.007 | AA156: 0.0165 | AB156: 0.0033 | AC156: 0.0101 | AD156: 0.0029 | AE156: 0.2557 | AF156: 0.0051 | AG156: 3.3672 | AH156: 0.0159 | AI156: 0.0087 | AJ156: 0.0016 | AK156: 0.0078 | AL156: 0.0007 | AM156: 0.0033 | AN156: 0.0006 | AO156: 0 | AP156: 0.002 | AQ156: 0 | AR156: 0.0025 | AS156: 0.0094 | AT156: 0.0002 | AU156: 0 | AV156: 0.0047 | AW156: 0 | AX156: 0 | AY156: 0.0247 | AZ156: 0.0009 | BA156: 0.0087 | BB156: 0.0003 | BC156: 0.0121 | BD156: 0.0003 | BE156: 0.0024 | BF156: 0.0004 | BG156: 0.0058 | BH156: 0.0003 | BI156: 0.0014 | BJ156: 0.0002 | BK156: 0 | BL156: 0.0089 | BM156: 53.05 | BN156: 0.14
A157: #26 | B157: Mining Plus | C157: 3806.85 | D157: 993 | E157: 53.86 | F157: 46.58 | G157: 100.44 | H157: 3 | I157: 0 | J157: 0.49 | K157: 0.3117 | L157: 0.0468 | M157: 26.5 | N157: 0.09 | O157: 1.2982 | P157: 0.0137 | Q157: 2.4369 | R157: 0.0121 | S157: 0 | T157: 0.0008 | U157: 0 | V157: 0.07 | W157: 11.1612 | X157: 0.034 | Y157: 0.0633 | Z157: 0.0069 | AA157: 0.0153 | AB157: 0.0033 | AC157: 0.0104 | AD157: 0.0028 | AE157: 0.2364 | AF157: 0.0048 | AG157: 2.1083 | AH157: 0.0116 | AI157: 0 | AJ157: 0.0058 | AK157: 0.0066 | AL157: 0.0006 | AM157: 0.004 | AN157: 0.0006 | AO157: 0 | AP157: 0.0019 | AQ157: 0 | AR157: 0.0019 | AS157: 0.0038 | AT157: 0.0001 | AU157: 0 | AV157: 0.0046 | AW157: 0 | AX157: 0 | AY157: 0.0263 | AZ157: 0.0009 | BA157: 0.0094 | BB157: 0.0003 | BC157: 0.0128 | BD157: 0.0003 | BE157: 0 | BF157: 0.007 | BG157: 0.003 | BH157: 0.0002 | BI157: 0 | BJ157: 0.0052 | BK157: 0 | BL157: 0.0075 | BM157: 55.79 | BN157: 0.13
A158: #27 | B158: Mining Plus | C158: =C157+0.2 -> 3807.05 | D158: 993 | E158: 53.54 | F158: 47.64 | G158: 101.18 | H158: 3 | I158: 0 | J158: 0.47 | K158: 0.4736 | L158: 0.0479 | M158: 31.1 | N158: 0.09 | O158: 0.5091 | P158: 0.01 | Q158: 1.5861 | R158: 0.0094 | S158: 0 | T158: 0.0008 | U158: 0 | V158: 0.08 | W158: 8.7765 | X158: 0.0265 | Y158: 0.0394 | Z158: 0.0061 | AA158: 0.0151 | AB158: 0.0031 | AC158: 0.0085 | AD158: 0.0026 | AE158: 0.1717 | AF158: 0.004 | AG158: 1.7482 | AH158: 0.01 | AI158: 0 | AJ158: 0.0051 | AK158: 0.0021 | AL158: 0.0005 | AM158: 0 | AN158: 0.0031 | AO158: 0 | AP158: 0.0018 | AQ158: 0 | AR158: 0.0013 | AS158: 0.0018 | AT158: 0.0001 | AU158: 0 | AV158: 0.0044 | AW158: 0 | AX158: 0 | AY158: 0.0256 | AZ158: 0.0008 | BA158: 0.0098 | BB158: 0.0003 | BC158: 0.0128 | BD158: 0.0003 | BE158: 0 | BF158: 0.0067 | BG158: 0 | BH158: 0.0052 | BI158: 0 | BJ158: 0.0046 | BK158: 0 | BL158: 0.0077 | BM158: 55.52 | BN158: 0.12
A159: #28 | B159: Mining Plus | C159: =C158+0.2 -> 3807.25 | D159: 993 | E159: 53.5 | F159: 49.08 | G159: 102.58 | H159: 3 | I159: 0.9 | J159: 0.41 | K159: 0.626 | L159: 0.0483 | M159: 32.76 | N159: 0.17 | O159: 0.3204 | P159: 0.009 | Q159: 2.1411 | R159: 0.0143 | S159: 0 | T159: 0.001 | U159: 0 | V159: 0.08 | W159: 6.9922 | X159: 0.0361 | Y159: 0.0564 | Z159: 0.0064 | AA159: 0.0159 | AB159: 0.0031 | AC159: 0.0103 | AD159: 0.0026 | AE159: 0.1434 | AF159: 0.0037 | AG159: 1.3346 | AH159: 0.0101 | AI159: 0 | AJ159: 0.0045 | AK159: 0.0021 | AL159: 0.0004 | AM159: 0 | AN159: 0.0031 | AO159: 0 | AP159: 0.0017 | AQ159: 0 | AR159: 0.0013 | AS159: 0.0015 | AT159: 0.0001 | AU159: 0 | AV159: 0.0044 | AW159: 0 | AX159: 0 | AY159: 0.0271 | AZ159: 0.0008 | BA159: 0.0099 | BB159: 0.0003 | BC159: 0.0127 | BD159: 0.0003 | BE159: 0 | BF159: 0.0069 | BG159: 0 | BH159: 0.005 | BI159: 0 | BJ159: 0.0046 | BK159: 0 | BL159: 0.0075 | BM159: 54.65 | BN159: 0.26
A160: #29 | B160: Mining Plus | C160: =C159+0.2 -> 3807.45 | D160: 993 | E160: 53.52 | F160: 47.68 | G160: 101.2 | H160: 3 | I160: 0 | J160: 0.57 | K160: 3.58 | L160: 0.07 | M160: 24.96 | N160: 0.08 | O160: 0.6141 | P160: 0.01 | Q160: 6.0578 | R160: 0.0218 | S160: 0 | T160: 0.0011 | U160: 3.8347 | V160: 0.0397 | W160: 6.0785 | X160: 0.0204 | Y160: 0.3314 | Z160: 0.0111 | AA160: 0.0246 | AB160: 0.0042 | AC160: 0.0243 | AD160: 0.0032 | AE160: 0.0317 | AF160: 0.0022 | AG160: 1.2182 | AH160: 0.0083 | AI160: 0.0054 | AJ160: 0.001 | AK160: 0.0031 | AL160: 0.0005 | AM160: 0 | AN160: 0.0035 | AO160: 0 | AP160: 0.0021 | AQ160: 0 | AR160: 0.0019 | AS160: 0.0454 | AT160: 0.0003 | AU160: 0 | AV160: 0.0052 | AW160: 0 | AX160: 0 | AY160: 0.0254 | AZ160: 0.0008 | BA160: 0.0089 | BB160: 0.0003 | BC160: 0.0125 | BD160: 0.0003 | BE160: 0 | BF160: 0.0076 | BG160: 0.0025 | BH160: 0.0002 | BI160: 0.0025 | BJ160: 0.0002 | BK160: 0 | BL160: 0.0091 | BM160: 53.13 | BN160: 0.13
A161: #30 | B161: Mining Plus | C161: 3808.05 | D161: 993 | E161: 54.1 | F161: 49.49 | G161: 103.59 | H161: 3 | I161: 0 | J161: 0.51 | K161: 5.35 | L161: 0.08 | M161: 26.69 | N161: 0.09 | O161: 0.2709 | P161: 0.0079 | Q161: 3.6923 | R161: 0.0155 | S161: 0 | T161: 0.0011 | U161: 9.66 | V161: 0.05 | W161: 3.182 | X161: 0.014 | Y161: 0.2045 | Z161: 0.0098 | AA161: 0.0251 | AB161: 0.0041 | AC161: 0.0118 | AD161: 0.0029 | AE161: 0.0184 | AF161: 0.0019 | AG161: 0.9649 | AH161: 0.0076 | AI161: 0 | AJ161: 0.0041 | AK161: 0.0017 | AL161: 0.0005 | AM161: 0 | AN161: 0.0036 | AO161: 0 | AP161: 0.0021 | AQ161: 0 | AR161: 0.0018 | AS161: 0.0155 | AT161: 0.0002 | AU161: 0 | AV161: 0.005 | AW161: 0 | AX161: 0 | AY161: 0.0263 | AZ161: 0.0009 | BA161: 0.0094 | BB161: 0.0003 | BC161: 0.0123 | BD161: 0.0003 | BE161: 0.0024 | BF161: 0.0004 | BG161: 0.0014 | BH161: 0.0002 | BI161: 0.0013 | BJ161: 0.0002 | BK161: 0 | BL161: 0.0093 | BM161: 49.87 | BN161: 0.13
A162: #31 | B162: Mining Plus | C162: =C161+0.2 -> 3808.25 | D162: 994 | E162: 53.9 | F162: 48.88 | G162: 102.78 | H162: 3 | I162: 0 | J162: 0.52 | K162: 3.99 | L162: 0.07 | M162: 28.59 | N162: 0.09 | O162: 1.3428 | P162: 0.0138 | Q162: 2.6183 | R162: 0.0127 | S162: 0 | T162: 0.001 | U162: 5.4724 | V162: 0.0436 | W162: 5.9578 | X162: 0.0203 | Y162: 0.148 | Z162: 0.0087 | AA162: 0.0261 | AB162: 0.0039 | AC162: 0.0159 | AD162: 0.003 | AE162: 0.0746 | AF162: 0.003 | AG162: 0.9075 | AH162: 0.0073 | AI162: 0 | AJ162: 0.0039 | AK162: 0.0047 | AL162: 0.0005 | AM162: 0 | AN162: 0.0036 | AO162: 0 | AP162: 0.0021 | AQ162: 0 | AR162: 0.0021 | AS162: 0.0212 | AT162: 0.0002 | AU162: 0 | AV162: 0.005 | AW162: 0 | AX162: 0 | AY162: 0.0258 | AZ162: 0.0009 | BA162: 0.0097 | BB162: 0.0003 | BC162: 0.0123 | BD162: 0.0003 | BE162: 0.0024 | BF162: 0.0004 | BG162: 0.003 | BH162: 0.0002 | BI162: 0.0016 | BJ162: 0.0002 | BK162: 0 | BL162: 0.0091 | BM162: 50.78 | BN162: 0.13
A163: #32 | B163: Mining Plus | C163: =C162+0.2 -> 3808.45 | D163: 994 | E163: 54.29 | F163: 43.57 | G163: 97.86 | H163: 3 | I163: 0 | J163: 0.55 | K163: 1.03 | L163: 0.06 | M163: 12.83 | N163: 0.06 | O163: 3.96 | P163: 0.0224 | Q163: 8.4711 | R163: 0.0306 | S163: 0 | T163: 0.001 | U163: 0 | V163: 0.08 | W163: 17.34 | X163: 0.06 | Y163: 0.1432 | Z163: 0.0091 | AA163: 0.0291 | AB163: 0.0042 | AC163: 0.0216 | AD163: 0.0034 | AE163: 0.1727 | AF163: 0.0046 | AG163: 1.5746 | AH163: 0.0107 | AI163: 0.0082 | AJ163: 0.0012 | AK163: 0.0109 | AL163: 0.0007 | AM163: 0.0053 | AN163: 0.0007 | AO163: 0 | AP163: 0.0026 | AQ163: 0 | AR163: 0.0032 | AS163: 0.03 | AT163: 0.0003 | AU163: 0 | AV163: 0.0055 | AW163: 0 | AX163: 0 | AY163: 0.028 | AZ163: 0.0009 | BA163: 0.0099 | BB163: 0.0003 | BC163: 0.0135 | BD163: 0.0003 | BE163: 0 | BF163: 0.0087 | BG163: 0.0071 | BH163: 0.0003 | BI163: 0.0016 | BJ163: 0.0002 | BK163: 0 | BL163: 0.0112 | BM163: 54.32 | BN163: 0.14
A164: #33 | B164: Mining Plus | C164: =C163+0.2 -> 3808.65 | D164: 994 | E164: 54.57 | F164: 47.2 | G164: 101.77 | H164: 3 | I164: 0 | J164: 0.61 | K164: 1.22 | L164: 0.06 | M164: 20.04 | N164: 0.08 | O164: 3.5405 | P164: 0.0222 | Q164: 6.5499 | R164: 0.0252 | S164: 0 | T164: 0.0011 | U164: 0 | V164: 0.09 | W164: 12.5055 | X164: 0.0409 | Y164: 0.1139 | Z164: 0.0084 | AA164: 0.023 | AB164: 0.0039 | AC164: 0.024 | AD164: 0.0034 | AE164: 0.1043 | AF164: 0.0037 | AG164: 1.3773 | AH164: 0.0099 | AI164: 0.0058 | AJ164: 0.0011 | AK164: 0.0084 | AL164: 0.0007 | AM164: 0.0057 | AN164: 0.0007 | AO164: 0 | AP164: 0.0024 | AQ164: 0 | AR164: 0.003 | AS164: 0.0168 | AT164: 0.0002 | AU164: 0 | AV164: 0.0054 | AW164: 0 | AX164: 0 | AY164: 0.0254 | AZ164: 0.0009 | BA164: 0.0098 | BB164: 0.0003 | BC164: 0.0124 | BD164: 0.0003 | BE164: 0 | BF164: 0.0087 | BG164: 0.0068 | BH164: 0.0003 | BI164: 0.0018 | BJ164: 0.0002 | BK164: 0 | BL164: 0.0105 | BM164: 54.41 | BN164: 0.14
A165: #34 | B165: Mining Plus | C165: =C164+0.2 -> 3808.85 | D165: 994 | E165: 54.8 | F165: 41.44 | G165: 96.24 | H165: 3 | I165: 0 | J165: 0.53 | K165: 0.77 | L165: 0.06 | M165: 9.77 | N165: 0.05 | O165: 4.5753 | P165: 0.0245 | Q165: 7.6901 | R165: 0.0288 | S165: 0 | T165: 0.001 | U165: 0 | V165: 0.07 | W165: 21.08 | X165: 0.07 | Y165: 0.0834 | Z165: 0.0083 | AA165: 0.0264 | AB165: 0.004 | AC165: 0.0196 | AD165: 0.0036 | AE165: 0.2662 | AF165: 0.0058 | AG165: 3.7613 | AH165: 0.019 | AI165: 0.0098 | AJ165: 0.0019 | AK165: 0.019 | AL165: 0.001 | AM165: 0.0067 | AN165: 0.0008 | AO165: 0 | AP165: 0.0026 | AQ165: 0.0035 | AR165: 0.0004 | AS165: 0.0223 | AT165: 0.0003 | AU165: 0 | AV165: 0.0053 | AW165: 0 | AX165: 0 | AY165: 0.0229 | AZ165: 0.001 | BA165: 0.0094 | BB165: 0.0003 | BC165: 0.011 | BD165: 0.0004 | BE165: 0.0026 | BF165: 0.0005 | BG165: 0.0107 | BH165: 0.0004 | BI165: 0.0018 | BJ165: 0.0002 | BK165: 0 | BL165: 0.0115 | BM165: 51.84 | BN165: 0.15
A166: #38 | B166: Mining Plus | C166: 3809.85 | D166: 994 | E166: 53.79 | F166: 48.41 | G166: 102.2 | H166: 3 | I166: 0 | J166: 0.55 | K166: 3.09 | L166: 0.07 | M166: 28.69 | N166: 0.09 | O166: 0.1859 | P166: 0.0078 | Q166: 2.4265 | R166: 0.012 | S166: 0 | T166: 0.001 | U166: 4.4732 | V166: 0.0394 | W166: 6.946 | X166: 0.0227 | Y166: 0.1315 | Z166: 0.0083 | AA166: 0.0311 | AB166: 0.004 | AC166: 0.0097 | AD166: 0.0028 | AE166: 0.1306 | AF166: 0.0037 | AG166: 1.0901 | AH166: 0.008 | AI166: 0 | AJ166: 0.0042 | AK166: 0.0018 | AL166: 0.0004 | AM166: 0 | AN166: 0.0034 | AO166: 0 | AP166: 0.0019 | AQ166: 0 | AR166: 0.0016 | AS166: 0.0158 | AT166: 0.0002 | AU166: 0 | AV166: 0.0048 | AW166: 0 | AX166: 0 | AY166: 0.0261 | AZ166: 0.0009 | BA166: 0.0099 | BB166: 0.0003 | BC166: 0.0128 | BD166: 0.0003 | BE166: 0.0021 | BF166: 0.0004 | BG166: 0.0011 | BH166: 0.0002 | BI166: 0.0014 | BJ166: 0.0002 | BK166: 0 | BL166: 0.0083 | BM166: 52.73 | BN166: 0.13
A167: #39 | B167: Mining Plus | C167: =C166+0.2 -> 3810.05 | D167: 994 | E167: 53.85 | F167: 47.84 | G167: 101.69 | H167: 3 | I167: 0 | J167: 0.53 | K167: 5.47 | L167: 0.08 | M167: 21.79 | N167: 0.08 | O167: 0.0557 | P167: 0.0063 | Q167: 5.8329 | R167: 0.0213 | S167: 0 | T167: 0.0012 | U167: 8.2531 | V167: 0.0475 | W167: 4.9144 | X167: 0.0183 | Y167: 0.3953 | Z167: 0.0123 | AA167: 0.0336 | AB167: 0.0047 | AC167: 0.0212 | AD167: 0.0032 | AE167: 0.0208 | AF167: 0.002 | AG167: 1.9255 | AH167: 0.0112 | AI167: 0.0081 | AJ167: 0.0012 | AK167: 0.0034 | AL167: 0.0005 | AM167: 0 | AN167: 0.0036 | AO167: 0.0032 | AP167: 0.0004 | AQ167: 0 | AR167: 0.0019 | AS167: 0.0339 | AT167: 0.0003 | AU167: 0 | AV167: 0.0051 | AW167: 0 | AX167: 0 | AY167: 0.0287 | AZ167: 0.0009 | BA167: 0.0098 | BB167: 0.0003 | BC167: 0.0133 | BD167: 0.0003 | BE167: 0.0024 | BF167: 0.0004 | BG167: 0.0019 | BH167: 0.0002 | BI167: 0.0023 | BJ167: 0.0002 | BK167: 0.0036 | BL167: 0.0006 | BM167: 51.18 | BN167: 0.14
A168: #40 | B168: Mining Plus | C168: =C167+0.2 -> 3810.25 | D168: 994 | E168: 54.24 | F168: 45.95 | G168: 100.19 | H168: 3 | I168: 0 | J168: 0.61 | K168: 2.59 | L168: 0.07 | M168: 23.01 | N168: 0.08 | O168: 1.6094 | P168: 0.015 | Q168: 2.8874 | R168: 0.0137 | S168: 0 | T168: 0.001 | U168: 2.3524 | V168: 0.0347 | W168: 11.2339 | X168: 0.0358 | Y168: 0.122 | Z168: 0.0085 | AA168: 0.0211 | AB168: 0.0038 | AC168: 0 | AD168: 0.009 | AE168: 0.2165 | AF168: 0.0049 | AG168: 2.9298 | AH168: 0.0149 | AI168: 0 | AJ168: 0.0071 | AK168: 0.0032 | AL168: 0.0006 | AM168: 0 | AN168: 0.0035 | AO168: 0 | AP168: 0.002 | AQ168: 0 | AR168: 0.0019 | AS168: 0.0217 | AT168: 0.0002 | AU168: 0 | AV168: 0.005 | AW168: 0 | AX168: 0 | AY168: 0.0266 | AZ168: 0.0009 | BA168: 0.0095 | BB168: 0.0003 | BC168: 0.0126 | BD168: 0.0003 | BE168: 0 | BF168: 0.0076 | BG168: 0.0022 | BH168: 0.0002 | BI168: 0.0017 | BJ168: 0.0002 | BK168: 0 | BL168: 0.0086 | BM168: 52.95 | BN168: 0.14
A169: #41 | B169: Mining Plus | C169: =C168+0.2 -> 3810.45 | D169: 994 | E169: 53.96 | F169: 44.46 | G169: 98.42 | H169: 3 | I169: 1.97 | J169: 0.45 | K169: 0.55 | L169: 0.05 | M169: 20.56 | N169: 0.12 | O169: 2.5486 | P169: 0.0213 | Q169: 2.9206 | R169: 0.0189 | S169: 0 | T169: 0.0008 | U169: 0 | V169: 0.07 | W169: 14.63 | X169: 0.08 | Y169: 0.0505 | Z169: 0.0068 | AA169: 0.0177 | AB169: 0.0033 | AC169: 0.0133 | AD169: 0.0029 | AE169: 0.3065 | AF169: 0.0057 | AG169: 2.5533 | AH169: 0.0178 | AI169: 0 | AJ169: 0.0065 | AK169: 0.0046 | AL169: 0.0006 | AM169: 0 | AN169: 0.0034 | AO169: 0 | AP169: 0.002 | AQ169: 0 | AR169: 0.002 | AS169: 0.0102 | AT169: 0.0002 | AU169: 0 | AV169: 0.0047 | AW169: 0 | AX169: 0 | AY169: 0.024 | AZ169: 0.0009 | BA169: 0.009 | BB169: 0.0003 | BC169: 0.0117 | BD169: 0.0003 | BE169: 0.0021 | BF169: 0.0004 | BG169: 0.0027 | BH169: 0.0002 | BI169: 0.0014 | BJ169: 0.0002 | BK169: 0 | BL169: 0.0082 | BM169: 53.81 | BN169: 0.28
A170: #42 | B170: Mining Plus | C170: =C169+0.2 -> 3810.65 | D170: 994 | E170: 53.89 | F170: 47.91 | G170: 101.8 | H170: 3 | I170: 0 | J170: 0.58 | K170: 7.47 | L170: 0.09 | M170: 19.53 | N170: 0.07 | O170: 0 | P170: 0.0084 | Q170: 4.7114 | R170: 0.0185 | S170: 0 | T170: 0.0013 | U170: 9.06 | V170: 0.05 | W170: 3.4844 | X170: 0.0149 | Y170: 0.5041 | Z170: 0.0134 | AA170: 0.0356 | AB170: 0.0048 | AC170: 0.0235 | AD170: 0.0033 | AE170: 0.0221 | AF170: 0.0021 | AG170: 2.4436 | AH170: 0.0129 | AI170: 0 | AJ170: 0.0062 | AK170: 0.0054 | AL170: 0.0006 | AM170: 0 | AN170: 0.0036 | AO170: 0.005 | AP170: 0.0004 | AQ170: 0 | AR170: 0.0017 | AS170: 0.0262 | AT170: 0.0003 | AU170: 0 | AV170: 0.0048 | AW170: 0 | AX170: 0 | AY170: 0.0258 | AZ170: 0.0009 | BA170: 0.0099 | BB170: 0.0003 | BC170: 0.0133 | BD170: 0.0003 | BE170: 0.0025 | BF170: 0.0004 | BG170: 0.0013 | BH170: 0.0002 | BI170: 0.0025 | BJ170: 0.0002 | BK170: 0.0048 | BL170: 0.0006 | BM170: 52.61 | BN170: 0.14
A171: #43 | B171: Mining Plus | C171: =C170+0.2 -> 3810.85 | D171: 994 | E171: 53.52 | F171: 47.9 | G171: 101.42 | H171: 3 | I171: 0 | J171: 0.49 | K171: 0.5489 | L171: 0.0488 | M171: 28.05 | N171: 0.09 | O171: 1.2215 | P171: 0.0132 | Q171: 4.1582 | R171: 0.0168 | S171: 0 | T171: 0.0009 | U171: 0 | V171: 0.08 | W171: 8.9736 | X171: 0.0274 | Y171: 0.0453 | Z171: 0.0063 | AA171: 0.018 | AB171: 0.0032 | AC171: 0.0101 | AD171: 0.0027 | AE171: 0.1202 | AF171: 0.0035 | AG171: 1.1499 | AH171: 0.0081 | AI171: 0 | AJ171: 0.0043 | AK171: 0.0038 | AL171: 0.0005 | AM171: 0 | AN171: 0.0033 | AO171: 0 | AP171: 0.0019 | AQ171: 0 | AR171: 0.0018 | AS171: 0.0046 | AT171: 0.0001 | AU171: 0 | AV171: 0.0046 | AW171: 0 | AX171: 0 | AY171: 0.0264 | AZ171: 0.0008 | BA171: 0.0097 | BB171: 0.0003 | BC171: 0.0128 | BD171: 0.0003 | BE171: 0.0019 | BF171: 0.0004 | BG171: 0.0023 | BH171: 0.0002 | BI171: 0 | BJ171: 0.0054 | BK171: 0 | BL171: 0.0082 | BM171: 55.64 | BN171: 0.12
A172: #44 | B172: Mining Plus | C172: 3811 | D172: 994 | E172: 53.79 | F172: 48.81 | G172: 102.61 | H172: 3 | I172: 0 | J172: 0.51 | K172: 6.65 | L172: 0.08 | M172: 24.13 | N172: 0.08 | O172: 0 | P172: 0.0073 | Q172: 3.7994 | R172: 0.0156 | S172: 0 | T172: 0.0011 | U172: 10.04 | V172: 0.05 | W172: 2.8163 | X172: 0.013 | Y172: 0.371 | Z172: 0.0119 | AA172: 0.0391 | AB172: 0.0046 | AC172: 0.0195 | AD172: 0.0032 | AE172: 0.0156 | AF172: 0.0019 | AG172: 1.4631 | AH172: 0.0094 | AI172: 0.0063 | AJ172: 0.0011 | AK172: 0.003 | AL172: 0.0005 | AM172: 0 | AN172: 0.0034 | AO172: 0 | AP172: 0.0024 | AQ172: 0 | AR172: 0.0017 | AS172: 0.0272 | AT172: 0.0003 | AU172: 0 | AV172: 0.005 | AW172: 0 | AX172: 0 | AY172: 0.0242 | AZ172: 0.0009 | BA172: 0.0104 | BB172: 0.0003 | BC172: 0.0128 | BD172: 0.0003 | BE172: 0 | BF172: 0.0077 | BG172: 0.0012 | BH172: 0.0002 | BI172: 0.0023 | BJ172: 0.0002 | BK172: 0.0032 | BL172: 0.0006 | BM172: 50.57 | BN172: 0.13
A173: #45 | B173: Mining Plus | C173: 3811.25 | D173: 994 | E173: 53.85 | F173: 47.38 | G173: 101.22 | H173: 3 | I173: 0 | J173: 0.47 | K173: 5.43 | L173: 0.08 | M173: 20.69 | N173: 0.08 | O173: 1.7856 | P173: 0.0152 | Q173: 2.6705 | R173: 0.0131 | S173: 0 | T173: 0.001 | U173: 4.3839 | V173: 0.0415 | W173: 6.1689 | X173: 0.022 | Y173: 2.4942 | Z173: 0.0279 | AA173: 0 | AB173: 0.02 | AC173: 0.0225 | AD173: 0.0034 | AE173: 0.0607 | AF173: 0.0028 | AG173: 1.5708 | AH173: 0.0102 | AI173: 0.0078 | AJ173: 0.0011 | AK173: 0.0161 | AL173: 0.0008 | AM173: 0.0052 | AN173: 0.0007 | AO173: 0 | AP173: 0.0024 | AQ173: 0 | AR173: 0.003 | AS173: 0.0281 | AT173: 0.0003 | AU173: 0 | AV173: 0.0048 | AW173: 0 | AX173: 0 | AY173: 0.0273 | AZ173: 0.0009 | BA173: 0.0099 | BB173: 0.0003 | BC173: 0.0134 | BD173: 0.0003 | BE173: 0 | BF173: 0.0076 | BG173: 0.0099 | BH173: 0.0004 | BI173: 0.0028 | BJ173: 0.0002 | BK173: 0.0039 | BL173: 0.0006 | BM173: 54.6 | BN173: 0.14
A174: #46 | B174: Mining Plus | C174: =C173+0.2 -> 3811.45 | D174: 994 | E174: 53.91 | F174: 48.47 | G174: 102.38 | H174: 3 | I174: 0 | J174: 0.63 | K174: 8.92 | L174: 0.1 | M174: 19.78 | N174: 0.08 | O174: 0 | P174: 0.0081 | Q174: 3.3465 | R174: 0.0149 | S174: 0 | T174: 0.0013 | U174: 9.22 | V174: 0.05 | W174: 2.2134 | X174: 0.0118 | Y174: 0.5999 | Z174: 0.0144 | AA174: 0.0471 | AB174: 0.0052 | AC174: 0.0251 | AD174: 0.0034 | AE174: 0.0251 | AF174: 0.0022 | AG174: 3.0359 | AH174: 0.0149 | AI174: 0.0081 | AJ174: 0.0015 | AK174: 0.0057 | AL174: 0.0006 | AM174: 0 | AN174: 0.0035 | AO174: 0.0069 | AP174: 0.0005 | AQ174: 0 | AR174: 0.0017 | AS174: 0.023 | AT174: 0.0002 | AU174: 0 | AV174: 0.0048 | AW174: 0 | AX174: 0 | AY174: 0.0237 | AZ174: 0.0009 | BA174: 0.0102 | BB174: 0.0003 | BC174: 0.0127 | BD174: 0.0003 | BE174: 0.0022 | BF174: 0.0004 | BG174: 0.0019 | BH174: 0.0002 | BI174: 0.0029 | BJ174: 0.0002 | BK174: 0.0068 | BL174: 0.0007 | BM174: 52.69 | BN174: 0.14
A175: #47 | B175: Mining Plus | C175: 3811.65 | D175: 994 | E175: 53.77 | F175: 50.26 | G175: 104.03 | H175: 3 | I175: 0 | J175: 0.57 | K175: 5.75 | L175: 0.08 | M175: 28.61 | N175: 0.09 | O175: 0.3213 | P175: 0.0082 | Q175: 1.9945 | R175: 0.0111 | S175: 0 | T175: 0.0013 | U175: 8.06 | V175: 0.05 | W175: 1.7281 | X175: 0.0105 | Y175: 0.4699 | Z175: 0.0134 | AA175: 0.0269 | AB175: 0.0047 | AC175: 0.0213 | AD175: 0.0032 | AE175: 0.0237 | AF175: 0.0021 | AG175: 1.2314 | AH175: 0.0087 | AI175: 0 | AJ175: 0.0044 | AK175: 0.004 | AL175: 0.0005 | AM175: 0 | AN175: 0.0036 | AO175: 0 | AP175: 0.0023 | AQ175: 0 | AR175: 0.002 | AS175: 0.0358 | AT175: 0.0003 | AU175: 0 | AV175: 0.0052 | AW175: 0 | AX175: 0 | AY175: 0.0272 | AZ175: 0.0009 | BA175: 0.01 | BB175: 0.0003 | BC175: 0.0131 | BD175: 0.0003 | BE175: 0.0022 | BF175: 0.0004 | BG175: 0.0025 | BH175: 0.0002 | BI175: 0.003 | BJ175: 0.0002 | BK175: 0.003 | BL175: 0.0006 | BM175: 51.66 | BN175: 0.13
A176: #48 | B176: Mining Plus | C176: 3811.85 | D176: 994 | E176: 53.83 | F176: 49.34 | G176: 103.17 | H176: 3 | I176: 0 | J176: 0.62 | K176: 2.11 | L176: 0.06 | M176: 28.81 | N176: 0.09 | O176: 1.6644 | P176: 0.0155 | Q176: 4.9104 | R176: 0.0196 | S176: 0 | T176: 0.0011 | U176: 0.8254 | V176: 0.0367 | W176: 5.748 | X176: 0.0198 | Y176: 0.1781 | Z176: 0.009 | AA176: 0.0234 | AB176: 0.0039 | AC176: 0.015 | AD176: 0.0029 | AE176: 0.0444 | AF176: 0.0024 | AG176: 0.9167 | AH176: 0.0073 | AI176: 0 | AJ176: 0.0039 | AK176: 0.0033 | AL176: 0.0005 | AM176: 0.0033 | AN176: 0.0006 | AO176: 0 | AP176: 0.0021 | AQ176: 0 | AR176: 0.0023 | AS176: 0.0142 | AT176: 0.0002 | AU176: 0 | AV176: 0.0049 | AW176: 0 | AX176: 0 | AY176: 0.0252 | AZ176: 0.0008 | BA176: 0.0093 | BB176: 0.0003 | BC176: 0.0119 | BD176: 0.0003 | BE176: 0 | BF176: 0.0074 | BG176: 0.0044 | BH176: 0.0003 | BI176: 0.0019 | BJ176: 0.0002 | BK176: 0 | BL176: 0.0089 | BM176: 54.68 | BN176: 0.13
A177: #49 | B177: Mining Plus | C177: 3812.05 | D177: 994 | E177: 53.97 | F177: 49.65 | G177: 103.62 | H177: 3 | I177: 0 | J177: 0.62 | K177: 6.77 | L177: 0.09 | M177: 21.35 | N177: 0.08 | O177: 0.8154 | P177: 0.0107 | Q177: 1.8679 | R177: 0.0106 | S177: 0 | T177: 0.0013 | U177: 8.6997 | V177: 0.0498 | W177: 2.9884 | X177: 0.0138 | Y177: 0.5524 | Z177: 0.0143 | AA177: 0.0367 | AB177: 0.0051 | AC177: 0.0267 | AD177: 0.0035 | AE177: 0.0294 | AF177: 0.0023 | AG177: 2.0256 | AH177: 0.0119 | AI177: 0 | AJ177: 0.0057 | AK177: 0.0072 | AL177: 0.0006 | AM177: 0 | AN177: 0.0037 | AO177: 0.0039 | AP177: 0.0004 | AQ177: 0 | AR177: 0.0022 | AS177: 0.0298 | AT177: 0.0003 | AU177: 0 | AV177: 0.005 | AW177: 0 | AX177: 0 | AY177: 0.0252 | AZ177: 0.0009 | BA177: 0.0098 | BB177: 0.0003 | BC177: 0.0124 | BD177: 0.0003 | BE177: 0.0024 | BF177: 0.0004 | BG177: 0.0036 | BH177: 0.0003 | BI177: 0.0026 | BJ177: 0.0002 | BK177: 0.0038 | BL177: 0.0006 | BM177: 54.74 | BN177: 0.14
A178: #51 | B178: Mining Plus | C178: 3812.25 | D178: 993 | E178: 54.09 | F178: 49.57 | G178: 103.67 | H178: 3 | I178: 0 | J178: 0.66 | K178: 6.64 | L178: 0.09 | M178: 21.65 | N178: 0.08 | O178: 1.1257 | P178: 0.0126 | Q178: 1.3426 | R178: 0.0091 | S178: 0 | T178: 0.0013 | U178: 8.52 | V178: 0.05 | W178: 3.2676 | X178: 0.0149 | Y178: 0.4838 | Z178: 0.0138 | AA178: 0.0412 | AB178: 0.0051 | AC178: 0.0298 | AD178: 0.0037 | AE178: 0.0415 | AF178: 0.0026 | AG178: 2.735 | AH178: 0.0147 | AI178: 0.0082 | AJ178: 0.0015 | AK178: 0.008 | AL178: 0.0007 | AM178: 0.0039 | AN178: 0.0007 | AO178: 0.0045 | AP178: 0.0004 | AQ178: 0 | AR178: 0.0023 | AS178: 0.0462 | AT178: 0.0004 | AU178: 0 | AV178: 0.0053 | AW178: 0 | AX178: 0 | AY178: 0.0275 | AZ178: 0.0009 | BA178: 0.0101 | BB178: 0.0003 | BC178: 0.0132 | BD178: 0.0004 | BE178: 0 | BF178: 0.0077 | BG178: 0.0039 | BH178: 0.0003 | BI178: 0.0043 | BJ178: 0.0002 | BK178: 0.004 | BL178: 0.0007 | BM178: 53.99 | BN178: 0.14
A179: #52 | B179: Mining Plus | C179: 3812.45 | D179: 993 | E179: 53.82 | F179: 49.53 | G179: 103.35 | H179: 3 | I179: 0 | J179: 0.52 | K179: 7.91 | L179: 0.09 | M179: 26.71 | N179: 0.09 | O179: 0.0608 | P179: 0.0057 | Q179: 1.3732 | R179: 0.0088 | S179: 0 | T179: 0.0011 | U179: 11.38 | V179: 0.06 | W179: 0.8793 | X179: 0.0092 | Y179: 0.4951 | Z179: 0.0136 | AA179: 0.0348 | AB179: 0.0049 | AC179: 0.0171 | AD179: 0.0032 | AE179: 0.0197 | AF179: 0.002 | AG179: 2.0731 | AH179: 0.0117 | AI179: 0 | AJ179: 0.0056 | AK179: 0.005 | AL179: 0.0006 | AM179: 0.0156 | AN179: 0.0009 | AO179: 0.003 | AP179: 0.0004 | AQ179: 0 | AR179: 0.0017 | AS179: 0.0436 | AT179: 0.0003 | AU179: 0 | AV179: 0.0051 | AW179: 0 | AX179: 0 | AY179: 0.0266 | AZ179: 0.0009 | BA179: 0.0102 | BB179: 0.0003 | BC179: 0.0129 | BD179: 0.0003 | BE179: 0.0028 | BF179: 0.0004 | BG179: 0.0017 | BH179: 0.0002 | BI179: 0.0025 | BJ179: 0.0002 | BK179: 0.0046 | BL179: 0.0007 | BM179: 48.91 | BN179: 0.14
A180: #53 | B180: Mining Plus | C180: 3812.65 | D180: 994 | E180: 53.93 | F180: 47.42 | G180: 101.35 | H180: 3 | I180: 0 | J180: 0.59 | K180: 7.4 | L180: 0.09 | M180: 18.99 | N180: 0.07 | O180: 0.0792 | P180: 0.0062 | Q180: 5.135 | R180: 0.0198 | S180: 0 | T180: 0.0013 | U180: 8.75 | V180: 0.05 | W180: 3.8213 | X180: 0.0158 | Y180: 0.5485 | Z180: 0.0139 | AA180: 0.0527 | AB180: 0.0052 | AC180: 0.0203 | AD180: 0.0033 | AE180: 0.0293 | AF180: 0.0022 | AG180: 3.0031 | AH180: 0.0148 | AI180: 0.0113 | AJ180: 0.0015 | AK180: 0.0064 | AL180: 0.0007 | AM180: 0 | AN180: 0.0036 | AO180: 0.0063 | AP180: 0.0004 | AQ180: 0 | AR180: 0.0018 | AS180: 0.0296 | AT180: 0.0003 | AU180: 0 | AV180: 0.0049 | AW180: 0 | AX180: 0 | AY180: 0.0261 | AZ180: 0.0009 | BA180: 0.0097 | BB180: 0.0003 | BC180: 0.0128 | BD180: 0.0003 | BE180: 0 | BF180: 0.0078 | BG180: 0.0019 | BH180: 0.0002 | BI180: 0.0028 | BJ180: 0.0002 | BK180: 0.0056 | BL180: 0.0007 | BM180: 52.06 | BN180: 0.14
A181: #54 | B181: Mining Plus | C181: 3812.85 | D181: 994 | E181: 54.15 | F181: 50.9 | G181: 105.05 | H181: 3 | I181: 0 | J181: 0.69 | K181: 9.02 | L181: 0.1 | M181: 22.05 | N181: 0.09 | O181: 0.0191 | P181: 0.0049 | Q181: 0.3629 | R181: 0.0052 | S181: 0 | T181: 0.0014 | U181: 10.48 | V181: 0.06 | W181: 0.0744 | X181: 0.0073 | Y181: 0.5523 | Z181: 0.0145 | AA181: 0.0496 | AB181: 0.0053 | AC181: 0.0294 | AD181: 0.0037 | AE181: 0.0186 | AF181: 0.0021 | AG181: 2.6652 | AH181: 0.0144 | AI181: 0.009 | AJ181: 0.0015 | AK181: 0.0052 | AL181: 0.0007 | AM181: 0 | AN181: 0.0037 | AO181: 0.0057 | AP181: 0.0005 | AQ181: 0 | AR181: 0.0018 | AS181: 0.0299 | AT181: 0.0003 | AU181: 0 | AV181: 0.0049 | AW181: 0 | AX181: 0 | AY181: 0.0278 | AZ181: 0.0009 | BA181: 0.0106 | BB181: 0.0003 | BC181: 0.0135 | BD181: 0.0004 | BE181: 0.0028 | BF181: 0.0005 | BG181: 0.0013 | BH181: 0.0002 | BI181: 0.0032 | BJ181: 0.0002 | BK181: 0.0065 | BL181: 0.0007 | BM181: 54.57 | BN181: 0.15
A182: #55 | B182: Mining Plus | C182: 3813.05 | D182: 994 | E182: 53.63 | F182: 48.81 | G182: 102.44 | H182: 3 | I182: 0 | J182: 0.5 | K182: 0.76 | L182: 0.05 | M182: 32.24 | N182: 0.1 | O182: 0.1679 | P182: 0.008 | Q182: 2.5552 | R182: 0.0126 | S182: 0 | T182: 0.001 | U182: 0 | V182: 0.09 | W182: 7.0568 | X182: 0.0224 | Y182: 0.0813 | Z182: 0.0071 | AA182: 0.0144 | AB182: 0.0033 | AC182: 0.0112 | AD182: 0.0027 | AE182: 0.1329 | AF182: 0.0036 | AG182: 1.3758 | AH182: 0.0089 | AI182: 0 | AJ182: 0.0044 | AK182: 0.0017 | AL182: 0.0004 | AM182: 0 | AN182: 0.0031 | AO182: 0 | AP182: 0.0018 | AQ182: 0 | AR182: 0.0014 | AS182: 0.0084 | AT182: 0.0002 | AU182: 0 | AV182: 0.0046 | AW182: 0 | AX182: 0 | AY182: 0.0253 | AZ182: 0.0008 | BA182: 0.0095 | BB182: 0.0003 | BC182: 0.0115 | BD182: 0.0003 | BE182: 0 | BF182: 0.007 | BG182: 0.0005 | BH182: 0.0002 | BI182: 0 | BJ182: 0.005 | BK182: 0 | BL182: 0.0075 | BM182: 55.55 | BN182: 0.12
A183: #56 | B183: Mining Plus | C183: 3813.25 | D183: 994 | E183: 53.81 | F183: 47.81 | G183: 101.62 | H183: 3 | I183: 0 | J183: 0.58 | K183: 0.97 | L183: 0.05 | M183: 25.22 | N183: 0.08 | O183: 1.7139 | P183: 0.0151 | Q183: 6.9674 | R183: 0.0247 | S183: 0 | T183: 0.0011 | U183: 0 | V183: 0.09 | W183: 8.0932 | X183: 0.0257 | Y183: 0.1026 | Z183: 0.0075 | AA183: 0.0261 | AB183: 0.0036 | AC183: 0.0218 | AD183: 0.003 | AE183: 0.0403 | AF183: 0.0023 | AG183: 1.325 | AH183: 0.0088 | AI183: 0.006 | AJ183: 0.001 | AK183: 0.0055 | AL183: 0.0005 | AM183: 0 | AN183: 0.0035 | AO183: 0 | AP183: 0.002 | AQ183: 0 | AR183: 0.0022 | AS183: 0.0149 | AT183: 0.0002 | AU183: 0 | AV183: 0.0048 | AW183: 0 | AX183: 0 | AY183: 0.0204 | AZ183: 0.0008 | BA183: 0.0085 | BB183: 0.0003 | BC183: 0.0118 | BD183: 0.0003 | BE183: 0 | BF183: 0.0074 | BG183: 0.0041 | BH183: 0.0002 | BI183: 0.0014 | BJ183: 0.0002 | BK183: 0 | BL183: 0.0089 | BM183: 55.45 | BN183: 0.13
A184: #57 | B184: Mining Plus | C184: 3813.45 | D184: 994 | E184: 53.53 | F184: 48.88 | G184: 102.41 | H184: 3 | I184: 0 | J184: 0.53 | K184: 0.3367 | L184: 0.0456 | M184: 28.32 | N184: 0.09 | O184: 2.7304 | P184: 0.0188 | Q184: 4.7449 | R184: 0.0187 | S184: 0 | T184: 0.001 | U184: 0 | V184: 0.08 | W184: 7.666 | X184: 0.0243 | Y184: 0.0646 | Z184: 0.0068 | AA184: 0.0279 | AB184: 0.0036 | AC184: 0.0171 | AD184: 0.003 | AE184: 0.0663 | AF184: 0.0028 | AG184: 1.3362 | AH184: 0.0089 | AI184: 0.0062 | AJ184: 0.001 | AK184: 0.0074 | AL184: 0.0006 | AM184: 0.005 | AN184: 0.0006 | AO184: 0 | AP184: 0.002 | AQ184: 0 | AR184: 0.0026 | AS184: 0.0113 | AT184: 0.0002 | AU184: 0 | AV184: 0.0047 | AW184: 0 | AX184: 0 | AY184: 0.026 | AZ184: 0.0008 | BA184: 0.0098 | BB184: 0.0003 | BC184: 0.0135 | BD184: 0.0003 | BE184: 0.002 | BF184: 0.0004 | BG184: 0.0066 | BH184: 0.0003 | BI184: 0.0013 | BJ184: 0.0002 | BK184: 0 | BL184: 0.0086 | BM184: 54.6 | BN184: 0.13
A185: #58 | B185: Mining Plus | C185: 3813.65 | D185: 994 | E185: 53.38 | F185: 51.86 | G185: 105.23 | H185: 3 | I185: 0 | J185: 0.62 | K185: 0.2289 | L185: 0.0457 | M185: 35.13 | N185: 0.1 | O185: 0.5575 | P185: 0.0103 | Q185: 3.5791 | R185: 0.0157 | S185: 0 | T185: 0.0011 | U185: 0 | V185: 0.09 | W185: 2.6502 | X185: 0.0111 | Y185: 0.0473 | Z185: 0.0062 | AA185: 0.0182 | AB185: 0.0033 | AC185: 0.0117 | AD185: 0.0026 | AE185: 0.0176 | AF185: 0.0017 | AG185: 0.4785 | AH185: 0.0049 | AI185: 0 | AJ185: 0.0027 | AK185: 0.0024 | AL185: 0.0004 | AM185: 0.0028 | AN185: 0.0005 | AO185: 0 | AP185: 0.0018 | AQ185: 0 | AR185: 0.0015 | AS185: 0.0037 | AT185: 0.0001 | AU185: 0 | AV185: 0.0045 | AW185: 0 | AX185: 0 | AY185: 0.025 | AZ185: 0.0008 | BA185: 0.0098 | BB185: 0.0003 | BC185: 0.0121 | BD185: 0.0003 | BE185: 0 | BF185: 0.0069 | BG185: 0.0012 | BH185: 0.0002 | BI185: 0 | BJ185: 0.005 | BK185: 0 | BL185: 0.0074 | BM185: 57.22 | BN185: 0.12
A186: #59 | B186: Mining Plus | C186: 3813.85 | D186: 994 | E186: 53.32 | F186: 52.18 | G186: 105.49 | H186: 3 | I186: 0 | J186: 0.69 | K186: 1.04 | L186: 0.06 | M186: 34.95 | N186: 0.1 | O186: 0.0772 | P186: 0.0069 | Q186: 3.2551 | R186: 0.0152 | S186: 0 | T186: 0.0012 | U186: 0 | V186: 0.12 | W186: 1.6253 | X186: 0.0087 | Y186: 0.0734 | Z186: 0.0069 | AA186: 0.0254 | AB186: 0.0035 | AC186: 0.0196 | AD186: 0.0029 | AE186: 0.0115 | AF186: 0.0016 | AG186: 0.7043 | AH186: 0.0061 | AI186: 0 | AJ186: 0.0032 | AK186: 0.0029 | AL186: 0.0004 | AM186: 0 | AN186: 0.0031 | AO186: 0 | AP186: 0.0018 | AQ186: 0 | AR186: 0.0015 | AS186: 0.0073 | AT186: 0.0001 | AU186: 0 | AV186: 0.0045 | AW186: 0 | AX186: 0 | AY186: 0.0266 | AZ186: 0.0008 | BA186: 0.0098 | BB186: 0.0003 | BC186: 0.0126 | BD186: 0.0003 | BE186: 0 | BF186: 0.007 | BG186: 0.0012 | BH186: 0.0002 | BI186: 0.0013 | BJ186: 0.0002 | BK186: 0 | BL186: 0.0074 | BM186: 58.15 | BN186: 0.12
A187: #60 | B187: Mining Plus | C187: 3814.05 | D187: 994 | E187: 52.73 | F187: 51.87 | G187: 104.6 | H187: 3 | I187: 0 | J187: 0.61 | K187: 1.17 | L187: 0.05 | M187: 35.41 | N187: 0.1 | O187: 0.297 | P187: 0.0082 | Q187: 2.5251 | R187: 0.0125 | S187: 0 | T187: 0.0013 | U187: 0 | V187: 0.1 | W187: 1.2023 | X187: 0.0072 | Y187: 0.5753 | Z187: 0.0132 | AA187: 0.0312 | AB187: 0.0046 | AC187: 0.0234 | AD187: 0.003 | AE187: 0.0128 | AF187: 0.0016 | AG187: 0.3495 | AH187: 0.0041 | AI187: 0 | AJ187: 0.0022 | AK187: 0.0035 | AL187: 0.0004 | AM187: 0 | AN187: 0.0029 | AO187: 0 | AP187: 0.0016 | AQ187: 0 | AR187: 0.0015 | AS187: 0.0025 | AT187: 0.0001 | AU187: 0 | AV187: 0.0042 | AW187: 0 | AX187: 0 | AY187: 0.0259 | AZ187: 0.0008 | BA187: 0.0097 | BB187: 0.0003 | BC187: 0.013 | BD187: 0.0003 | BE187: 0 | BF187: 0.0064 | BG187: 0.0013 | BH187: 0.0002 | BI187: 0 | BJ187: 0.0048 | BK187: 0 | BL187: 0.0074 | BM187: 58.35 | BN187: 0.11
A188: #61 | B188: Mining Plus | C188: 3814.25 | D188: 994 | E188: 52.76 | F188: 52.43 | G188: 105.19 | H188: 3 | I188: 0 | J188: 0.56 | K188: 0 | L188: 0.08 | M188: 40.28 | N188: 0.1 | O188: 0.0196 | P188: 0.0062 | Q188: 2.6201 | R188: 0.0127 | S188: 0 | T188: 0.0009 | U188: 0 | V188: 0.08 | W188: 0.8888 | X188: 0.0066 | Y188: 0.0437 | Z188: 0.006 | AA188: 0.0227 | AB188: 0.0033 | AC188: 0.015 | AD188: 0.0027 | AE188: 0.0102 | AF188: 0.0015 | AG188: 0.2283 | AH188: 0.0033 | AI188: 0 | AJ188: 0.0019 | AK188: 0 | AL188: 0.0018 | AM188: 0 | AN188: 0.0029 | AO188: 0 | AP188: 0.0016 | AQ188: 0 | AR188: 0.0013 | AS188: 0.0022 | AT188: 0.0001 | AU188: 0 | AV188: 0.0042 | AW188: 0 | AX188: 0 | AY188: 0.0249 | AZ188: 0.0008 | BA188: 0.0095 | BB188: 0.0003 | BC188: 0.0126 | BD188: 0.0003 | BE188: 0 | BF188: 0.0064 | BG188: 0.0005 | BH188: 0.0002 | BI188: 0 | BJ188: 0.0045 | BK188: 0 | BL188: 0.007 | BM188: 55.82 | BN188: 0.11
A189: #62 | B189: Mining Plus | C189: 3814.45 | D189: 994 | E189: 53.02 | F189: 51.44 | G189: 104.46 | H189: 3 | I189: 0 | J189: 0.57 | K189: 0.0928 | L189: 0.0424 | M189: 33.9 | N189: 0.1 | O189: 0.296 | P189: 0.0084 | Q189: 4.8803 | R189: 0.0185 | S189: 0 | T189: 0.001 | U189: 0 | V189: 0.08 | W189: 3.1166 | X189: 0.0119 | Y189: 0.0562 | Z189: 0.0062 | AA189: 0.022 | AB189: 0.0033 | AC189: 0.0201 | AD189: 0.0028 | AE189: 0.0134 | AF189: 0.0016 | AG189: 0.2183 | AH189: 0.0032 | AI189: 0 | AJ189: 0.0019 | AK189: 0.002 | AL189: 0.0004 | AM189: 0 | AN189: 0.0029 | AO189: 0 | AP189: 0.0016 | AQ189: 0 | AR189: 0.0016 | AS189: 0.0034 | AT189: 0.0001 | AU189: 0 | AV189: 0.0044 | AW189: 0 | AX189: 0 | AY189: 0.0253 | AZ189: 0.0008 | BA189: 0.0099 | BB189: 0.0003 | BC189: 0.0126 | BD189: 0.0003 | BE189: 0 | BF189: 0.0069 | BG189: 0.0016 | BH189: 0.0002 | BI189: 0 | BJ189: 0.0049 | BK189: 0 | BL189: 0.0071 | BM189: 57.33 | BN189: 0.11
A190: #63 | B190: Mining Plus | C190: 3814.65 | D190: 994 | E190: 53.04 | F190: 51.18 | G190: 104.22 | H190: 3 | I190: 0 | J190: 0.6 | K190: 0 | L190: 0.08 | M190: 32.81 | N190: 0.09 | O190: 0.2705 | P190: 0.0082 | Q190: 5.1092 | R190: 0.019 | S190: 0 | T190: 0.001 | U190: 0 | V190: 0.08 | W190: 3.3027 | X190: 0.0123 | Y190: 0.0503 | Z190: 0.0061 | AA190: 0.0208 | AB190: 0.0033 | AC190: 0.015 | AD190: 0.0027 | AE190: 0.0182 | AF190: 0.0017 | AG190: 0.2347 | AH190: 0.0034 | AI190: 0 | AJ190: 0.0019 | AK190: 0.0024 | AL190: 0.0004 | AM190: 0 | AN190: 0.003 | AO190: 0 | AP190: 0.0018 | AQ190: 0 | AR190: 0.0015 | AS190: 0.003 | AT190: 0.0001 | AU190: 0 | AV190: 0.0043 | AW190: 0 | AX190: 0 | AY190: 0.025 | AZ190: 0.0008 | BA190: 0.0096 | BB190: 0.0003 | BC190: 0.0125 | BD190: 0.0003 | BE190: 0 | BF190: 0.0069 | BG190: 0.0012 | BH190: 0.0002 | BI190: 0.001 | BJ190: 0.0001 | BK190: 0 | BL190: 0.0073 | BM190: 58.11 | BN190: 0.11
A191: #64 | B191: Mining Plus | C191: 3814.85 | D191: 994 | E191: 53.17 | F191: 52.31 | G191: 105.48 | H191: 3 | I191: 0 | J191: 0.6 | K191: 0 | L191: 0.09 | M191: 34.98 | N191: 0.1 | O191: 0 | P191: 0.0087 | Q191: 4.0102 | R191: 0.0165 | S191: 0 | T191: 0.0011 | U191: 0 | V191: 0.08 | W191: 1.9702 | X191: 0.0091 | Y191: 0.055 | Z191: 0.0061 | AA191: 0.0208 | AB191: 0.0033 | AC191: 0.0171 | AD191: 0.0027 | AE191: 0.0079 | AF191: 0.0014 | AG191: 0.1622 | AH191: 0.0028 | AI191: 0 | AJ191: 0.0017 | AK191: 0.002 | AL191: 0.0004 | AM191: 0 | AN191: 0.003 | AO191: 0 | AP191: 0.0016 | AQ191: 0 | AR191: 0.0013 | AS191: 0.002 | AT191: 0.0001 | AU191: 0 | AV191: 0.0043 | AW191: 0 | AX191: 0 | AY191: 0.0257 | AZ191: 0.0008 | BA191: 0.0095 | BB191: 0.0003 | BC191: 0.0127 | BD191: 0.0003 | BE191: 0 | BF191: 0.0069 | BG191: 0 | BH191: 0.0051 | BI191: 0 | BJ191: 0.0048 | BK191: 0 | BL191: 0.0071 | BM191: 58.73 | BN191: 0.11
A192: #65 | B192: Mining Plus | C192: 3815.05 | D192: 994 | E192: 53.12 | F192: 52.91 | G192: 106.03 | H192: 3 | I192: 0 | J192: 0.62 | K192: 0 | L192: 0.08 | M192: 37.79 | N192: 0.1 | O192: 0 | P192: 0.0076 | Q192: 2.7943 | R192: 0.0135 | S192: 0 | T192: 0.001 | U192: 0 | V192: 0.09 | W192: 1.0922 | X192: 0.0071 | Y192: 0.0364 | Z192: 0.0058 | AA192: 0.0202 | AB192: 0.0032 | AC192: 0.0144 | AD192: 0.0027 | AE192: 0.0082 | AF192: 0.0014 | AG192: 0.1535 | AH192: 0.0027 | AI192: 0.0021 | AJ192: 0.0004 | AK192: 0.0015 | AL192: 0.0004 | AM192: 0 | AN192: 0.0029 | AO192: 0 | AP192: 0.0016 | AQ192: 0 | AR192: 0.0013 | AS192: 0.0017 | AT192: 0.0001 | AU192: 0 | AV192: 0.0043 | AW192: 0 | AX192: 0 | AY192: 0.0252 | AZ192: 0.0008 | BA192: 0.0097 | BB192: 0.0003 | BC192: 0.0133 | BD192: 0.0003 | BE192: 0 | BF192: 0.0067 | BG192: 0 | BH192: 0.0051 | BI192: 0 | BJ192: 0.0046 | BK192: 0 | BL192: 0.0073 | BM192: 58.04 | BN192: 0.11
A193: #66 | B193: Mining Plus | C193: 3815.25 | D193: 994 | E193: 53.12 | F193: 50.6 | G193: 103.72 | H193: 3 | I193: 0 | J193: 0.57 | K193: 0.1898 | L193: 0.0434 | M193: 34.77 | N193: 0.1 | O193: 0.0707 | P193: 0.0068 | Q193: 3.528 | R193: 0.0149 | S193: 0 | T193: 0.0009 | U193: 0 | V193: 0.08 | W193: 3.9513 | X193: 0.0139 | Y193: 0.0602 | Z193: 0.0062 | AA193: 0.0172 | AB193: 0.0031 | AC193: 0.0101 | AD193: 0.0025 | AE193: 0.0687 | AF193: 0.0026 | AG193: 0.702 | AH193: 0.0058 | AI193: 0 | AJ193: 0.0032 | AK193: 0.0013 | AL193: 0.0004 | AM193: 0 | AN193: 0.003 | AO193: 0 | AP193: 0.0016 | AQ193: 0 | AR193: 0.0013 | AS193: 0.0023 | AT193: 0.0001 | AU193: 0 | AV193: 0.0043 | AW193: 0 | AX193: 0 | AY193: 0.0257 | AZ193: 0.0008 | BA193: 0.0101 | BB193: 0.0003 | BC193: 0.0127 | BD193: 0.0003 | BE193: 0 | BF193: 0.0069 | BG193: 0 | BH193: 0.005 | BI193: 0 | BJ193: 0.005 | BK193: 0 | BL193: 0.0076 | BM193: 56.58 | BN193: 0.11
A194: #68 | B194: Mining Plus | C194: 3815.45 | D194: 994 | E194: 53.54 | F194: 47.99 | G194: 101.53 | H194: 3 | I194: 0 | J194: 0.59 | K194: 4.15 | L194: 0.07 | M194: 25.72 | N194: 0.08 | O194: 0.5802 | P194: 0.0099 | Q194: 5.6038 | R194: 0.0209 | S194: 0 | T194: 0.0012 | U194: 3.7118 | V194: 0.0412 | W194: 4.9958 | X194: 0.0179 | Y194: 0.4085 | Z194: 0.0121 | AA194: 0.0292 | AB194: 0.0044 | AC194: 0.0257 | AD194: 0.0032 | AE194: 0.0338 | AF194: 0.0022 | AG194: 2.0278 | AH194: 0.0113 | AI194: 0.0064 | AJ194: 0.0012 | AK194: 0.004 | AL194: 0.0005 | AM194: 0 | AN194: 0.0035 | AO194: 0 | AP194: 0.0023 | AQ194: 0 | AR194: 0.002 | AS194: 0.0378 | AT194: 0.0003 | AU194: 0 | AV194: 0.005 | AW194: 0 | AX194: 0 | AY194: 0.0253 | AZ194: 0.0008 | BA194: 0.0099 | BB194: 0.0003 | BC194: 0.0129 | BD194: 0.0003 | BE194: 0.0024 | BF194: 0.0004 | BG194: 0.0029 | BH194: 0.0002 | BI194: 0.0027 | BJ194: 0.0002 | BK194: 0.003 | BL194: 0.0006 | BM194: 52.61 | BN194: 0.13
A195: #69 | B195: Mining Plus | C195: 3815.65 | D195: 994 | E195: 53.73 | F195: 47.99 | G195: 101.72 | H195: 3 | I195: 0 | J195: 0.59 | K195: 4.43 | L195: 0.07 | M195: 23.51 | N195: 0.08 | O195: 0.4754 | P195: 0.0091 | Q195: 5.8384 | R195: 0.0213 | S195: 0 | T195: 0.0012 | U195: 5.2952 | V195: 0.0424 | W195: 4.9317 | X195: 0.0178 | Y195: 0.3809 | Z195: 0.0118 | AA195: 0.0277 | AB195: 0.0043 | AC195: 0.0185 | AD195: 0.003 | AE195: 0.0184 | AF195: 0.0019 | AG195: 1.5649 | AH195: 0.0097 | AI195: 0 | AJ195: 0.005 | AK195: 0.0029 | AL195: 0.0005 | AM195: 0 | AN195: 0.0034 | AO195: 0 | AP195: 0.0024 | AQ195: 0 | AR195: 0.0017 | AS195: 0.0331 | AT195: 0.0003 | AU195: 0 | AV195: 0.005 | AW195: 0 | AX195: 0 | AY195: 0.0249 | AZ195: 0.0008 | BA195: 0.0096 | BB195: 0.0003 | BC195: 0.0122 | BD195: 0.0003 | BE195: 0.0034 | BF195: 0.0004 | BG195: 0.002 | BH195: 0.0002 | BI195: 0.0025 | BJ195: 0.0002 | BK195: 0.003 | BL195: 0.0005 | BM195: 53.41 | BN195: 0.13
A196: #70 | B196: Mining Plus | C196: 3815.85 | D196: 994 | E196: 53.88 | F196: 49.49 | G196: 103.38 | H196: 3 | I196: 0 | J196: 0.64 | K196: 5.59 | L196: 0.08 | M196: 24.33 | N196: 0.09 | O196: 0.2939 | P196: 0.0081 | Q196: 3.9455 | R196: 0.0169 | S196: 0 | T196: 0.0013 | U196: 5.2387 | V196: 0.0449 | W196: 3.4154 | X196: 0.0144 | Y196: 0.5098 | Z196: 0.0135 | AA196: 0.0449 | AB196: 0.005 | AC196: 0.0209 | AD196: 0.0033 | AE196: 0.0264 | AF196: 0.0021 | AG196: 2.0853 | AH196: 0.0118 | AI196: 0.0084 | AJ196: 0.0013 | AK196: 0.0039 | AL196: 0.0006 | AM196: 0 | AN196: 0.0034 | AO196: 0.0043 | AP196: 0.0004 | AQ196: 0 | AR196: 0.0018 | AS196: 0.0287 | AT196: 0.0003 | AU196: 0 | AV196: 0.005 | AW196: 0 | AX196: 0 | AY196: 0.0256 | AZ196: 0.0009 | BA196: 0.0094 | BB196: 0.0003 | BC196: 0.0134 | BD196: 0.0003 | BE196: 0 | BF196: 0.0075 | BG196: 0.002 | BH196: 0.0002 | BI196: 0.0029 | BJ196: 0.0002 | BK196: 0.0044 | BL196: 0.0006 | BM196: 54.4 | BN196: 0.14
A197: #71 | B197: Mining Plus | C197: 3816.05 | D197: 994 | E197: 52.91 | F197: 50.76 | G197: 103.67 | H197: 3 | I197: 0 | J197: 0.54 | K197: 0.2656 | L197: 0.0432 | M197: 34.49 | N197: 0.09 | O197: 0.8453 | P197: 0.0114 | Q197: 4.3269 | R197: 0.017 | S197: 0 | T197: 0.0009 | U197: 0 | V197: 0.08 | W197: 3.8343 | X197: 0.0136 | Y197: 0.0452 | Z197: 0.006 | AA197: 0.0281 | AB197: 0.0034 | AC197: 0.0223 | AD197: 0.0029 | AE197: 0.0253 | AF197: 0.0019 | AG197: 0.5019 | AH197: 0.0049 | AI197: 0 | AJ197: 0.0027 | AK197: 0.0031 | AL197: 0.0004 | AM197: 0 | AN197: 0.0031 | AO197: 0 | AP197: 0.0017 | AQ197: 0 | AR197: 0.0017 | AS197: 0.0043 | AT197: 0.0001 | AU197: 0 | AV197: 0.0043 | AW197: 0 | AX197: 0 | AY197: 0.0269 | AZ197: 0.0008 | BA197: 0.0102 | BB197: 0.0003 | BC197: 0.013 | BD197: 0.0003 | BE197: 0 | BF197: 0.0069 | BG197: 0.0022 | BH197: 0.0002 | BI197: 0 | BJ197: 0.0048 | BK197: 0 | BL197: 0.0075 | BM197: 55.56 | BN197: 0.11
A198: #72 | B198: Mining Plus | C198: 3816.25 | D198: 994 | E198: 53.13 | F198: 51.32 | G198: 104.45 | H198: 3 | I198: 0 | J198: 0.57 | K198: 1.36 | L198: 0.05 | M198: 38.96 | N198: 0.1 | O198: 0.0215 | P198: 0.0066 | Q198: 3.5199 | R198: 0.0154 | S198: 0 | T198: 0.001 | U198: 0 | V198: 0.11 | W198: 1.5069 | X198: 0.0084 | Y198: 0.0733 | Z198: 0.0068 | AA198: 0.032 | AB198: 0.0036 | AC198: 0.0221 | AD198: 0.003 | AE198: 0.0102 | AF198: 0.0016 | AG198: 0.8346 | AH198: 0.0065 | AI198: 0 | AJ198: 0.0034 | AK198: 0.002 | AL198: 0.0004 | AM198: 0 | AN198: 0.003 | AO198: 0 | AP198: 0.0017 | AQ198: 0 | AR198: 0.0013 | AS198: 0.0085 | AT198: 0.0001 | AU198: 0 | AV198: 0.0044 | AW198: 0 | AX198: 0 | AY198: 0.0261 | AZ198: 0.0008 | BA198: 0.0091 | BB198: 0.0003 | BC198: 0.0124 | BD198: 0.0003 | BE198: 0 | BF198: 0.0067 | BG198: 0 | BH198: 0.0051 | BI198: 0.0014 | BJ198: 0.0002 | BK198: 0 | BL198: 0.0074 | BM198: 53.6 | BN198: 0.12
A199: #73 | B199: Mining Plus | C199: 3816.45 | D199: 994 | E199: 52.78 | F199: 52.75 | G199: 105.54 | H199: 3 | I199: 0 | J199: 0.55 | K199: 0.3092 | L199: 0.0456 | M199: 42.38 | N199: 0.11 | O199: 0 | P199: 0.0069 | Q199: 1.7381 | R199: 0.0104 | S199: 0 | T199: 0.0009 | U199: 0 | V199: 0.09 | W199: 0.3804 | X199: 0.0056 | Y199: 0.0497 | Z199: 0.0061 | AA199: 0.0246 | AB199: 0.0033 | AC199: 0.0211 | AD199: 0.0029 | AE199: 0.0101 | AF199: 0.0015 | AG199: 0.2792 | AH199: 0.0036 | AI199: 0 | AJ199: 0.002 | AK199: 0.0018 | AL199: 0.0004 | AM199: 0 | AN199: 0.0029 | AO199: 0 | AP199: 0.0016 | AQ199: 0 | AR199: 0.0012 | AS199: 0.0019 | AT199: 0.0001 | AU199: 0 | AV199: 0.0043 | AW199: 0 | AX199: 0 | AY199: 0.0264 | AZ199: 0.0008 | BA199: 0.0098 | BB199: 0.0003 | BC199: 0.0126 | BD199: 0.0003 | BE199: 0 | BF199: 0.0063 | BG199: 0 | BH199: 0.0047 | BI199: 0 | BJ199: 0.0047 | BK199: 0 | BL199: 0.0071 | BM199: 54.76 | BN199: 0.11
A200: #74 | B200: Mining Plus | C200: 3816.65 | D200: 994 | E200: 53.26 | F200: 51.3 | G200: 104.56 | H200: 3 | I200: 0 | J200: 0.62 | K200: 1.69 | L200: 0.06 | M200: 34.7 | N200: 0.1 | O200: 0.1653 | P200: 0.0079 | Q200: 4.325 | R200: 0.0179 | S200: 0 | T200: 0.0012 | U200: 0 | V200: 0.12 | W200: 2.6172 | X200: 0.0112 | Y200: 0.1479 | Z200: 0.0083 | AA200: 0.0228 | AB200: 0.0037 | AC200: 0.0203 | AD200: 0.003 | AE200: 0.0131 | AF200: 0.0016 | AG200: 0.3441 | AH200: 0.0042 | AI200: 0 | AJ200: 0.0024 | AK200: 0.0028 | AL200: 0.0004 | AM200: 0 | AN200: 0.0032 | AO200: 0 | AP200: 0.0018 | AQ200: 0 | AR200: 0.0014 | AS200: 0.0308 | AT200: 0.0002 | AU200: 0 | AV200: 0.0049 | AW200: 0 | AX200: 0 | AY200: 0.0252 | AZ200: 0.0008 | BA200: 0.0103 | BB200: 0.0003 | BC200: 0.012 | BD200: 0.0003 | BE200: 0 | BF200: 0.0072 | BG200: 0 | BH200: 0.0055 | BI200: 0.0013 | BJ200: 0.0002 | BK200: 0 | BL200: 0.0079 | BM200: 55.87 | BN200: 0.12
... 743 more rows

Sheet All Data (% and ppm)
A1: HOLEID | B1: Reading | C1: Mode | D1: DEPTH (ft) | E1: Gap | F1: Ambient Pressure | G1: Live Time 1 | H1: Live Time 2 | I1: Live Time Total | J1: LOD Sigma | K1: Mg | L1: Mg +/- | M1: Al | N1: Al +/- | O1: Si | P1: Si +/- | Q1: P | R1: P +/- | S1: S | T1: S +/- | U1: Cl | V1: Cl +/- | W1: K | X1: K +/- | Y1: Ca | Z1: Ca +/- | AA1: Ti | AB1: Ti +/- | AC1: V | AD1: V +/- | AE1: Cr | AF1: Cr +/- | AG1: Mn | AH1: Mn +/- | AI1: Fe | AJ1: Fe +/- | AK1: Co | AL1: Co +/- | AM1: Ni | AN1: Ni +/- | AO1: Cu | AP1: Cu +/- | AQ1: Zn | AR1: Zn +/- | AS1: As | AT1: As +/- | AU1: Zr | AV1: Zr +/- | AW1: Mo | AX1: Mo +/- | AY1: Ag | AZ1: Ag +/- | BA1: Cd | BB1: Cd +/- | BC1: Sn | BD1: Sn +/- | BE1: Sb | BF1: Sb +/- | BG1: W | BH1: W +/- | BI1: Pb | BJ1: Pb +/- | BK1: Bi | BL1: Bi +/- | BM1: Hf | BN1: Hf +/- | BO1: LE | BP1: LE +/-
K2: ppm | L2: ppm | M2: % | N2: % | O2: % | P2: % | Q2: % | R2: % | S2: % | T2: % | U2: % | V2: % | W2: % | X2: % | Y2: % | Z2: % | AA2: % | AB2: % | AC2: ppm | AD2: ppm | AE2: ppm | AF2: ppm | AG2: ppm | AH2: ppm | AI2: % | AJ2: % | AK2: ppm | AL2: ppm | AM2: ppm | AN2: ppm | AO2: ppm | AP2: ppm | AQ2: ppm | AR2: ppm | AS2: ppm | AT2: ppm | AU2: ppm | AV2: ppm | AW2: ppm | AX2: ppm | AY2: ppm | AZ2: ppm | BA2: ppm | BB2: ppm | BC2: ppm | BD2: ppm | BE2: ppm | BF2: ppm | BG2: ppm | BH2: ppm | BI2: ppm | BJ2: ppm | BK2: ppm | BL2: ppm | BM2: ppm | BO2: % | BP2: %
A3: FGEN1 | B3: #37 | C3: Mining Plus | D3: 3772.05 | E3: -- | F3: 990 | G3: 53.53 | H3: 51.43 | I3: 104.96 | J3: 3 | K3: =IF('All Data %'!I$2<0.1,'All Data %'!I4*10000,'All Data %'!I4) -> 0 | L3: =IF('All Data %'!J$2<0.1,'All Data %'!J4*10000,'All Data %'!J4) -> 6600 | M3: =IF('All Data %'!K$2<0.1,'All Data %'!K4*10000,'All Data %'!K4) -> 1.6 | N3: =IF('All Data %'!L$2<0.1,'All Data %'!L4*10000,'All Data %'!L4) -> 600 | O3: =IF('All Data %'!M$2<0.1,'All Data %'!M4*10000,'All Data %'!M4) -> 33.77 | P3: =IF('All Data %'!N$2<0.1,'All Data %'!N4*10000,'All Data %'!N4) -> 1000 | Q3: =IF('All Data %'!O$2<0.1,'All Data %'!O4*10000,'All Data %'!O4) -> 0.6222 | R3: =IF('All Data %'!P$2<0.1,'All Data %'!P4*10000,'All Data %'!P4) -> 108 | S3: =IF('All Data %'!Q$2<0.1,'All Data %'!Q4*10000,'All Data %'!Q4) -> 3.0842 | T3: =IF('All Data %'!R$2<0.1,'All Data %'!R4*10000,'All Data %'!R4) -> 148 | U3: =IF('All Data %'!S$2<0.1,'All Data %'!S4*10000,'All Data %'!S4) -> 0 | V3: =IF('All Data %'!T$2<0.1,'All Data %'!T4*10000,'All Data %'!T4) -> 12 | W3: =IF('All Data %'!U$2<0.1,'All Data %'!U4*10000,'All Data %'!U4) -> 0 | X3: =IF('All Data %'!V$2<0.1,'All Data %'!V4*10000,'All Data %'!V4) -> 1300 | Y3: =IF('All Data %'!W$2<0.1,'All Data %'!W4*10000,'All Data %'!W4) -> 2.4578 | Z3: =IF('All Data %'!X$2<0.1,'All Data %'!X4*10000,'All Data %'!X4) -> 109 | AA3: =IF('All Data %'!Y$2<0.1,'All Data %'!Y4*10000,'All Data %'!Y4) -> 0.065 | AB3: =IF('All Data %'!Z$2<0.1,'All Data %'!Z4*10000,'All Data %'!Z4) -> 68 | AC3: =IF('All Data %'!AA$2<0.1,'All Data %'!AA4*10000,'All Data %'!AA4) -> 190 | AD3: =IF('All Data %'!AB$2<0.1,'All Data %'!AB4*10000,'All Data %'!AB4) -> 34 | AE3: =IF('All Data %'!AC$2<0.1,'All Data %'!AC4*10000,'All Data %'!AC4) -> 144 | AF3: =IF('All Data %'!AD$2<0.1,'All Data %'!AD4*10000,'All Data %'!AD4) -> 28 | AG3: =IF('All Data %'!AE$2<0.1,'All Data %'!AE4*10000,'All Data %'!AE4) -> 182 | AH3: =IF('All Data %'!AF$2<0.1,'All Data %'!AF4*10000,'All Data %'!AF4) -> 18 | AI3: =IF('All Data %'!AG$2<0.1,'All Data %'!AG4*10000,'All Data %'!AG4) -> 1.3237 | AJ3: =IF('All Data %'!AH$2<0.1,'All Data %'!AH4*10000,'All Data %'!AH4) -> 87 | AK3: =IF('All Data %'!AI$2<0.1,'All Data %'!AI4*10000,'All Data %'!AI4) -> 0 | AL3: =IF('All Data %'!AJ$2<0.1,'All Data %'!AJ4*10000,'All Data %'!AJ4) -> 44 | AM3: =IF('All Data %'!AK$2<0.1,'All Data %'!AK4*10000,'All Data %'!AK4) -> 0 | AN3: =IF('All Data %'!AL$2<0.1,'All Data %'!AL4*10000,'All Data %'!AL4) -> 21 | AO3: =IF('All Data %'!AM$2<0.1,'All Data %'!AM4*10000,'All Data %'!AM4) -> 0 | AP3: =IF('All Data %'!AN$2<0.1,'All Data %'!AN4*10000,'All Data %'!AN4) -> 31 | AQ3: =IF('All Data %'!AO$2<0.1,'All Data %'!AO4*10000,'All Data %'!AO4) -> 0 | AR3: =IF('All Data %'!AP$2<0.1,'All Data %'!AP4*10000,'All Data %'!AP4) -> 18 | AS3: =IF('All Data %'!AQ$2<0.1,'All Data %'!AQ4*10000,'All Data %'!AQ4) -> 0 | AT3: =IF('All Data %'!AR$2<0.1,'All Data %'!AR4*10000,'All Data %'!AR4) -> 16 | AU3: =IF('All Data %'!AS$2<0.1,'All Data %'!AS4*10000,'All Data %'!AS4) -> 44 | AV3: =IF('All Data %'!AT$2<0.1,'All Data %'!AT4*10000,'All Data %'!AT4) -> 1 | AW3: =IF('All Data %'!AU$2<0.1,'All Data %'!AU4*10000,'All Data %'!AU4) -> 0 | AX3: =IF('All Data %'!AV$2<0.1,'All Data %'!AV4*10000,'All Data %'!AV4) -> 45 | AY3: =IF('All Data %'!AW$2<0.1,'All Data %'!AW4*10000,'All Data %'!AW4) -> 0 | AZ3: =IF('All Data %'!AX$2<0.1,'All Data %'!AX4*10000,'All Data %'!AX4) -> 0 | BA3: =IF('All Data %'!AY$2<0.1,'All Data %'!AY4*10000,'All Data %'!AY4) -> 261 | BB3: =IF('All Data %'!AZ$2<0.1,'All Data %'!AZ4*10000,'All Data %'!AZ4) -> 8 | BC3: =IF('All Data %'!BA$2<0.1,'All Data %'!BA4*10000,'All Data %'!BA4) -> 101 | BD3: =IF('All Data %'!BB$2<0.1,'All Data %'!BB4*10000,'All Data %'!BB4) -> 3 | BE3: =IF('All Data %'!BC$2<0.1,'All Data %'!BC4*10000,'All Data %'!BC4) -> 128 | BF3: =IF('All Data %'!BD$2<0.1,'All Data %'!BD4*10000,'All Data %'!BD4) -> 3 | BG3: =IF('All Data %'!BE$2<0.1,'All Data %'!BE4*10000,'All Data %'!BE4) -> 0 | BH3: =IF('All Data %'!BF$2<0.1,'All Data %'!BF4*10000,'All Data %'!BF4) -> 69 | BI3: =IF('All Data %'!BG$2<0.1,'All Data %'!BG4*10000,'All Data %'!BG4) -> 15 | BJ3: =IF('All Data %'!BH$2<0.1,'All Data %'!BH4*10000,'All Data %'!BH4) -> 2 | BK3: =IF('All Data %'!BI$2<0.1,'All Data %'!BI4*10000,'All Data %'!BI4) -> 0 | BL3: =IF('All Data %'!BJ$2<0.1,'All Data %'!BJ4*10000,'All Data %'!BJ4) -> 53 | BM3: =IF('All Data %'!BK$2<0.1,'All Data %'!BK4*10000,'All Data %'!BK4) -> 0 | BN3: =IF('All Data %'!BL$2<0.1,'All Data %'!BL4*10000,'All Data %'!BL4) -> 76 | BO3: =IF('All Data %'!BM$2<0.1,'All Data %'!BM4*10000,'All Data %'!BM4) -> 56.97 | BP3: =IF('All Data %'!BN$2<0.1,'All Data %'!BN4*10000,'All Data %'!BN4) -> 1200
A4: FGEN1 | B4: #38 | C4: Mining Plus | D4: 3772.25 | E4: =D4-D3 -> 0.2 | F4: 990 | G4: 54.01 | H4: 47.57 | I4: 101.58 | J4: 3 | K4: =IF('All Data %'!I$2<0.1,'All Data %'!I5*10000,'All Data %'!I5) -> 0 | L4: =IF('All Data %'!J$2<0.1,'All Data %'!J5*10000,'All Data %'!J5) -> 6100 | M4: =IF('All Data %'!K$2<0.1,'All Data %'!K5*10000,'All Data %'!K5) -> 4.88 | N4: =IF('All Data %'!L$2<0.1,'All Data %'!L5*10000,'All Data %'!L5) -> 800 | O4: =IF('All Data %'!M$2<0.1,'All Data %'!M5*10000,'All Data %'!M5) -> 19.81 | P4: =IF('All Data %'!N$2<0.1,'All Data %'!N5*10000,'All Data %'!N5) -> 800 | Q4: =IF('All Data %'!O$2<0.1,'All Data %'!O5*10000,'All Data %'!O5) -> 0.1772 | R4: =IF('All Data %'!P$2<0.1,'All Data %'!P5*10000,'All Data %'!P5) -> 72 | S4: =IF('All Data %'!Q$2<0.1,'All Data %'!Q5*10000,'All Data %'!Q5) -> 6.1316 | T4: =IF('All Data %'!R$2<0.1,'All Data %'!R5*10000,'All Data %'!R5) -> 230 | U4: =IF('All Data %'!S$2<0.1,'All Data %'!S5*10000,'All Data %'!S5) -> 0 | V4: =IF('All Data %'!T$2<0.1,'All Data %'!T5*10000,'All Data %'!T5) -> 12 | W4: =IF('All Data %'!U$2<0.1,'All Data %'!U5*10000,'All Data %'!U5) -> 6.3191 | X4: =IF('All Data %'!V$2<0.1,'All Data %'!V5*10000,'All Data %'!V5) -> 437 | Y4: =IF('All Data %'!W$2<0.1,'All Data %'!W5*10000,'All Data %'!W5) -> 5.0689 | Z4: =IF('All Data %'!X$2<0.1,'All Data %'!X5*10000,'All Data %'!X5) -> 191 | AA4: =IF('All Data %'!Y$2<0.1,'All Data %'!Y5*10000,'All Data %'!Y5) -> 0.2991 | AB4: =IF('All Data %'!Z$2<0.1,'All Data %'!Z5*10000,'All Data %'!Z5) -> 110 | AC4: =IF('All Data %'!AA$2<0.1,'All Data %'!AA5*10000,'All Data %'!AA5) -> 364 | AD4: =IF('All Data %'!AB$2<0.1,'All Data %'!AB5*10000,'All Data %'!AB5) -> 44 | AE4: =IF('All Data %'!AC$2<0.1,'All Data %'!AC5*10000,'All Data %'!AC5) -> 180 | AF4: =IF('All Data %'!AD$2<0.1,'All Data %'!AD5*10000,'All Data %'!AD5) -> 32 | AG4: =IF('All Data %'!AE$2<0.1,'All Data %'!AE5*10000,'All Data %'!AE5) -> 357 | AH4: =IF('All Data %'!AF$2<0.1,'All Data %'!AF5*10000,'All Data %'!AF5) -> 24 | AI4: =IF('All Data %'!AG$2<0.1,'All Data %'!AG5*10000,'All Data %'!AG5) -> 3.4162 | AJ4: =IF('All Data %'!AH$2<0.1,'All Data %'!AH5*10000,'All Data %'!AH5) -> 162 | AK4: =IF('All Data %'!AI$2<0.1,'All Data %'!AI5*10000,'All Data %'!AI5) -> 83 | AL4: =IF('All Data %'!AJ$2<0.1,'All Data %'!AJ5*10000,'All Data %'!AJ5) -> 16 | AM4: =IF('All Data %'!AK$2<0.1,'All Data %'!AK5*10000,'All Data %'!AK5) -> 0 | AN4: =IF('All Data %'!AL$2<0.1,'All Data %'!AL5*10000,'All Data %'!AL5) -> 27 | AO4: =IF('All Data %'!AM$2<0.1,'All Data %'!AM5*10000,'All Data %'!AM5) -> 0 | AP4: =IF('All Data %'!AN$2<0.1,'All Data %'!AN5*10000,'All Data %'!AN5) -> 34 | AQ4: =IF('All Data %'!AO$2<0.1,'All Data %'!AO5*10000,'All Data %'!AO5) -> 0 | AR4: =IF('All Data %'!AP$2<0.1,'All Data %'!AP5*10000,'All Data %'!AP5) -> 24 | AS4: =IF('All Data %'!AQ$2<0.1,'All Data %'!AQ5*10000,'All Data %'!AQ5) -> 0 | AT4: =IF('All Data %'!AR$2<0.1,'All Data %'!AR5*10000,'All Data %'!AR5) -> 19 | AU4: =IF('All Data %'!AS$2<0.1,'All Data %'!AS5*10000,'All Data %'!AS5) -> 276 | AV4: =IF('All Data %'!AT$2<0.1,'All Data %'!AT5*10000,'All Data %'!AT5) -> 3 | AW4: =IF('All Data %'!AU$2<0.1,'All Data %'!AU5*10000,'All Data %'!AU5) -> 0 | AX4: =IF('All Data %'!AV$2<0.1,'All Data %'!AV5*10000,'All Data %'!AV5) -> 49 | AY4: =IF('All Data %'!AW$2<0.1,'All Data %'!AW5*10000,'All Data %'!AW5) -> 0 | AZ4: =IF('All Data %'!AX$2<0.1,'All Data %'!AX5*10000,'All Data %'!AX5) -> 0 | BA4: =IF('All Data %'!AY$2<0.1,'All Data %'!AY5*10000,'All Data %'!AY5) -> 248 | BB4: =IF('All Data %'!AZ$2<0.1,'All Data %'!AZ5*10000,'All Data %'!AZ5) -> 9 | BC4: =IF('All Data %'!BA$2<0.1,'All Data %'!BA5*10000,'All Data %'!BA5) -> 103 | BD4: =IF('All Data %'!BB$2<0.1,'All Data %'!BB5*10000,'All Data %'!BB5) -> 3 | BE4: =IF('All Data %'!BC$2<0.1,'All Data %'!BC5*10000,'All Data %'!BC5) -> 128 | BF4: =IF('All Data %'!BD$2<0.1,'All Data %'!BD5*10000,'All Data %'!BD5) -> 3 | BG4: =IF('All Data %'!BE$2<0.1,'All Data %'!BE5*10000,'All Data %'!BE5) -> 23 | BH4: =IF('All Data %'!BF$2<0.1,'All Data %'!BF5*10000,'All Data %'!BF5) -> 4 | BI4: =IF('All Data %'!BG$2<0.1,'All Data %'!BG5*10000,'All Data %'!BG5) -> 23 | BJ4: =IF('All Data %'!BH$2<0.1,'All Data %'!BH5*10000,'All Data %'!BH5) -> 2 | BK4: =IF('All Data %'!BI$2<0.1,'All Data %'!BI5*10000,'All Data %'!BI5) -> 28 | BL4: =IF('All Data %'!BJ$2<0.1,'All Data %'!BJ5*10000,'All Data %'!BJ5) -> 2 | BM4: =IF('All Data %'!BK$2<0.1,'All Data %'!BK5*10000,'All Data %'!BK5) -> 36 | BN4: =IF('All Data %'!BL$2<0.1,'All Data %'!BL5*10000,'All Data %'!BL5) -> 6 | BO4: =IF('All Data %'!BM$2<0.1,'All Data %'!BM5*10000,'All Data %'!BM5) -> 53.71 | BP4: =IF('All Data %'!BN$2<0.1,'All Data %'!BN5*10000,'All Data %'!BN5) -> 1400
A5: FGEN1 | B5: #39 | C5: Mining Plus | D5: 3772.45 | E5: 0.2 | F5: 990 | G5: 53.43 | H5: 51.86 | I5: 105.29 | J5: 3 | K5: =IF('All Data %'!I$2<0.1,'All Data %'!I6*10000,'All Data %'!I6) -> 0 | L5: =IF('All Data %'!J$2<0.1,'All Data %'!J6*10000,'All Data %'!J6) -> 5900 | M5: =IF('All Data %'!K$2<0.1,'All Data %'!K6*10000,'All Data %'!K6) -> 2.37 | N5: =IF('All Data %'!L$2<0.1,'All Data %'!L6*10000,'All Data %'!L6) -> 700 | O5: =IF('All Data %'!M$2<0.1,'All Data %'!M6*10000,'All Data %'!M6) -> 34.74 | P5: =IF('All Data %'!N$2<0.1,'All Data %'!N6*10000,'All Data %'!N6) -> 1100 | Q5: =IF('All Data %'!O$2<0.1,'All Data %'!O6*10000,'All Data %'!O6) -> 0.9341 | R5: =IF('All Data %'!P$2<0.1,'All Data %'!P6*10000,'All Data %'!P6) -> 128 | S5: =IF('All Data %'!Q$2<0.1,'All Data %'!Q6*10000,'All Data %'!Q6) -> 0.4716 | T5: =IF('All Data %'!R$2<0.1,'All Data %'!R6*10000,'All Data %'!R6) -> 64 | U5: =IF('All Data %'!S$2<0.1,'All Data %'!S6*10000,'All Data %'!S6) -> 0 | V5: =IF('All Data %'!T$2<0.1,'All Data %'!T6*10000,'All Data %'!T6) -> 12 | W5: =IF('All Data %'!U$2<0.1,'All Data %'!U6*10000,'All Data %'!U6) -> 0 | X5: =IF('All Data %'!V$2<0.1,'All Data %'!V6*10000,'All Data %'!V6) -> 1100 | Y5: =IF('All Data %'!W$2<0.1,'All Data %'!W6*10000,'All Data %'!W6) -> 1.1718 | Z5: =IF('All Data %'!X$2<0.1,'All Data %'!X6*10000,'All Data %'!X6) -> 77 | AA5: =IF('All Data %'!Y$2<0.1,'All Data %'!Y6*10000,'All Data %'!Y6) -> 0.4175 | AB5: =IF('All Data %'!Z$2<0.1,'All Data %'!Z6*10000,'All Data %'!Z6) -> 122 | AC5: =IF('All Data %'!AA$2<0.1,'All Data %'!AA6*10000,'All Data %'!AA6) -> 390 | AD5: =IF('All Data %'!AB$2<0.1,'All Data %'!AB6*10000,'All Data %'!AB6) -> 47 | AE5: =IF('All Data %'!AC$2<0.1,'All Data %'!AC6*10000,'All Data %'!AC6) -> 99 | AF5: =IF('All Data %'!AD$2<0.1,'All Data %'!AD6*10000,'All Data %'!AD6) -> 28 | AG5: =IF('All Data %'!AE$2<0.1,'All Data %'!AE6*10000,'All Data %'!AE6) -> 163 | AH5: =IF('All Data %'!AF$2<0.1,'All Data %'!AF6*10000,'All Data %'!AF6) -> 18 | AI5: =IF('All Data %'!AG$2<0.1,'All Data %'!AG6*10000,'All Data %'!AG6) -> 0.7842 | AJ5: =IF('All Data %'!AH$2<0.1,'All Data %'!AH6*10000,'All Data %'!AH6) -> 65 | AK5: =IF('All Data %'!AI$2<0.1,'All Data %'!AI6*10000,'All Data %'!AI6) -> 0 | AL5: =IF('All Data %'!AJ$2<0.1,'All Data %'!AJ6*10000,'All Data %'!AJ6) -> 33 | AM5: =IF('All Data %'!AK$2<0.1,'All Data %'!AK6*10000,'All Data %'!AK6) -> 20 | AN5: =IF('All Data %'!AL$2<0.1,'All Data %'!AL6*10000,'All Data %'!AL6) -> 4 | AO5: =IF('All Data %'!AM$2<0.1,'All Data %'!AM6*10000,'All Data %'!AM6) -> 33 | AP5: =IF('All Data %'!AN$2<0.1,'All Data %'!AN6*10000,'All Data %'!AN6) -> 6 | AQ5: =IF('All Data %'!AO$2<0.1,'All Data %'!AO6*10000,'All Data %'!AO6) -> 0 | AR5: =IF('All Data %'!AP$2<0.1,'All Data %'!AP6*10000,'All Data %'!AP6) -> 18 | AS5: =IF('All Data %'!AQ$2<0.1,'All Data %'!AQ6*10000,'All Data %'!AQ6) -> 0 | AT5: =IF('All Data %'!AR$2<0.1,'All Data %'!AR6*10000,'All Data %'!AR6) -> 20 | AU5: =IF('All Data %'!AS$2<0.1,'All Data %'!AS6*10000,'All Data %'!AS6) -> 63 | AV5: =IF('All Data %'!AT$2<0.1,'All Data %'!AT6*10000,'All Data %'!AT6) -> 1 | AW5: =IF('All Data %'!AU$2<0.1,'All Data %'!AU6*10000,'All Data %'!AU6) -> 0 | AX5: =IF('All Data %'!AV$2<0.1,'All Data %'!AV6*10000,'All Data %'!AV6) -> 45 | AY5: =IF('All Data %'!AW$2<0.1,'All Data %'!AW6*10000,'All Data %'!AW6) -> 0 | AZ5: =IF('All Data %'!AX$2<0.1,'All Data %'!AX6*10000,'All Data %'!AX6) -> 0 | BA5: =IF('All Data %'!AY$2<0.1,'All Data %'!AY6*10000,'All Data %'!AY6) -> 263 | BB5: =IF('All Data %'!AZ$2<0.1,'All Data %'!AZ6*10000,'All Data %'!AZ6) -> 8 | BC5: =IF('All Data %'!BA$2<0.1,'All Data %'!BA6*10000,'All Data %'!BA6) -> 101 | BD5: =IF('All Data %'!BB$2<0.1,'All Data %'!BB6*10000,'All Data %'!BB6) -> 3 | BE5: =IF('All Data %'!BC$2<0.1,'All Data %'!BC6*10000,'All Data %'!BC6) -> 132 | BF5: =IF('All Data %'!BD$2<0.1,'All Data %'!BD6*10000,'All Data %'!BD6) -> 3 | BG5: =IF('All Data %'!BE$2<0.1,'All Data %'!BE6*10000,'All Data %'!BE6) -> 0 | BH5: =IF('All Data %'!BF$2<0.1,'All Data %'!BF6*10000,'All Data %'!BF6) -> 70 | BI5: =IF('All Data %'!BG$2<0.1,'All Data %'!BG6*10000,'All Data %'!BG6) -> 34 | BJ5: =IF('All Data %'!BH$2<0.1,'All Data %'!BH6*10000,'All Data %'!BH6) -> 2 | BK5: =IF('All Data %'!BI$2<0.1,'All Data %'!BI6*10000,'All Data %'!BI6) -> 0 | BL5: =IF('All Data %'!BJ$2<0.1,'All Data %'!BJ6*10000,'All Data %'!BJ6) -> 52 | BM5: =IF('All Data %'!BK$2<0.1,'All Data %'!BK6*10000,'All Data %'!BK6) -> 0 | BN5: =IF('All Data %'!BL$2<0.1,'All Data %'!BL6*10000,'All Data %'!BL6) -> 82 | BO5: =IF('All Data %'!BM$2<0.1,'All Data %'!BM6*10000,'All Data %'!BM6) -> 58.98 | BP5: =IF('All Data %'!BN$2<0.1,'All Data %'!BN6*10000,'All Data %'!BN6) -> 1200
A6: FGEN1 | B6: #40 | C6: Mining Plus | D6: 3772.65 | E6: 0.2 | F6: 990 | G6: 53.59 | H6: 49.59 | I6: 103.18 | J6: 3 | K6: =IF('All Data %'!I$2<0.1,'All Data %'!I7*10000,'All Data %'!I7) -> 0 | L6: =IF('All Data %'!J$2<0.1,'All Data %'!J7*10000,'All Data %'!J7) -> 6300 | M6: =IF('All Data %'!K$2<0.1,'All Data %'!K7*10000,'All Data %'!K7) -> 3.98 | N6: =IF('All Data %'!L$2<0.1,'All Data %'!L7*10000,'All Data %'!L7) -> 800 | O6: =IF('All Data %'!M$2<0.1,'All Data %'!M7*10000,'All Data %'!M7) -> 30.07 | P6: =IF('All Data %'!N$2<0.1,'All Data %'!N7*10000,'All Data %'!N7) -> 1000 | Q6: =IF('All Data %'!O$2<0.1,'All Data %'!O7*10000,'All Data %'!O7) -> 1.1622 | R6: =IF('All Data %'!P$2<0.1,'All Data %'!P7*10000,'All Data %'!P7) -> 138 | S6: =IF('All Data %'!Q$2<0.1,'All Data %'!Q7*10000,'All Data %'!Q7) -> 2.2794 | T6: =IF('All Data %'!R$2<0.1,'All Data %'!R7*10000,'All Data %'!R7) -> 126 | U6: =IF('All Data %'!S$2<0.1,'All Data %'!S7*10000,'All Data %'!S7) -> 0 | V6: =IF('All Data %'!T$2<0.1,'All Data %'!T7*10000,'All Data %'!T7) -> 14 | W6: =IF('All Data %'!U$2<0.1,'All Data %'!U7*10000,'All Data %'!U7) -> 0 | X6: =IF('All Data %'!V$2<0.1,'All Data %'!V7*10000,'All Data %'!V7) -> 1400 | Y6: =IF('All Data %'!W$2<0.1,'All Data %'!W7*10000,'All Data %'!W7) -> 3.7327 | Z6: =IF('All Data %'!X$2<0.1,'All Data %'!X7*10000,'All Data %'!X7) -> 147 | AA6: =IF('All Data %'!Y$2<0.1,'All Data %'!Y7*10000,'All Data %'!Y7) -> 0.3587 | AB6: =IF('All Data %'!Z$2<0.1,'All Data %'!Z7*10000,'All Data %'!Z7) -> 115 | AC6: =IF('All Data %'!AA$2<0.1,'All Data %'!AA7*10000,'All Data %'!AA7) -> 400 | AD6: =IF('All Data %'!AB$2<0.1,'All Data %'!AB7*10000,'All Data %'!AB7) -> 46 | AE6: =IF('All Data %'!AC$2<0.1,'All Data %'!AC7*10000,'All Data %'!AC7) -> 160 | AF6: =IF('All Data %'!AD$2<0.1,'All Data %'!AD7*10000,'All Data %'!AD7) -> 30 | AG6: =IF('All Data %'!AE$2<0.1,'All Data %'!AE7*10000,'All Data %'!AE7) -> 383 | AH6: =IF('All Data %'!AF$2<0.1,'All Data %'!AF7*10000,'All Data %'!AF7) -> 23 | AI6: =IF('All Data %'!AG$2<0.1,'All Data %'!AG7*10000,'All Data %'!AG7) -> 2.4656 | AJ6: =IF('All Data %'!AH$2<0.1,'All Data %'!AH7*10000,'All Data %'!AH7) -> 129 | AK6: =IF('All Data %'!AI$2<0.1,'All Data %'!AI7*10000,'All Data %'!AI7) -> 0 | AL6: =IF('All Data %'!AJ$2<0.1,'All Data %'!AJ7*10000,'All Data %'!AJ7) -> 61 | AM6: =IF('All Data %'!AK$2<0.1,'All Data %'!AK7*10000,'All Data %'!AK7) -> 54 | AN6: =IF('All Data %'!AL$2<0.1,'All Data %'!AL7*10000,'All Data %'!AL7) -> 6 | AO6: =IF('All Data %'!AM$2<0.1,'All Data %'!AM7*10000,'All Data %'!AM7) -> 0 | AP6: =IF('All Data %'!AN$2<0.1,'All Data %'!AN7*10000,'All Data %'!AN7) -> 33 | AQ6: =IF('All Data %'!AO$2<0.1,'All Data %'!AO7*10000,'All Data %'!AO7) -> 0 | AR6: =IF('All Data %'!AP$2<0.1,'All Data %'!AP7*10000,'All Data %'!AP7) -> 20 | AS6: =IF('All Data %'!AQ$2<0.1,'All Data %'!AQ7*10000,'All Data %'!AQ7) -> 0 | AT6: =IF('All Data %'!AR$2<0.1,'All Data %'!AR7*10000,'All Data %'!AR7) -> 21 | AU6: =IF('All Data %'!AS$2<0.1,'All Data %'!AS7*10000,'All Data %'!AS7) -> 179 | AV6: =IF('All Data %'!AT$2<0.1,'All Data %'!AT7*10000,'All Data %'!AT7) -> 2 | AW6: =IF('All Data %'!AU$2<0.1,'All Data %'!AU7*10000,'All Data %'!AU7) -> 0 | AX6: =IF('All Data %'!AV$2<0.1,'All Data %'!AV7*10000,'All Data %'!AV7) -> 46 | AY6: =IF('All Data %'!AW$2<0.1,'All Data %'!AW7*10000,'All Data %'!AW7) -> 0 | AZ6: =IF('All Data %'!AX$2<0.1,'All Data %'!AX7*10000,'All Data %'!AX7) -> 0 | BA6: =IF('All Data %'!AY$2<0.1,'All Data %'!AY7*10000,'All Data %'!AY7) -> 281 | BB6: =IF('All Data %'!AZ$2<0.1,'All Data %'!AZ7*10000,'All Data %'!AZ7) -> 9 | BC6: =IF('All Data %'!BA$2<0.1,'All Data %'!BA7*10000,'All Data %'!BA7) -> 106 | BD6: =IF('All Data %'!BB$2<0.1,'All Data %'!BB7*10000,'All Data %'!BB7) -> 3 | BE6: =IF('All Data %'!BC$2<0.1,'All Data %'!BC7*10000,'All Data %'!BC7) -> 135 | BF6: =IF('All Data %'!BD$2<0.1,'All Data %'!BD7*10000,'All Data %'!BD7) -> 3 | BG6: =IF('All Data %'!BE$2<0.1,'All Data %'!BE7*10000,'All Data %'!BE7) -> 0 | BH6: =IF('All Data %'!BF$2<0.1,'All Data %'!BF7*10000,'All Data %'!BF7) -> 73 | BI6: =IF('All Data %'!BG$2<0.1,'All Data %'!BG7*10000,'All Data %'!BG7) -> 37 | BJ6: =IF('All Data %'!BH$2<0.1,'All Data %'!BH7*10000,'All Data %'!BH7) -> 3 | BK6: =IF('All Data %'!BI$2<0.1,'All Data %'!BI7*10000,'All Data %'!BI7) -> 20 | BL6: =IF('All Data %'!BJ$2<0.1,'All Data %'!BJ7*10000,'All Data %'!BJ7) -> 2 | BM6: =IF('All Data %'!BK$2<0.1,'All Data %'!BK7*10000,'All Data %'!BK7) -> 0 | BN6: =IF('All Data %'!BL$2<0.1,'All Data %'!BL7*10000,'All Data %'!BL7) -> 85 | BO6: =IF('All Data %'!BM$2<0.1,'All Data %'!BM7*10000,'All Data %'!BM7) -> 55.77 | BP6: =IF('All Data %'!BN$2<0.1,'All Data %'!BN7*10000,'All Data %'!BN7) -> 1300
A7: FGEN1 | B7: #41 | C7: Mining Plus | D7: 3772.85 | E7: 0.2 | F7: 990 | G7: 53.29 | H7: 52.06 | I7: 105.35 | J7: 3 | K7: =IF('All Data %'!I$2<0.1,'All Data %'!I8*10000,'All Data %'!I8) -> 0 | L7: =IF('All Data %'!J$2<0.1,'All Data %'!J8*10000,'All Data %'!J8) -> 6400 | M7: =IF('All Data %'!K$2<0.1,'All Data %'!K8*10000,'All Data %'!K8) -> 0.4083 | N7: =IF('All Data %'!L$2<0.1,'All Data %'!L8*10000,'All Data %'!L8) -> 470 | O7: =IF('All Data %'!M$2<0.1,'All Data %'!M8*10000,'All Data %'!M8) -> 34.83 | P7: =IF('All Data %'!N$2<0.1,'All Data %'!N8*10000,'All Data %'!N8) -> 1000 | Q7: =IF('All Data %'!O$2<0.1,'All Data %'!O8*10000,'All Data %'!O8) -> 0.9587 | R7: =IF('All Data %'!P$2<0.1,'All Data %'!P8*10000,'All Data %'!P8) -> 123 | S7: =IF('All Data %'!Q$2<0.1,'All Data %'!Q8*10000,'All Data %'!Q8) -> 2.8688 | T7: =IF('All Data %'!R$2<0.1,'All Data %'!R8*10000,'All Data %'!R8) -> 138 | U7: =IF('All Data %'!S$2<0.1,'All Data %'!S8*10000,'All Data %'!S8) -> 0 | V7: =IF('All Data %'!T$2<0.1,'All Data %'!T8*10000,'All Data %'!T8) -> 10 | W7: =IF('All Data %'!U$2<0.1,'All Data %'!U8*10000,'All Data %'!U8) -> 0 | X7: =IF('All Data %'!V$2<0.1,'All Data %'!V8*10000,'All Data %'!V8) -> 900 | Y7: =IF('All Data %'!W$2<0.1,'All Data %'!W8*10000,'All Data %'!W8) -> 2.5891 | Z7: =IF('All Data %'!X$2<0.1,'All Data %'!X8*10000,'All Data %'!X8) -> 109 | AA7: =IF('All Data %'!Y$2<0.1,'All Data %'!Y8*10000,'All Data %'!Y8) -> 0.0646 | AB7: =IF('All Data %'!Z$2<0.1,'All Data %'!Z8*10000,'All Data %'!Z8) -> 66 | AC7: =IF('All Data %'!AA$2<0.1,'All Data %'!AA8*10000,'All Data %'!AA8) -> 158 | AD7: =IF('All Data %'!AB$2<0.1,'All Data %'!AB8*10000,'All Data %'!AB8) -> 33 | AE7: =IF('All Data %'!AC$2<0.1,'All Data %'!AC8*10000,'All Data %'!AC8) -> 141 | AF7: =IF('All Data %'!AD$2<0.1,'All Data %'!AD8*10000,'All Data %'!AD8) -> 27 | AG7: =IF('All Data %'!AE$2<0.1,'All Data %'!AE8*10000,'All Data %'!AE8) -> 198 | AH7: =IF('All Data %'!AF$2<0.1,'All Data %'!AF8*10000,'All Data %'!AF8) -> 18 | AI7: =IF('All Data %'!AG$2<0.1,'All Data %'!AG8*10000,'All Data %'!AG8) -> 0.5925 | AJ7: =IF('All Data %'!AH$2<0.1,'All Data %'!AH8*10000,'All Data %'!AH8) -> 55 | AK7: =IF('All Data %'!AI$2<0.1,'All Data %'!AI8*10000,'All Data %'!AI8) -> 0 | AL7: =IF('All Data %'!AJ$2<0.1,'All Data %'!AJ8*10000,'All Data %'!AJ8) -> 28 | AM7: =IF('All Data %'!AK$2<0.1,'All Data %'!AK8*10000,'All Data %'!AK8) -> 21 | AN7: =IF('All Data %'!AL$2<0.1,'All Data %'!AL8*10000,'All Data %'!AL8) -> 4 | AO7: =IF('All Data %'!AM$2<0.1,'All Data %'!AM8*10000,'All Data %'!AM8) -> 0 | AP7: =IF('All Data %'!AN$2<0.1,'All Data %'!AN8*10000,'All Data %'!AN8) -> 30 | AQ7: =IF('All Data %'!AO$2<0.1,'All Data %'!AO8*10000,'All Data %'!AO8) -> 0 | AR7: =IF('All Data %'!AP$2<0.1,'All Data %'!AP8*10000,'All Data %'!AP8) -> 18 | AS7: =IF('All Data %'!AQ$2<0.1,'All Data %'!AQ8*10000,'All Data %'!AQ8) -> 0 | AT7: =IF('All Data %'!AR$2<0.1,'All Data %'!AR8*10000,'All Data %'!AR8) -> 14 | AU7: =IF('All Data %'!AS$2<0.1,'All Data %'!AS8*10000,'All Data %'!AS8) -> 49 | AV7: =IF('All Data %'!AT$2<0.1,'All Data %'!AT8*10000,'All Data %'!AT8) -> 1 | AW7: =IF('All Data %'!AU$2<0.1,'All Data %'!AU8*10000,'All Data %'!AU8) -> 0 | AX7: =IF('All Data %'!AV$2<0.1,'All Data %'!AV8*10000,'All Data %'!AV8) -> 44 | AY7: =IF('All Data %'!AW$2<0.1,'All Data %'!AW8*10000,'All Data %'!AW8) -> 0 | AZ7: =IF('All Data %'!AX$2<0.1,'All Data %'!AX8*10000,'All Data %'!AX8) -> 0 | BA7: =IF('All Data %'!AY$2<0.1,'All Data %'!AY8*10000,'All Data %'!AY8) -> 249 | BB7: =IF('All Data %'!AZ$2<0.1,'All Data %'!AZ8*10000,'All Data %'!AZ8) -> 8 | BC7: =IF('All Data %'!BA$2<0.1,'All Data %'!BA8*10000,'All Data %'!BA8) -> 95 | BD7: =IF('All Data %'!BB$2<0.1,'All Data %'!BB8*10000,'All Data %'!BB8) -> 3 | BE7: =IF('All Data %'!BC$2<0.1,'All Data %'!BC8*10000,'All Data %'!BC8) -> 126 | BF7: =IF('All Data %'!BD$2<0.1,'All Data %'!BD8*10000,'All Data %'!BD8) -> 3 | BG7: =IF('All Data %'!BE$2<0.1,'All Data %'!BE8*10000,'All Data %'!BE8) -> 0 | BH7: =IF('All Data %'!BF$2<0.1,'All Data %'!BF8*10000,'All Data %'!BF8) -> 67 | BI7: =IF('All Data %'!BG$2<0.1,'All Data %'!BG8*10000,'All Data %'!BG8) -> 6 | BJ7: =IF('All Data %'!BH$2<0.1,'All Data %'!BH8*10000,'All Data %'!BH8) -> 2 | BK7: =IF('All Data %'!BI$2<0.1,'All Data %'!BI8*10000,'All Data %'!BI8) -> 12 | BL7: =IF('All Data %'!BJ$2<0.1,'All Data %'!BJ8*10000,'All Data %'!BJ8) -> 1 | BM7: =IF('All Data %'!BK$2<0.1,'All Data %'!BK8*10000,'All Data %'!BK8) -> 0 | BN7: =IF('All Data %'!BL$2<0.1,'All Data %'!BL8*10000,'All Data %'!BL8) -> 72 | BO7: =IF('All Data %'!BM$2<0.1,'All Data %'!BM8*10000,'All Data %'!BM8) -> 57.59 | BP7: =IF('All Data %'!BN$2<0.1,'All Data %'!BN8*10000,'All Data %'!BN8) -> 1200
A8: FGEN1 | B8: #42 | C8: Mining Plus | D8: 3773.05 | E8: 0.2 | F8: 990 | G8: 53.46 | H8: 49.99 | I8: 103.44 | J8: 3 | K8: =IF('All Data %'!I$2<0.1,'All Data %'!I9*10000,'All Data %'!I9) -> 0 | L8: =IF('All Data %'!J$2<0.1,'All Data %'!J9*10000,'All Data %'!J9) -> 6300 | M8: =IF('All Data %'!K$2<0.1,'All Data %'!K9*10000,'All Data %'!K9) -> 2.19 | N8: =IF('All Data %'!L$2<0.1,'All Data %'!L9*10000,'All Data %'!L9) -> 600 | O8: =IF('All Data %'!M$2<0.1,'All Data %'!M9*10000,'All Data %'!M9) -> 31.64 | P8: =IF('All Data %'!N$2<0.1,'All Data %'!N9*10000,'All Data %'!N9) -> 1000 | Q8: =IF('All Data %'!O$2<0.1,'All Data %'!O9*10000,'All Data %'!O9) -> 0.4018 | R8: =IF('All Data %'!P$2<0.1,'All Data %'!P9*10000,'All Data %'!P9) -> 93 | S8: =IF('All Data %'!Q$2<0.1,'All Data %'!Q9*10000,'All Data %'!Q9) -> 4.8246 | T8: =IF('All Data %'!R$2<0.1,'All Data %'!R9*10000,'All Data %'!R9) -> 192 | U8: =IF('All Data %'!S$2<0.1,'All Data %'!S9*10000,'All Data %'!S9) -> 0 | V8: =IF('All Data %'!T$2<0.1,'All Data %'!T9*10000,'All Data %'!T9) -> 11 | W8: =IF('All Data %'!U$2<0.1,'All Data %'!U9*10000,'All Data %'!U9) -> 0.3839 | X8: =IF('All Data %'!V$2<0.1,'All Data %'!V9*10000,'All Data %'!V9) -> 364 | Y8: =IF('All Data %'!W$2<0.1,'All Data %'!W9*10000,'All Data %'!W9) -> 3.4765 | Z8: =IF('All Data %'!X$2<0.1,'All Data %'!X9*10000,'All Data %'!X9) -> 135 | AA8: =IF('All Data %'!Y$2<0.1,'All Data %'!Y9*10000,'All Data %'!Y9) -> 0.1041 | AB8: =IF('All Data %'!Z$2<0.1,'All Data %'!Z9*10000,'All Data %'!Z9) -> 75 | AC8: =IF('All Data %'!AA$2<0.1,'All Data %'!AA9*10000,'All Data %'!AA9) -> 186 | AD8: =IF('All Data %'!AB$2<0.1,'All Data %'!AB9*10000,'All Data %'!AB9) -> 34 | AE8: =IF('All Data %'!AC$2<0.1,'All Data %'!AC9*10000,'All Data %'!AC9) -> 151 | AF8: =IF('All Data %'!AD$2<0.1,'All Data %'!AD9*10000,'All Data %'!AD9) -> 28 | AG8: =IF('All Data %'!AE$2<0.1,'All Data %'!AE9*10000,'All Data %'!AE9) -> 174 | AH8: =IF('All Data %'!AF$2<0.1,'All Data %'!AF9*10000,'All Data %'!AF9) -> 18 | AI8: =IF('All Data %'!AG$2<0.1,'All Data %'!AG9*10000,'All Data %'!AG9) -> 1.3894 | AJ8: =IF('All Data %'!AH$2<0.1,'All Data %'!AH9*10000,'All Data %'!AH9) -> 88 | AK8: =IF('All Data %'!AI$2<0.1,'All Data %'!AI9*10000,'All Data %'!AI9) -> 61 | AL8: =IF('All Data %'!AJ$2<0.1,'All Data %'!AJ9*10000,'All Data %'!AJ9) -> 10 | AM8: =IF('All Data %'!AK$2<0.1,'All Data %'!AK9*10000,'All Data %'!AK9) -> 0 | AN8: =IF('All Data %'!AL$2<0.1,'All Data %'!AL9*10000,'All Data %'!AL9) -> 22 | AO8: =IF('All Data %'!AM$2<0.1,'All Data %'!AM9*10000,'All Data %'!AM9) -> 0 | AP8: =IF('All Data %'!AN$2<0.1,'All Data %'!AN9*10000,'All Data %'!AN9) -> 30 | AQ8: =IF('All Data %'!AO$2<0.1,'All Data %'!AO9*10000,'All Data %'!AO9) -> 0 | AR8: =IF('All Data %'!AP$2<0.1,'All Data %'!AP9*10000,'All Data %'!AP9) -> 19 | AS8: =IF('All Data %'!AQ$2<0.1,'All Data %'!AQ9*10000,'All Data %'!AQ9) -> 0 | AT8: =IF('All Data %'!AR$2<0.1,'All Data %'!AR9*10000,'All Data %'!AR9) -> 15 | AU8: =IF('All Data %'!AS$2<0.1,'All Data %'!AS9*10000,'All Data %'!AS9) -> 216 | AV8: =IF('All Data %'!AT$2<0.1,'All Data %'!AT9*10000,'All Data %'!AT9) -> 2 | AW8: =IF('All Data %'!AU$2<0.1,'All Data %'!AU9*10000,'All Data %'!AU9) -> 0 | AX8: =IF('All Data %'!AV$2<0.1,'All Data %'!AV9*10000,'All Data %'!AV9) -> 48 | AY8: =IF('All Data %'!AW$2<0.1,'All Data %'!AW9*10000,'All Data %'!AW9) -> 0 | AZ8: =IF('All Data %'!AX$2<0.1,'All Data %'!AX9*10000,'All Data %'!AX9) -> 0 | BA8: =IF('All Data %'!AY$2<0.1,'All Data %'!AY9*10000,'All Data %'!AY9) -> 256 | BB8: =IF('All Data %'!AZ$2<0.1,'All Data %'!AZ9*10000,'All Data %'!AZ9) -> 8 | BC8: =IF('All Data %'!BA$2<0.1,'All Data %'!BA9*10000,'All Data %'!BA9) -> 99 | BD8: =IF('All Data %'!BB$2<0.1,'All Data %'!BB9*10000,'All Data %'!BB9) -> 3 | BE8: =IF('All Data %'!BC$2<0.1,'All Data %'!BC9*10000,'All Data %'!BC9) -> 126 | BF8: =IF('All Data %'!BD$2<0.1,'All Data %'!BD9*10000,'All Data %'!BD9) -> 3 | BG8: =IF('All Data %'!BE$2<0.1,'All Data %'!BE9*10000,'All Data %'!BE9) -> 0 | BH8: =IF('All Data %'!BF$2<0.1,'All Data %'!BF9*10000,'All Data %'!BF9) -> 70 | BI8: =IF('All Data %'!BG$2<0.1,'All Data %'!BG9*10000,'All Data %'!BG9) -> 11 | BJ8: =IF('All Data %'!BH$2<0.1,'All Data %'!BH9*10000,'All Data %'!BH9) -> 2 | BK8: =IF('All Data %'!BI$2<0.1,'All Data %'!BI9*10000,'All Data %'!BI9) -> 17 | BL8: =IF('All Data %'!BJ$2<0.1,'All Data %'!BJ9*10000,'All Data %'!BJ9) -> 2 | BM8: =IF('All Data %'!BK$2<0.1,'All Data %'!BK9*10000,'All Data %'!BK9) -> 0 | BN8: =IF('All Data %'!BL$2<0.1,'All Data %'!BL9*10000,'All Data %'!BL9) -> 81 | BO8: =IF('All Data %'!BM$2<0.1,'All Data %'!BM9*10000,'All Data %'!BM9) -> 55.46 | BP8: =IF('All Data %'!BN$2<0.1,'All Data %'!BN9*10000,'All Data %'!BN9) -> 1300
A9: FGEN1 | B9: #43 | C9: Mining Plus | D9: 3773.25 | E9: 0.2 | F9: 990 | G9: 53.63 | H9: 51.5 | I9: 105.13 | J9: 3 | K9: =IF('All Data %'!I$2<0.1,'All Data %'!I10*10000,'All Data %'!I10) -> 0 | L9: =IF('All Data %'!J$2<0.1,'All Data %'!J10*10000,'All Data %'!J10) -> 6000 | M9: =IF('All Data %'!K$2<0.1,'All Data %'!K10*10000,'All Data %'!K10) -> 3.29 | N9: =IF('All Data %'!L$2<0.1,'All Data %'!L10*10000,'All Data %'!L10) -> 700 | O9: =IF('All Data %'!M$2<0.1,'All Data %'!M10*10000,'All Data %'!M10) -> 34.87 | P9: =IF('All Data %'!N$2<0.1,'All Data %'!N10*10000,'All Data %'!N10) -> 1000 | Q9: =IF('All Data %'!O$2<0.1,'All Data %'!O10*10000,'All Data %'!O10) -> 0.4405 | R9: =IF('All Data %'!P$2<0.1,'All Data %'!P10*10000,'All Data %'!P10) -> 94 | S9: =IF('All Data %'!Q$2<0.1,'All Data %'!Q10*10000,'All Data %'!Q10) -> 2.0329 | T9: =IF('All Data %'!R$2<0.1,'All Data %'!R10*10000,'All Data %'!R10) -> 115 | U9: =IF('All Data %'!S$2<0.1,'All Data %'!S10*10000,'All Data %'!S10) -> 0 | V9: =IF('All Data %'!T$2<0.1,'All Data %'!T10*10000,'All Data %'!T10) -> 12 | W9: =IF('All Data %'!U$2<0.1,'All Data %'!U10*10000,'All Data %'!U10) -> 3.0077 | X9: =IF('All Data %'!V$2<0.1,'All Data %'!V10*10000,'All Data %'!V10) -> 425 | Y9: =IF('All Data %'!W$2<0.1,'All Data %'!W10*10000,'All Data %'!W10) -> 1.2941 | Z9: =IF('All Data %'!X$2<0.1,'All Data %'!X10*10000,'All Data %'!X10) -> 85 | AA9: =IF('All Data %'!Y$2<0.1,'All Data %'!Y10*10000,'All Data %'!Y10) -> 0.0872 | AB9: =IF('All Data %'!Z$2<0.1,'All Data %'!Z10*10000,'All Data %'!Z10) -> 73 | AC9: =IF('All Data %'!AA$2<0.1,'All Data %'!AA10*10000,'All Data %'!AA10) -> 233 | AD9: =IF('All Data %'!AB$2<0.1,'All Data %'!AB10*10000,'All Data %'!AB10) -> 36 | AE9: =IF('All Data %'!AC$2<0.1,'All Data %'!AC10*10000,'All Data %'!AC10) -> 102 | AF9: =IF('All Data %'!AD$2<0.1,'All Data %'!AD10*10000,'All Data %'!AD10) -> 27 | AG9: =IF('All Data %'!AE$2<0.1,'All Data %'!AE10*10000,'All Data %'!AE10) -> 112 | AH9: =IF('All Data %'!AF$2<0.1,'All Data %'!AF10*10000,'All Data %'!AF10) -> 16 | AI9: =IF('All Data %'!AG$2<0.1,'All Data %'!AG10*10000,'All Data %'!AG10) -> 0.9282 | AJ9: =IF('All Data %'!AH$2<0.1,'All Data %'!AH10*10000,'All Data %'!AH10) -> 71 | AK9: =IF('All Data %'!AI$2<0.1,'All Data %'!AI10*10000,'All Data %'!AI10) -> 0 | AL9: =IF('All Data %'!AJ$2<0.1,'All Data %'!AJ10*10000,'All Data %'!AJ10) -> 36 | AM9: =IF('All Data %'!AK$2<0.1,'All Data %'!AK10*10000,'All Data %'!AK10) -> 16 | AN9: =IF('All Data %'!AL$2<0.1,'All Data %'!AL10*10000,'All Data %'!AL10) -> 4 | AO9: =IF('All Data %'!AM$2<0.1,'All Data %'!AM10*10000,'All Data %'!AM10) -> 0 | AP9: =IF('All Data %'!AN$2<0.1,'All Data %'!AN10*10000,'All Data %'!AN10) -> 30 | AQ9: =IF('All Data %'!AO$2<0.1,'All Data %'!AO10*10000,'All Data %'!AO10) -> 0 | AR9: =IF('All Data %'!AP$2<0.1,'All Data %'!AP10*10000,'All Data %'!AP10) -> 18 | AS9: =IF('All Data %'!AQ$2<0.1,'All Data %'!AQ10*10000,'All Data %'!AQ10) -> 0 | AT9: =IF('All Data %'!AR$2<0.1,'All Data %'!AR10*10000,'All Data %'!AR10) -> 17 | AU9: =IF('All Data %'!AS$2<0.1,'All Data %'!AS10*10000,'All Data %'!AS10) -> 47 | AV9: =IF('All Data %'!AT$2<0.1,'All Data %'!AT10*10000,'All Data %'!AT10) -> 1 | AW9: =IF('All Data %'!AU$2<0.1,'All Data %'!AU10*10000,'All Data %'!AU10) -> 0 | AX9: =IF('All Data %'!AV$2<0.1,'All Data %'!AV10*10000,'All Data %'!AV10) -> 45 | AY9: =IF('All Data %'!AW$2<0.1,'All Data %'!AW10*10000,'All Data %'!AW10) -> 0 | AZ9: =IF('All Data %'!AX$2<0.1,'All Data %'!AX10*10000,'All Data %'!AX10) -> 0 | BA9: =IF('All Data %'!AY$2<0.1,'All Data %'!AY10*10000,'All Data %'!AY10) -> 266 | BB9: =IF('All Data %'!AZ$2<0.1,'All Data %'!AZ10*10000,'All Data %'!AZ10) -> 8 | BC9: =IF('All Data %'!BA$2<0.1,'All Data %'!BA10*10000,'All Data %'!BA10) -> 96 | BD9: =IF('All Data %'!BB$2<0.1,'All Data %'!BB10*10000,'All Data %'!BB10) -> 3 | BE9: =IF('All Data %'!BC$2<0.1,'All Data %'!BC10*10000,'All Data %'!BC10) -> 129 | BF9: =IF('All Data %'!BD$2<0.1,'All Data %'!BD10*10000,'All Data %'!BD10) -> 3 | BG9: =IF('All Data %'!BE$2<0.1,'All Data %'!BE10*10000,'All Data %'!BE10) -> 0 | BH9: =IF('All Data %'!BF$2<0.1,'All Data %'!BF10*10000,'All Data %'!BF10) -> 70 | BI9: =IF('All Data %'!BG$2<0.1,'All Data %'!BG10*10000,'All Data %'!BG10) -> 17 | BJ9: =IF('All Data %'!BH$2<0.1,'All Data %'!BH10*10000,'All Data %'!BH10) -> 2 | BK9: =IF('All Data %'!BI$2<0.1,'All Data %'!BI10*10000,'All Data %'!BI10) -> 12 | BL9: =IF('All Data %'!BJ$2<0.1,'All Data %'!BJ10*10000,'All Data %'!BJ10) -> 2 | BM9: =IF('All Data %'!BK$2<0.1,'All Data %'!BK10*10000,'All Data %'!BK10) -> 0 | BN9: =IF('All Data %'!BL$2<0.1,'All Data %'!BL10*10000,'All Data %'!BL10) -> 78 | BO9: =IF('All Data %'!BM$2<0.1,'All Data %'!BM10*10000,'All Data %'!BM10) -> 53.95 | BP9: =IF('All Data %'!BN$2<0.1,'All Data %'!BN10*10000,'All Data %'!BN10) -> 1300
A10: FGEN1 | B10: #44 | C10: Mining Plus | D10: 3773.45 | E10: 0.2 | F10: 990 | G10: 53.37 | H10: 52.29 | I10: 105.66 | J10: 3 | K10: =IF('All Data %'!I$2<0.1,'All Data %'!I11*10000,'All Data %'!I11) -> 0 | L10: =IF('All Data %'!J$2<0.1,'All Data %'!J11*10000,'All Data %'!J11) -> 7000 | M10: =IF('All Data %'!K$2<0.1,'All Data %'!K11*10000,'All Data %'!K11) -> 0.3942 | N10: =IF('All Data %'!L$2<0.1,'All Data %'!L11*10000,'All Data %'!L11) -> 478 | O10: =IF('All Data %'!M$2<0.1,'All Data %'!M11*10000,'All Data %'!M11) -> 32.9 | P10: =IF('All Data %'!N$2<0.1,'All Data %'!N11*10000,'All Data %'!N11) -> 1000 | Q10: =IF('All Data %'!O$2<0.1,'All Data %'!O11*10000,'All Data %'!O11) -> 0.7425 | R10: =IF('All Data %'!P$2<0.1,'All Data %'!P11*10000,'All Data %'!P11) -> 112 | S10: =IF('All Data %'!Q$2<0.1,'All Data %'!Q11*10000,'All Data %'!Q11) -> 3.0106 | T10: =IF('All Data %'!R$2<0.1,'All Data %'!R11*10000,'All Data %'!R11) -> 143 | U10: =IF('All Data %'!S$2<0.1,'All Data %'!S11*10000,'All Data %'!S11) -> 0 | V10: =IF('All Data %'!T$2<0.1,'All Data %'!T11*10000,'All Data %'!T11) -> 12 | W10: =IF('All Data %'!U$2<0.1,'All Data %'!U11*10000,'All Data %'!U11) -> 0 | X10: =IF('All Data %'!V$2<0.1,'All Data %'!V11*10000,'All Data %'!V11) -> 1000 | Y10: =IF('All Data %'!W$2<0.1,'All Data %'!W11*10000,'All Data %'!W11) -> 2.5407 | Z10: =IF('All Data %'!X$2<0.1,'All Data %'!X11*10000,'All Data %'!X11) -> 109 | AA10: =IF('All Data %'!Y$2<0.1,'All Data %'!Y11*10000,'All Data %'!Y11) -> 0.0887 | AB10: =IF('All Data %'!Z$2<0.1,'All Data %'!Z11*10000,'All Data %'!Z11) -> 71 | AC10: =IF('All Data %'!AA$2<0.1,'All Data %'!AA11*10000,'All Data %'!AA11) -> 193 | AD10: =IF('All Data %'!AB$2<0.1,'All Data %'!AB11*10000,'All Data %'!AB11) -> 34 | AE10: =IF('All Data %'!AC$2<0.1,'All Data %'!AC11*10000,'All Data %'!AC11) -> 134 | AF10: =IF('All Data %'!AD$2<0.1,'All Data %'!AD11*10000,'All Data %'!AD11) -> 27 | AG10: =IF('All Data %'!AE$2<0.1,'All Data %'!AE11*10000,'All Data %'!AE11) -> 200 | AH10: =IF('All Data %'!AF$2<0.1,'All Data %'!AF11*10000,'All Data %'!AF11) -> 18 | AI10: =IF('All Data %'!AG$2<0.1,'All Data %'!AG11*10000,'All Data %'!AG11) -> 0.5067 | AJ10: =IF('All Data %'!AH$2<0.1,'All Data %'!AH11*10000,'All Data %'!AH11) -> 51 | AK10: =IF('All Data %'!AI$2<0.1,'All Data %'!AI11*10000,'All Data %'!AI11) -> 0 | AL10: =IF('All Data %'!AJ$2<0.1,'All Data %'!AJ11*10000,'All Data %'!AJ11) -> 27 | AM10: =IF('All Data %'!AK$2<0.1,'All Data %'!AK11*10000,'All Data %'!AK11) -> 24 | AN10: =IF('All Data %'!AL$2<0.1,'All Data %'!AL11*10000,'All Data %'!AL11) -> 4 | AO10: =IF('All Data %'!AM$2<0.1,'All Data %'!AM11*10000,'All Data %'!AM11) -> 39 | AP10: =IF('All Data %'!AN$2<0.1,'All Data %'!AN11*10000,'All Data %'!AN11) -> 6 | AQ10: =IF('All Data %'!AO$2<0.1,'All Data %'!AO11*10000,'All Data %'!AO11) -> 0 | AR10: =IF('All Data %'!AP$2<0.1,'All Data %'!AP11*10000,'All Data %'!AP11) -> 18 | AS10: =IF('All Data %'!AQ$2<0.1,'All Data %'!AQ11*10000,'All Data %'!AQ11) -> 0 | AT10: =IF('All Data %'!AR$2<0.1,'All Data %'!AR11*10000,'All Data %'!AR11) -> 16 | AU10: =IF('All Data %'!AS$2<0.1,'All Data %'!AS11*10000,'All Data %'!AS11) -> 36 | AV10: =IF('All Data %'!AT$2<0.1,'All Data %'!AT11*10000,'All Data %'!AT11) -> 1 | AW10: =IF('All Data %'!AU$2<0.1,'All Data %'!AU11*10000,'All Data %'!AU11) -> 0 | AX10: =IF('All Data %'!AV$2<0.1,'All Data %'!AV11*10000,'All Data %'!AV11) -> 45 | AY10: =IF('All Data %'!AW$2<0.1,'All Data %'!AW11*10000,'All Data %'!AW11) -> 0 | AZ10: =IF('All Data %'!AX$2<0.1,'All Data %'!AX11*10000,'All Data %'!AX11) -> 0 | BA10: =IF('All Data %'!AY$2<0.1,'All Data %'!AY11*10000,'All Data %'!AY11) -> 260 | BB10: =IF('All Data %'!AZ$2<0.1,'All Data %'!AZ11*10000,'All Data %'!AZ11) -> 8 | BC10: =IF('All Data %'!BA$2<0.1,'All Data %'!BA11*10000,'All Data %'!BA11) -> 98 | BD10: =IF('All Data %'!BB$2<0.1,'All Data %'!BB11*10000,'All Data %'!BB11) -> 3 | BE10: =IF('All Data %'!BC$2<0.1,'All Data %'!BC11*10000,'All Data %'!BC11) -> 122 | BF10: =IF('All Data %'!BD$2<0.1,'All Data %'!BD11*10000,'All Data %'!BD11) -> 3 | BG10: =IF('All Data %'!BE$2<0.1,'All Data %'!BE11*10000,'All Data %'!BE11) -> 20 | BH10: =IF('All Data %'!BF$2<0.1,'All Data %'!BF11*10000,'All Data %'!BF11) -> 4 | BI10: =IF('All Data %'!BG$2<0.1,'All Data %'!BG11*10000,'All Data %'!BG11) -> 19 | BJ10: =IF('All Data %'!BH$2<0.1,'All Data %'!BH11*10000,'All Data %'!BH11) -> 2 | BK10: =IF('All Data %'!BI$2<0.1,'All Data %'!BI11*10000,'All Data %'!BI11) -> 0 | BL10: =IF('All Data %'!BJ$2<0.1,'All Data %'!BJ11*10000,'All Data %'!BJ11) -> 50 | BM10: =IF('All Data %'!BK$2<0.1,'All Data %'!BK11*10000,'All Data %'!BK11) -> 0 | BN10: =IF('All Data %'!BL$2<0.1,'All Data %'!BL11*10000,'All Data %'!BL11) -> 75 | BO10: =IF('All Data %'!BM$2<0.1,'All Data %'!BM11*10000,'All Data %'!BM11) -> 59.7 | BP10: =IF('All Data %'!BN$2<0.1,'All Data %'!BN11*10000,'All Data %'!BN11) -> 1200
A11: FGEN1 | B11: #45 | C11: Mining Plus | D11: 3773.65 | E11: 0.2 | F11: 990 | G11: 53.34 | H11: 51.4 | I11: 104.74 | J11: 3 | K11: =IF('All Data %'!I$2<0.1,'All Data %'!I12*10000,'All Data %'!I12) -> 0 | L11: =IF('All Data %'!J$2<0.1,'All Data %'!J12*10000,'All Data %'!J12) -> 6400 | M11: =IF('All Data %'!K$2<0.1,'All Data %'!K12*10000,'All Data %'!K12) -> 0.4811 | N11: =IF('All Data %'!L$2<0.1,'All Data %'!L12*10000,'All Data %'!L12) -> 477 | O11: =IF('All Data %'!M$2<0.1,'All Data %'!M12*10000,'All Data %'!M12) -> 30.75 | P11: =IF('All Data %'!N$2<0.1,'All Data %'!N12*10000,'All Data %'!N12) -> 900 | Q11: =IF('All Data %'!O$2<0.1,'All Data %'!O12*10000,'All Data %'!O12) -> 0.6175 | R11: =IF('All Data %'!P$2<0.1,'All Data %'!P12*10000,'All Data %'!P12) -> 103 | S11: =IF('All Data %'!Q$2<0.1,'All Data %'!Q12*10000,'All Data %'!Q12) -> 4.7469 | T11: =IF('All Data %'!R$2<0.1,'All Data %'!R12*10000,'All Data %'!R12) -> 188 | U11: =IF('All Data %'!S$2<0.1,'All Data %'!S12*10000,'All Data %'!S12) -> 0 | V11: =IF('All Data %'!T$2<0.1,'All Data %'!T12*10000,'All Data %'!T12) -> 11 | W11: =IF('All Data %'!U$2<0.1,'All Data %'!U12*10000,'All Data %'!U12) -> 0 | X11: =IF('All Data %'!V$2<0.1,'All Data %'!V12*10000,'All Data %'!V12) -> 900 | Y11: =IF('All Data %'!W$2<0.1,'All Data %'!W12*10000,'All Data %'!W12) -> 3.3531 | Z11: =IF('All Data %'!X$2<0.1,'All Data %'!X12*10000,'All Data %'!X12) -> 129 | AA11: =IF('All Data %'!Y$2<0.1,'All Data %'!Y12*10000,'All Data %'!Y12) -> 0.0576 | AB11: =IF('All Data %'!Z$2<0.1,'All Data %'!Z12*10000,'All Data %'!Z12) -> 63 | AC11: =IF('All Data %'!AA$2<0.1,'All Data %'!AA12*10000,'All Data %'!AA12) -> 185 | AD11: =IF('All Data %'!AB$2<0.1,'All Data %'!AB12*10000,'All Data %'!AB12) -> 33 | AE11: =IF('All Data %'!AC$2<0.1,'All Data %'!AC12*10000,'All Data %'!AC12) -> 133 | AF11: =IF('All Data %'!AD$2<0.1,'All Data %'!AD12*10000,'All Data %'!AD12) -> 27 | AG11: =IF('All Data %'!AE$2<0.1,'All Data %'!AE12*10000,'All Data %'!AE12) -> 171 | AH11: =IF('All Data %'!AF$2<0.1,'All Data %'!AF12*10000,'All Data %'!AF12) -> 17 | AI11: =IF('All Data %'!AG$2<0.1,'All Data %'!AG12*10000,'All Data %'!AG12) -> 0.552 | AJ11: =IF('All Data %'!AH$2<0.1,'All Data %'!AH12*10000,'All Data %'!AH12) -> 53 | AK11: =IF('All Data %'!AI$2<0.1,'All Data %'!AI12*10000,'All Data %'!AI12) -> 0 | AL11: =IF('All Data %'!AJ$2<0.1,'All Data %'!AJ12*10000,'All Data %'!AJ12) -> 29 | AM11: =IF('All Data %'!AK$2<0.1,'All Data %'!AK12*10000,'All Data %'!AK12) -> 18 | AN11: =IF('All Data %'!AL$2<0.1,'All Data %'!AL12*10000,'All Data %'!AL12) -> 4 | AO11: =IF('All Data %'!AM$2<0.1,'All Data %'!AM12*10000,'All Data %'!AM12) -> 33 | AP11: =IF('All Data %'!AN$2<0.1,'All Data %'!AN12*10000,'All Data %'!AN12) -> 5 | AQ11: =IF('All Data %'!AO$2<0.1,'All Data %'!AO12*10000,'All Data %'!AO12) -> 0 | AR11: =IF('All Data %'!AP$2<0.1,'All Data %'!AP12*10000,'All Data %'!AP12) -> 18 | AS11: =IF('All Data %'!AQ$2<0.1,'All Data %'!AQ12*10000,'All Data %'!AQ12) -> 0 | AT11: =IF('All Data %'!AR$2<0.1,'All Data %'!AR12*10000,'All Data %'!AR12) -> 14 | AU11: =IF('All Data %'!AS$2<0.1,'All Data %'!AS12*10000,'All Data %'!AS12) -> 46 | AV11: =IF('All Data %'!AT$2<0.1,'All Data %'!AT12*10000,'All Data %'!AT12) -> 1 | AW11: =IF('All Data %'!AU$2<0.1,'All Data %'!AU12*10000,'All Data %'!AU12) -> 0 | AX11: =IF('All Data %'!AV$2<0.1,'All Data %'!AV12*10000,'All Data %'!AV12) -> 45 | AY11: =IF('All Data %'!AW$2<0.1,'All Data %'!AW12*10000,'All Data %'!AW12) -> 0 | AZ11: =IF('All Data %'!AX$2<0.1,'All Data %'!AX12*10000,'All Data %'!AX12) -> 0 | BA11: =IF('All Data %'!AY$2<0.1,'All Data %'!AY12*10000,'All Data %'!AY12) -> 261 | BB11: =IF('All Data %'!AZ$2<0.1,'All Data %'!AZ12*10000,'All Data %'!AZ12) -> 8 | BC11: =IF('All Data %'!BA$2<0.1,'All Data %'!BA12*10000,'All Data %'!BA12) -> 96 | BD11: =IF('All Data %'!BB$2<0.1,'All Data %'!BB12*10000,'All Data %'!BB12) -> 3 | BE11: =IF('All Data %'!BC$2<0.1,'All Data %'!BC12*10000,'All Data %'!BC12) -> 127 | BF11: =IF('All Data %'!BD$2<0.1,'All Data %'!BD12*10000,'All Data %'!BD12) -> 3 | BG11: =IF('All Data %'!BE$2<0.1,'All Data %'!BE12*10000,'All Data %'!BE12) -> 0 | BH11: =IF('All Data %'!BF$2<0.1,'All Data %'!BF12*10000,'All Data %'!BF12) -> 69 | BI11: =IF('All Data %'!BG$2<0.1,'All Data %'!BG12*10000,'All Data %'!BG12) -> 9 | BJ11: =IF('All Data %'!BH$2<0.1,'All Data %'!BH12*10000,'All Data %'!BH12) -> 2 | BK11: =IF('All Data %'!BI$2<0.1,'All Data %'!BI12*10000,'All Data %'!BI12) -> 0 | BL11: =IF('All Data %'!BJ$2<0.1,'All Data %'!BJ12*10000,'All Data %'!BJ12) -> 51 | BM11: =IF('All Data %'!BK$2<0.1,'All Data %'!BK12*10000,'All Data %'!BK12) -> 0 | BN11: =IF('All Data %'!BL$2<0.1,'All Data %'!BL12*10000,'All Data %'!BL12) -> 72 | BO11: =IF('All Data %'!BM$2<0.1,'All Data %'!BM12*10000,'All Data %'!BM12) -> 59.33 | BP11: =IF('All Data %'!BN$2<0.1,'All Data %'!BN12*10000,'All Data %'!BN12) -> 1200
A12: FGEN1 | B12: #46 | C12: Mining Plus | D12: 3773.85 | E12: 0.2 | F12: 990 | G12: 53.38 | H12: 51.97 | I12: 105.35 | J12: 3 | K12: =IF('All Data %'!I$2<0.1,'All Data %'!I13*10000,'All Data %'!I13) -> 0 | L12: =IF('All Data %'!J$2<0.1,'All Data %'!J13*10000,'All Data %'!J13) -> 6500 | M12: =IF('All Data %'!K$2<0.1,'All Data %'!K13*10000,'All Data %'!K13) -> 0.5433 | N12: =IF('All Data %'!L$2<0.1,'All Data %'!L13*10000,'All Data %'!L13) -> 488 | O12: =IF('All Data %'!M$2<0.1,'All Data %'!M13*10000,'All Data %'!M13) -> 32.59 | P12: =IF('All Data %'!N$2<0.1,'All Data %'!N13*10000,'All Data %'!N13) -> 1000 | Q12: =IF('All Data %'!O$2<0.1,'All Data %'!O13*10000,'All Data %'!O13) -> 0.8672 | R12: =IF('All Data %'!P$2<0.1,'All Data %'!P13*10000,'All Data %'!P13) -> 118 | S12: =IF('All Data %'!Q$2<0.1,'All Data %'!Q13*10000,'All Data %'!Q13) -> 3.453 | T12: =IF('All Data %'!R$2<0.1,'All Data %'!R13*10000,'All Data %'!R13) -> 154 | U12: =IF('All Data %'!S$2<0.1,'All Data %'!S13*10000,'All Data %'!S13) -> 0 | V12: =IF('All Data %'!T$2<0.1,'All Data %'!T13*10000,'All Data %'!T13) -> 11 | W12: =IF('All Data %'!U$2<0.1,'All Data %'!U13*10000,'All Data %'!U13) -> 0 | X12: =IF('All Data %'!V$2<0.1,'All Data %'!V13*10000,'All Data %'!V13) -> 1000 | Y12: =IF('All Data %'!W$2<0.1,'All Data %'!W13*10000,'All Data %'!W13) -> 3.0038 | Z12: =IF('All Data %'!X$2<0.1,'All Data %'!X13*10000,'All Data %'!X13) -> 120 | AA12: =IF('All Data %'!Y$2<0.1,'All Data %'!Y13*10000,'All Data %'!Y13) -> 0.0584 | AB12: =IF('All Data %'!Z$2<0.1,'All Data %'!Z13*10000,'All Data %'!Z13) -> 64 | AC12: =IF('All Data %'!AA$2<0.1,'All Data %'!AA13*10000,'All Data %'!AA13) -> 196 | AD12: =IF('All Data %'!AB$2<0.1,'All Data %'!AB13*10000,'All Data %'!AB13) -> 33 | AE12: =IF('All Data %'!AC$2<0.1,'All Data %'!AC13*10000,'All Data %'!AC13) -> 98 | AF12: =IF('All Data %'!AD$2<0.1,'All Data %'!AD13*10000,'All Data %'!AD13) -> 26 | AG12: =IF('All Data %'!AE$2<0.1,'All Data %'!AE13*10000,'All Data %'!AE13) -> 165 | AH12: =IF('All Data %'!AF$2<0.1,'All Data %'!AF13*10000,'All Data %'!AF13) -> 17 | AI12: =IF('All Data %'!AG$2<0.1,'All Data %'!AG13*10000,'All Data %'!AG13) -> 0.6398 | AJ12: =IF('All Data %'!AH$2<0.1,'All Data %'!AH13*10000,'All Data %'!AH13) -> 57 | AK12: =IF('All Data %'!AI$2<0.1,'All Data %'!AI13*10000,'All Data %'!AI13) -> 0 | AL12: =IF('All Data %'!AJ$2<0.1,'All Data %'!AJ13*10000,'All Data %'!AJ13) -> 31 | AM12: =IF('All Data %'!AK$2<0.1,'All Data %'!AK13*10000,'All Data %'!AK13) -> 19 | AN12: =IF('All Data %'!AL$2<0.1,'All Data %'!AL13*10000,'All Data %'!AL13) -> 4 | AO12: =IF('All Data %'!AM$2<0.1,'All Data %'!AM13*10000,'All Data %'!AM13) -> 0 | AP12: =IF('All Data %'!AN$2<0.1,'All Data %'!AN13*10000,'All Data %'!AN13) -> 30 | AQ12: =IF('All Data %'!AO$2<0.1,'All Data %'!AO13*10000,'All Data %'!AO13) -> 0 | AR12: =IF('All Data %'!AP$2<0.1,'All Data %'!AP13*10000,'All Data %'!AP13) -> 17 | AS12: =IF('All Data %'!AQ$2<0.1,'All Data %'!AQ13*10000,'All Data %'!AQ13) -> 0 | AT12: =IF('All Data %'!AR$2<0.1,'All Data %'!AR13*10000,'All Data %'!AR13) -> 13 | AU12: =IF('All Data %'!AS$2<0.1,'All Data %'!AS13*10000,'All Data %'!AS13) -> 34 | AV12: =IF('All Data %'!AT$2<0.1,'All Data %'!AT13*10000,'All Data %'!AT13) -> 1 | AW12: =IF('All Data %'!AU$2<0.1,'All Data %'!AU13*10000,'All Data %'!AU13) -> 0 | AX12: =IF('All Data %'!AV$2<0.1,'All Data %'!AV13*10000,'All Data %'!AV13) -> 45 | AY12: =IF('All Data %'!AW$2<0.1,'All Data %'!AW13*10000,'All Data %'!AW13) -> 0 | AZ12: =IF('All Data %'!AX$2<0.1,'All Data %'!AX13*10000,'All Data %'!AX13) -> 0 | BA12: =IF('All Data %'!AY$2<0.1,'All Data %'!AY13*10000,'All Data %'!AY13) -> 258 | BB12: =IF('All Data %'!AZ$2<0.1,'All Data %'!AZ13*10000,'All Data %'!AZ13) -> 8 | BC12: =IF('All Data %'!BA$2<0.1,'All Data %'!BA13*10000,'All Data %'!BA13) -> 98 | BD12: =IF('All Data %'!BB$2<0.1,'All Data %'!BB13*10000,'All Data %'!BB13) -> 3 | BE12: =IF('All Data %'!BC$2<0.1,'All Data %'!BC13*10000,'All Data %'!BC13) -> 120 | BF12: =IF('All Data %'!BD$2<0.1,'All Data %'!BD13*10000,'All Data %'!BD13) -> 3 | BG12: =IF('All Data %'!BE$2<0.1,'All Data %'!BE13*10000,'All Data %'!BE13) -> 0 | BH12: =IF('All Data %'!BF$2<0.1,'All Data %'!BF13*10000,'All Data %'!BF13) -> 68 | BI12: =IF('All Data %'!BG$2<0.1,'All Data %'!BG13*10000,'All Data %'!BG13) -> 5 | BJ12: =IF('All Data %'!BH$2<0.1,'All Data %'!BH13*10000,'All Data %'!BH13) -> 2 | BK12: =IF('All Data %'!BI$2<0.1,'All Data %'!BI13*10000,'All Data %'!BI13) -> 0 | BL12: =IF('All Data %'!BJ$2<0.1,'All Data %'!BJ13*10000,'All Data %'!BJ13) -> 51 | BM12: =IF('All Data %'!BK$2<0.1,'All Data %'!BK13*10000,'All Data %'!BK13) -> 0 | BN12: =IF('All Data %'!BL$2<0.1,'All Data %'!BL13*10000,'All Data %'!BL13) -> 70 | BO12: =IF('All Data %'!BM$2<0.1,'All Data %'!BM13*10000,'All Data %'!BM13) -> 58.74 | BP12: =IF('All Data %'!BN$2<0.1,'All Data %'!BN13*10000,'All Data %'!BN13) -> 1200
A13: FGEN1
A14: FGEN1 | B14: #47 | C14: Mining Plus | D14: 3774.65 | E14: =D14-D12 -> 0.8 | F14: 990 | G14: 53.33 | H14: 52.26 | I14: 105.59 | J14: 3 | K14: =IF('All Data %'!I$2<0.1,'All Data %'!I14*10000,'All Data %'!I14) -> 0 | L14: =IF('All Data %'!J$2<0.1,'All Data %'!J14*10000,'All Data %'!J14) -> 6600 | M14: =IF('All Data %'!K$2<0.1,'All Data %'!K14*10000,'All Data %'!K14) -> 0.0935 | N14: =IF('All Data %'!L$2<0.1,'All Data %'!L14*10000,'All Data %'!L14) -> 439 | O14: =IF('All Data %'!M$2<0.1,'All Data %'!M14*10000,'All Data %'!M14) -> 31.82 | P14: =IF('All Data %'!N$2<0.1,'All Data %'!N14*10000,'All Data %'!N14) -> 1000 | Q14: =IF('All Data %'!O$2<0.1,'All Data %'!O14*10000,'All Data %'!O14) -> 0.6944 | R14: =IF('All Data %'!P$2<0.1,'All Data %'!P14*10000,'All Data %'!P14) -> 107 | S14: =IF('All Data %'!Q$2<0.1,'All Data %'!Q14*10000,'All Data %'!Q14) -> 3.8849 | T14: =IF('All Data %'!R$2<0.1,'All Data %'!R14*10000,'All Data %'!R14) -> 165 | U14: =IF('All Data %'!S$2<0.1,'All Data %'!S14*10000,'All Data %'!S14) -> 0 | V14: =IF('All Data %'!T$2<0.1,'All Data %'!T14*10000,'All Data %'!T14) -> 11 | W14: =IF('All Data %'!U$2<0.1,'All Data %'!U14*10000,'All Data %'!U14) -> 0 | X14: =IF('All Data %'!V$2<0.1,'All Data %'!V14*10000,'All Data %'!V14) -> 900 | Y14: =IF('All Data %'!W$2<0.1,'All Data %'!W14*10000,'All Data %'!W14) -> 2.7991 | Z14: =IF('All Data %'!X$2<0.1,'All Data %'!X14*10000,'All Data %'!X14) -> 114 | AA14: =IF('All Data %'!Y$2<0.1,'All Data %'!Y14*10000,'All Data %'!Y14) -> 0.0746 | AB14: =IF('All Data %'!Z$2<0.1,'All Data %'!Z14*10000,'All Data %'!Z14) -> 66 | AC14: =IF('All Data %'!AA$2<0.1,'All Data %'!AA14*10000,'All Data %'!AA14) -> 170 | AD14: =IF('All Data %'!AB$2<0.1,'All Data %'!AB14*10000,'All Data %'!AB14) -> 33 | AE14: =IF('All Data %'!AC$2<0.1,'All Data %'!AC14*10000,'All Data %'!AC14) -> 135 | AF14: =IF('All Data %'!AD$2<0.1,'All Data %'!AD14*10000,'All Data %'!AD14) -> 26 | AG14: =IF('All Data %'!AE$2<0.1,'All Data %'!AE14*10000,'All Data %'!AE14) -> 156 | AH14: =IF('All Data %'!AF$2<0.1,'All Data %'!AF14*10000,'All Data %'!AF14) -> 16 | AI14: =IF('All Data %'!AG$2<0.1,'All Data %'!AG14*10000,'All Data %'!AG14) -> 0.3319 | AJ14: =IF('All Data %'!AH$2<0.1,'All Data %'!AH14*10000,'All Data %'!AH14) -> 40 | AK14: =IF('All Data %'!AI$2<0.1,'All Data %'!AI14*10000,'All Data %'!AI14) -> 0 | AL14: =IF('All Data %'!AJ$2<0.1,'All Data %'!AJ14*10000,'All Data %'!AJ14) -> 22 | AM14: =IF('All Data %'!AK$2<0.1,'All Data %'!AK14*10000,'All Data %'!AK14) -> 24 | AN14: =IF('All Data %'!AL$2<0.1,'All Data %'!AL14*10000,'All Data %'!AL14) -> 4 | AO14: =IF('All Data %'!AM$2<0.1,'All Data %'!AM14*10000,'All Data %'!AM14) -> 0 | AP14: =IF('All Data %'!AN$2<0.1,'All Data %'!AN14*10000,'All Data %'!AN14) -> 30 | AQ14: =IF('All Data %'!AO$2<0.1,'All Data %'!AO14*10000,'All Data %'!AO14) -> 0 | AR14: =IF('All Data %'!AP$2<0.1,'All Data %'!AP14*10000,'All Data %'!AP14) -> 17 | AS14: =IF('All Data %'!AQ$2<0.1,'All Data %'!AQ14*10000,'All Data %'!AQ14) -> 0 | AT14: =IF('All Data %'!AR$2<0.1,'All Data %'!AR14*10000,'All Data %'!AR14) -> 13 | AU14: =IF('All Data %'!AS$2<0.1,'All Data %'!AS14*10000,'All Data %'!AS14) -> 31 | AV14: =IF('All Data %'!AT$2<0.1,'All Data %'!AT14*10000,'All Data %'!AT14) -> 1 | AW14: =IF('All Data %'!AU$2<0.1,'All Data %'!AU14*10000,'All Data %'!AU14) -> 0 | AX14: =IF('All Data %'!AV$2<0.1,'All Data %'!AV14*10000,'All Data %'!AV14) -> 44 | AY14: =IF('All Data %'!AW$2<0.1,'All Data %'!AW14*10000,'All Data %'!AW14) -> 0 | AZ14: =IF('All Data %'!AX$2<0.1,'All Data %'!AX14*10000,'All Data %'!AX14) -> 0 | BA14: =IF('All Data %'!AY$2<0.1,'All Data %'!AY14*10000,'All Data %'!AY14) -> 253 | BB14: =IF('All Data %'!AZ$2<0.1,'All Data %'!AZ14*10000,'All Data %'!AZ14) -> 8 | BC14: =IF('All Data %'!BA$2<0.1,'All Data %'!BA14*10000,'All Data %'!BA14) -> 100 | BD14: =IF('All Data %'!BB$2<0.1,'All Data %'!BB14*10000,'All Data %'!BB14) -> 3 | BE14: =IF('All Data %'!BC$2<0.1,'All Data %'!BC14*10000,'All Data %'!BC14) -> 128 | BF14: =IF('All Data %'!BD$2<0.1,'All Data %'!BD14*10000,'All Data %'!BD14) -> 3 | BG14: =IF('All Data %'!BE$2<0.1,'All Data %'!BE14*10000,'All Data %'!BE14) -> 0 | BH14: =IF('All Data %'!BF$2<0.1,'All Data %'!BF14*10000,'All Data %'!BF14) -> 68 | BI14: =IF('All Data %'!BG$2<0.1,'All Data %'!BG14*10000,'All Data %'!BG14) -> 0 | BJ14: =IF('All Data %'!BH$2<0.1,'All Data %'!BH14*10000,'All Data %'!BH14) -> 50 | BK14: =IF('All Data %'!BI$2<0.1,'All Data %'!BI14*10000,'All Data %'!BI14) -> 0 | BL14: =IF('All Data %'!BJ$2<0.1,'All Data %'!BJ14*10000,'All Data %'!BJ14) -> 50 | BM14: =IF('All Data %'!BK$2<0.1,'All Data %'!BK14*10000,'All Data %'!BK14) -> 0 | BN14: =IF('All Data %'!BL$2<0.1,'All Data %'!BL14*10000,'All Data %'!BL14) -> 74 | BO14: =IF('All Data %'!BM$2<0.1,'All Data %'!BM14*10000,'All Data %'!BM14) -> 60.2 | BP14: =IF('All Data %'!BN$2<0.1,'All Data %'!BN14*10000,'All Data %'!BN14) -> 1100
A15: FGEN1 | B15: #48 | C15: Mining Plus | D15: 3774.85 | E15: =D15-D14 -> 0.2 | F15: 990 | G15: 53.09 | H15: 49.47 | I15: 102.56 | J15: 3 | K15: =IF('All Data %'!I$2<0.1,'All Data %'!I15*10000,'All Data %'!I15) -> 0 | L15: =IF('All Data %'!J$2<0.1,'All Data %'!J15*10000,'All Data %'!J15) -> 5300 | M15: =IF('All Data %'!K$2<0.1,'All Data %'!K15*10000,'All Data %'!K15) -> 0.615 | N15: =IF('All Data %'!L$2<0.1,'All Data %'!L15*10000,'All Data %'!L15) -> 469 | O15: =IF('All Data %'!M$2<0.1,'All Data %'!M15*10000,'All Data %'!M15) -> 34.44 | P15: =IF('All Data %'!N$2<0.1,'All Data %'!N15*10000,'All Data %'!N15) -> 1000 | Q15: =IF('All Data %'!O$2<0.1,'All Data %'!O15*10000,'All Data %'!O15) -> 1.3431 | R15: =IF('All Data %'!P$2<0.1,'All Data %'!P15*10000,'All Data %'!P15) -> 137 | S15: =IF('All Data %'!Q$2<0.1,'All Data %'!Q15*10000,'All Data %'!Q15) -> 1.5181 | T15: =IF('All Data %'!R$2<0.1,'All Data %'!R15*10000,'All Data %'!R15) -> 93 | U15: =IF('All Data %'!S$2<0.1,'All Data %'!S15*10000,'All Data %'!S15) -> 0 | V15: =IF('All Data %'!T$2<0.1,'All Data %'!T15*10000,'All Data %'!T15) -> 9 | W15: =IF('All Data %'!U$2<0.1,'All Data %'!U15*10000,'All Data %'!U15) -> 0 | X15: =IF('All Data %'!V$2<0.1,'All Data %'!V15*10000,'All Data %'!V15) -> 800 | Y15: =IF('All Data %'!W$2<0.1,'All Data %'!W15*10000,'All Data %'!W15) -> 5.3278 | Z15: =IF('All Data %'!X$2<0.1,'All Data %'!X15*10000,'All Data %'!X15) -> 173 | AA15: =IF('All Data %'!Y$2<0.1,'All Data %'!Y15*10000,'All Data %'!Y15) -> 0.0862 | AB15: =IF('All Data %'!Z$2<0.1,'All Data %'!Z15*10000,'All Data %'!Z15) -> 70 | AC15: =IF('All Data %'!AA$2<0.1,'All Data %'!AA15*10000,'All Data %'!AA15) -> 253 | AD15: =IF('All Data %'!AB$2<0.1,'All Data %'!AB15*10000,'All Data %'!AB15) -> 35 | AE15: =IF('All Data %'!AC$2<0.1,'All Data %'!AC15*10000,'All Data %'!AC15) -> 101 | AF15: =IF('All Data %'!AD$2<0.1,'All Data %'!AD15*10000,'All Data %'!AD15) -> 27 | AG15: =IF('All Data %'!AE$2<0.1,'All Data %'!AE15*10000,'All Data %'!AE15) -> 1783 | AH15: =IF('All Data %'!AF$2<0.1,'All Data %'!AF15*10000,'All Data %'!AF15) -> 40 | AI15: =IF('All Data %'!AG$2<0.1,'All Data %'!AG15*10000,'All Data %'!AG15) -> 1.8234 | AJ15: =IF('All Data %'!AH$2<0.1,'All Data %'!AH15*10000,'All Data %'!AH15) -> 101 | AK15: =IF('All Data %'!AI$2<0.1,'All Data %'!AI15*10000,'All Data %'!AI15) -> 0 | AL15: =IF('All Data %'!AJ$2<0.1,'All Data %'!AJ15*10000,'All Data %'!AJ15) -> 49 | AM15: =IF('All Data %'!AK$2<0.1,'All Data %'!AK15*10000,'All Data %'!AK15) -> 69 | AN15: =IF('All Data %'!AL$2<0.1,'All Data %'!AL15*10000,'All Data %'!AL15) -> 6 | AO15: =IF('All Data %'!AM$2<0.1,'All Data %'!AM15*10000,'All Data %'!AM15) -> 54 | AP15: =IF('All Data %'!AN$2<0.1,'All Data %'!AN15*10000,'All Data %'!AN15) -> 6 | AQ15: =IF('All Data %'!AO$2<0.1,'All Data %'!AO15*10000,'All Data %'!AO15) -> 0 | AR15: =IF('All Data %'!AP$2<0.1,'All Data %'!AP15*10000,'All Data %'!AP15) -> 18 | AS15: =IF('All Data %'!AQ$2<0.1,'All Data %'!AQ15*10000,'All Data %'!AQ15) -> 0 | AT15: =IF('All Data %'!AR$2<0.1,'All Data %'!AR15*10000,'All Data %'!AR15) -> 23 | AU15: =IF('All Data %'!AS$2<0.1,'All Data %'!AS15*10000,'All Data %'!AS15) -> 35 | AV15: =IF('All Data %'!AT$2<0.1,'All Data %'!AT15*10000,'All Data %'!AT15) -> 1 | AW15: =IF('All Data %'!AU$2<0.1,'All Data %'!AU15*10000,'All Data %'!AU15) -> 0 | AX15: =IF('All Data %'!AV$2<0.1,'All Data %'!AV15*10000,'All Data %'!AV15) -> 43 | AY15: =IF('All Data %'!AW$2<0.1,'All Data %'!AW15*10000,'All Data %'!AW15) -> 0 | AZ15: =IF('All Data %'!AX$2<0.1,'All Data %'!AX15*10000,'All Data %'!AX15) -> 0 | BA15: =IF('All Data %'!AY$2<0.1,'All Data %'!AY15*10000,'All Data %'!AY15) -> 277 | BB15: =IF('All Data %'!AZ$2<0.1,'All Data %'!AZ15*10000,'All Data %'!AZ15) -> 8 | BC15: =IF('All Data %'!BA$2<0.1,'All Data %'!BA15*10000,'All Data %'!BA15) -> 98 | BD15: =IF('All Data %'!BB$2<0.1,'All Data %'!BB15*10000,'All Data %'!BB15) -> 3 | BE15: =IF('All Data %'!BC$2<0.1,'All Data %'!BC15*10000,'All Data %'!BC15) -> 136 | BF15: =IF('All Data %'!BD$2<0.1,'All Data %'!BD15*10000,'All Data %'!BD15) -> 3 | BG15: =IF('All Data %'!BE$2<0.1,'All Data %'!BE15*10000,'All Data %'!BE15) -> 0 | BH15: =IF('All Data %'!BF$2<0.1,'All Data %'!BF15*10000,'All Data %'!BF15) -> 68 | BI15: =IF('All Data %'!BG$2<0.1,'All Data %'!BG15*10000,'All Data %'!BG15) -> 55 | BJ15: =IF('All Data %'!BH$2<0.1,'All Data %'!BH15*10000,'All Data %'!BH15) -> 3 | BK15: =IF('All Data %'!BI$2<0.1,'All Data %'!BI15*10000,'All Data %'!BI15) -> 11 | BL15: =IF('All Data %'!BJ$2<0.1,'All Data %'!BJ15*10000,'All Data %'!BJ15) -> 2 | BM15: =IF('All Data %'!BK$2<0.1,'All Data %'!BK15*10000,'All Data %'!BK15) -> 0 | BN15: =IF('All Data %'!BL$2<0.1,'All Data %'!BL15*10000,'All Data %'!BL15) -> 77 | BO15: =IF('All Data %'!BM$2<0.1,'All Data %'!BM15*10000,'All Data %'!BM15) -> 54.56 | BP15: =IF('All Data %'!BN$2<0.1,'All Data %'!BN15*10000,'All Data %'!BN15) -> 1200
A16: FGEN1 | B16: #49 | C16: Mining Plus | D16: 3775.05 | E16: 0.2 | F16: 990 | G16: 53.46 | H16: 52.6 | I16: 106.06 | J16: 3 | K16: =IF('All Data %'!I$2<0.1,'All Data %'!I16*10000,'All Data %'!I16) -> 0 | L16: =IF('All Data %'!J$2<0.1,'All Data %'!J16*10000,'All Data %'!J16) -> 6900 | M16: =IF('All Data %'!K$2<0.1,'All Data %'!K16*10000,'All Data %'!K16) -> 0.2559 | N16: =IF('All Data %'!L$2<0.1,'All Data %'!L16*10000,'All Data %'!L16) -> 468 | O16: =IF('All Data %'!M$2<0.1,'All Data %'!M16*10000,'All Data %'!M16) -> 34.41 | P16: =IF('All Data %'!N$2<0.1,'All Data %'!N16*10000,'All Data %'!N16) -> 1000 | Q16: =IF('All Data %'!O$2<0.1,'All Data %'!O16*10000,'All Data %'!O16) -> 0.8235 | R16: =IF('All Data %'!P$2<0.1,'All Data %'!P16*10000,'All Data %'!P16) -> 119 | S16: =IF('All Data %'!Q$2<0.1,'All Data %'!Q16*10000,'All Data %'!Q16) -> 2.4457 | T16: =IF('All Data %'!R$2<0.1,'All Data %'!R16*10000,'All Data %'!R16) -> 128 | U16: =IF('All Data %'!S$2<0.1,'All Data %'!S16*10000,'All Data %'!S16) -> 0 | V16: =IF('All Data %'!T$2<0.1,'All Data %'!T16*10000,'All Data %'!T16) -> 11 | W16: =IF('All Data %'!U$2<0.1,'All Data %'!U16*10000,'All Data %'!U16) -> 0 | X16: =IF('All Data %'!V$2<0.1,'All Data %'!V16*10000,'All Data %'!V16) -> 900 | Y16: =IF('All Data %'!W$2<0.1,'All Data %'!W16*10000,'All Data %'!W16) -> 2.368 | Z16: =IF('All Data %'!X$2<0.1,'All Data %'!X16*10000,'All Data %'!X16) -> 106 | AA16: =IF('All Data %'!Y$2<0.1,'All Data %'!Y16*10000,'All Data %'!Y16) -> 0.0759 | AB16: =IF('All Data %'!Z$2<0.1,'All Data %'!Z16*10000,'All Data %'!Z16) -> 70 | AC16: =IF('All Data %'!AA$2<0.1,'All Data %'!AA16*10000,'All Data %'!AA16) -> 211 | AD16: =IF('All Data %'!AB$2<0.1,'All Data %'!AB16*10000,'All Data %'!AB16) -> 35 | AE16: =IF('All Data %'!AC$2<0.1,'All Data %'!AC16*10000,'All Data %'!AC16) -> 94 | AF16: =IF('All Data %'!AD$2<0.1,'All Data %'!AD16*10000,'All Data %'!AD16) -> 26 | AG16: =IF('All Data %'!AE$2<0.1,'All Data %'!AE16*10000,'All Data %'!AE16) -> 198 | AH16: =IF('All Data %'!AF$2<0.1,'All Data %'!AF16*10000,'All Data %'!AF16) -> 18 | AI16: =IF('All Data %'!AG$2<0.1,'All Data %'!AG16*10000,'All Data %'!AG16) -> 0.4966 | AJ16: =IF('All Data %'!AH$2<0.1,'All Data %'!AH16*10000,'All Data %'!AH16) -> 51 | AK16: =IF('All Data %'!AI$2<0.1,'All Data %'!AI16*10000,'All Data %'!AI16) -> 0 | AL16: =IF('All Data %'!AJ$2<0.1,'All Data %'!AJ16*10000,'All Data %'!AJ16) -> 27 | AM16: =IF('All Data %'!AK$2<0.1,'All Data %'!AK16*10000,'All Data %'!AK16) -> 107 | AN16: =IF('All Data %'!AL$2<0.1,'All Data %'!AL16*10000,'All Data %'!AL16) -> 6 | AO16: =IF('All Data %'!AM$2<0.1,'All Data %'!AM16*10000,'All Data %'!AM16) -> 0 | AP16: =IF('All Data %'!AN$2<0.1,'All Data %'!AN16*10000,'All Data %'!AN16) -> 32 | AQ16: =IF('All Data %'!AO$2<0.1,'All Data %'!AO16*10000,'All Data %'!AO16) -> 0 | AR16: =IF('All Data %'!AP$2<0.1,'All Data %'!AP16*10000,'All Data %'!AP16) -> 17 | AS16: =IF('All Data %'!AQ$2<0.1,'All Data %'!AQ16*10000,'All Data %'!AQ16) -> 0 | AT16: =IF('All Data %'!AR$2<0.1,'All Data %'!AR16*10000,'All Data %'!AR16) -> 14 | AU16: =IF('All Data %'!AS$2<0.1,'All Data %'!AS16*10000,'All Data %'!AS16) -> 47 | AV16: =IF('All Data %'!AT$2<0.1,'All Data %'!AT16*10000,'All Data %'!AT16) -> 1 | AW16: =IF('All Data %'!AU$2<0.1,'All Data %'!AU16*10000,'All Data %'!AU16) -> 0 | AX16: =IF('All Data %'!AV$2<0.1,'All Data %'!AV16*10000,'All Data %'!AV16) -> 45 | AY16: =IF('All Data %'!AW$2<0.1,'All Data %'!AW16*10000,'All Data %'!AW16) -> 0 | AZ16: =IF('All Data %'!AX$2<0.1,'All Data %'!AX16*10000,'All Data %'!AX16) -> 0 | BA16: =IF('All Data %'!AY$2<0.1,'All Data %'!AY16*10000,'All Data %'!AY16) -> 287 | BB16: =IF('All Data %'!AZ$2<0.1,'All Data %'!AZ16*10000,'All Data %'!AZ16) -> 8 | BC16: =IF('All Data %'!BA$2<0.1,'All Data %'!BA16*10000,'All Data %'!BA16) -> 107 | BD16: =IF('All Data %'!BB$2<0.1,'All Data %'!BB16*10000,'All Data %'!BB16) -> 3 | BE16: =IF('All Data %'!BC$2<0.1,'All Data %'!BC16*10000,'All Data %'!BC16) -> 128 | BF16: =IF('All Data %'!BD$2<0.1,'All Data %'!BD16*10000,'All Data %'!BD16) -> 3 | BG16: =IF('All Data %'!BE$2<0.1,'All Data %'!BE16*10000,'All Data %'!BE16) -> 0 | BH16: =IF('All Data %'!BF$2<0.1,'All Data %'!BF16*10000,'All Data %'!BF16) -> 66 | BI16: =IF('All Data %'!BG$2<0.1,'All Data %'!BG16*10000,'All Data %'!BG16) -> 5 | BJ16: =IF('All Data %'!BH$2<0.1,'All Data %'!BH16*10000,'All Data %'!BH16) -> 2 | BK16: =IF('All Data %'!BI$2<0.1,'All Data %'!BI16*10000,'All Data %'!BI16) -> 0 | BL16: =IF('All Data %'!BJ$2<0.1,'All Data %'!BJ16*10000,'All Data %'!BJ16) -> 52 | BM16: =IF('All Data %'!BK$2<0.1,'All Data %'!BK16*10000,'All Data %'!BK16) -> 0 | BN16: =IF('All Data %'!BL$2<0.1,'All Data %'!BL16*10000,'All Data %'!BL16) -> 72 | BO16: =IF('All Data %'!BM$2<0.1,'All Data %'!BM16*10000,'All Data %'!BM16) -> 59.01 | BP16: =IF('All Data %'!BN$2<0.1,'All Data %'!BN16*10000,'All Data %'!BN16) -> 1200
A17: FGEN1 | B17: #50 | C17: Mining Plus | D17: 3775.25 | E17: 0.2 | F17: 990 | G17: 53.59 | H17: 51.63 | I17: 105.22 | J17: 3 | K17: =IF('All Data %'!I$2<0.1,'All Data %'!I17*10000,'All Data %'!I17) -> 0 | L17: =IF('All Data %'!J$2<0.1,'All Data %'!J17*10000,'All Data %'!J17) -> 7100 | M17: =IF('All Data %'!K$2<0.1,'All Data %'!K17*10000,'All Data %'!K17) -> 0.4957 | N17: =IF('All Data %'!L$2<0.1,'All Data %'!L17*10000,'All Data %'!L17) -> 483 | O17: =IF('All Data %'!M$2<0.1,'All Data %'!M17*10000,'All Data %'!M17) -> 29.32 | P17: =IF('All Data %'!N$2<0.1,'All Data %'!N17*10000,'All Data %'!N17) -> 900 | Q17: =IF('All Data %'!O$2<0.1,'All Data %'!O17*10000,'All Data %'!O17) -> 0.8397 | R17: =IF('All Data %'!P$2<0.1,'All Data %'!P17*10000,'All Data %'!P17) -> 116 | S17: =IF('All Data %'!Q$2<0.1,'All Data %'!Q17*10000,'All Data %'!Q17) -> 4.3101 | T17: =IF('All Data %'!R$2<0.1,'All Data %'!R17*10000,'All Data %'!R17) -> 180 | U17: =IF('All Data %'!S$2<0.1,'All Data %'!S17*10000,'All Data %'!S17) -> 0 | V17: =IF('All Data %'!T$2<0.1,'All Data %'!T17*10000,'All Data %'!T17) -> 12 | W17: =IF('All Data %'!U$2<0.1,'All Data %'!U17*10000,'All Data %'!U17) -> 0 | X17: =IF('All Data %'!V$2<0.1,'All Data %'!V17*10000,'All Data %'!V17) -> 1000 | Y17: =IF('All Data %'!W$2<0.1,'All Data %'!W17*10000,'All Data %'!W17) -> 3.6017 | Z17: =IF('All Data %'!X$2<0.1,'All Data %'!X17*10000,'All Data %'!X17) -> 138 | AA17: =IF('All Data %'!Y$2<0.1,'All Data %'!Y17*10000,'All Data %'!Y17) -> 0.0564 | AB17: =IF('All Data %'!Z$2<0.1,'All Data %'!Z17*10000,'All Data %'!Z17) -> 64 | AC17: =IF('All Data %'!AA$2<0.1,'All Data %'!AA17*10000,'All Data %'!AA17) -> 129 | AD17: =IF('All Data %'!AB$2<0.1,'All Data %'!AB17*10000,'All Data %'!AB17) -> 32 | AE17: =IF('All Data %'!AC$2<0.1,'All Data %'!AC17*10000,'All Data %'!AC17) -> 145 | AF17: =IF('All Data %'!AD$2<0.1,'All Data %'!AD17*10000,'All Data %'!AD17) -> 27 | AG17: =IF('All Data %'!AE$2<0.1,'All Data %'!AE17*10000,'All Data %'!AE17) -> 140 | AH17: =IF('All Data %'!AF$2<0.1,'All Data %'!AF17*10000,'All Data %'!AF17) -> 17 | AI17: =IF('All Data %'!AG$2<0.1,'All Data %'!AG17*10000,'All Data %'!AG17) -> 0.5707 | AJ17: =IF('All Data %'!AH$2<0.1,'All Data %'!AH17*10000,'All Data %'!AH17) -> 55 | AK17: =IF('All Data %'!AI$2<0.1,'All Data %'!AI17*10000,'All Data %'!AI17) -> 0 | AL17: =IF('All Data %'!AJ$2<0.1,'All Data %'!AJ17*10000,'All Data %'!AJ17) -> 29 | AM17: =IF('All Data %'!AK$2<0.1,'All Data %'!AK17*10000,'All Data %'!AK17) -> 14 | AN17: =IF('All Data %'!AL$2<0.1,'All Data %'!AL17*10000,'All Data %'!AL17) -> 4 | AO17: =IF('All Data %'!AM$2<0.1,'All Data %'!AM17*10000,'All Data %'!AM17) -> 0 | AP17: =IF('All Data %'!AN$2<0.1,'All Data %'!AN17*10000,'All Data %'!AN17) -> 30 | AQ17: =IF('All Data %'!AO$2<0.1,'All Data %'!AO17*10000,'All Data %'!AO17) -> 0 | AR17: =IF('All Data %'!AP$2<0.1,'All Data %'!AP17*10000,'All Data %'!AP17) -> 17 | AS17: =IF('All Data %'!AQ$2<0.1,'All Data %'!AQ17*10000,'All Data %'!AQ17) -> 0 | AT17: =IF('All Data %'!AR$2<0.1,'All Data %'!AR17*10000,'All Data %'!AR17) -> 14 | AU17: =IF('All Data %'!AS$2<0.1,'All Data %'!AS17*10000,'All Data %'!AS17) -> 30 | AV17: =IF('All Data %'!AT$2<0.1,'All Data %'!AT17*10000,'All Data %'!AT17) -> 1 | AW17: =IF('All Data %'!AU$2<0.1,'All Data %'!AU17*10000,'All Data %'!AU17) -> 0 | AX17: =IF('All Data %'!AV$2<0.1,'All Data %'!AV17*10000,'All Data %'!AV17) -> 46 | AY17: =IF('All Data %'!AW$2<0.1,'All Data %'!AW17*10000,'All Data %'!AW17) -> 0 | AZ17: =IF('All Data %'!AX$2<0.1,'All Data %'!AX17*10000,'All Data %'!AX17) -> 0 | BA17: =IF('All Data %'!AY$2<0.1,'All Data %'!AY17*10000,'All Data %'!AY17) -> 258 | BB17: =IF('All Data %'!AZ$2<0.1,'All Data %'!AZ17*10000,'All Data %'!AZ17) -> 8 | BC17: =IF('All Data %'!BA$2<0.1,'All Data %'!BA17*10000,'All Data %'!BA17) -> 101 | BD17: =IF('All Data %'!BB$2<0.1,'All Data %'!BB17*10000,'All Data %'!BB17) -> 3 | BE17: =IF('All Data %'!BC$2<0.1,'All Data %'!BC17*10000,'All Data %'!BC17) -> 126 | BF17: =IF('All Data %'!BD$2<0.1,'All Data %'!BD17*10000,'All Data %'!BD17) -> 3 | BG17: =IF('All Data %'!BE$2<0.1,'All Data %'!BE17*10000,'All Data %'!BE17) -> 0 | BH17: =IF('All Data %'!BF$2<0.1,'All Data %'!BF17*10000,'All Data %'!BF17) -> 70 | BI17: =IF('All Data %'!BG$2<0.1,'All Data %'!BG17*10000,'All Data %'!BG17) -> 7 | BJ17: =IF('All Data %'!BH$2<0.1,'All Data %'!BH17*10000,'All Data %'!BH17) -> 2 | BK17: =IF('All Data %'!BI$2<0.1,'All Data %'!BI17*10000,'All Data %'!BI17) -> 0 | BL17: =IF('All Data %'!BJ$2<0.1,'All Data %'!BJ17*10000,'All Data %'!BJ17) -> 52 | BM17: =IF('All Data %'!BK$2<0.1,'All Data %'!BK17*10000,'All Data %'!BK17) -> 0 | BN17: =IF('All Data %'!BL$2<0.1,'All Data %'!BL17*10000,'All Data %'!BL17) -> 71 | BO17: =IF('All Data %'!BM$2<0.1,'All Data %'!BM17*10000,'All Data %'!BM17) -> 60.71 | BP17: =IF('All Data %'!BN$2<0.1,'All Data %'!BN17*10000,'All Data %'!BN17) -> 1200
A18: FGEN1 | B18: #51 | C18: Mining Plus | D18: 3775.45 | E18: 0.2 | F18: 990 | G18: 54.52 | H18: 52.65 | I18: 107.17 | J18: 3 | K18: =IF('All Data %'!I$2<0.1,'All Data %'!I18*10000,'All Data %'!I18) -> 0 | L18: =IF('All Data %'!J$2<0.1,'All Data %'!J18*10000,'All Data %'!J18) -> 8200 | M18: =IF('All Data %'!K$2<0.1,'All Data %'!K18*10000,'All Data %'!K18) -> 0.34 | N18: =IF('All Data %'!L$2<0.1,'All Data %'!L18*10000,'All Data %'!L18) -> 500 | O18: =IF('All Data %'!M$2<0.1,'All Data %'!M18*10000,'All Data %'!M18) -> 28.37 | P18: =IF('All Data %'!N$2<0.1,'All Data %'!N18*10000,'All Data %'!N18) -> 1000 | Q18: =IF('All Data %'!O$2<0.1,'All Data %'!O18*10000,'All Data %'!O18) -> 0.6547 | R18: =IF('All Data %'!P$2<0.1,'All Data %'!P18*10000,'All Data %'!P18) -> 113 | S18: =IF('All Data %'!Q$2<0.1,'All Data %'!Q18*10000,'All Data %'!Q18) -> 3.9875 | T18: =IF('All Data %'!R$2<0.1,'All Data %'!R18*10000,'All Data %'!R18) -> 185 | U18: =IF('All Data %'!S$2<0.1,'All Data %'!S18*10000,'All Data %'!S18) -> 0 | V18: =IF('All Data %'!T$2<0.1,'All Data %'!T18*10000,'All Data %'!T18) -> 13 | W18: =IF('All Data %'!U$2<0.1,'All Data %'!U18*10000,'All Data %'!U18) -> 0 | X18: =IF('All Data %'!V$2<0.1,'All Data %'!V18*10000,'All Data %'!V18) -> 1100 | Y18: =IF('All Data %'!W$2<0.1,'All Data %'!W18*10000,'All Data %'!W18) -> 3.5141 | Z18: =IF('All Data %'!X$2<0.1,'All Data %'!X18*10000,'All Data %'!X18) -> 147 | AA18: =IF('All Data %'!Y$2<0.1,'All Data %'!Y18*10000,'All Data %'!Y18) -> 0.0682 | AB18: =IF('All Data %'!Z$2<0.1,'All Data %'!Z18*10000,'All Data %'!Z18) -> 71 | AC18: =IF('All Data %'!AA$2<0.1,'All Data %'!AA18*10000,'All Data %'!AA18) -> 181 | AD18: =IF('All Data %'!AB$2<0.1,'All Data %'!AB18*10000,'All Data %'!AB18) -> 35 | AE18: =IF('All Data %'!AC$2<0.1,'All Data %'!AC18*10000,'All Data %'!AC18) -> 94 | AF18: =IF('All Data %'!AD$2<0.1,'All Data %'!AD18*10000,'All Data %'!AD18) -> 27 | AG18: =IF('All Data %'!AE$2<0.1,'All Data %'!AE18*10000,'All Data %'!AE18) -> 180 | AH18: =IF('All Data %'!AF$2<0.1,'All Data %'!AF18*10000,'All Data %'!AF18) -> 19 | AI18: =IF('All Data %'!AG$2<0.1,'All Data %'!AG18*10000,'All Data %'!AG18) -> 0.8069 | AJ18: =IF('All Data %'!AH$2<0.1,'All Data %'!AH18*10000,'All Data %'!AH18) -> 70 | AK18: =IF('All Data %'!AI$2<0.1,'All Data %'!AI18*10000,'All Data %'!AI18) -> 0 | AL18: =IF('All Data %'!AJ$2<0.1,'All Data %'!AJ18*10000,'All Data %'!AJ18) -> 37 | AM18: =IF('All Data %'!AK$2<0.1,'All Data %'!AK18*10000,'All Data %'!AK18) -> 0 | AN18: =IF('All Data %'!AL$2<0.1,'All Data %'!AL18*10000,'All Data %'!AL18) -> 22 | AO18: =IF('All Data %'!AM$2<0.1,'All Data %'!AM18*10000,'All Data %'!AM18) -> 0 | AP18: =IF('All Data %'!AN$2<0.1,'All Data %'!AN18*10000,'All Data %'!AN18) -> 33 | AQ18: =IF('All Data %'!AO$2<0.1,'All Data %'!AO18*10000,'All Data %'!AO18) -> 0 | AR18: =IF('All Data %'!AP$2<0.1,'All Data %'!AP18*10000,'All Data %'!AP18) -> 19 | AS18: =IF('All Data %'!AQ$2<0.1,'All Data %'!AQ18*10000,'All Data %'!AQ18) -> 0 | AT18: =IF('All Data %'!AR$2<0.1,'All Data %'!AR18*10000,'All Data %'!AR18) -> 15 | AU18: =IF('All Data %'!AS$2<0.1,'All Data %'!AS18*10000,'All Data %'!AS18) -> 41 | AV18: =IF('All Data %'!AT$2<0.1,'All Data %'!AT18*10000,'All Data %'!AT18) -> 1 | AW18: =IF('All Data %'!AU$2<0.1,'All Data %'!AU18*10000,'All Data %'!AU18) -> 0 | AX18: =IF('All Data %'!AV$2<0.1,'All Data %'!AV18*10000,'All Data %'!AV18) -> 50 | AY18: =IF('All Data %'!AW$2<0.1,'All Data %'!AW18*10000,'All Data %'!AW18) -> 0 | AZ18: =IF('All Data %'!AX$2<0.1,'All Data %'!AX18*10000,'All Data %'!AX18) -> 0 | BA18: =IF('All Data %'!AY$2<0.1,'All Data %'!AY18*10000,'All Data %'!AY18) -> 223 | BB18: =IF('All Data %'!AZ$2<0.1,'All Data %'!AZ18*10000,'All Data %'!AZ18) -> 9 | BC18: =IF('All Data %'!BA$2<0.1,'All Data %'!BA18*10000,'All Data %'!BA18) -> 94 | BD18: =IF('All Data %'!BB$2<0.1,'All Data %'!BB18*10000,'All Data %'!BB18) -> 3 | BE18: =IF('All Data %'!BC$2<0.1,'All Data %'!BC18*10000,'All Data %'!BC18) -> 120 | BF18: =IF('All Data %'!BD$2<0.1,'All Data %'!BD18*10000,'All Data %'!BD18) -> 3 | BG18: =IF('All Data %'!BE$2<0.1,'All Data %'!BE18*10000,'All Data %'!BE18) -> 0 | BH18: =IF('All Data %'!BF$2<0.1,'All Data %'!BF18*10000,'All Data %'!BF18) -> 74 | BI18: =IF('All Data %'!BG$2<0.1,'All Data %'!BG18*10000,'All Data %'!BG18) -> 0 | BJ18: =IF('All Data %'!BH$2<0.1,'All Data %'!BH18*10000,'All Data %'!BH18) -> 59 | BK18: =IF('All Data %'!BI$2<0.1,'All Data %'!BI18*10000,'All Data %'!BI18) -> 0 | BL18: =IF('All Data %'!BJ$2<0.1,'All Data %'!BJ18*10000,'All Data %'!BJ18) -> 57 | BM18: =IF('All Data %'!BK$2<0.1,'All Data %'!BK18*10000,'All Data %'!BK18) -> 0 | BN18: =IF('All Data %'!BL$2<0.1,'All Data %'!BL18*10000,'All Data %'!BL18) -> 76 | BO18: =IF('All Data %'!BM$2<0.1,'All Data %'!BM18*10000,'All Data %'!BM18) -> 62.17 | BP18: =IF('All Data %'!BN$2<0.1,'All Data %'!BN18*10000,'All Data %'!BN18) -> 1300
A19: FGEN1 | B19: #52 | C19: Mining Plus | D19: 3775.65 | E19: 0.2 | F19: 990 | G19: 53.33 | H19: 51.74 | I19: 105.07 | J19: 3 | K19: =IF('All Data %'!I$2<0.1,'All Data %'!I19*10000,'All Data %'!I19) -> 0 | L19: =IF('All Data %'!J$2<0.1,'All Data %'!J19*10000,'All Data %'!J19) -> 6500 | M19: =IF('All Data %'!K$2<0.1,'All Data %'!K19*10000,'All Data %'!K19) -> 1.3 | N19: =IF('All Data %'!L$2<0.1,'All Data %'!L19*10000,'All Data %'!L19) -> 600 | O19: =IF('All Data %'!M$2<0.1,'All Data %'!M19*10000,'All Data %'!M19) -> 33.51 | P19: =IF('All Data %'!N$2<0.1,'All Data %'!N19*10000,'All Data %'!N19) -> 1000 | Q19: =IF('All Data %'!O$2<0.1,'All Data %'!O19*10000,'All Data %'!O19) -> 0.5296 | R19: =IF('All Data %'!P$2<0.1,'All Data %'!P19*10000,'All Data %'!P19) -> 101 | S19: =IF('All Data %'!Q$2<0.1,'All Data %'!Q19*10000,'All Data %'!Q19) -> 3.5681 | T19: =IF('All Data %'!R$2<0.1,'All Data %'!R19*10000,'All Data %'!R19) -> 159 | U19: =IF('All Data %'!S$2<0.1,'All Data %'!S19*10000,'All Data %'!S19) -> 0 | V19: =IF('All Data %'!T$2<0.1,'All Data %'!T19*10000,'All Data %'!T19) -> 11 | W19: =IF('All Data %'!U$2<0.1,'All Data %'!U19*10000,'All Data %'!U19) -> 0 | X19: =IF('All Data %'!V$2<0.1,'All Data %'!V19*10000,'All Data %'!V19) -> 1100 | Y19: =IF('All Data %'!W$2<0.1,'All Data %'!W19*10000,'All Data %'!W19) -> 2.7211 | Z19: =IF('All Data %'!X$2<0.1,'All Data %'!X19*10000,'All Data %'!X19) -> 114 | AA19: =IF('All Data %'!Y$2<0.1,'All Data %'!Y19*10000,'All Data %'!Y19) -> 0.0925 | AB19: =IF('All Data %'!Z$2<0.1,'All Data %'!Z19*10000,'All Data %'!Z19) -> 73 | AC19: =IF('All Data %'!AA$2<0.1,'All Data %'!AA19*10000,'All Data %'!AA19) -> 136 | AD19: =IF('All Data %'!AB$2<0.1,'All Data %'!AB19*10000,'All Data %'!AB19) -> 33 | AE19: =IF('All Data %'!AC$2<0.1,'All Data %'!AC19*10000,'All Data %'!AC19) -> 176 | AF19: =IF('All Data %'!AD$2<0.1,'All Data %'!AD19*10000,'All Data %'!AD19) -> 28 | AG19: =IF('All Data %'!AE$2<0.1,'All Data %'!AE19*10000,'All Data %'!AE19) -> 143 | AH19: =IF('All Data %'!AF$2<0.1,'All Data %'!AF19*10000,'All Data %'!AF19) -> 17 | AI19: =IF('All Data %'!AG$2<0.1,'All Data %'!AG19*10000,'All Data %'!AG19) -> 0.7163 | AJ19: =IF('All Data %'!AH$2<0.1,'All Data %'!AH19*10000,'All Data %'!AH19) -> 61 | AK19: =IF('All Data %'!AI$2<0.1,'All Data %'!AI19*10000,'All Data %'!AI19) -> 0 | AL19: =IF('All Data %'!AJ$2<0.1,'All Data %'!AJ19*10000,'All Data %'!AJ19) -> 32 | AM19: =IF('All Data %'!AK$2<0.1,'All Data %'!AK19*10000,'All Data %'!AK19) -> 20 | AN19: =IF('All Data %'!AL$2<0.1,'All Data %'!AL19*10000,'All Data %'!AL19) -> 4 | AO19: =IF('All Data %'!AM$2<0.1,'All Data %'!AM19*10000,'All Data %'!AM19) -> 0 | AP19: =IF('All Data %'!AN$2<0.1,'All Data %'!AN19*10000,'All Data %'!AN19) -> 31 | AQ19: =IF('All Data %'!AO$2<0.1,'All Data %'!AO19*10000,'All Data %'!AO19) -> 0 | AR19: =IF('All Data %'!AP$2<0.1,'All Data %'!AP19*10000,'All Data %'!AP19) -> 18 | AS19: =IF('All Data %'!AQ$2<0.1,'All Data %'!AQ19*10000,'All Data %'!AQ19) -> 0 | AT19: =IF('All Data %'!AR$2<0.1,'All Data %'!AR19*10000,'All Data %'!AR19) -> 14 | AU19: =IF('All Data %'!AS$2<0.1,'All Data %'!AS19*10000,'All Data %'!AS19) -> 68 | AV19: =IF('All Data %'!AT$2<0.1,'All Data %'!AT19*10000,'All Data %'!AT19) -> 1 | AW19: =IF('All Data %'!AU$2<0.1,'All Data %'!AU19*10000,'All Data %'!AU19) -> 0 | AX19: =IF('All Data %'!AV$2<0.1,'All Data %'!AV19*10000,'All Data %'!AV19) -> 45 | AY19: =IF('All Data %'!AW$2<0.1,'All Data %'!AW19*10000,'All Data %'!AW19) -> 0 | AZ19: =IF('All Data %'!AX$2<0.1,'All Data %'!AX19*10000,'All Data %'!AX19) -> 0 | BA19: =IF('All Data %'!AY$2<0.1,'All Data %'!AY19*10000,'All Data %'!AY19) -> 281 | BB19: =IF('All Data %'!AZ$2<0.1,'All Data %'!AZ19*10000,'All Data %'!AZ19) -> 8 | BC19: =IF('All Data %'!BA$2<0.1,'All Data %'!BA19*10000,'All Data %'!BA19) -> 106 | BD19: =IF('All Data %'!BB$2<0.1,'All Data %'!BB19*10000,'All Data %'!BB19) -> 3 | BE19: =IF('All Data %'!BC$2<0.1,'All Data %'!BC19*10000,'All Data %'!BC19) -> 139 | BF19: =IF('All Data %'!BD$2<0.1,'All Data %'!BD19*10000,'All Data %'!BD19) -> 3 | BG19: =IF('All Data %'!BE$2<0.1,'All Data %'!BE19*10000,'All Data %'!BE19) -> 0 | BH19: =IF('All Data %'!BF$2<0.1,'All Data %'!BF19*10000,'All Data %'!BF19) -> 69 | BI19: =IF('All Data %'!BG$2<0.1,'All Data %'!BG19*10000,'All Data %'!BG19) -> 5 | BJ19: =IF('All Data %'!BH$2<0.1,'All Data %'!BH19*10000,'All Data %'!BH19) -> 2 | BK19: =IF('All Data %'!BI$2<0.1,'All Data %'!BI19*10000,'All Data %'!BI19) -> 12 | BL19: =IF('All Data %'!BJ$2<0.1,'All Data %'!BJ19*10000,'All Data %'!BJ19) -> 2 | BM19: =IF('All Data %'!BK$2<0.1,'All Data %'!BK19*10000,'All Data %'!BK19) -> 0 | BN19: =IF('All Data %'!BL$2<0.1,'All Data %'!BL19*10000,'All Data %'!BL19) -> 77 | BO19: =IF('All Data %'!BM$2<0.1,'All Data %'!BM19*10000,'All Data %'!BM19) -> 57.46 | BP19: =IF('All Data %'!BN$2<0.1,'All Data %'!BN19*10000,'All Data %'!BN19) -> 1200
A20: FGEN1 | B20: #53 | C20: Mining Plus | D20: 3775.85 | E20: 0.2 | F20: 990 | G20: 54.56 | H20: 46.96 | I20: 101.52 | J20: 3 | K20: =IF('All Data %'!I$2<0.1,'All Data %'!I20*10000,'All Data %'!I20) -> 0 | L20: =IF('All Data %'!J$2<0.1,'All Data %'!J20*10000,'All Data %'!J20) -> 6400 | M20: =IF('All Data %'!K$2<0.1,'All Data %'!K20*10000,'All Data %'!K20) -> 4.73 | N20: =IF('All Data %'!L$2<0.1,'All Data %'!L20*10000,'All Data %'!L20) -> 800 | O20: =IF('All Data %'!M$2<0.1,'All Data %'!M20*10000,'All Data %'!M20) -> 11.72 | P20: =IF('All Data %'!N$2<0.1,'All Data %'!N20*10000,'All Data %'!N20) -> 600 | Q20: =IF('All Data %'!O$2<0.1,'All Data %'!O20*10000,'All Data %'!O20) -> 0 | R20: =IF('All Data %'!P$2<0.1,'All Data %'!P20*10000,'All Data %'!P20) -> 104 | S20: =IF('All Data %'!Q$2<0.1,'All Data %'!Q20*10000,'All Data %'!Q20) -> 7.7633 | T20: =IF('All Data %'!R$2<0.1,'All Data %'!R20*10000,'All Data %'!R20) -> 289 | U20: =IF('All Data %'!S$2<0.1,'All Data %'!S20*10000,'All Data %'!S20) -> 0 | V20: =IF('All Data %'!T$2<0.1,'All Data %'!T20*10000,'All Data %'!T20) -> 13 | W20: =IF('All Data %'!U$2<0.1,'All Data %'!U20*10000,'All Data %'!U20) -> 6.4052 | X20: =IF('All Data %'!V$2<0.1,'All Data %'!V20*10000,'All Data %'!V20) -> 424 | Y20: =IF('All Data %'!W$2<0.1,'All Data %'!W20*10000,'All Data %'!W20) -> 8.0188 | Z20: =IF('All Data %'!X$2<0.1,'All Data %'!X20*10000,'All Data %'!X20) -> 292 | AA20: =IF('All Data %'!Y$2<0.1,'All Data %'!Y20*10000,'All Data %'!Y20) -> 0.2906 | AB20: =IF('All Data %'!Z$2<0.1,'All Data %'!Z20*10000,'All Data %'!Z20) -> 111 | AC20: =IF('All Data %'!AA$2<0.1,'All Data %'!AA20*10000,'All Data %'!AA20) -> 363 | AD20: =IF('All Data %'!AB$2<0.1,'All Data %'!AB20*10000,'All Data %'!AB20) -> 46 | AE20: =IF('All Data %'!AC$2<0.1,'All Data %'!AC20*10000,'All Data %'!AC20) -> 245 | AF20: =IF('All Data %'!AD$2<0.1,'All Data %'!AD20*10000,'All Data %'!AD20) -> 34 | AG20: =IF('All Data %'!AE$2<0.1,'All Data %'!AE20*10000,'All Data %'!AE20) -> 454 | AH20: =IF('All Data %'!AF$2<0.1,'All Data %'!AF20*10000,'All Data %'!AF20) -> 26 | AI20: =IF('All Data %'!AG$2<0.1,'All Data %'!AG20*10000,'All Data %'!AG20) -> 2.4536 | AJ20: =IF('All Data %'!AH$2<0.1,'All Data %'!AH20*10000,'All Data %'!AH20) -> 138 | AK20: =IF('All Data %'!AI$2<0.1,'All Data %'!AI20*10000,'All Data %'!AI20) -> 71 | AL20: =IF('All Data %'!AJ$2<0.1,'All Data %'!AJ20*10000,'All Data %'!AJ20) -> 14 | AM20: =IF('All Data %'!AK$2<0.1,'All Data %'!AK20*10000,'All Data %'!AK20) -> 27 | AN20: =IF('All Data %'!AL$2<0.1,'All Data %'!AL20*10000,'All Data %'!AL20) -> 5 | AO20: =IF('All Data %'!AM$2<0.1,'All Data %'!AM20*10000,'All Data %'!AM20) -> 0 | AP20: =IF('All Data %'!AN$2<0.1,'All Data %'!AN20*10000,'All Data %'!AN20) -> 37 | AQ20: =IF('All Data %'!AO$2<0.1,'All Data %'!AO20*10000,'All Data %'!AO20) -> 28 | AR20: =IF('All Data %'!AP$2<0.1,'All Data %'!AP20*10000,'All Data %'!AP20) -> 4 | AS20: =IF('All Data %'!AQ$2<0.1,'All Data %'!AQ20*10000,'All Data %'!AQ20) -> 0 | AT20: =IF('All Data %'!AR$2<0.1,'All Data %'!AR20*10000,'All Data %'!AR20) -> 19 | AU20: =IF('All Data %'!AS$2<0.1,'All Data %'!AS20*10000,'All Data %'!AS20) -> 183 | AV20: =IF('All Data %'!AT$2<0.1,'All Data %'!AT20*10000,'All Data %'!AT20) -> 2 | AW20: =IF('All Data %'!AU$2<0.1,'All Data %'!AU20*10000,'All Data %'!AU20) -> 0 | AX20: =IF('All Data %'!AV$2<0.1,'All Data %'!AV20*10000,'All Data %'!AV20) -> 51 | AY20: =IF('All Data %'!AW$2<0.1,'All Data %'!AW20*10000,'All Data %'!AW20) -> 0 | AZ20: =IF('All Data %'!AX$2<0.1,'All Data %'!AX20*10000,'All Data %'!AX20) -> 0 | BA20: =IF('All Data %'!AY$2<0.1,'All Data %'!AY20*10000,'All Data %'!AY20) -> 242 | BB20: =IF('All Data %'!AZ$2<0.1,'All Data %'!AZ20*10000,'All Data %'!AZ20) -> 9 | BC20: =IF('All Data %'!BA$2<0.1,'All Data %'!BA20*10000,'All Data %'!BA20) -> 97 | BD20: =IF('All Data %'!BB$2<0.1,'All Data %'!BB20*10000,'All Data %'!BB20) -> 3 | BE20: =IF('All Data %'!BC$2<0.1,'All Data %'!BC20*10000,'All Data %'!BC20) -> 117 | BF20: =IF('All Data %'!BD$2<0.1,'All Data %'!BD20*10000,'All Data %'!BD20) -> 3 | BG20: =IF('All Data %'!BE$2<0.1,'All Data %'!BE20*10000,'All Data %'!BE20) -> 23 | BH20: =IF('All Data %'!BF$2<0.1,'All Data %'!BF20*10000,'All Data %'!BF20) -> 4 | BI20: =IF('All Data %'!BG$2<0.1,'All Data %'!BG20*10000,'All Data %'!BG20) -> 21 | BJ20: =IF('All Data %'!BH$2<0.1,'All Data %'!BH20*10000,'All Data %'!BH20) -> 2 | BK20: =IF('All Data %'!BI$2<0.1,'All Data %'!BI20*10000,'All Data %'!BI20) -> 21 | BL20: =IF('All Data %'!BJ$2<0.1,'All Data %'!BJ20*10000,'All Data %'!BJ20) -> 2 | BM20: =IF('All Data %'!BK$2<0.1,'All Data %'!BK20*10000,'All Data %'!BK20) -> 43 | BN20: =IF('All Data %'!BL$2<0.1,'All Data %'!BL20*10000,'All Data %'!BL20) -> 6 | BO20: =IF('All Data %'!BM$2<0.1,'All Data %'!BM20*10000,'All Data %'!BM20) -> 58.43 | BP20: =IF('All Data %'!BN$2<0.1,'All Data %'!BN20*10000,'All Data %'!BN20) -> 1400
A21: FGEN1 | B21: #54 | C21: Mining Plus | D21: 3776.05 | E21: 0.2 | F21: 990 | G21: 53.18 | H21: 51.75 | I21: 104.94 | J21: 3 | K21: =IF('All Data %'!I$2<0.1,'All Data %'!I21*10000,'All Data %'!I21) -> 0 | L21: =IF('All Data %'!J$2<0.1,'All Data %'!J21*10000,'All Data %'!J21) -> 6300 | M21: =IF('All Data %'!K$2<0.1,'All Data %'!K21*10000,'All Data %'!K21) -> 0.2393 | N21: =IF('All Data %'!L$2<0.1,'All Data %'!L21*10000,'All Data %'!L21) -> 449 | O21: =IF('All Data %'!M$2<0.1,'All Data %'!M21*10000,'All Data %'!M21) -> 33.63 | P21: =IF('All Data %'!N$2<0.1,'All Data %'!N21*10000,'All Data %'!N21) -> 1000 | Q21: =IF('All Data %'!O$2<0.1,'All Data %'!O21*10000,'All Data %'!O21) -> 1.2499 | R21: =IF('All Data %'!P$2<0.1,'All Data %'!P21*10000,'All Data %'!P21) -> 135 | S21: =IF('All Data %'!Q$2<0.1,'All Data %'!Q21*10000,'All Data %'!Q21) -> 2.9824 | T21: =IF('All Data %'!R$2<0.1,'All Data %'!R21*10000,'All Data %'!R21) -> 139 | U21: =IF('All Data %'!S$2<0.1,'All Data %'!S21*10000,'All Data %'!S21) -> 0 | V21: =IF('All Data %'!T$2<0.1,'All Data %'!T21*10000,'All Data %'!T21) -> 10 | W21: =IF('All Data %'!U$2<0.1,'All Data %'!U21*10000,'All Data %'!U21) -> 0 | X21: =IF('All Data %'!V$2<0.1,'All Data %'!V21*10000,'All Data %'!V21) -> 900 | Y21: =IF('All Data %'!W$2<0.1,'All Data %'!W21*10000,'All Data %'!W21) -> 3.1662 | Z21: =IF('All Data %'!X$2<0.1,'All Data %'!X21*10000,'All Data %'!X21) -> 122 | AA21: =IF('All Data %'!Y$2<0.1,'All Data %'!Y21*10000,'All Data %'!Y21) -> 0.0623 | AB21: =IF('All Data %'!Z$2<0.1,'All Data %'!Z21*10000,'All Data %'!Z21) -> 65 | AC21: =IF('All Data %'!AA$2<0.1,'All Data %'!AA21*10000,'All Data %'!AA21) -> 127 | AD21: =IF('All Data %'!AB$2<0.1,'All Data %'!AB21*10000,'All Data %'!AB21) -> 32 | AE21: =IF('All Data %'!AC$2<0.1,'All Data %'!AC21*10000,'All Data %'!AC21) -> 105 | AF21: =IF('All Data %'!AD$2<0.1,'All Data %'!AD21*10000,'All Data %'!AD21) -> 26 | AG21: =IF('All Data %'!AE$2<0.1,'All Data %'!AE21*10000,'All Data %'!AE21) -> 199 | AH21: =IF('All Data %'!AF$2<0.1,'All Data %'!AF21*10000,'All Data %'!AF21) -> 18 | AI21: =IF('All Data %'!AG$2<0.1,'All Data %'!AG21*10000,'All Data %'!AG21) -> 0.5505 | AJ21: =IF('All Data %'!AH$2<0.1,'All Data %'!AH21*10000,'All Data %'!AH21) -> 52 | AK21: =IF('All Data %'!AI$2<0.1,'All Data %'!AI21*10000,'All Data %'!AI21) -> 0 | AL21: =IF('All Data %'!AJ$2<0.1,'All Data %'!AJ21*10000,'All Data %'!AJ21) -> 28 | AM21: =IF('All Data %'!AK$2<0.1,'All Data %'!AK21*10000,'All Data %'!AK21) -> 14 | AN21: =IF('All Data %'!AL$2<0.1,'All Data %'!AL21*10000,'All Data %'!AL21) -> 4 | AO21: =IF('All Data %'!AM$2<0.1,'All Data %'!AM21*10000,'All Data %'!AM21) -> 0 | AP21: =IF('All Data %'!AN$2<0.1,'All Data %'!AN21*10000,'All Data %'!AN21) -> 30 | AQ21: =IF('All Data %'!AO$2<0.1,'All Data %'!AO21*10000,'All Data %'!AO21) -> 0 | AR21: =IF('All Data %'!AP$2<0.1,'All Data %'!AP21*10000,'All Data %'!AP21) -> 18 | AS21: =IF('All Data %'!AQ$2<0.1,'All Data %'!AQ21*10000,'All Data %'!AQ21) -> 0 | AT21: =IF('All Data %'!AR$2<0.1,'All Data %'!AR21*10000,'All Data %'!AR21) -> 14 | AU21: =IF('All Data %'!AS$2<0.1,'All Data %'!AS21*10000,'All Data %'!AS21) -> 31 | AV21: =IF('All Data %'!AT$2<0.1,'All Data %'!AT21*10000,'All Data %'!AT21) -> 1 | AW21: =IF('All Data %'!AU$2<0.1,'All Data %'!AU21*10000,'All Data %'!AU21) -> 0 | AX21: =IF('All Data %'!AV$2<0.1,'All Data %'!AV21*10000,'All Data %'!AV21) -> 44 | AY21: =IF('All Data %'!AW$2<0.1,'All Data %'!AW21*10000,'All Data %'!AW21) -> 0 | AZ21: =IF('All Data %'!AX$2<0.1,'All Data %'!AX21*10000,'All Data %'!AX21) -> 0 | BA21: =IF('All Data %'!AY$2<0.1,'All Data %'!AY21*10000,'All Data %'!AY21) -> 251 | BB21: =IF('All Data %'!AZ$2<0.1,'All Data %'!AZ21*10000,'All Data %'!AZ21) -> 8 | BC21: =IF('All Data %'!BA$2<0.1,'All Data %'!BA21*10000,'All Data %'!BA21) -> 96 | BD21: =IF('All Data %'!BB$2<0.1,'All Data %'!BB21*10000,'All Data %'!BB21) -> 3 | BE21: =IF('All Data %'!BC$2<0.1,'All Data %'!BC21*10000,'All Data %'!BC21) -> 124 | BF21: =IF('All Data %'!BD$2<0.1,'All Data %'!BD21*10000,'All Data %'!BD21) -> 3 | BG21: =IF('All Data %'!BE$2<0.1,'All Data %'!BE21*10000,'All Data %'!BE21) -> 0 | BH21: =IF('All Data %'!BF$2<0.1,'All Data %'!BF21*10000,'All Data %'!BF21) -> 70 | BI21: =IF('All Data %'!BG$2<0.1,'All Data %'!BG21*10000,'All Data %'!BG21) -> 8 | BJ21: =IF('All Data %'!BH$2<0.1,'All Data %'!BH21*10000,'All Data %'!BH21) -> 2 | BK21: =IF('All Data %'!BI$2<0.1,'All Data %'!BI21*10000,'All Data %'!BI21) -> 0 | BL21: =IF('All Data %'!BJ$2<0.1,'All Data %'!BJ21*10000,'All Data %'!BJ21) -> 50 | BM21: =IF('All Data %'!BK$2<0.1,'All Data %'!BK21*10000,'All Data %'!BK21) -> 0 | BN21: =IF('All Data %'!BL$2<0.1,'All Data %'!BL21*10000,'All Data %'!BL21) -> 78 | BO21: =IF('All Data %'!BM$2<0.1,'All Data %'!BM21*10000,'All Data %'!BM21) -> 58.02 | BP21: =IF('All Data %'!BN$2<0.1,'All Data %'!BN21*10000,'All Data %'!BN21) -> 1200
A22: FGEN1 | B22: #55 | C22: Mining Plus | D22: 3776.25 | E22: 0.2 | F22: 990 | G22: 53.46 | H22: 52.33 | I22: 105.79 | J22: 3 | K22: =IF('All Data %'!I$2<0.1,'All Data %'!I22*10000,'All Data %'!I22) -> 0 | L22: =IF('All Data %'!J$2<0.1,'All Data %'!J22*10000,'All Data %'!J22) -> 6400 | M22: =IF('All Data %'!K$2<0.1,'All Data %'!K22*10000,'All Data %'!K22) -> 0.68 | N22: =IF('All Data %'!L$2<0.1,'All Data %'!L22*10000,'All Data %'!L22) -> 500 | O22: =IF('All Data %'!M$2<0.1,'All Data %'!M22*10000,'All Data %'!M22) -> 35.19 | P22: =IF('All Data %'!N$2<0.1,'All Data %'!N22*10000,'All Data %'!N22) -> 1000 | Q22: =IF('All Data %'!O$2<0.1,'All Data %'!O22*10000,'All Data %'!O22) -> 1.3146 | R22: =IF('All Data %'!P$2<0.1,'All Data %'!P22*10000,'All Data %'!P22) -> 145 | S22: =IF('All Data %'!Q$2<0.1,'All Data %'!Q22*10000,'All Data %'!Q22) -> 2.17 | T22: =IF('All Data %'!R$2<0.1,'All Data %'!R22*10000,'All Data %'!R22) -> 121 | U22: =IF('All Data %'!S$2<0.1,'All Data %'!S22*10000,'All Data %'!S22) -> 0 | V22: =IF('All Data %'!T$2<0.1,'All Data %'!T22*10000,'All Data %'!T22) -> 11 | W22: =IF('All Data %'!U$2<0.1,'All Data %'!U22*10000,'All Data %'!U22) -> 0 | X22: =IF('All Data %'!V$2<0.1,'All Data %'!V22*10000,'All Data %'!V22) -> 1100 | Y22: =IF('All Data %'!W$2<0.1,'All Data %'!W22*10000,'All Data %'!W22) -> 2.7248 | Z22: =IF('All Data %'!X$2<0.1,'All Data %'!X22*10000,'All Data %'!X22) -> 116 | AA22: =IF('All Data %'!Y$2<0.1,'All Data %'!Y22*10000,'All Data %'!Y22) -> 0.0715 | AB22: =IF('All Data %'!Z$2<0.1,'All Data %'!Z22*10000,'All Data %'!Z22) -> 70 | AC22: =IF('All Data %'!AA$2<0.1,'All Data %'!AA22*10000,'All Data %'!AA22) -> 153 | AD22: =IF('All Data %'!AB$2<0.1,'All Data %'!AB22*10000,'All Data %'!AB22) -> 34 | AE22: =IF('All Data %'!AC$2<0.1,'All Data %'!AC22*10000,'All Data %'!AC22) -> 150 | AF22: =IF('All Data %'!AD$2<0.1,'All Data %'!AD22*10000,'All Data %'!AD22) -> 28 | AG22: =IF('All Data %'!AE$2<0.1,'All Data %'!AE22*10000,'All Data %'!AE22) -> 222 | AH22: =IF('All Data %'!AF$2<0.1,'All Data %'!AF22*10000,'All Data %'!AF22) -> 19 | AI22: =IF('All Data %'!AG$2<0.1,'All Data %'!AG22*10000,'All Data %'!AG22) -> 0.2287 | AJ22: =IF('All Data %'!AH$2<0.1,'All Data %'!AH22*10000,'All Data %'!AH22) -> 35 | AK22: =IF('All Data %'!AI$2<0.1,'All Data %'!AI22*10000,'All Data %'!AI22) -> 0 | AL22: =IF('All Data %'!AJ$2<0.1,'All Data %'!AJ22*10000,'All Data %'!AJ22) -> 19 | AM22: =IF('All Data %'!AK$2<0.1,'All Data %'!AK22*10000,'All Data %'!AK22) -> 19 | AN22: =IF('All Data %'!AL$2<0.1,'All Data %'!AL22*10000,'All Data %'!AL22) -> 4 | AO22: =IF('All Data %'!AM$2<0.1,'All Data %'!AM22*10000,'All Data %'!AM22) -> 0 | AP22: =IF('All Data %'!AN$2<0.1,'All Data %'!AN22*10000,'All Data %'!AN22) -> 32 | AQ22: =IF('All Data %'!AO$2<0.1,'All Data %'!AO22*10000,'All Data %'!AO22) -> 0 | AR22: =IF('All Data %'!AP$2<0.1,'All Data %'!AP22*10000,'All Data %'!AP22) -> 17 | AS22: =IF('All Data %'!AQ$2<0.1,'All Data %'!AQ22*10000,'All Data %'!AQ22) -> 0 | AT22: =IF('All Data %'!AR$2<0.1,'All Data %'!AR22*10000,'All Data %'!AR22) -> 14 | AU22: =IF('All Data %'!AS$2<0.1,'All Data %'!AS22*10000,'All Data %'!AS22) -> 76 | AV22: =IF('All Data %'!AT$2<0.1,'All Data %'!AT22*10000,'All Data %'!AT22) -> 1 | AW22: =IF('All Data %'!AU$2<0.1,'All Data %'!AU22*10000,'All Data %'!AU22) -> 0 | AX22: =IF('All Data %'!AV$2<0.1,'All Data %'!AV22*10000,'All Data %'!AV22) -> 47 | AY22: =IF('All Data %'!AW$2<0.1,'All Data %'!AW22*10000,'All Data %'!AW22) -> 0 | AZ22: =IF('All Data %'!AX$2<0.1,'All Data %'!AX22*10000,'All Data %'!AX22) -> 0 | BA22: =IF('All Data %'!AY$2<0.1,'All Data %'!AY22*10000,'All Data %'!AY22) -> 281 | BB22: =IF('All Data %'!AZ$2<0.1,'All Data %'!AZ22*10000,'All Data %'!AZ22) -> 8 | BC22: =IF('All Data %'!BA$2<0.1,'All Data %'!BA22*10000,'All Data %'!BA22) -> 100 | BD22: =IF('All Data %'!BB$2<0.1,'All Data %'!BB22*10000,'All Data %'!BB22) -> 3 | BE22: =IF('All Data %'!BC$2<0.1,'All Data %'!BC22*10000,'All Data %'!BC22) -> 138 | BF22: =IF('All Data %'!BD$2<0.1,'All Data %'!BD22*10000,'All Data %'!BD22) -> 3 | BG22: =IF('All Data %'!BE$2<0.1,'All Data %'!BE22*10000,'All Data %'!BE22) -> 0 | BH22: =IF('All Data %'!BF$2<0.1,'All Data %'!BF22*10000,'All Data %'!BF22) -> 73 | BI22: =IF('All Data %'!BG$2<0.1,'All Data %'!BG22*10000,'All Data %'!BG22) -> 6 | BJ22: =IF('All Data %'!BH$2<0.1,'All Data %'!BH22*10000,'All Data %'!BH22) -> 2 | BK22: =IF('All Data %'!BI$2<0.1,'All Data %'!BI22*10000,'All Data %'!BI22) -> 11 | BL22: =IF('All Data %'!BJ$2<0.1,'All Data %'!BJ22*10000,'All Data %'!BJ22) -> 2 | BM22: =IF('All Data %'!BK$2<0.1,'All Data %'!BK22*10000,'All Data %'!BK22) -> 0 | BN22: =IF('All Data %'!BL$2<0.1,'All Data %'!BL22*10000,'All Data %'!BL22) -> 76 | BO22: =IF('All Data %'!BM$2<0.1,'All Data %'!BM22*10000,'All Data %'!BM22) -> 57.5 | BP22: =IF('All Data %'!BN$2<0.1,'All Data %'!BN22*10000,'All Data %'!BN22) -> 1200
A23: FGEN1 | B23: #56 | C23: Mining Plus | D23: 3776.45 | E23: 0.2 | F23: 990 | G23: 53.47 | H23: 51.94 | I23: 105.41 | J23: 3 | K23: =IF('All Data %'!I$2<0.1,'All Data %'!I23*10000,'All Data %'!I23) -> 0 | L23: =IF('All Data %'!J$2<0.1,'All Data %'!J23*10000,'All Data %'!J23) -> 6200 | M23: =IF('All Data %'!K$2<0.1,'All Data %'!K23*10000,'All Data %'!K23) -> 0 | N23: =IF('All Data %'!L$2<0.1,'All Data %'!L23*10000,'All Data %'!L23) -> 800 | O23: =IF('All Data %'!M$2<0.1,'All Data %'!M23*10000,'All Data %'!M23) -> 32.98 | P23: =IF('All Data %'!N$2<0.1,'All Data %'!N23*10000,'All Data %'!N23) -> 1000 | Q23: =IF('All Data %'!O$2<0.1,'All Data %'!O23*10000,'All Data %'!O23) -> 1.7105 | R23: =IF('All Data %'!P$2<0.1,'All Data %'!P23*10000,'All Data %'!P23) -> 156 | S23: =IF('All Data %'!Q$2<0.1,'All Data %'!Q23*10000,'All Data %'!Q23) -> 2.9246 | T23: =IF('All Data %'!R$2<0.1,'All Data %'!R23*10000,'All Data %'!R23) -> 139 | U23: =IF('All Data %'!S$2<0.1,'All Data %'!S23*10000,'All Data %'!S23) -> 0 | V23: =IF('All Data %'!T$2<0.1,'All Data %'!T23*10000,'All Data %'!T23) -> 10 | W23: =IF('All Data %'!U$2<0.1,'All Data %'!U23*10000,'All Data %'!U23) -> 0 | X23: =IF('All Data %'!V$2<0.1,'All Data %'!V23*10000,'All Data %'!V23) -> 800 | Y23: =IF('All Data %'!W$2<0.1,'All Data %'!W23*10000,'All Data %'!W23) -> 3.8403 | Z23: =IF('All Data %'!X$2<0.1,'All Data %'!X23*10000,'All Data %'!X23) -> 141 | AA23: =IF('All Data %'!Y$2<0.1,'All Data %'!Y23*10000,'All Data %'!Y23) -> 0.0427 | AB23: =IF('All Data %'!Z$2<0.1,'All Data %'!Z23*10000,'All Data %'!Z23) -> 61 | AC23: =IF('All Data %'!AA$2<0.1,'All Data %'!AA23*10000,'All Data %'!AA23) -> 203 | AD23: =IF('All Data %'!AB$2<0.1,'All Data %'!AB23*10000,'All Data %'!AB23) -> 34 | AE23: =IF('All Data %'!AC$2<0.1,'All Data %'!AC23*10000,'All Data %'!AC23) -> 155 | AF23: =IF('All Data %'!AD$2<0.1,'All Data %'!AD23*10000,'All Data %'!AD23) -> 28 | AG23: =IF('All Data %'!AE$2<0.1,'All Data %'!AE23*10000,'All Data %'!AE23) -> 265 | AH23: =IF('All Data %'!AF$2<0.1,'All Data %'!AF23*10000,'All Data %'!AF23) -> 20 | AI23: =IF('All Data %'!AG$2<0.1,'All Data %'!AG23*10000,'All Data %'!AG23) -> 0.2573 | AJ23: =IF('All Data %'!AH$2<0.1,'All Data %'!AH23*10000,'All Data %'!AH23) -> 37 | AK23: =IF('All Data %'!AI$2<0.1,'All Data %'!AI23*10000,'All Data %'!AI23) -> 0 | AL23: =IF('All Data %'!AJ$2<0.1,'All Data %'!AJ23*10000,'All Data %'!AJ23) -> 21 | AM23: =IF('All Data %'!AK$2<0.1,'All Data %'!AK23*10000,'All Data %'!AK23) -> 21 | AN23: =IF('All Data %'!AL$2<0.1,'All Data %'!AL23*10000,'All Data %'!AL23) -> 4 | AO23: =IF('All Data %'!AM$2<0.1,'All Data %'!AM23*10000,'All Data %'!AM23) -> 0 | AP23: =IF('All Data %'!AN$2<0.1,'All Data %'!AN23*10000,'All Data %'!AN23) -> 31 | AQ23: =IF('All Data %'!AO$2<0.1,'All Data %'!AO23*10000,'All Data %'!AO23) -> 0 | AR23: =IF('All Data %'!AP$2<0.1,'All Data %'!AP23*10000,'All Data %'!AP23) -> 17 | AS23: =IF('All Data %'!AQ$2<0.1,'All Data %'!AQ23*10000,'All Data %'!AQ23) -> 0 | AT23: =IF('All Data %'!AR$2<0.1,'All Data %'!AR23*10000,'All Data %'!AR23) -> 15 | AU23: =IF('All Data %'!AS$2<0.1,'All Data %'!AS23*10000,'All Data %'!AS23) -> 38 | AV23: =IF('All Data %'!AT$2<0.1,'All Data %'!AT23*10000,'All Data %'!AT23) -> 1 | AW23: =IF('All Data %'!AU$2<0.1,'All Data %'!AU23*10000,'All Data %'!AU23) -> 0 | AX23: =IF('All Data %'!AV$2<0.1,'All Data %'!AV23*10000,'All Data %'!AV23) -> 46 | AY23: =IF('All Data %'!AW$2<0.1,'All Data %'!AW23*10000,'All Data %'!AW23) -> 0 | AZ23: =IF('All Data %'!AX$2<0.1,'All Data %'!AX23*10000,'All Data %'!AX23) -> 0 | BA23: =IF('All Data %'!AY$2<0.1,'All Data %'!AY23*10000,'All Data %'!AY23) -> 258 | BB23: =IF('All Data %'!AZ$2<0.1,'All Data %'!AZ23*10000,'All Data %'!AZ23) -> 8 | BC23: =IF('All Data %'!BA$2<0.1,'All Data %'!BA23*10000,'All Data %'!BA23) -> 94 | BD23: =IF('All Data %'!BB$2<0.1,'All Data %'!BB23*10000,'All Data %'!BB23) -> 3 | BE23: =IF('All Data %'!BC$2<0.1,'All Data %'!BC23*10000,'All Data %'!BC23) -> 127 | BF23: =IF('All Data %'!BD$2<0.1,'All Data %'!BD23*10000,'All Data %'!BD23) -> 3 | BG23: =IF('All Data %'!BE$2<0.1,'All Data %'!BE23*10000,'All Data %'!BE23) -> 0 | BH23: =IF('All Data %'!BF$2<0.1,'All Data %'!BF23*10000,'All Data %'!BF23) -> 71 | BI23: =IF('All Data %'!BG$2<0.1,'All Data %'!BG23*10000,'All Data %'!BG23) -> 9 | BJ23: =IF('All Data %'!BH$2<0.1,'All Data %'!BH23*10000,'All Data %'!BH23) -> 2 | BK23: =IF('All Data %'!BI$2<0.1,'All Data %'!BI23*10000,'All Data %'!BI23) -> 14 | BL23: =IF('All Data %'!BJ$2<0.1,'All Data %'!BJ23*10000,'All Data %'!BJ23) -> 2 | BM23: =IF('All Data %'!BK$2<0.1,'All Data %'!BK23*10000,'All Data %'!BK23) -> 0 | BN23: =IF('All Data %'!BL$2<0.1,'All Data %'!BL23*10000,'All Data %'!BL23) -> 76 | BO23: =IF('All Data %'!BM$2<0.1,'All Data %'!BM23*10000,'All Data %'!BM23) -> 58.12 | BP23: =IF('All Data %'!BN$2<0.1,'All Data %'!BN23*10000,'All Data %'!BN23) -> 1100
A24: FGEN1 | B24: #57 | C24: Mining Plus | D24: 3776.65 | E24: 0.2 | F24: 990 | G24: 53.39 | H24: 50.52 | I24: 103.9 | J24: 3 | K24: =IF('All Data %'!I$2<0.1,'All Data %'!I24*10000,'All Data %'!I24) -> 0 | L24: =IF('All Data %'!J$2<0.1,'All Data %'!J24*10000,'All Data %'!J24) -> 5700 | M24: =IF('All Data %'!K$2<0.1,'All Data %'!K24*10000,'All Data %'!K24) -> 0 | N24: =IF('All Data %'!L$2<0.1,'All Data %'!L24*10000,'All Data %'!L24) -> 700 | O24: =IF('All Data %'!M$2<0.1,'All Data %'!M24*10000,'All Data %'!M24) -> 30.87 | P24: =IF('All Data %'!N$2<0.1,'All Data %'!N24*10000,'All Data %'!N24) -> 900 | Q24: =IF('All Data %'!O$2<0.1,'All Data %'!O24*10000,'All Data %'!O24) -> 1.7514 | R24: =IF('All Data %'!P$2<0.1,'All Data %'!P24*10000,'All Data %'!P24) -> 153 | S24: =IF('All Data %'!Q$2<0.1,'All Data %'!Q24*10000,'All Data %'!Q24) -> 4.627 | T24: =IF('All Data %'!R$2<0.1,'All Data %'!R24*10000,'All Data %'!R24) -> 180 | U24: =IF('All Data %'!S$2<0.1,'All Data %'!S24*10000,'All Data %'!S24) -> 0 | V24: =IF('All Data %'!T$2<0.1,'All Data %'!T24*10000,'All Data %'!T24) -> 10 | W24: =IF('All Data %'!U$2<0.1,'All Data %'!U24*10000,'All Data %'!U24) -> 0 | X24: =IF('All Data %'!V$2<0.1,'All Data %'!V24*10000,'All Data %'!V24) -> 800 | Y24: =IF('All Data %'!W$2<0.1,'All Data %'!W24*10000,'All Data %'!W24) -> 5.3491 | Z24: =IF('All Data %'!X$2<0.1,'All Data %'!X24*10000,'All Data %'!X24) -> 176 | AA24: =IF('All Data %'!Y$2<0.1,'All Data %'!Y24*10000,'All Data %'!Y24) -> 0.0593 | AB24: =IF('All Data %'!Z$2<0.1,'All Data %'!Z24*10000,'All Data %'!Z24) -> 64 | AC24: =IF('All Data %'!AA$2<0.1,'All Data %'!AA24*10000,'All Data %'!AA24) -> 168 | AD24: =IF('All Data %'!AB$2<0.1,'All Data %'!AB24*10000,'All Data %'!AB24) -> 33 | AE24: =IF('All Data %'!AC$2<0.1,'All Data %'!AC24*10000,'All Data %'!AC24) -> 126 | AF24: =IF('All Data %'!AD$2<0.1,'All Data %'!AD24*10000,'All Data %'!AD24) -> 27 | AG24: =IF('All Data %'!AE$2<0.1,'All Data %'!AE24*10000,'All Data %'!AE24) -> 276 | AH24: =IF('All Data %'!AF$2<0.1,'All Data %'!AF24*10000,'All Data %'!AF24) -> 20 | AI24: =IF('All Data %'!AG$2<0.1,'All Data %'!AG24*10000,'All Data %'!AG24) -> 0.3067 | AJ24: =IF('All Data %'!AH$2<0.1,'All Data %'!AH24*10000,'All Data %'!AH24) -> 40 | AK24: =IF('All Data %'!AI$2<0.1,'All Data %'!AI24*10000,'All Data %'!AI24) -> 0 | AL24: =IF('All Data %'!AJ$2<0.1,'All Data %'!AJ24*10000,'All Data %'!AJ24) -> 23 | AM24: =IF('All Data %'!AK$2<0.1,'All Data %'!AK24*10000,'All Data %'!AK24) -> 26 | AN24: =IF('All Data %'!AL$2<0.1,'All Data %'!AL24*10000,'All Data %'!AL24) -> 4 | AO24: =IF('All Data %'!AM$2<0.1,'All Data %'!AM24*10000,'All Data %'!AM24) -> 0 | AP24: =IF('All Data %'!AN$2<0.1,'All Data %'!AN24*10000,'All Data %'!AN24) -> 32 | AQ24: =IF('All Data %'!AO$2<0.1,'All Data %'!AO24*10000,'All Data %'!AO24) -> 0 | AR24: =IF('All Data %'!AP$2<0.1,'All Data %'!AP24*10000,'All Data %'!AP24) -> 18 | AS24: =IF('All Data %'!AQ$2<0.1,'All Data %'!AQ24*10000,'All Data %'!AQ24) -> 0 | AT24: =IF('All Data %'!AR$2<0.1,'All Data %'!AR24*10000,'All Data %'!AR24) -> 15 | AU24: =IF('All Data %'!AS$2<0.1,'All Data %'!AS24*10000,'All Data %'!AS24) -> 54 | AV24: =IF('All Data %'!AT$2<0.1,'All Data %'!AT24*10000,'All Data %'!AT24) -> 1 | AW24: =IF('All Data %'!AU$2<0.1,'All Data %'!AU24*10000,'All Data %'!AU24) -> 0 | AX24: =IF('All Data %'!AV$2<0.1,'All Data %'!AV24*10000,'All Data %'!AV24) -> 46 | AY24: =IF('All Data %'!AW$2<0.1,'All Data %'!AW24*10000,'All Data %'!AW24) -> 0 | AZ24: =IF('All Data %'!AX$2<0.1,'All Data %'!AX24*10000,'All Data %'!AX24) -> 0 | BA24: =IF('All Data %'!AY$2<0.1,'All Data %'!AY24*10000,'All Data %'!AY24) -> 257 | BB24: =IF('All Data %'!AZ$2<0.1,'All Data %'!AZ24*10000,'All Data %'!AZ24) -> 8 | BC24: =IF('All Data %'!BA$2<0.1,'All Data %'!BA24*10000,'All Data %'!BA24) -> 100 | BD24: =IF('All Data %'!BB$2<0.1,'All Data %'!BB24*10000,'All Data %'!BB24) -> 3 | BE24: =IF('All Data %'!BC$2<0.1,'All Data %'!BC24*10000,'All Data %'!BC24) -> 120 | BF24: =IF('All Data %'!BD$2<0.1,'All Data %'!BD24*10000,'All Data %'!BD24) -> 3 | BG24: =IF('All Data %'!BE$2<0.1,'All Data %'!BE24*10000,'All Data %'!BE24) -> 0 | BH24: =IF('All Data %'!BF$2<0.1,'All Data %'!BF24*10000,'All Data %'!BF24) -> 72 | BI24: =IF('All Data %'!BG$2<0.1,'All Data %'!BG24*10000,'All Data %'!BG24) -> 7 | BJ24: =IF('All Data %'!BH$2<0.1,'All Data %'!BH24*10000,'All Data %'!BH24) -> 2 | BK24: =IF('All Data %'!BI$2<0.1,'All Data %'!BI24*10000,'All Data %'!BI24) -> 15 | BL24: =IF('All Data %'!BJ$2<0.1,'All Data %'!BJ24*10000,'All Data %'!BJ24) -> 2 | BM24: =IF('All Data %'!BK$2<0.1,'All Data %'!BK24*10000,'All Data %'!BK24) -> 0 | BN24: =IF('All Data %'!BL$2<0.1,'All Data %'!BL24*10000,'All Data %'!BL24) -> 80 | BO24: =IF('All Data %'!BM$2<0.1,'All Data %'!BM24*10000,'All Data %'!BM24) -> 56.92 | BP24: =IF('All Data %'!BN$2<0.1,'All Data %'!BN24*10000,'All Data %'!BN24) -> 1100
A25: FGEN1 | B25: #58 | C25: Mining Plus | D25: 3776.85 | E25: 0.2 | F25: 989 | G25: 53.25 | H25: 51.87 | I25: 105.12 | J25: 3 | K25: =IF('All Data %'!I$2<0.1,'All Data %'!I25*10000,'All Data %'!I25) -> 0 | L25: =IF('All Data %'!J$2<0.1,'All Data %'!J25*10000,'All Data %'!J25) -> 5500 | M25: =IF('All Data %'!K$2<0.1,'All Data %'!K25*10000,'All Data %'!K25) -> 0.1174 | N25: =IF('All Data %'!L$2<0.1,'All Data %'!L25*10000,'All Data %'!L25) -> 437 | O25: =IF('All Data %'!M$2<0.1,'All Data %'!M25*10000,'All Data %'!M25) -> 36.33 | P25: =IF('All Data %'!N$2<0.1,'All Data %'!N25*10000,'All Data %'!N25) -> 1000 | Q25: =IF('All Data %'!O$2<0.1,'All Data %'!O25*10000,'All Data %'!O25) -> 2.6637 | R25: =IF('All Data %'!P$2<0.1,'All Data %'!P25*10000,'All Data %'!P25) -> 193 | S25: =IF('All Data %'!Q$2<0.1,'All Data %'!Q25*10000,'All Data %'!Q25) -> 1.1037 | T25: =IF('All Data %'!R$2<0.1,'All Data %'!R25*10000,'All Data %'!R25) -> 84 | U25: =IF('All Data %'!S$2<0.1,'All Data %'!S25*10000,'All Data %'!S25) -> 0 | V25: =IF('All Data %'!T$2<0.1,'All Data %'!T25*10000,'All Data %'!T25) -> 8 | W25: =IF('All Data %'!U$2<0.1,'All Data %'!U25*10000,'All Data %'!U25) -> 0 | X25: =IF('All Data %'!V$2<0.1,'All Data %'!V25*10000,'All Data %'!V25) -> 800 | Y25: =IF('All Data %'!W$2<0.1,'All Data %'!W25*10000,'All Data %'!W25) -> 3.9175 | Z25: =IF('All Data %'!X$2<0.1,'All Data %'!X25*10000,'All Data %'!X25) -> 142 | AA25: =IF('All Data %'!Y$2<0.1,'All Data %'!Y25*10000,'All Data %'!Y25) -> 0.0584 | AB25: =IF('All Data %'!Z$2<0.1,'All Data %'!Z25*10000,'All Data %'!Z25) -> 65 | AC25: =IF('All Data %'!AA$2<0.1,'All Data %'!AA25*10000,'All Data %'!AA25) -> 248 | AD25: =IF('All Data %'!AB$2<0.1,'All Data %'!AB25*10000,'All Data %'!AB25) -> 36 | AE25: =IF('All Data %'!AC$2<0.1,'All Data %'!AC25*10000,'All Data %'!AC25) -> 183 | AF25: =IF('All Data %'!AD$2<0.1,'All Data %'!AD25*10000,'All Data %'!AD25) -> 29 | AG25: =IF('All Data %'!AE$2<0.1,'All Data %'!AE25*10000,'All Data %'!AE25) -> 282 | AH25: =IF('All Data %'!AF$2<0.1,'All Data %'!AF25*10000,'All Data %'!AF25) -> 20 | AI25: =IF('All Data %'!AG$2<0.1,'All Data %'!AG25*10000,'All Data %'!AG25) -> 0.3456 | AJ25: =IF('All Data %'!AH$2<0.1,'All Data %'!AH25*10000,'All Data %'!AH25) -> 42 | AK25: =IF('All Data %'!AI$2<0.1,'All Data %'!AI25*10000,'All Data %'!AI25) -> 0 | AL25: =IF('All Data %'!AJ$2<0.1,'All Data %'!AJ25*10000,'All Data %'!AJ25) -> 23 | AM25: =IF('All Data %'!AK$2<0.1,'All Data %'!AK25*10000,'All Data %'!AK25) -> 26 | AN25: =IF('All Data %'!AL$2<0.1,'All Data %'!AL25*10000,'All Data %'!AL25) -> 4 | AO25: =IF('All Data %'!AM$2<0.1,'All Data %'!AM25*10000,'All Data %'!AM25) -> 0 | AP25: =IF('All Data %'!AN$2<0.1,'All Data %'!AN25*10000,'All Data %'!AN25) -> 32 | AQ25: =IF('All Data %'!AO$2<0.1,'All Data %'!AO25*10000,'All Data %'!AO25) -> 0 | AR25: =IF('All Data %'!AP$2<0.1,'All Data %'!AP25*10000,'All Data %'!AP25) -> 19 | AS25: =IF('All Data %'!AQ$2<0.1,'All Data %'!AQ25*10000,'All Data %'!AQ25) -> 0 | AT25: =IF('All Data %'!AR$2<0.1,'All Data %'!AR25*10000,'All Data %'!AR25) -> 15 | AU25: =IF('All Data %'!AS$2<0.1,'All Data %'!AS25*10000,'All Data %'!AS25) -> 55 | AV25: =IF('All Data %'!AT$2<0.1,'All Data %'!AT25*10000,'All Data %'!AT25) -> 1 | AW25: =IF('All Data %'!AU$2<0.1,'All Data %'!AU25*10000,'All Data %'!AU25) -> 0 | AX25: =IF('All Data %'!AV$2<0.1,'All Data %'!AV25*10000,'All Data %'!AV25) -> 45 | AY25: =IF('All Data %'!AW$2<0.1,'All Data %'!AW25*10000,'All Data %'!AW25) -> 0 | AZ25: =IF('All Data %'!AX$2<0.1,'All Data %'!AX25*10000,'All Data %'!AX25) -> 0 | BA25: =IF('All Data %'!AY$2<0.1,'All Data %'!AY25*10000,'All Data %'!AY25) -> 271 | BB25: =IF('All Data %'!AZ$2<0.1,'All Data %'!AZ25*10000,'All Data %'!AZ25) -> 8 | BC25: =IF('All Data %'!BA$2<0.1,'All Data %'!BA25*10000,'All Data %'!BA25) -> 105 | BD25: =IF('All Data %'!BB$2<0.1,'All Data %'!BB25*10000,'All Data %'!BB25) -> 3 | BE25: =IF('All Data %'!BC$2<0.1,'All Data %'!BC25*10000,'All Data %'!BC25) -> 130 | BF25: =IF('All Data %'!BD$2<0.1,'All Data %'!BD25*10000,'All Data %'!BD25) -> 3 | BG25: =IF('All Data %'!BE$2<0.1,'All Data %'!BE25*10000,'All Data %'!BE25) -> 19 | BH25: =IF('All Data %'!BF$2<0.1,'All Data %'!BF25*10000,'All Data %'!BF25) -> 4 | BI25: =IF('All Data %'!BG$2<0.1,'All Data %'!BG25*10000,'All Data %'!BG25) -> 9 | BJ25: =IF('All Data %'!BH$2<0.1,'All Data %'!BH25*10000,'All Data %'!BH25) -> 2 | BK25: =IF('All Data %'!BI$2<0.1,'All Data %'!BI25*10000,'All Data %'!BI25) -> 16 | BL25: =IF('All Data %'!BJ$2<0.1,'All Data %'!BJ25*10000,'All Data %'!BJ25) -> 2 | BM25: =IF('All Data %'!BK$2<0.1,'All Data %'!BK25*10000,'All Data %'!BK25) -> 0 | BN25: =IF('All Data %'!BL$2<0.1,'All Data %'!BL25*10000,'All Data %'!BL25) -> 79 | BO25: =IF('All Data %'!BM$2<0.1,'All Data %'!BM25*10000,'All Data %'!BM25) -> 55.33 | BP25: =IF('All Data %'!BN$2<0.1,'All Data %'!BN25*10000,'All Data %'!BN25) -> 1200
A26: FGEN1 | B26: #59 | C26: Mining Plus | D26: 3777.05 | E26: 0.2 | F26: 989 | G26: 53.28 | H26: 51.9 | I26: 105.18 | J26: 3 | K26: =IF('All Data %'!I$2<0.1,'All Data %'!I26*10000,'All Data %'!I26) -> 0 | L26: =IF('All Data %'!J$2<0.1,'All Data %'!J26*10000,'All Data %'!J26) -> 6000 | M26: =IF('All Data %'!K$2<0.1,'All Data %'!K26*10000,'All Data %'!K26) -> 0.75 | N26: =IF('All Data %'!L$2<0.1,'All Data %'!L26*10000,'All Data %'!L26) -> 500 | O26: =IF('All Data %'!M$2<0.1,'All Data %'!M26*10000,'All Data %'!M26) -> 36.34 | P26: =IF('All Data %'!N$2<0.1,'All Data %'!N26*10000,'All Data %'!N26) -> 1000 | Q26: =IF('All Data %'!O$2<0.1,'All Data %'!O26*10000,'All Data %'!O26) -> 1.5611 | R26: =IF('All Data %'!P$2<0.1,'All Data %'!P26*10000,'All Data %'!P26) -> 153 | S26: =IF('All Data %'!Q$2<0.1,'All Data %'!Q26*10000,'All Data %'!Q26) -> 1.9748 | T26: =IF('All Data %'!R$2<0.1,'All Data %'!R26*10000,'All Data %'!R26) -> 113 | U26: =IF('All Data %'!S$2<0.1,'All Data %'!S26*10000,'All Data %'!S26) -> 0 | V26: =IF('All Data %'!T$2<0.1,'All Data %'!T26*10000,'All Data %'!T26) -> 10 | W26: =IF('All Data %'!U$2<0.1,'All Data %'!U26*10000,'All Data %'!U26) -> 0 | X26: =IF('All Data %'!V$2<0.1,'All Data %'!V26*10000,'All Data %'!V26) -> 1000 | Y26: =IF('All Data %'!W$2<0.1,'All Data %'!W26*10000,'All Data %'!W26) -> 2.9813 | Z26: =IF('All Data %'!X$2<0.1,'All Data %'!X26*10000,'All Data %'!X26) -> 120 | AA26: =IF('All Data %'!Y$2<0.1,'All Data %'!Y26*10000,'All Data %'!Y26) -> 0.0717 | AB26: =IF('All Data %'!Z$2<0.1,'All Data %'!Z26*10000,'All Data %'!Z26) -> 68 | AC26: =IF('All Data %'!AA$2<0.1,'All Data %'!AA26*10000,'All Data %'!AA26) -> 197 | AD26: =IF('All Data %'!AB$2<0.1,'All Data %'!AB26*10000,'All Data %'!AB26) -> 35 | AE26: =IF('All Data %'!AC$2<0.1,'All Data %'!AC26*10000,'All Data %'!AC26) -> 169 | AF26: =IF('All Data %'!AD$2<0.1,'All Data %'!AD26*10000,'All Data %'!AD26) -> 29 | AG26: =IF('All Data %'!AE$2<0.1,'All Data %'!AE26*10000,'All Data %'!AE26) -> 233 | AH26: =IF('All Data %'!AF$2<0.1,'All Data %'!AF26*10000,'All Data %'!AF26) -> 19 | AI26: =IF('All Data %'!AG$2<0.1,'All Data %'!AG26*10000,'All Data %'!AG26) -> 0.3883 | AJ26: =IF('All Data %'!AH$2<0.1,'All Data %'!AH26*10000,'All Data %'!AH26) -> 45 | AK26: =IF('All Data %'!AI$2<0.1,'All Data %'!AI26*10000,'All Data %'!AI26) -> 0 | AL26: =IF('All Data %'!AJ$2<0.1,'All Data %'!AJ26*10000,'All Data %'!AJ26) -> 24 | AM26: =IF('All Data %'!AK$2<0.1,'All Data %'!AK26*10000,'All Data %'!AK26) -> 20 | AN26: =IF('All Data %'!AL$2<0.1,'All Data %'!AL26*10000,'All Data %'!AL26) -> 4 | AO26: =IF('All Data %'!AM$2<0.1,'All Data %'!AM26*10000,'All Data %'!AM26) -> 0 | AP26: =IF('All Data %'!AN$2<0.1,'All Data %'!AN26*10000,'All Data %'!AN26) -> 31 | AQ26: =IF('All Data %'!AO$2<0.1,'All Data %'!AO26*10000,'All Data %'!AO26) -> 0 | AR26: =IF('All Data %'!AP$2<0.1,'All Data %'!AP26*10000,'All Data %'!AP26) -> 18 | AS26: =IF('All Data %'!AQ$2<0.1,'All Data %'!AQ26*10000,'All Data %'!AQ26) -> 0 | AT26: =IF('All Data %'!AR$2<0.1,'All Data %'!AR26*10000,'All Data %'!AR26) -> 14 | AU26: =IF('All Data %'!AS$2<0.1,'All Data %'!AS26*10000,'All Data %'!AS26) -> 77 | AV26: =IF('All Data %'!AT$2<0.1,'All Data %'!AT26*10000,'All Data %'!AT26) -> 1 | AW26: =IF('All Data %'!AU$2<0.1,'All Data %'!AU26*10000,'All Data %'!AU26) -> 0 | AX26: =IF('All Data %'!AV$2<0.1,'All Data %'!AV26*10000,'All Data %'!AV26) -> 46 | AY26: =IF('All Data %'!AW$2<0.1,'All Data %'!AW26*10000,'All Data %'!AW26) -> 0 | AZ26: =IF('All Data %'!AX$2<0.1,'All Data %'!AX26*10000,'All Data %'!AX26) -> 0 | BA26: =IF('All Data %'!AY$2<0.1,'All Data %'!AY26*10000,'All Data %'!AY26) -> 277 | BB26: =IF('All Data %'!AZ$2<0.1,'All Data %'!AZ26*10000,'All Data %'!AZ26) -> 8 | BC26: =IF('All Data %'!BA$2<0.1,'All Data %'!BA26*10000,'All Data %'!BA26) -> 101 | BD26: =IF('All Data %'!BB$2<0.1,'All Data %'!BB26*10000,'All Data %'!BB26) -> 3 | BE26: =IF('All Data %'!BC$2<0.1,'All Data %'!BC26*10000,'All Data %'!BC26) -> 131 | BF26: =IF('All Data %'!BD$2<0.1,'All Data %'!BD26*10000,'All Data %'!BD26) -> 3 | BG26: =IF('All Data %'!BE$2<0.1,'All Data %'!BE26*10000,'All Data %'!BE26) -> 23 | BH26: =IF('All Data %'!BF$2<0.1,'All Data %'!BF26*10000,'All Data %'!BF26) -> 4 | BI26: =IF('All Data %'!BG$2<0.1,'All Data %'!BG26*10000,'All Data %'!BG26) -> 6 | BJ26: =IF('All Data %'!BH$2<0.1,'All Data %'!BH26*10000,'All Data %'!BH26) -> 2 | BK26: =IF('All Data %'!BI$2<0.1,'All Data %'!BI26*10000,'All Data %'!BI26) -> 18 | BL26: =IF('All Data %'!BJ$2<0.1,'All Data %'!BJ26*10000,'All Data %'!BJ26) -> 2 | BM26: =IF('All Data %'!BK$2<0.1,'All Data %'!BK26*10000,'All Data %'!BK26) -> 0 | BN26: =IF('All Data %'!BL$2<0.1,'All Data %'!BL26*10000,'All Data %'!BL26) -> 76 | BO26: =IF('All Data %'!BM$2<0.1,'All Data %'!BM26*10000,'All Data %'!BM26) -> 55.8 | BP26: =IF('All Data %'!BN$2<0.1,'All Data %'!BN26*10000,'All Data %'!BN26) -> 1200
A27: FGEN1 | B27: #60 | C27: Mining Plus | D27: 3777.25 | E27: 0.2 | F27: 989 | G27: 53.4 | H27: 49.89 | I27: 103.29 | J27: 3 | K27: =IF('All Data %'!I$2<0.1,'All Data %'!I27*10000,'All Data %'!I27) -> 0 | L27: =IF('All Data %'!J$2<0.1,'All Data %'!J27*10000,'All Data %'!J27) -> 6200 | M27: =IF('All Data %'!K$2<0.1,'All Data %'!K27*10000,'All Data %'!K27) -> 0.2188 | N27: =IF('All Data %'!L$2<0.1,'All Data %'!L27*10000,'All Data %'!L27) -> 438 | O27: =IF('All Data %'!M$2<0.1,'All Data %'!M27*10000,'All Data %'!M27) -> 27.02 | P27: =IF('All Data %'!N$2<0.1,'All Data %'!N27*10000,'All Data %'!N27) -> 900 | Q27: =IF('All Data %'!O$2<0.1,'All Data %'!O27*10000,'All Data %'!O27) -> 1.6748 | R27: =IF('All Data %'!P$2<0.1,'All Data %'!P27*10000,'All Data %'!P27) -> 147 | S27: =IF('All Data %'!Q$2<0.1,'All Data %'!Q27*10000,'All Data %'!Q27) -> 5.6765 | T27: =IF('All Data %'!R$2<0.1,'All Data %'!R27*10000,'All Data %'!R27) -> 209 | U27: =IF('All Data %'!S$2<0.1,'All Data %'!S27*10000,'All Data %'!S27) -> 0 | V27: =IF('All Data %'!T$2<0.1,'All Data %'!T27*10000,'All Data %'!T27) -> 10 | W27: =IF('All Data %'!U$2<0.1,'All Data %'!U27*10000,'All Data %'!U27) -> 0 | X27: =IF('All Data %'!V$2<0.1,'All Data %'!V27*10000,'All Data %'!V27) -> 800 | Y27: =IF('All Data %'!W$2<0.1,'All Data %'!W27*10000,'All Data %'!W27) -> 6.0926 | Z27: =IF('All Data %'!X$2<0.1,'All Data %'!X27*10000,'All Data %'!X27) -> 200 | AA27: =IF('All Data %'!Y$2<0.1,'All Data %'!Y27*10000,'All Data %'!Y27) -> 0.0779 | AB27: =IF('All Data %'!Z$2<0.1,'All Data %'!Z27*10000,'All Data %'!Z27) -> 68 | AC27: =IF('All Data %'!AA$2<0.1,'All Data %'!AA27*10000,'All Data %'!AA27) -> 193 | AD27: =IF('All Data %'!AB$2<0.1,'All Data %'!AB27*10000,'All Data %'!AB27) -> 34 | AE27: =IF('All Data %'!AC$2<0.1,'All Data %'!AC27*10000,'All Data %'!AC27) -> 198 | AF27: =IF('All Data %'!AD$2<0.1,'All Data %'!AD27*10000,'All Data %'!AD27) -> 29 | AG27: =IF('All Data %'!AE$2<0.1,'All Data %'!AE27*10000,'All Data %'!AE27) -> 337 | AH27: =IF('All Data %'!AF$2<0.1,'All Data %'!AF27*10000,'All Data %'!AF27) -> 21 | AI27: =IF('All Data %'!AG$2<0.1,'All Data %'!AG27*10000,'All Data %'!AG27) -> 0.3937 | AJ27: =IF('All Data %'!AH$2<0.1,'All Data %'!AH27*10000,'All Data %'!AH27) -> 45 | AK27: =IF('All Data %'!AI$2<0.1,'All Data %'!AI27*10000,'All Data %'!AI27) -> 29 | AL27: =IF('All Data %'!AJ$2<0.1,'All Data %'!AJ27*10000,'All Data %'!AJ27) -> 6 | AM27: =IF('All Data %'!AK$2<0.1,'All Data %'!AK27*10000,'All Data %'!AK27) -> 32 | AN27: =IF('All Data %'!AL$2<0.1,'All Data %'!AL27*10000,'All Data %'!AL27) -> 4 | AO27: =IF('All Data %'!AM$2<0.1,'All Data %'!AM27*10000,'All Data %'!AM27) -> 0 | AP27: =IF('All Data %'!AN$2<0.1,'All Data %'!AN27*10000,'All Data %'!AN27) -> 32 | AQ27: =IF('All Data %'!AO$2<0.1,'All Data %'!AO27*10000,'All Data %'!AO27) -> 0 | AR27: =IF('All Data %'!AP$2<0.1,'All Data %'!AP27*10000,'All Data %'!AP27) -> 19 | AS27: =IF('All Data %'!AQ$2<0.1,'All Data %'!AQ27*10000,'All Data %'!AQ27) -> 0 | AT27: =IF('All Data %'!AR$2<0.1,'All Data %'!AR27*10000,'All Data %'!AR27) -> 16 | AU27: =IF('All Data %'!AS$2<0.1,'All Data %'!AS27*10000,'All Data %'!AS27) -> 54 | AV27: =IF('All Data %'!AT$2<0.1,'All Data %'!AT27*10000,'All Data %'!AT27) -> 1 | AW27: =IF('All Data %'!AU$2<0.1,'All Data %'!AU27*10000,'All Data %'!AU27) -> 0 | AX27: =IF('All Data %'!AV$2<0.1,'All Data %'!AV27*10000,'All Data %'!AV27) -> 46 | AY27: =IF('All Data %'!AW$2<0.1,'All Data %'!AW27*10000,'All Data %'!AW27) -> 0 | AZ27: =IF('All Data %'!AX$2<0.1,'All Data %'!AX27*10000,'All Data %'!AX27) -> 0 | BA27: =IF('All Data %'!AY$2<0.1,'All Data %'!AY27*10000,'All Data %'!AY27) -> 261 | BB27: =IF('All Data %'!AZ$2<0.1,'All Data %'!AZ27*10000,'All Data %'!AZ27) -> 8 | BC27: =IF('All Data %'!BA$2<0.1,'All Data %'!BA27*10000,'All Data %'!BA27) -> 97 | BD27: =IF('All Data %'!BB$2<0.1,'All Data %'!BB27*10000,'All Data %'!BB27) -> 3 | BE27: =IF('All Data %'!BC$2<0.1,'All Data %'!BC27*10000,'All Data %'!BC27) -> 117 | BF27: =IF('All Data %'!BD$2<0.1,'All Data %'!BD27*10000,'All Data %'!BD27) -> 3 | BG27: =IF('All Data %'!BE$2<0.1,'All Data %'!BE27*10000,'All Data %'!BE27) -> 0 | BH27: =IF('All Data %'!BF$2<0.1,'All Data %'!BF27*10000,'All Data %'!BF27) -> 70 | BI27: =IF('All Data %'!BG$2<0.1,'All Data %'!BG27*10000,'All Data %'!BG27) -> 12 | BJ27: =IF('All Data %'!BH$2<0.1,'All Data %'!BH27*10000,'All Data %'!BH27) -> 2 | BK27: =IF('All Data %'!BI$2<0.1,'All Data %'!BI27*10000,'All Data %'!BI27) -> 18 | BL27: =IF('All Data %'!BJ$2<0.1,'All Data %'!BJ27*10000,'All Data %'!BJ27) -> 2 | BM27: =IF('All Data %'!BK$2<0.1,'All Data %'!BK27*10000,'All Data %'!BK27) -> 0 | BN27: =IF('All Data %'!BL$2<0.1,'All Data %'!BL27*10000,'All Data %'!BL27) -> 78 | BO27: =IF('All Data %'!BM$2<0.1,'All Data %'!BM27*10000,'All Data %'!BM27) -> 58.71 | BP27: =IF('All Data %'!BN$2<0.1,'All Data %'!BN27*10000,'All Data %'!BN27) -> 1200
